Workbook

Sheet Local SUT
A1: Table 2. City General Sales & Use Taxes Total Collections
A2: CY 2004-2024
A3: For detail by month through December 2024, double click on links.
A4: City | B4: Tax Rate | C4: Year Imposed | D4: 2004** | E4: 2005** | F4: 2006 | G4: 2007 | H4: 2008 | I4: 2009 | J4: 2010 | K4: 2011 | L4: 2012 | M4: 2013 | N4: 2014 | O4: 2015 | P4: 2016 | Q4: 2017 | R4: 2018 | S4: 2019 | T4: 2020 | U4: 2021 | V4: 2022 | W4: 2023 | X4: 2024
A5: Albert Lea | B5: 0.005 | C5: 2006 | D5: - | E5: - | F5: ='Albert Lea'!D17+'Albert Lea'!D32 -> 672514.27 | G5: ='Albert Lea'!E17+'Albert Lea'!E32 -> 1193642.53 | H5: ='Albert Lea'!F17+'Albert Lea'!F32 -> 1295287.45 | I5: ='Albert Lea'!G17+'Albert Lea'!G32 -> 1302397 | J5: ='Albert Lea'!H17+'Albert Lea'!H32 -> 1417881 | K5: ='Albert Lea'!I17+'Albert Lea'!I32 -> 1385185 | L5: ='Albert Lea'!J17+'Albert Lea'!J32 -> 1361956 | M5: ='Albert Lea'!K17+'Albert Lea'!K32 -> 1371727 | N5: ='Albert Lea'!L17+'Albert Lea'!L32 -> 1435808 | O5: ='Albert Lea'!M17+'Albert Lea'!M32 -> 1505821 | P5: ='Albert Lea'!N17+'Albert Lea'!N32 -> 1471058 | Q5: ='Albert Lea'!O17+'Albert Lea'!O32 -> 1465994 | R5: ='Albert Lea'!P17+'Albert Lea'!P32 -> 1526457 | S5: ='Albert Lea'!Q17+'Albert Lea'!Q32 -> 1605147 | T5: ='Albert Lea'!R17+'Albert Lea'!R32 -> 1607185 | U5: ='Albert Lea'!S17+'Albert Lea'!S32 -> 1786166 | V5: ='Albert Lea'!T17+'Albert Lea'!T32 -> 2029124 | W5: ='Albert Lea'!U17+'Albert Lea'!U32 -> 2044803 | X5: ='Albert Lea'!V17+'Albert Lea'!V32 -> 2058120.29
A6: Austin | B6: 0.005 | C6: 2007 | D6: - | E6: - | F6: - | G6: =Austin!E17+Austin!E32 -> 824839.44 | H6: =Austin!F17+Austin!F32 -> 1306244.17 | I6: =Austin!G17+Austin!G32 -> 1415665 | J6: =Austin!H17+Austin!H32 -> 1521493 | K6: =Austin!I17+Austin!I32 -> 1602890 | L6: =Austin!J17+Austin!J32 -> 1654987 | M6: =Austin!K17+Austin!K32 -> 1626125 | N6: =Austin!L17+Austin!L32 -> 1870654 | O6: =Austin!M17+Austin!M32 -> 1676696 | P6: =Austin!N17+Austin!N32 -> 1561724 | Q6: =Austin!O17+Austin!O32 -> 944408 | R6: =Austin!P17+Austin!P32 -> 1494791 | S6: =Austin!Q17+Austin!Q32 -> 1620306 | T6: =Austin!R17+Austin!R32 -> 1706446 | U6: =Austin!S17+Austin!S32 -> 1744428 | V6: =Austin!T17+Austin!T32 -> 1762297 | W6: =Austin!U17+Austin!U32 -> 2007117 | X6: =Austin!V17+Austin!V32 -> 2028308.78
A7: Avon | B7: 0.005 | C7: 2019 | J7: - | K7: - | L7: - | M7: - | N7: - | O7: - | P7: - | Q7: - | R7: - | S7: =Avon!Q17+Avon!Q32 -> 25728 | T7: =Avon!R17+Avon!R32 -> 206950 | U7: =Avon!S17+Avon!S32 -> 232322 | V7: =Avon!T17+Avon!T32 -> 248158 | W7: =Avon!U17+Avon!U32 -> 353675 | X7: =Avon!V17+Avon!V32 -> 465744.65
A8: Baxter | B8: 0.005 | C8: 2006 | D8: - | E8: - | F8: =Baxter!D17+Baxter!D32 -> 269460 | G8: =Baxter!E17+Baxter!E32 -> 1907479.97 | H8: =Baxter!F17+Baxter!F32 -> 1817395.2 | I8: =Baxter!G17+Baxter!G32 -> 1814425 | J8: =Baxter!H17+Baxter!H32 -> 1812195 | K8: =Baxter!I17+Baxter!I32 -> 1842188 | L8: =Baxter!J17+Baxter!J32 -> 2003212 | M8: =Baxter!K17+Baxter!K32 -> 2120411 | N8: =Baxter!L17+Baxter!L32 -> 2208771 | O8: =Baxter!M17+Baxter!M32 -> 2332767 | P8: =Baxter!N17+Baxter!N32 -> 2421617 | Q8: =Baxter!O17+Baxter!O32 -> 2533674 | R8: =Baxter!P17+Baxter!P32 -> 2572469 | S8: =Baxter!Q17+Baxter!Q32 -> 2685015 | T8: =Baxter!R17+Baxter!R32 -> 2867237 | U8: =Baxter!S17+Baxter!S32 -> 3101627 | V8: =Baxter!T17+Baxter!T32 -> 3536738 | W8: =Baxter!U17+Baxter!U32 -> 3589431 | X8: =Baxter!V17+Baxter!V32 -> 3518939.71
A9: Bemidji | B9: 0.005 | C9: 2006 | D9: - | E9: - | F9: =Bemidji!D17+Bemidji!D32 -> 1423560.49 | G9: =Bemidji!E17+Bemidji!E32 -> 1690976.16 | H9: =Bemidji!F17+Bemidji!F32 -> 1688219.57 | I9: =Bemidji!G17+Bemidji!G32 -> 1749687 | J9: =Bemidji!H17+Bemidji!H32 -> 1846889 | K9: =Bemidji!I17+Bemidji!I32 -> 1962085 | L9: =Bemidji!J17+Bemidji!J32 -> 1962300 | M9: =Bemidji!K17+Bemidji!K32 -> 2189580 | N9: =Bemidji!L17+Bemidji!L32 -> 2207516 | O9: =Bemidji!M17+Bemidji!M32 -> 2310735 | P9: =Bemidji!N17+Bemidji!N32 -> 2385137 | Q9: =Bemidji!O17+Bemidji!O32 -> 2418443 | R9: =Bemidji!P17+Bemidji!P32 -> 2473903 | S9: =Bemidji!Q17+Bemidji!Q32 -> 2587708 | T9: =Bemidji!R17+Bemidji!R32 -> 2678259 | U9: =Bemidji!S17+Bemidji!S32 -> 3087225 | V9: =Bemidji!T17+Bemidji!T32 -> 3336348 | W9: =Bemidji!U17+Bemidji!U32 -> 3335817 | X9: =Bemidji!V17+Bemidji!V32 -> 3268184.9
A10: Bloomington | B10: 0.005 | C10: 2024 | X10: =Bloomington!V17+Bloomington!V32 -> 10022816
A11: Blue Earth | B11: 0.005 | C11: 2019 | J11: - | K11: - | L11: - | M11: - | N11: - | O11: - | P11: - | Q11: - | R11: - | S11: ='Blue Earth'!Q17+'Blue Earth'!Q32 -> 40601 | T11: ='Blue Earth'!R17+'Blue Earth'!R32 -> 322552 | U11: ='Blue Earth'!S17+'Blue Earth'!S32 -> 352222 | V11: ='Blue Earth'!T17+'Blue Earth'!T32 -> 404438 | W11: ='Blue Earth'!U17+'Blue Earth'!U32 -> 494236 | X11: ='Blue Earth'!V17+'Blue Earth'!V32 -> 475879.16
A12: Brainerd | B12: 0.005 | C12: 2007 | D12: - | E12: - | F12: - | G12: =Brainerd!E17+Brainerd!E32 -> 556739.87 | H12: =Brainerd!F17+Brainerd!F32 -> 830839.81 | I12: =Brainerd!G17+Brainerd!G32 -> 850614 | J12: =Brainerd!H17+Brainerd!H32 -> 829980 | K12: =Brainerd!I17+Brainerd!I32 -> 839153 | L12: =Brainerd!J17+Brainerd!J32 -> 883124 | M12: =Brainerd!K17+Brainerd!K32 -> 881244 | N12: =Brainerd!L17+Brainerd!L32 -> 876199 | O12: =Brainerd!M17+Brainerd!M32 -> 902105 | P12: =Brainerd!N17+Brainerd!N32 -> 977263 | Q12: =Brainerd!O17+Brainerd!O32 -> 983842 | R12: =Brainerd!P17+Brainerd!P32 -> 987950 | S12: =Brainerd!Q17+Brainerd!Q32 -> 1057248 | T12: =Brainerd!R17+Brainerd!R32 -> 1184525 | U12: =Brainerd!S17+Brainerd!S32 -> 1336827 | V12: =Brainerd!T17+Brainerd!T32 -> 1407810 | W12: =Brainerd!U17+Brainerd!U32 -> 1437897 | X12: =Brainerd!V17+Brainerd!V32 -> 1465715.46
A13: Cambridge | B13: 0.005 | C13: 2019 | J13: - | K13: - | L13: - | M13: - | N13: - | O13: - | P13: - | Q13: - | R13: - | S13: =Cambridge!Q17+Cambridge!Q32 -> 231667 | T13: =Cambridge!R17+Cambridge!R32 -> 1544089 | U13: =Cambridge!S17+Cambridge!S32 -> 1706028 | V13: =Cambridge!T17+Cambridge!T32 -> 1925590 | W13: =Cambridge!U17+Cambridge!U32 -> 1884247 | X13: =Cambridge!V17+Cambridge!V32 -> 1937029.5
A14: Clearwater | B14: 0.005 | C14: 2008 | D14: - | E14: - | F14: - | G14: - | H14: =Clearwater!F17+Clearwater!F32 -> 16142 | I14: =Clearwater!G17+Clearwater!G32 -> 143050 | J14: =Clearwater!H17+Clearwater!H32 -> 170377 | K14: =Clearwater!I17+Clearwater!I32 -> 301999 | L14: =Clearwater!J17+Clearwater!J32 -> 182010 | M14: =Clearwater!K17+Clearwater!K32 -> 188439 | N14: =Clearwater!L17+Clearwater!L32 -> 203748 | O14: =Clearwater!M17+Clearwater!M32 -> 222713 | P14: =Clearwater!N17+Clearwater!N32 -> 229316 | Q14: =Clearwater!O17+Clearwater!O32 -> 236923 | R14: =Clearwater!P17+Clearwater!P32 -> 231605 | S14: =Clearwater!Q17+Clearwater!Q32 -> 274291 | T14: =Clearwater!R17+Clearwater!R32 -> 279549 | U14: =Clearwater!S17+Clearwater!S32 -> 311977 | V14: =Clearwater!T17+Clearwater!T32 -> 337780 | W14: =Clearwater!U17+Clearwater!U32 -> 384964 | X14: =Clearwater!V17+Clearwater!V32 -> 388365.23
A15: Cloquet | B15: 0.005 | C15: 2013 | D15: - | E15: - | F15: - | G15: - | H15: - | I15: - | J15: - | K15: - | L15: - | M15: =Cloquet!K17+Cloquet!K32 -> 695762 | N15: =Cloquet!L17+Cloquet!L32 -> 1062906 | O15: =Cloquet!M17+Cloquet!M32 -> 1025314 | P15: =Cloquet!N17+Cloquet!N32 -> 972944 | Q15: =Cloquet!O17+Cloquet!O32 -> 992355 | R15: =Cloquet!P17+Cloquet!P32 -> 946332 | S15: =Cloquet!Q17+Cloquet!Q32 -> 1039266 | T15: =Cloquet!R17+Cloquet!R32 -> 1100833 | U15: =Cloquet!S17+Cloquet!S32 -> 1267813 | V15: =Cloquet!T17+Cloquet!T32 -> 1293666 | W15: =Cloquet!U17+Cloquet!U32 -> 2156167 | X15: =Cloquet!V17+Cloquet!V32 -> 2656464.95
A16: Detroit Lakes | B16: 0.005 | C16: 2019 | J16: - | K16: - | L16: - | M16: - | N16: - | O16: - | P16: - | Q16: - | R16: ='Detroit Lakes'!P17+'Detroit Lakes'!P32 -> 0 | S16: ='Detroit Lakes'!Q17+'Detroit Lakes'!Q32 -> 240455 | T16: ='Detroit Lakes'!R17+'Detroit Lakes'!R32 -> 1650332 | U16: ='Detroit Lakes'!S17+'Detroit Lakes'!S32 -> 1911895 | V16: ='Detroit Lakes'!T17+'Detroit Lakes'!T32 -> 2063080 | W16: ='Detroit Lakes'!U17+'Detroit Lakes'!U32 -> 1170329 | X16: ='Detroit Lakes'!V17+'Detroit Lakes'!V32 -> 13932.45
A17: Duluth | B17: 0.01 | C17: 1970 | D17: - | E17: - | F17: =Duluth!D17+Duluth!D32 -> 11398159.14 | G17: =Duluth!E17+Duluth!E32 -> 12225978.78 | H17: =Duluth!F17+Duluth!F32 -> 12194935.96 | I17: =Duluth!G17+Duluth!G32 -> 11641832 | J17: =Duluth!H17+Duluth!H32 -> 12084658 | K17: =Duluth!I17+Duluth!I32 -> 12708709 | L17: =Duluth!J17+Duluth!J32 -> 13068224 | M17: =Duluth!K17+Duluth!K32 -> 13685071 | N17: =Duluth!L17+Duluth!L32 -> 14274808 | O17: =Duluth!M17+Duluth!M32 -> 14713316 | P17: =Duluth!N17+Duluth!N32 -> 14582992 | Q17: =Duluth!O17+Duluth!O32 -> 14506564 | R17: =Duluth!P17+Duluth!P32 -> 15139729 | S17: =Duluth!Q17+Duluth!Q32 -> 16717760 | T17: =Duluth!R17+Duluth!R32 -> 22035055 | U17: =Duluth!S17+Duluth!S32 -> 26027841 | V17: =Duluth!T17+Duluth!T32 -> 29001647 | W17: =Duluth!U17+Duluth!U32 -> 30417818 | X17: =Duluth!V17+Duluth!V32 -> 30665272.72
A18: East Grand Forks | B18: 0.01 | C18: 2018 | D18: - | E18: - | F18: - | G18: - | H18: - | I18: - | J18: - | K18: - | L18: - | M18: - | N18: - | O18: - | P18: - | Q18: - | R18: ='East Grand Forks'!P17+'East Grand Forks'!P32 -> 831794 | S18: ='East Grand Forks'!Q17+'East Grand Forks'!Q32 -> 1027810 | T18: ='East Grand Forks'!R17+'East Grand Forks'!R32 -> 854535 | U18: ='East Grand Forks'!S17+'East Grand Forks'!S32 -> -7882 | V18: ='East Grand Forks'!T17+'East Grand Forks'!T32 -> -43703 | W18: ='East Grand Forks'!U17+'East Grand Forks'!U32 -> -2401 | X18: ='East Grand Forks'!V17+'East Grand Forks'!V32 -> 2062.88
A19: Edina | B19: 0.005 | C19: 2023 | K19: - | L19: - | M19: - | N19: - | O19: - | P19: - | Q19: - | R19: - | S19: - | T19: - | U19: - | V19: - | W19: =Edina!U17+Edina!U32 -> 4843206 | X19: =Edina!V17+Edina!V32 -> 7273265.09
A20: Elk River | B20: 0.005 | C20: 2019 | J20: - | K20: - | L20: - | M20: - | N20: - | O20: - | P20: - | Q20: - | R20: - | S20: ='Elk River'!Q17+'Elk River'!Q32 -> 429783 | T20: ='Elk River'!R17+'Elk River'!R32 -> 3005423 | U20: ='Elk River'!S17+'Elk River'!S32 -> 3426432 | V20: ='Elk River'!T17+'Elk River'!T32 -> 4014875 | W20: ='Elk River'!U17+'Elk River'!U32 -> 3861392 | X20: ='Elk River'!V17+'Elk River'!V32 -> 3601037.94
A21: Excelsior | B21: 0.005 | C21: 2019 | J21: - | K21: - | L21: - | M21: - | N21: - | O21: - | P21: - | Q21: - | R21: - | S21: =Excelsior!Q17+Excelsior!Q32 -> 79350 | T21: =Excelsior!R17+Excelsior!R32 -> 717437 | U21: =Excelsior!S17+Excelsior!S32 -> 831806 | V21: =Excelsior!T17+Excelsior!T32 -> 1070678 | W21: =Excelsior!U17+Excelsior!U32 -> 811482 | X21: =Excelsior!V17+Excelsior!V32 -> 810675.06
A22: Fairmont | B22: 0.005 | C22: 2017 | D22: - | E22: - | F22: - | G22: - | H22: - | I22: - | J22: - | K22: - | L22: - | M22: - | N22: - | O22: - | P22: - | Q22: =Fairmont!O17+Fairmont!O32 -> 111444 | R22: =Fairmont!P17+Fairmont!P32 -> 737304 | S22: =Fairmont!Q17+Fairmont!Q32 -> 905993 | T22: =Fairmont!R17+Fairmont!R32 -> 963823 | U22: =Fairmont!S17+Fairmont!S32 -> 1099092 | V22: =Fairmont!T17+Fairmont!T32 -> 1171023 | W22: =Fairmont!U17+Fairmont!U32 -> 1185647 | X22: =Fairmont!V17+Fairmont!V32 -> 1186565.99
A23: Fergus Falls | B23: 0.005 | C23: 2012-2016*/2023 | D23: - | E23: - | F23: - | G23: - | H23: - | I23: - | J23: - | K23: - | L23: ='Fergus Falls'!J17+'Fergus Falls'!J32 -> 1019239 | M23: ='Fergus Falls'!K17+'Fergus Falls'!K32 -> 1189756 | N23: ='Fergus Falls'!L17+'Fergus Falls'!L32 -> 1312750 | O23: ='Fergus Falls'!M17+'Fergus Falls'!M32 -> 1271971 | P23: ='Fergus Falls'!N17+'Fergus Falls'!N32 -> 1290648 | Q23: ='Fergus Falls'!O17+'Fergus Falls'!O32 -> 150112 | R23: ='Fergus Falls'!P17+'Fergus Falls'!P32 -> 1191244 | S23: ='Fergus Falls'!Q17+'Fergus Falls'!Q32 -> 1346150 | T23: ='Fergus Falls'!R17+'Fergus Falls'!R32 -> 1424260 | U23: ='Fergus Falls'!S17+'Fergus Falls'!S32 -> 1558192 | V23: ='Fergus Falls'!T17+'Fergus Falls'!T32 -> 1418391 | W23: ='Fergus Falls'!U17+'Fergus Falls'!U32 -> 280458 | X23: ='Fergus Falls'!V17+'Fergus Falls'!V32 -> 1677408.93
A24: GKWMLL Sanitary | B24: 0.01 | C24: 2018 | D24: - | E24: - | F24: - | G24: - | H24: - | I24: - | J24: - | K24: - | L24: - | M24: - | N24: - | O24: - | P24: - | Q24: - | R24: ='GKWMLL Sanitary'!P17+'GKWMLL Sanitary'!P32 -> 170491 | S24: ='GKWMLL Sanitary'!Q17+'GKWMLL Sanitary'!Q32 -> 186102 | T24: ='GKWMLL Sanitary'!R17+'GKWMLL Sanitary'!R32 -> 223645 | U24: ='GKWMLL Sanitary'!S17+'GKWMLL Sanitary'!S32 -> 275922 | V24: ='GKWMLL Sanitary'!T17+'GKWMLL Sanitary'!T32 -> 263229 | W24: ='GKWMLL Sanitary'!U17+'GKWMLL Sanitary'!U32 -> 323387 | X24: ='GKWMLL Sanitary'!V17+'GKWMLL Sanitary'!V32 -> 418345.39
A25: Glenwood | B25: 0.005 | C25: 2020 | J25: - | K25: - | L25: - | M25: - | N25: - | O25: - | P25: - | Q25: - | R25: - | S25: - | T25: =Glenwood!R17+Glenwood!R32 -> 210722 | U25: =Glenwood!S17+Glenwood!S32 -> 284135 | V25: =Glenwood!T17+Glenwood!T32 -> 335348 | W25: =Glenwood!U17+Glenwood!U32 -> 331172 | X25: =Glenwood!V17+Glenwood!V32 -> 335958.15
A26: Golden Valley | B26: 0.0125 | C26: 2024 | X26: ='Golden Valley'!V17+'Golden Valley'!V32 -> 7421602
A27: Grand Rapids | B27: 0.005 | C27: 2023 | W27: ='Grand Rapids'!U17+'Grand Rapids'!U32 -> 1416311 | X27: ='Grand Rapids'!V17+'Grand Rapids'!V32 -> 2150392.7
A28: Hermantown | B28: 0.50%/1.00% | C28: 2000/2013 | D28: =Hermantown!B17+Hermantown!B32 -> 1099764.55 | E28: =Hermantown!C17+Hermantown!C32 -> 1153668.95 | F28: =Hermantown!D17+Hermantown!D32 -> 1137678.43 | G28: =Hermantown!E17+Hermantown!E32 -> 1193037.11 | H28: =Hermantown!F17+Hermantown!F32 -> 1109705.03 | I28: =Hermantown!G17+Hermantown!G32 -> 1127223 | J28: =Hermantown!H17+Hermantown!H32 -> 1134116 | K28: =Hermantown!I17+Hermantown!I32 -> 1169932 | L28: =Hermantown!J17+Hermantown!J32 -> 1224434 | M28: =Hermantown!K17+Hermantown!K32 -> 2089558 | N28: =Hermantown!L17+Hermantown!L32 -> 2536381 | O28: =Hermantown!M17+Hermantown!M32 -> 2742273 | P28: =Hermantown!N17+Hermantown!N32 -> 3023197 | Q28: =Hermantown!O17+Hermantown!O32 -> 2965284 | R28: =Hermantown!P17+Hermantown!P32 -> 3032741 | S28: =Hermantown!Q17+Hermantown!Q32 -> 3117105 | T28: =Hermantown!R17+Hermantown!R32 -> 3375669 | U28: =Hermantown!S17+Hermantown!S32 -> 3709002 | V28: =Hermantown!T17+Hermantown!T32 -> 3949202 | W28: =Hermantown!U17+Hermantown!U32 -> 5483156 | X28: =Hermantown!V17+Hermantown!V32 -> 5939806.36
A29: Hutchinson | B29: 0.005 | C29: 2012 | D29: - | E29: - | F29: - | G29: - | H29: - | I29: - | J29: - | K29: - | L29: =Hutchinson!J17+Hutchinson!J32 -> 1193556 | M29: =Hutchinson!K17+Hutchinson!K32 -> 1432169 | N29: =Hutchinson!L17+Hutchinson!L32 -> 1454190 | O29: =Hutchinson!M17+Hutchinson!M32 -> 1448877 | P29: =Hutchinson!N17+Hutchinson!N32 -> 1359565 | Q29: =Hutchinson!O17+Hutchinson!O32 -> 1460758 | R29: =Hutchinson!P17+Hutchinson!P32 -> 1496046 | S29: =Hutchinson!Q17+Hutchinson!Q32 -> 1542159 | T29: =Hutchinson!R17+Hutchinson!R32 -> 1606313 | U29: =Hutchinson!S17+Hutchinson!S32 -> 1737950 | V29: =Hutchinson!T17+Hutchinson!T32 -> 1953075 | W29: =Hutchinson!U17+Hutchinson!U32 -> 1899877 | X29: =Hutchinson!V17+Hutchinson!V32 -> 1952230.42
A30: Int. Falls | B30: 0.01 | C30: 2019 | J30: - | K30: - | L30: - | M30: - | N30: - | O30: - | P30: - | Q30: - | R30: - | S30: ='Int. Falls'!Q17+'Int. Falls'!Q32 -> 161656 | T30: ='Int. Falls'!R17+'Int. Falls'!R32 -> 1035914 | U30: ='Int. Falls'!S17+'Int. Falls'!S32 -> 1168735 | V30: ='Int. Falls'!T17+'Int. Falls'!T32 -> 1394524 | W30: ='Int. Falls'!U17+'Int. Falls'!U32 -> 1503855 | X30: ='Int. Falls'!V17+'Int. Falls'!V32 -> 1437188.06
A31: Lanesboro | B31: 0.005 | C31: 2012-2024* | D31: - | E31: - | F31: - | G31: - | H31: - | I31: - | J31: - | K31: - | L31: =Lanesboro!J17+Lanesboro!J32 -> 47126 | M31: =Lanesboro!K17+Lanesboro!K32 -> 79416 | N31: =Lanesboro!L17+Lanesboro!L32 -> 71540 | O31: =Lanesboro!M17+Lanesboro!M32 -> 60247 | P31: =Lanesboro!N17+Lanesboro!N32 -> 60541 | Q31: =Lanesboro!O17+Lanesboro!O32 -> 58735 | R31: =Lanesboro!P17+Lanesboro!P32 -> 56545 | S31: =Lanesboro!Q17+Lanesboro!Q32 -> 56251 | T31: =Lanesboro!R17+Lanesboro!R32 -> 64811 | U31: =Lanesboro!S17+Lanesboro!S32 -> 73957 | V31: =Lanesboro!T17+Lanesboro!T32 -> 81912 | W31: =Lanesboro!U17+Lanesboro!U32 -> 77723 | X31: =Lanesboro!V17+Lanesboro!V32 -> 74996.45
A32: Litchfield | B32: 0.005 | C32: 2023 | W32: =Litchfield!U17+Litchfield!U32 -> 263035 | X32: =Litchfield!V17+Litchfield!V32 -> 686269.03
A33: Mankato | B33: 0.005 | C33: 1992 | D33: =Mankato!B17+Mankato!B32 -> 3810404.94 | E33: =Mankato!C17+Mankato!C32 -> 4386026.41 | F33: =Mankato!D17+Mankato!D32 -> 4128429.03 | G33: =Mankato!E17+Mankato!E32 -> 4334355.52 | H33: =Mankato!F17+Mankato!F32 -> 4388499.23 | I33: =Mankato!G17+Mankato!G32 -> 4381403 | J33: =Mankato!H17+Mankato!H32 -> 4520952 | K33: =Mankato!I17+Mankato!I32 -> 4702420 | L33: =Mankato!J17+Mankato!J32 -> 4881939 | M33: =Mankato!K17+Mankato!K32 -> 4974848 | N33: =Mankato!L17+Mankato!L32 -> 5200056 | O33: =Mankato!M17+Mankato!M32 -> 5528901 | P33: =Mankato!N17+Mankato!N32 -> 5310929 | Q33: =Mankato!O17+Mankato!O32 -> 5278358 | R33: =Mankato!P17+Mankato!P32 -> 5470229 | S33: =Mankato!Q17+Mankato!Q32 -> 5457748 | T33: =Mankato!R17+Mankato!R32 -> 5349967 | U33: =Mankato!S17+Mankato!S32 -> 6114268 | V33: =Mankato!T17+Mankato!T32 -> 6868255 | W33: =Mankato!U17+Mankato!U32 -> 7370251 | X33: =Mankato!V17+Mankato!V32 -> 7098744.94
A34: Maple Grove | B34: 0.005 | C34: 2023 | W34: ='Maple Grove'!U17+'Maple Grove'!U32 -> 6273875 | X34: ='Maple Grove'!V17+'Maple Grove'!V32 -> 9683366.66
A35: Marshall | B35: 0.005 | C35: 2013 | D35: - | E35: - | F35: - | G35: - | H35: - | I35: - | J35: - | K35: - | L35: - | M35: =Marshall!K17+Marshall!K32 -> 894350 | N35: =Marshall!L17+Marshall!L32 -> 1426252 | O35: =Marshall!M17+Marshall!M32 -> 1497721 | P35: =Marshall!N17+Marshall!N32 -> 1491442 | Q35: =Marshall!O17+Marshall!O32 -> 1420915 | R35: =Marshall!P17+Marshall!P32 -> 1448495 | S35: =Marshall!Q17+Marshall!Q32 -> 1535398 | T35: =Marshall!R17+Marshall!R32 -> 1452783 | U35: =Marshall!S17+Marshall!S32 -> 1777966 | V35: =Marshall!T17+Marshall!T32 -> 1976787 | W35: =Marshall!U17+Marshall!U32 -> 1901875 | X35: =Marshall!V17+Marshall!V32 -> 1921449.24
A36: Medford | B36: 0.005 | C36: 2013 | D36: - | E36: - | F36: - | G36: - | H36: - | I36: - | J36: - | K36: - | L36: - | M36: =Medford!K17+Medford!K32 -> 81810 | N36: =Medford!L17+Medford!L32 -> 130260 | O36: =Medford!M17+Medford!M32 -> 148804 | P36: =Medford!N17+Medford!N32 -> 182890 | Q36: =Medford!O17+Medford!O32 -> 174459 | R36: =Medford!P17+Medford!P32 -> 146504 | S36: =Medford!Q17+Medford!Q32 -> 193596 | T36: =Medford!R17+Medford!R32 -> 159847 | U36: =Medford!S17+Medford!S32 -> 185296 | V36: =Medford!T17+Medford!T32 -> 201840 | W36: =Medford!U17+Medford!U32 -> 191049 | X36: =Medford!V17+Medford!V32 -> 189432.38
A37: Minneapolis | B37: 0.005 | C37: 1987 | D37: =Minneapolis!B17+Minneapolis!B32 -> 26843648.9 | E37: =Minneapolis!C17+Minneapolis!C32 -> 28556269.89 | F37: =Minneapolis!D17+Minneapolis!D32 -> 28493947.79 | G37: =Minneapolis!E17+Minneapolis!E32 -> 30425380.84 | H37: =Minneapolis!F17+Minneapolis!F32 -> 30108224.96 | I37: =Minneapolis!G17+Minneapolis!G32 -> 27603226 | J37: =Minneapolis!H17+Minneapolis!H32 -> 27913705 | K37: =Minneapolis!I17+Minneapolis!I32 -> 30759503 | L37: ` | M37: =Minneapolis!K17+Minneapolis!K32 -> 33548740 | N37: =Minneapolis!L17+Minneapolis!L32 -> 35091142 | O37: =Minneapolis!M17+Minneapolis!M32 -> 36376863 | P37: =Minneapolis!N17+Minneapolis!N32 -> 37624600 | Q37: =Minneapolis!O17+Minneapolis!O32 -> 38296757 | R37: =Minneapolis!P17+Minneapolis!P32 -> 40343766 | S37: =Minneapolis!Q17+Minneapolis!Q32 -> 50818755 | T37: =Minneapolis!R17+Minneapolis!R32 -> 33761593 | U37: =Minneapolis!S17+Minneapolis!S32 -> 36700052 | V37: =Minneapolis!T17+Minneapolis!T32 -> 35257508 | W37: =Minneapolis!U17+Minneapolis!U32 -> 47313285 | X37: =Minneapolis!V17+Minneapolis!V32 -> 47167299.34
A38: Moorhead | B38: 0.005 | C38: 2023 | W38: =Moorhead!U17+Moorhead!U32 -> 1883485 | X38: =Moorhead!V17+Moorhead!V32 -> 2873951.88
A39: Moose Lake | B39: 0.005 | C39: 2017 | D39: - | E39: - | F39: - | G39: - | H39: - | I39: - | J39: - | K39: - | L39: - | M39: - | N39: - | O39: - | P39: - | Q39: ='Moose Lake'!O17+'Moose Lake'!O32 -> 30691 | R39: ='Moose Lake'!P17+'Moose Lake'!P32 -> 227643 | S39: ='Moose Lake'!Q17+'Moose Lake'!Q32 -> 234868 | T39: ='Moose Lake'!R17+'Moose Lake'!R32 -> 258871 | U39: ='Moose Lake'!S17+'Moose Lake'!S32 -> 287049 | V39: ='Moose Lake'!T17+'Moose Lake'!T32 -> 304146 | W39: ='Moose Lake'!U17+'Moose Lake'!U32 -> 312988 | X39: ='Moose Lake'!V17+'Moose Lake'!V32 -> 298527.51
A40: New London | B40: 0.005 | C40: 2017 | D40: - | E40: - | F40: - | G40: - | H40: - | I40: - | J40: - | K40: - | L40: - | M40: - | N40: - | O40: - | P40: - | Q40: ='New London'!O17+'New London'!O32 -> 13625 | R40: ='New London'!P17+'New London'!P32 -> 101475 | S40: ='New London'!Q17+'New London'!Q32 -> 104459 | T40: ='New London'!R17+'New London'!R32 -> 101581 | U40: ='New London'!S17+'New London'!S32 -> 117355 | V40: ='New London'!T17+'New London'!T32 -> 129595 | W40: ='New London'!U17+'New London'!U32 -> 137050 | X40: ='New London'!V17+'New London'!V32 -> 142215.97
A41: New Ulm | B41: 0.005 | C41: 2001 | D41: ='New Ulm'!B17+'New Ulm'!B32 -> 787778.57 | E41: ='New Ulm'!C17+'New Ulm'!C32 -> 843200.59 | F41: ='New Ulm'!D17+'New Ulm'!D32 -> 886987.92 | G41: ='New Ulm'!E17+'New Ulm'!E32 -> 939424.6 | H41: ='New Ulm'!F17+'New Ulm'!F32 -> 933518.76 | I41: ='New Ulm'!G17+'New Ulm'!G32 -> 939757 | J41: ='New Ulm'!H17+'New Ulm'!H32 -> 993663 | K41: ='New Ulm'!I17+'New Ulm'!I32 -> 1022880 | L41: ='New Ulm'!J17+'New Ulm'!J32 -> 1062888 | M41: ='New Ulm'!K17+'New Ulm'!K32 -> 1233243 | N41: ='New Ulm'!L17+'New Ulm'!L32 -> 1355288 | O41: ='New Ulm'!M17+'New Ulm'!M32 -> 1215202 | P41: ='New Ulm'!N17+'New Ulm'!N32 -> 1183318 | Q41: ='New Ulm'!O17+'New Ulm'!O32 -> 1179289 | R41: ='New Ulm'!P17+'New Ulm'!P32 -> 1169691 | S41: ='New Ulm'!Q17+'New Ulm'!Q32 -> 1250751 | T41: ='New Ulm'!R17+'New Ulm'!R32 -> 1339153 | U41: ='New Ulm'!S17+'New Ulm'!S32 -> 1475668 | V41: ='New Ulm'!T17+'New Ulm'!T32 -> 1614402 | W41: ='New Ulm'!U17+'New Ulm'!U32 -> 1688166 | X41: ='New Ulm'!V17+'New Ulm'!V32 -> 1644644.52
A42: North Mankato | B42: 0.005 | C42: 2008 | D42: - | E42: - | F42: - | G42: - | H42: ='North Mankato'!F17+'North Mankato'!F32 -> 49057 | I42: ='North Mankato'!G17+'North Mankato'!G32 -> 393426 | J42: ='North Mankato'!H17+'North Mankato'!H32 -> 463065 | K42: ='North Mankato'!I17+'North Mankato'!I32 -> 488382 | L42: ='North Mankato'!J17+'North Mankato'!J32 -> 568365 | M42: ='North Mankato'!K17+'North Mankato'!K32 -> 614733 | N42: ='North Mankato'!L17+'North Mankato'!L32 -> 617090 | O42: ='North Mankato'!M17+'North Mankato'!M32 -> 704161 | P42: ='North Mankato'!N17+'North Mankato'!N32 -> 636326 | Q42: ='North Mankato'!O17+'North Mankato'!O32 -> 640969 | R42: ='North Mankato'!P17+'North Mankato'!P32 -> 661719 | S42: ='North Mankato'!Q17+'North Mankato'!Q32 -> 700220 | T42: ='North Mankato'!R17+'North Mankato'!R32 -> 719865 | U42: ='North Mankato'!S17+'North Mankato'!S32 -> 826321 | V42: ='North Mankato'!T17+'North Mankato'!T32 -> 935287 | W42: ='North Mankato'!U17+'North Mankato'!U32 -> 974939 | X42: ='North Mankato'!V17+'North Mankato'!V32 -> 967456.3
A43: Oakdale | B43: 0.005 | C43: 2023 | W43: =Oakdale!U17+Oakdale!U32 -> 1806008 | X43: =Oakdale!V17+Oakdale!V32 -> 2810880.15
A44: Owatonna | B44: 0.005 | C44: 2007-2011* | D44: - | E44: - | F44: - | G44: =Owatonna!E17+Owatonna!E32 -> 1240621.97 | H44: =Owatonna!F17+Owatonna!F32 -> 1946355.99 | I44: =Owatonna!G17+Owatonna!G32 -> 2092829 | J44: =Owatonna!H17+Owatonna!H32 -> 1886147 | K44: =Owatonna!I17+Owatonna!I32 -> 1224809 | L44: =Owatonna!J17+Owatonna!J32 -> 15330 | M44: =Owatonna!K17+Owatonna!K32 -> 7459 | N44: =Owatonna!L17+Owatonna!L32 -> 13127 | O44: =Owatonna!M17+Owatonna!M32 -> 3330 | P44: =Owatonna!N17+Owatonna!N32 -> -3350 | Q44: =Owatonna!O17+Owatonna!O32 -> -337 | R44: =Owatonna!P17+Owatonna!P32 -> -45 | S44: =Owatonna!Q17+Owatonna!Q32 -> 6 | T44: =Owatonna!R17+Owatonna!R32 -> 0 | U44: =Owatonna!S17+Owatonna!S32 -> 0 | V44: =Owatonna!T17+Owatonna!T32 -> 0 | W44: =Owatonna!U17+Owatonna!U32 -> 0 | X44: =Owatonna!V17+Owatonna!V32 -> 0
A45: Perham | B45: 0.005 | C45: 2020 | J45: - | K45: - | L45: - | M45: - | N45: - | O45: - | P45: - | Q45: - | R45: - | S45: - | T45: =Perham!R17+Perham!R32 -> 493352 | U45: =Perham!S17+Perham!S32 -> 678418 | V45: =Perham!T17+Perham!T32 -> 769471 | W45: =Perham!U17+Perham!U32 -> 828648 | X45: =Perham!V17+Perham!V32 -> 840414.17
A46: Proctor | B46: 0.50%/1.00% | C46: 2000/2017 | D46: =Proctor!B17+Proctor!B32 -> 122678 | E46: =Proctor!C17+Proctor!C32 -> 126569.56 | F46: =Proctor!D17+Proctor!D32 -> 151314.59 | G46: =Proctor!E17+Proctor!E32 -> 132581.41 | H46: =Proctor!F17+Proctor!F32 -> 130167.11 | I46: =Proctor!G17+Proctor!G32 -> 154416 | J46: =Proctor!H17+Proctor!H32 -> 150941 | K46: =Proctor!I17+Proctor!I32 -> 151106 | L46: =Proctor!J17+Proctor!J32 -> 162363 | M46: =Proctor!K17+Proctor!K32 -> 213830 | N46: =Proctor!L17+Proctor!L32 -> 183601 | O46: =Proctor!M17+Proctor!M32 -> 213021 | P46: =Proctor!N17+Proctor!N32 -> 221689 | Q46: =Proctor!O17+Proctor!O32 -> 236354 | R46: =Proctor!P17+Proctor!P32 -> 489792 | S46: =Proctor!Q17+Proctor!Q32 -> 405936 | T46: =Proctor!R17+Proctor!R32 -> 439357 | U46: =Proctor!S17+Proctor!S32 -> 402563 | V46: =Proctor!T17+Proctor!T32 -> 496102 | W46: =Proctor!U17+Proctor!U32 -> 525720 | X46: =Proctor!V17+Proctor!V32 -> 431700.06
A47: Rochester | B47: 0.50%/0.75% | C47: 1993/2016 | D47: =Rochester!B17+Rochester!B32 -> 8548150.04 | E47: =Rochester!C17+Rochester!C32 -> 8732500.08 | F47: =Rochester!D17+Rochester!D32 -> 9255831.38 | G47: =Rochester!E17+Rochester!E32 -> 9833630.38 | H47: =Rochester!F17+Rochester!F32 -> 9482870.57 | I47: =Rochester!G17+Rochester!G32 -> 9635634 | J47: =Rochester!H17+Rochester!H32 -> 9319670 | K47: =Rochester!I17+Rochester!I32 -> 9658017 | L47: =Rochester!J17+Rochester!J32 -> 10071132 | M47: =Rochester!K17+Rochester!K32 -> 10428422 | N47: =Rochester!L17+Rochester!L32 -> 11052708 | O47: =Rochester!M17+Rochester!M32 -> 11675132 | P47: =Rochester!N17+Rochester!N32 -> 16930492 | Q47: =Rochester!O17+Rochester!O32 -> 17890877 | R47: =Rochester!P17+Rochester!P32 -> 18722256 | S47: =Rochester!Q17+Rochester!Q32 -> 19392444 | T47: =Rochester!R17+Rochester!R32 -> 19113557 | U47: =Rochester!S17+Rochester!S32 -> 21046043 | V47: =Rochester!T17+Rochester!T32 -> 23224035 | W47: =Rochester!U17+Rochester!U32 -> 23985901 | X47: =Rochester!V17+Rochester!V32 -> 23719404.42
A48: Rogers | B48: 0.0025 | C48: 2019 | J48: - | K48: - | L48: - | M48: - | N48: - | O48: - | P48: - | Q48: - | R48: - | S48: =Rogers!Q17+Rogers!Q32 -> 161847 | T48: =Rogers!R17+Rogers!R32 -> 1170907 | U48: =Rogers!S17+Rogers!S32 -> 1374710 | V48: =Rogers!T17+Rogers!T32 -> 1468818 | W48: =Rogers!U17+Rogers!U32 -> 1507949 | X48: =Rogers!V17+Rogers!V32 -> 1497551.27
A49: Sauk Centre | B49: 0.005 | C49: 2020 | J49: - | K49: - | L49: - | M49: - | N49: - | O49: - | P49: - | Q49: - | R49: - | S49: - | T49: ='Sauk Centre'!R17+'Sauk Centre'!R32 -> 485935 | U49: ='Sauk Centre'!S17+'Sauk Centre'!S32 -> 613981 | V49: ='Sauk Centre'!T17+'Sauk Centre'!T32 -> 697414 | W49: ='Sauk Centre'!U17+'Sauk Centre'!U32 -> 694077 | X49: ='Sauk Centre'!V17+'Sauk Centre'!V32 -> 699852.19
A50: Scanlon | B50: 0.005 | C50: 2020 | J50: - | K50: - | L50: - | M50: - | N50: - | O50: - | P50: - | Q50: - | R50: - | S50: - | T50: =Scanlon!R17+Scanlon!R32 -> 37770 | U50: =Scanlon!S17+Scanlon!S32 -> 79000 | V50: =Scanlon!T17+Scanlon!T32 -> 84987 | W50: =Scanlon!U17+Scanlon!U32 -> 97204 | X50: =Scanlon!V17+Scanlon!V32 -> 94756.38
A51: Spicer | B51: 0.005 | C51: 2017 | D51: - | E51: - | F51: - | G51: - | H51: - | I51: - | J51: - | K51: - | L51: - | M51: - | N51: - | O51: - | P51: - | Q51: =Spicer!O17+Spicer!O32 -> 24866 | R51: =Spicer!P17+Spicer!P32 -> 173188 | S51: =Spicer!Q17+Spicer!Q32 -> 175079 | T51: =Spicer!R17+Spicer!R32 -> 202747 | U51: =Spicer!S17+Spicer!S32 -> 234742 | V51: =Spicer!T17+Spicer!T32 -> 261597 | W51: =Spicer!U17+Spicer!U32 -> 264030 | X51: =Spicer!V17+Spicer!V32 -> 252410.36
A52: Staples | B52: 0.005 | C52: 2023 | W52: =Staples!U17+Staples!U32 -> 155063 | X52: =Staples!V17+Staples!V32 -> 236049.77
A53: St. Cloud Area | B53: 0.005 | C53: 2003 | D53: ='St. Cloud Area'!B17+'St. Cloud Area'!B32 -> 5797345.63 | E53: ='St. Cloud Area'!C17+'St. Cloud Area'!C32 -> 6164590.19 | F53: ='St. Cloud Area'!D17+'St. Cloud Area'!D32 -> 8114588.51 | G53: ='St. Cloud Area'!E17+'St. Cloud Area'!E32 -> 8719065.13 | H53: ='St. Cloud Area'!F17+'St. Cloud Area'!F32 -> 8434990.76 | I53: ='St. Cloud Area'!G17+'St. Cloud Area'!G32 -> 8250610 | J53: ='St. Cloud Area'!H17+'St. Cloud Area'!H32 -> 8282589 | K53: ='St. Cloud Area'!I17+'St. Cloud Area'!I32 -> 8714584 | L53: ='St. Cloud Area'!J17+'St. Cloud Area'!J32 -> 9175367 | M53: ='St. Cloud Area'!K17+'St. Cloud Area'!K32 -> 9473929 | N53: ='St. Cloud Area'!L17+'St. Cloud Area'!L32 -> 9686975 | O53: ='St. Cloud Area'!M17+'St. Cloud Area'!M32 -> 10033984 | P53: ='St. Cloud Area'!N17+'St. Cloud Area'!N32 -> 10633803 | Q53: ='St. Cloud Area'!O17+'St. Cloud Area'!O32 -> 10585794 | R53: ='St. Cloud Area'!P17+'St. Cloud Area'!P32 -> 10699467 | S53: ='St. Cloud Area'!Q17+'St. Cloud Area'!Q32 -> 11325991 | T53: ='St. Cloud Area'!R17+'St. Cloud Area'!R32 -> 11157393 | U53: ='St. Cloud Area'!S17+'St. Cloud Area'!S32 -> 12796875 | V53: ='St. Cloud Area'!T17+'St. Cloud Area'!T32 -> 14179095 | W53: ='St. Cloud Area'!U17+'St. Cloud Area'!U32 -> 14221667 | X53: ='St. Cloud Area'!V17+'St. Cloud Area'!V32 -> 14297669.36
A54: St. Paul | B54: 0.015 | C54: 1993 | D54: ='St. Paul'!B17+'St. Paul'!B32 -> 14263522.5 | E54: ='St. Paul'!C17+'St. Paul'!C32 -> 14934740.68 | F54: ='St. Paul'!D17+'St. Paul'!D32 -> 15452469.15 | G54: ='St. Paul'!E17+'St. Paul'!E32 -> 16171672.24 | H54: ='St. Paul'!F17+'St. Paul'!F32 -> 15670878.53 | I54: ='St. Paul'!G17+'St. Paul'!G32 -> 15842996 | J54: ='St. Paul'!H17+'St. Paul'!H32 -> 16023319 | K54: ='St. Paul'!I17+'St. Paul'!I32 -> 16383063 | L54: ='St. Paul'!J17+'St. Paul'!J32 -> 16454773 | M54: ='St. Paul'!K17+'St. Paul'!K32 -> 17502316 | N54: ='St. Paul'!L17+'St. Paul'!L32 -> 18110021 | O54: ='St. Paul'!M17+'St. Paul'!M32 -> 18558003 | P54: ='St. Paul'!N17+'St. Paul'!N32 -> 19056604 | Q54: ='St. Paul'!O17+'St. Paul'!O32 -> 19333872 | R54: ='St. Paul'!P17+'St. Paul'!P32 -> 19525456 | S54: ='St. Paul'!Q17+'St. Paul'!Q32 -> 19992107 | T54: ='St. Paul'!R17+'St. Paul'!R32 -> 18399339 | U54: ='St. Paul'!S17+'St. Paul'!S32 -> 19972265 | V54: ='St. Paul'!T17+'St. Paul'!T32 -> 24160934 | W54: ='St. Paul'!U17+'St. Paul'!U32 -> 24117411 | X54: ='St. Paul'!V17+'St. Paul'!V32 -> 54767084.47
A55: St. Peter | B55: 0.005 | C55: 2022 | V55: ='St. Peter'!T17+'St. Peter'!T32 -> 262673 | W55: ='St. Peter'!U17+'St. Peter'!U32 -> 642835 | X55: ='St. Peter'!V17+'St. Peter'!V32 -> 651898.47
A56: Two Harbors | B56: 0.005 | C56: 1999 | D56: ='Two Harbors'!B17+'Two Harbors'!B32 -> 204588.49 | E56: ='Two Harbors'!C17+'Two Harbors'!C32 -> 240133.96 | F56: ='Two Harbors'!D17+'Two Harbors'!D32 -> 265107.6 | G56: ='Two Harbors'!E17+'Two Harbors'!E32 -> 270767.36 | H56: ='Two Harbors'!F17+'Two Harbors'!F32 -> 254738.89 | I56: ='Two Harbors'!G17+'Two Harbors'!G32 -> 229402 | J56: ='Two Harbors'!H17+'Two Harbors'!H32 -> 265545 | K56: ='Two Harbors'!I17+'Two Harbors'!I32 -> 311437 | L56: ='Two Harbors'!J17+'Two Harbors'!J32 -> 284653 | M56: ='Two Harbors'!K17+'Two Harbors'!K32 -> 270934 | N56: ='Two Harbors'!L17+'Two Harbors'!L32 -> 300916 | O56: ='Two Harbors'!M17+'Two Harbors'!M32 -> 301742 | P56: ='Two Harbors'!N17+'Two Harbors'!N32 -> 333460 | Q56: ='Two Harbors'!O17+'Two Harbors'!O32 -> 292929 | R56: ='Two Harbors'!P17+'Two Harbors'!P32 -> 339174 | S56: ='Two Harbors'!Q17+'Two Harbors'!Q32 -> 401680 | T56: ='Two Harbors'!R17+'Two Harbors'!R32 -> 740298 | U56: ='Two Harbors'!S17+'Two Harbors'!S32 -> 850369 | V56: ='Two Harbors'!T17+'Two Harbors'!T32 -> 970942 | W56: ='Two Harbors'!U17+'Two Harbors'!U32 -> 1069078 | X56: ='Two Harbors'!V17+'Two Harbors'!V32 -> 1064999.02
A57: Virginia | B57: 0.01 | C57: 2020 | J57: - | K57: - | L57: - | M57: - | N57: - | O57: - | P57: - | Q57: - | R57: - | S57: - | T57: =Virginia!R17+Virginia!R32 -> 1860856 | U57: =Virginia!S17+Virginia!S32 -> 2398312 | V57: =Virginia!T17+Virginia!T32 -> 2600779 | W57: =Virginia!U17+Virginia!U32 -> 2574073 | X57: =Virginia!V17+Virginia!V32 -> 2620056.98
A58: Waite Park | B58: 0.005 | C58: 2023 | W58: ='Waite Park'!U17+'Waite Park'!U32 -> 1803972 | X58: ='Waite Park'!V17+'Waite Park'!V32 -> 2678598.54
A59: Warren | B59: 0.005 | C59: 2023 | W59: =Warren!U17+Warren!U32 -> 69922 | X59: =Warren!V17+Warren!V32 -> 115705.15
A60: Walker | B60: 0.015 | C60: 2018 | D60: - | E60: - | F60: - | G60: - | H60: - | I60: - | J60: - | K60: - | L60: - | M60: - | N60: - | O60: - | P60: - | Q60: - | R60: =Walker!P17+Walker!P32 -> 692201 | S60: =Walker!Q17+Walker!Q32 -> 772605 | T60: =Walker!R17+Walker!R32 -> 829709 | U60: =Walker!S17+Walker!S32 -> 1031320 | V60: =Walker!T17+Walker!T32 -> 1011271 | W60: =Walker!U17+Walker!U32 -> 941013 | X60: =Walker!V17+Walker!V32 -> 1002265.32
A61: West St. Paul | B61: 0.005 | C61: 2020 | J61: - | K61: - | L61: - | M61: - | N61: - | O61: - | P61: - | Q61: - | R61: - | S61: - | T61: ='West St. Paul'!R17+'West St. Paul'!R32 -> 1520100 | U61: ='West St. Paul'!S17+'West St. Paul'!S32 -> 1941275 | V61: ='West St. Paul'!T17+'West St. Paul'!T32 -> 2194729 | W61: ='West St. Paul'!U17+'West St. Paul'!U32 -> 2217290 | X61: ='West St. Paul'!V17+'West St. Paul'!V32 -> 2235971.15
A62: Willmar | B62: 0.005 | C62: 2006-2012*/2019 | D62: - | E62: - | F62: =Willmar!D17+Willmar!D32 -> 1475634.05 | G62: =Willmar!E17+Willmar!E32 -> 1794419.12 | H62: =Willmar!F17+Willmar!F32 -> 1751563 | I62: =Willmar!G17+Willmar!G32 -> 1733787 | J62: =Willmar!H17+Willmar!H32 -> 1753486 | K62: =Willmar!I17+Willmar!I32 -> 1870799 | L62: =Willmar!J17+Willmar!J32 -> 2064924 | M62: =Willmar!K17+Willmar!K32 -> 429176 | N62: =Willmar!L17+Willmar!L32 -> 44255 | O62: =Willmar!M17+Willmar!M32 -> -145935 | P62: =Willmar!N17+Willmar!N32 -> 1095 | Q62: =Willmar!O17+Willmar!O32 -> -5864 | R62: =Willmar!P17+Willmar!P32 -> 312 | S62: =Willmar!Q17+Willmar!Q32 -> 331073 | T62: =Willmar!R17+Willmar!R32 -> 2113890 | U62: =Willmar!S17+Willmar!S32 -> 2410466 | V62: =Willmar!T17+Willmar!T32 -> 2927547 | W62: =Willmar!U17+Willmar!U32 -> 2960720 | X62: =Willmar!V17+Willmar!V32 -> 2973586.92
A63: Worthington | B63: 0.005 | C63: 2009-2019/2020 | D63: - | E63: - | F63: - | G63: - | H63: - | I63: =Worthington!G16+Worthington!G31 -> 49079 | J63: =Worthington!H17+Worthington!H32 -> 717875 | K63: =Worthington!I17+Worthington!I32 -> 804606 | L63: =Worthington!J17+Worthington!J32 -> 802609 | M63: =Worthington!K17+Worthington!K32 -> 842602 | N63: =Worthington!L17+Worthington!L32 -> 832915 | O63: =Worthington!M17+Worthington!M32 -> 885016 | P63: =Worthington!N17+Worthington!N32 -> 905617 | Q63: =Worthington!O17+Worthington!O32 -> 1530574 | R63: =Worthington!P17+Worthington!P32 -> 836619 | S63: =Worthington!Q17+Worthington!Q32 -> 4196 | T63: =Worthington!R17+Worthington!R32 -> 937147 | U63: =Worthington!S17+Worthington!S32 -> 1216920 | V63: =Worthington!T17+Worthington!T32 -> 1310711 | W63: =Worthington!U17+Worthington!U32 -> 1319973 | X63: =Worthington!V17+Worthington!V32 -> 1237497.01
A64: City Total (excl. Refunds) | D64: =SUM(D5:D63) -> 61477881.62 | E64: 65137700.31 | F64: 83125682.35 | G64: 93454612.43 | H64: 93409633.99 | I64: 91351458 | J64: 93108546 | K64: 97903747 | L64: 70144511 | M64: 108065650 | N64: 113559877 | O64: 117208780 | P64: 124844917 | Q64: 125752664 | R64: 133937343 | S64: 150236310 | T64: 153311581 | U64: 171554946 | V64: 186864155 | W64: 221404318 | X64: 280148018.1
A65: City Refunds | D65: - | E65: - | F65: - | G65: - | H65: =Austin!F47+Baxter!F47+Bemidji!F47+Brainerd!F47+Duluth!F47+Hermantown!F47+Mankato!F47+Minneapolis!F47+'New Ulm'!F47+Owatonna!F47+Rochester!F47+'St. Cloud Area'!F47+'St. Paul'!F47+Willmar!F47 -> -38874 | I65: =Austin!G47+Baxter!G47+Bemidji!G47+Brainerd!G47+Duluth!G47+Hermantown!G47+Mankato!G47+Minneapolis!G47+'New Ulm'!G47+Owatonna!G47+Rochester!G47+'St. Cloud Area'!G47+'St. Paul'!G47+Willmar!G47+'Albert Lea'!G47+Clearwater!G47+'North Mankato'!G47+Proctor!G47+'Two Harbors'!G47+Worthington!G47 -> -2416019 | J65: =Austin!H47+Baxter!H47+Bemidji!H47+Brainerd!H47+Duluth!H47+Hermantown!H47+Mankato!H47+Minneapolis!H47+'New Ulm'!H47+Owatonna!H47+Rochester!H47+'St. Cloud Area'!H47+'St. Paul'!H47+Willmar!H47+'Albert Lea'!H47+Clearwater!H47+'North Mankato'!H47+Proctor!H47+'Two Harbors'!H47+Worthington!H47 -> -2240120 | K65: =Austin!I47+Baxter!I47+Bemidji!I47+Brainerd!I47+Duluth!I47+Hermantown!I47+Mankato!I47+Minneapolis!I47+'New Ulm'!I47+Owatonna!I47+Rochester!I47+'St. Cloud Area'!I47+'St. Paul'!I47+Willmar!I47+'Albert Lea'!I47+Clearwater!I47+'North Mankato'!I47+Proctor!I47+'Two Harbors'!I47+Worthington!I47 -> -2654686 | L65: =Austin!J47+Baxter!J47+Bemidji!J47+Brainerd!J47+Duluth!J47+Hermantown!J47+Mankato!J47+Minneapolis!J47+'New Ulm'!J47+Owatonna!J47+Rochester!J47+'St. Cloud Area'!J47+'St. Paul'!J47+Willmar!J47+'Albert Lea'!J47+Clearwater!J47+'North Mankato'!J47+Proctor!J47+'Two Harbors'!J47+Worthington!J47+'Fergus Falls'!J47+Hutchinson!J47+Lanesboro!J47 -> -2385605 | M65: =Austin!K47+Baxter!K47+Bemidji!K47+Brainerd!K47+Duluth!K47+Hermantown!K47+Mankato!K47+Minneapolis!K47+'New Ulm'!K47+Owatonna!K47+Rochester!K47+'St. Cloud Area'!K47+'St. Paul'!K47+Willmar!K47+'Albert Lea'!K47+Clearwater!K47+'North Mankato'!K47+Proctor!K47+'Two Harbors'!K47+Worthington!K47+'Fergus Falls'!K47+Hutchinson!K47+Lanesboro!K47+Cloquet!K47+Marshall!K47+Medford!K47 -> -2715801 | N65: =Austin!L47+Baxter!L47+Bemidji!L47+Brainerd!L47+Duluth!L47+Hermantown!L47+Mankato!L47+Minneapolis!L47+'New Ulm'!L47+Owatonna!L47+Rochester!L47+'St. Cloud Area'!L47+'St. Paul'!L47+Willmar!L47+'Albert Lea'!L47+Clearwater!L47+'North Mankato'!L47+Proctor!L47+'Two Harbors'!L47+Worthington!L47+'Fergus Falls'!L47+Hutchinson!L47+Lanesboro!L47+Cloquet!L47+Marshall!L47+Medford!L47 -> -2865424 | O65: =Austin!M47+Baxter!M47+Bemidji!M47+Brainerd!M47+Duluth!M47+Hermantown!M47+Mankato!M47+Minneapolis!M47+'New Ulm'!M47+Owatonna!M47+Rochester!M47+'St. Cloud Area'!M47+'St. Paul'!M47+Willmar!M47+'Albert Lea'!M47+Clearwater!M47+'North Mankato'!M47+Proctor!M47+'Two Harbors'!M47+Worthington!M47+'Fergus Falls'!M47+Hutchinson!M47+Lanesboro!M47+Cloquet!M47+Marshall!M47+Medford!M47 -> -2817964 | P65: =Austin!N47+Baxter!N47+Bemidji!N47+Brainerd!N47+Duluth!N47+Hermantown!N47+Mankato!N47+Minneapolis!N47+'New Ulm'!N47+Owatonna!N47+Rochester!N47+'St. Cloud Area'!N47+'St. Paul'!N47+Willmar!N47+'Albert Lea'!N47+Clearwater!N47+'North Mankato'!N47+Proctor!N47+'Two Harbors'!N47+Worthington!N47+'Fergus Falls'!N47+Hutchinson!N47+Lanesboro!N47+Cloquet!N47+Marshall!N47+Medford!N47 -> -2357249 | Q65: =Austin!O47+Baxter!O47+Bemidji!O47+Brainerd!O47+Duluth!O47+Hermantown!O47+Mankato!O47+Minneapolis!O47+'New Ulm'!O47+Owatonna!O47+Rochester!O47+'St. Cloud Area'!O47+'St. Paul'!O47+Willmar!O47+'Albert Lea'!O47+Clearwater!O47+'North Mankato'!O47+Proctor!O47+'Two Harbors'!O47+Worthington!O47+'Fergus Falls'!O47+Hutchinson!O47+Lanesboro!O47+Cloquet!O47+Marshall!O47+Medford!O47+Fairmont!O47+'Moose Lake'!O47+'New London'!O47+Spicer!O47 -> -2011896 | R65: =Austin!P47+Baxter!P47+Bemidji!P47+Brainerd!P47+Duluth!P47+Hermantown!P47+Mankato!P47+Minneapolis!P47+'New Ulm'!P47+Owatonna!P47+Rochester!P47+'St. Cloud Area'!P47+'St. Paul'!P47+Willmar!P47+'Albert Lea'!P47+Clearwater!P47+'North Mankato'!P47+Proctor!P47+'Two Harbors'!P47+Worthington!P47+'Fergus Falls'!P47+Hutchinson!P47+Lanesboro!P47+Cloquet!P47+Marshall!P47+Medford!P47+Fairmont!P47+'Moose Lake'!P47+'New London'!P47+Spicer!P47+'East Grand Forks'!P47+'GKWMLL Sanitary'!P47+Walker!P47 -> -2649021 | S65: =Austin!Q47+Baxter!Q47+Bemidji!Q47+Brainerd!Q47+Duluth!Q47+Hermantown!Q47+Mankato!Q47+Minneapolis!Q47+'New Ulm'!Q47+Owatonna!Q47+Rochester!Q47+'St. Cloud Area'!Q47+'St. Paul'!Q47+Willmar!Q47+'Albert Lea'!Q47+Clearwater!Q47+'North Mankato'!Q47+Proctor!Q47+'Two Harbors'!Q47+Worthington!Q47+'Fergus Falls'!Q47+Hutchinson!Q47+Lanesboro!Q47+Cloquet!Q47+Marshall!Q47+Medford!Q47+Fairmont!Q47+'Moose Lake'!Q47+'New London'!Q47+Spicer!Q47+'East Grand Forks'!Q47+'GKWMLL Sanitary'!Q47+Walker!Q47+'Detroit Lakes'!Q47+Avon!Q47+'Blue Earth'!Q47+Cambridge!Q47+'Elk River'!Q47+Excelsior!Q47+'Int. Falls'!Q47+Rogers!Q47 -> -3147146 | T65: =Austin!R47+Baxter!R47+Bemidji!R47+Brainerd!R47+Duluth!R47+Hermantown!R47+Mankato!R47+Minneapolis!R47+'New Ulm'!R47+Owatonna!R47+Rochester!R47+'St. Cloud Area'!R47+'St. Paul'!R47+Willmar!R47+'Albert Lea'!R47+Clearwater!R47+'North Mankato'!R47+Proctor!R47+'Two Harbors'!R47+Worthington!R47+'Fergus Falls'!R47+Hutchinson!R47+Lanesboro!R47+Cloquet!R47+Marshall!R47+Medford!R47+Fairmont!R47+'Moose Lake'!R47+'New London'!R47+Spicer!R47+'East Grand Forks'!R47+'GKWMLL Sanitary'!R47+Walker!R47+'Detroit Lakes'!R47+Avon!R47+'Blue Earth'!R47+Cambridge!R47+'Elk River'!R47+Excelsior!R47+'Int. Falls'!R47+Rogers!R47+Glenwood!R47+Perham!R47+'Sauk Centre'!R47+Scanlon!R47+'West St. Paul'!R47+Virginia!R47 -> -3472952 | U65: =Austin!S47+Baxter!S47+Bemidji!S47+Brainerd!S47+Duluth!S47+Hermantown!S47+Mankato!S47+Minneapolis!S47+'New Ulm'!S47+Owatonna!S47+Rochester!S47+'St. Cloud Area'!S47+'St. Paul'!S47+Willmar!S47+'Albert Lea'!S47+Clearwater!S47+'North Mankato'!S47+Proctor!S47+'Two Harbors'!S47+Worthington!S47+'Fergus Falls'!S47+Hutchinson!S47+Lanesboro!S47+Cloquet!S47+Marshall!S47+Medford!S47+Fairmont!S47+'Moose Lake'!S47+'New London'!S47+Spicer!S47+'East Grand Forks'!S47+'GKWMLL Sanitary'!S47+Walker!S47+'Detroit Lakes'!S47+Avon!S47+'Blue Earth'!S47+Cambridge!S47+'Elk River'!S47+Excelsior!S47+'Int. Falls'!S47+Rogers!S47+Glenwood!S47+Perham!S47+'Sauk Centre'!S47+Scanlon!S47+'West St. Paul'!S47+Virginia!S47 -> -1766756 | V65: =Austin!T47+Baxter!T47+Bemidji!T47+Brainerd!T47+Duluth!T47+Hermantown!T47+Mankato!T47+Minneapolis!T47+'New Ulm'!T47+Owatonna!T47+Rochester!T47+'St. Cloud Area'!T47+'St. Paul'!T47+Willmar!T47+'Albert Lea'!T47+Clearwater!T47+'North Mankato'!T47+Proctor!T47+'Two Harbors'!T47+Worthington!T47+'Fergus Falls'!T47+Hutchinson!T47+Lanesboro!T47+Cloquet!T47+Marshall!T47+Medford!T47+Fairmont!T47+'Moose Lake'!T47+'New London'!T47+Spicer!T47+'East Grand Forks'!T47+'GKWMLL Sanitary'!T47+Walker!T47+'Detroit Lakes'!T47+Avon!T47+'Blue Earth'!T47+Cambridge!T47+'Elk River'!T47+Excelsior!T47+'Int. Falls'!T47+Rogers!T47+Glenwood!T47+Perham!T47+'Sauk Centre'!T47+Scanlon!T47+'West St. Paul'!T47+Virginia!T47 -> -1498021 | W65: =Austin!U47+Baxter!U47+Bemidji!U47+Brainerd!U47+Duluth!U47+Hermantown!U47+Mankato!U47+Minneapolis!U47+'New Ulm'!U47+Owatonna!U47+Rochester!U47+'St. Cloud Area'!U47+'St. Paul'!U47+Willmar!U47+'Albert Lea'!U47+Clearwater!U47+'North Mankato'!U47+Proctor!U47+'Two Harbors'!U47+Worthington!U47+'Fergus Falls'!U47+Hutchinson!U47+Lanesboro!U47+Cloquet!U47+Marshall!U47+Medford!U47+Fairmont!U47+'Moose Lake'!U47+'New London'!U47+Spicer!U47+'East Grand Forks'!U47+'GKWMLL Sanitary'!U47+Walker!U47+'Detroit Lakes'!U47+Avon!U47+'Blue Earth'!U47+Cambridge!U47+'Elk River'!U47+Excelsior!U47+'Int. Falls'!U47+Rogers!U47+Glenwood!U47+Perham!U47+'Sauk Centre'!U47+Scanlon!U47+'West St. Paul'!U47+Virginia!U47+Edina!U47 -> -2149078 | X65: =Austin!V47+Baxter!V47+Bemidji!V47+Brainerd!V47+Duluth!V47+Hermantown!V47+Mankato!V47+Minneapolis!V47+'New Ulm'!V47+Owatonna!V47+Rochester!V47+'St. Cloud Area'!V47+'St. Paul'!V47+Willmar!V47+'Albert Lea'!V47+Clearwater!V47+'North Mankato'!V47+Proctor!V47+'Two Harbors'!V47+Worthington!V47+'Fergus Falls'!V47+Hutchinson!V47+Lanesboro!V47+Cloquet!V47+Marshall!V47+Medford!V47+Fairmont!V47+'Moose Lake'!V47+'New London'!V47+Spicer!V47+'East Grand Forks'!V47+'GKWMLL Sanitary'!V47+Walker!V47+'Detroit Lakes'!V47+Avon!V47+'Blue Earth'!V47+Cambridge!V47+'Elk River'!V47+Excelsior!V47+'Int. Falls'!V47+Rogers!V47+Glenwood!V47+Perham!V47+'Sauk Centre'!V47+Scanlon!V47+'West St. Paul'!V47+Virginia!V47+Edina!V47 -> -2085490.82
A66: Hidden columns D-J contain data for CY 2004-2010.
A67: *Shaded cells show collections received net of refunds paid in months after the local tax expired (6/30/2011 in Owatonna, 12/31/2012 in Willmar (authorization ran out in Sept 2014), & 12/31/2016 in Fergus Falls).
A68: Note: Initially effective 1/1/2006 in Willmar, effective 4/1/2007 in Owatonna, and effective 1/1/2012 in Lanesboro.
A69: **Totals for 2004-2005 exclude $11-$12 million in Duluth sales tax collections.
A70: Note: GKWMLL Sanitary is Garrison, Kathio, West Mille Lacs Sanitary District
A71: Source: Minnesota Department of Revenue, Tax Research Division, November 2025
A72: end of worksheet

Sheet St. Peter (hidden)
A1: St. Peter Monthly Detail for Minnesota Local Sales & Use Tax
A2: ='Local SUT'!A2 -> CY 2004-2024
A3: St. Peter Local Sales Tax (0.5%)
A4: Month | B4: 2004 | C4: 2005 | D4: 2006 | E4: 2007 | F4: 2008 | G4: 2009 | H4: 2010 | I4: 2011 | J4: 2012 | K4: 2013 | L4: 2014 | M4: 2015 | N4: 2016 | O4: 2017 | P4: 2018 | Q4: 2019 | R4: 2020 | S4: 2021 | T4: 2022 | U4: 2023 | V4: 2024
A5: January | B5: - | C5: - | D5: - | E5: - | F5: - | G5: - | H5: - | I5: - | J5: - | K5: - | L5: - | M5: - | N5: - | O5: - | P5: - | Q5: - | R5: - | S5: - | T5: - | U5: 57196 | V5: 56448
A6: February | B6: - | C6: - | D6: - | E6: - | F6: - | G6: - | H6: - | I6: - | J6: - | K6: - | L6: - | M6: - | N6: - | O6: - | P6: - | Q6: - | R6: - | S6: - | T6: - | U6: 43025 | V6: 48652
A7: March | B7: - | C7: - | D7: - | E7: - | F7: - | G7: - | H7: - | I7: - | J7: - | K7: - | L7: - | M7: - | N7: - | O7: - | P7: - | Q7: - | R7: - | S7: - | T7: - | U7: 46975 | V7: 49652
A8: April | B8: - | C8: - | D8: - | E8: - | F8: - | G8: - | H8: - | I8: - | J8: - | K8: - | L8: - | M8: - | N8: - | O8: - | P8: - | Q8: - | R8: - | S8: - | T8: - | U8: 49202 | V8: 49158
A9: May | B9: - | C9: - | D9: - | E9: - | F9: - | G9: - | H9: - | I9: - | J9: - | K9: - | L9: - | M9: - | N9: - | O9: - | P9: - | Q9: - | R9: - | S9: - | T9: - | U9: 47293 | V9: 57211
A10: June | B10: - | C10: - | D10: - | E10: - | F10: - | G10: - | H10: - | I10: - | J10: - | K10: - | L10: - | M10: - | N10: - | O10: - | P10: - | Q10: - | R10: - | S10: - | T10: - | U10: 58034 | V10: 56659
A11: July | B11: - | C11: - | D11: - | E11: - | F11: - | G11: - | H11: - | I11: - | J11: - | K11: - | L11: - | M11: - | N11: - | O11: - | P11: - | Q11: - | R11: - | S11: - | T11: 12 | U11: 59160 | V11: 51562
A12: August | B12: - | C12: - | D12: - | E12: - | F12: - | G12: - | H12: - | I12: - | J12: - | K12: - | L12: - | M12: - | N12: - | O12: - | P12: - | Q12: - | R12: - | S12: - | T12: 43284 | U12: 53576 | V12: 51784.63
A13: September | B13: - | C13: - | D13: - | E13: - | F13: - | G13: - | H13: - | I13: - | J13: - | K13: - | L13: - | M13: - | N13: - | O13: - | P13: - | Q13: - | R13: - | S13: - | T13: 46970 | U13: 47691 | V13: 51374.64
A14: October | B14: - | C14: - | D14: - | E14: - | F14: - | G14: - | H14: - | I14: - | J14: - | K14: - | L14: - | M14: - | N14: - | O14: - | P14: - | Q14: - | R14: - | S14: - | T14: 51989 | U14: 55460 | V14: 51415.4
A15: November | B15: - | C15: - | D15: - | E15: - | F15: - | G15: - | H15: - | I15: - | J15: - | K15: - | L15: - | M15: - | N15: - | O15: - | P15: - | Q15: - | R15: - | S15: - | T15: 54025 | U15: 48003 | V15: 53910.23
A16: December | B16: - | C16: - | D16: - | E16: - | F16: - | G16: - | H16: - | I16: - | J16: - | K16: - | L16: - | M16: - | N16: - | O16: - | P16: - | Q16: - | R16: - | S16: - | T16: 53801 | U16: 51089 | V16: 50217.68
A17: Total | B17: - | C17: - | D17: =SUM(D5:D16) -> 0 | E17: 0 | F17: 0 | G17: 0 | H17: 0 | I17: 0 | J17: 0 | K17: 0 | L17: 0 | M17: 0 | N17: 0 | O17: 0 | P17: 0 | Q17: 0 | R17: 0 | S17: 0 | T17: 250081 | U17: 616704 | V17: 628044.58
A18: St. Peter Local Use Tax (0.5%)
A19: Month | B19: 2004 | C19: 2005 | D19: 2006 | E19: 2007 | F19: 2008 | G19: 2009 | H19: 2010 | I19: 2011 | J19: 2012 | K19: 2013 | L19: 2014 | M19: 2015 | N19: 2016 | O19: 2017 | P19: 2018 | Q19: 2019 | R19: 2020 | S19: 2021 | T19: 2022 | U19: 2023 | V19: 2024
A20: January | B20: - | C20: - | D20: - | E20: - | F20: - | G20: - | H20: - | I20: - | J20: - | K20: - | L20: - | M20: - | N20: - | O20: - | P20: - | Q20: - | R20: - | S20: - | T20: - | U20: 2349 | V20: 1909
A21: February | B21: - | C21: - | D21: - | E21: - | F21: - | G21: - | H21: - | I21: - | J21: - | K21: - | L21: - | M21: - | N21: - | O21: - | P21: - | Q21: - | R21: - | S21: - | T21: - | U21: 972 | V21: 1477
A22: March | B22: - | C22: - | D22: - | E22: - | F22: - | G22: - | H22: - | I22: - | J22: - | K22: - | L22: - | M22: - | N22: - | O22: - | P22: - | Q22: - | R22: - | S22: - | T22: - | U22: 2067 | V22: 1557
A23: April | B23: - | C23: - | D23: - | E23: - | F23: - | G23: - | H23: - | I23: - | J23: - | K23: - | L23: - | M23: - | N23: - | O23: - | P23: - | Q23: - | R23: - | S23: - | T23: - | U23: 2625 | V23: 1560
A24: May | B24: - | C24: - | D24: - | E24: - | F24: - | G24: - | H24: - | I24: - | J24: - | K24: - | L24: - | M24: - | N24: - | O24: - | P24: - | Q24: - | R24: - | S24: - | T24: - | U24: 2539 | V24: 232
A25: June | B25: - | C25: - | D25: - | E25: - | F25: - | G25: - | H25: - | I25: - | J25: - | K25: - | L25: - | M25: - | N25: - | O25: - | P25: - | Q25: - | R25: - | S25: - | T25: - | U25: 2595 | V25: 3579
A26: July | B26: - | C26: - | D26: - | E26: - | F26: - | G26: - | H26: - | I26: - | J26: - | K26: - | L26: - | M26: - | N26: - | O26: - | P26: - | Q26: - | R26: - | S26: - | T26: 12 | U26: 3338 | V26: 1884
A27: August | B27: - | C27: - | D27: - | E27: - | F27: - | G27: - | H27: - | I27: - | J27: - | K27: - | L27: - | M27: - | N27: - | O27: - | P27: - | Q27: - | R27: - | S27: - | T27: 1259 | U27: 1155 | V27: 1497.05
A28: September | B28: - | C28: - | D28: - | E28: - | F28: - | G28: - | H28: - | I28: - | J28: - | K28: - | L28: - | M28: - | N28: - | O28: - | P28: - | Q28: - | R28: - | S28: - | T28: 3278 | U28: 3136 | V28: 1373.29
A29: October | B29: - | C29: - | D29: - | E29: - | F29: - | G29: - | H29: - | I29: - | J29: - | K29: - | L29: - | M29: - | N29: - | O29: - | P29: - | Q29: - | R29: - | S29: - | T29: 3201 | U29: 1673 | V29: 3916.94
A30: November | B30: - | C30: - | D30: - | E30: - | F30: - | G30: - | H30: - | I30: - | J30: - | K30: - | L30: - | M30: - | N30: - | O30: - | P30: - | Q30: - | R30: - | S30: - | T30: 2406 | U30: 1808 | V30: 2568.21
A31: December | B31: - | C31: - | D31: - | E31: - | F31: - | G31: - | H31: - | I31: - | J31: - | K31: - | L31: - | M31: - | N31: - | O31: - | P31: - | Q31: - | R31: - | S31: - | T31: 2436 | U31: 1874 | V31: 2300.4
A32: Total | B32: - | C32: - | D32: =SUM(D20:D31) -> 0 | E32: 0 | F32: 0 | G32: 0 | H32: 0 | I32: 0 | J32: 0 | K32: 0 | L32: 0 | M32: 0 | N32: 0 | O32: 0 | P32: 0 | Q32: 0 | R32: 0 | S32: 0 | T32: 12592 | U32: 26131 | V32: 23853.89
A33: St. Peter Refunds
A34: Month | B34: 2004 | C34: 2005 | D34: 2006 | E34: 2007 | F34: 2008 | G34: 2009 | H34: 2010 | I34: 2011 | J34: 2012 | K34: 2013 | L34: 2014 | M34: 2015 | N34: 2016 | O34: 2017 | P34: 2018 | Q34: 2019 | R34: 2020 | S34: 2021 | T34: 2022 | U34: 2023 | V34: 2024
A35: January | B35: - | C35: - | D35: - | E35: - | F35: - | G35: - | H35: - | I35: - | J35: - | K35: - | L35: - | M35: - | N35: - | O35: - | P35: - | Q35: - | R35: - | S35: - | T35: - | U35: - | V35: -
A36: February | B36: - | C36: - | D36: - | E36: - | F36: - | G36: - | H36: - | I36: - | J36: - | K36: - | L36: - | M36: - | N36: - | O36: - | P36: - | Q36: - | R36: - | S36: - | T36: - | U36: - | V36: -9518
A37: March | B37: - | C37: - | D37: - | E37: - | F37: - | G37: - | H37: - | I37: - | J37: - | K37: - | L37: - | M37: - | N37: - | O37: - | P37: - | Q37: - | R37: - | S37: - | T37: - | U37: - | V37: -16
A38: April | B38: - | C38: - | D38: - | E38: - | F38: - | G38: - | H38: - | I38: - | J38: - | K38: - | L38: - | M38: - | N38: - | O38: - | P38: - | Q38: - | R38: - | S38: - | T38: - | U38: - | V38: -
A39: May | B39: - | C39: - | D39: - | E39: - | F39: - | G39: - | H39: - | I39: - | J39: - | K39: - | L39: - | M39: - | N39: - | O39: - | P39: - | Q39: - | R39: - | S39: - | T39: - | U39: -1 | V39: -
A40: June | B40: - | C40: - | D40: - | E40: - | F40: - | G40: - | H40: - | I40: - | J40: - | K40: - | L40: - | M40: - | N40: - | O40: - | P40: - | Q40: - | R40: - | S40: - | T40: - | U40: - | V40: -
A41: July | B41: - | C41: - | D41: - | E41: - | F41: - | G41: - | H41: - | I41: - | J41: - | K41: - | L41: - | M41: - | N41: - | O41: - | P41: - | Q41: - | R41: - | S41: - | T41: - | U41: - | V41: -7
A42: August | B42: - | C42: - | D42: - | E42: - | F42: - | G42: - | H42: - | I42: - | J42: - | K42: - | L42: - | M42: - | N42: - | O42: - | P42: - | Q42: - | R42: - | S42: - | T42: - | U42: -11 | V42: -
A43: September | B43: - | C43: - | D43: - | E43: - | F43: - | G43: - | H43: - | I43: - | J43: - | K43: - | L43: - | M43: - | N43: - | O43: - | P43: - | Q43: - | R43: - | S43: - | T43: - | U43: - | V43: -
A44: October | B44: - | C44: - | D44: - | E44: - | F44: - | G44: - | H44: - | I44: - | J44: - | K44: - | L44: - | M44: - | N44: - | O44: - | P44: - | Q44: - | R44: - | S44: - | T44: - | U44: - | V44: -
A45: November | B45: - | C45: - | D45: - | E45: - | F45: - | G45: - | H45: - | I45: - | J45: - | K45: - | L45: - | M45: - | N45: - | O45: - | P45: - | Q45: - | R45: - | S45: - | T45: - | U45: - | V45: -1.48
A46: December | B46: - | C46: - | D46: - | E46: - | F46: - | G46: - | H46: - | I46: - | J46: - | K46: - | L46: - | M46: - | N46: - | O46: - | P46: - | Q46: - | R46: - | S46: - | T46: - | U46: - | V46: -
A47: Total | B47: - | C47: - | D47: - | E47: - | F47: - | G47: =SUM(G35:G46) -> 0 | H47: 0 | I47: 0 | J47: 0 | K47: 0 | L47: 0 | M47: 0 | N47: 0 | O47: 0 | P47: 0 | Q47: 0 | R47: 0 | S47: 0 | T47: 0 | U47: -12 | V47: -9542.48
A48: Hidden columns B-N do not contain any data for CY 2004-2015
A49: *Collections for November 2008 are included in December totals due to a new processing system.
A50: ='Local SUT'!A71 -> Source: Minnesota Department of Revenue, Tax Research Division, November 2025
A51: end of worksheet

Sheet Golden Valley (hidden)
A1: Golden Valley Monthly Detail for Minnesota Local Sales & Use Tax
A2: ='Local SUT'!A2 -> CY 2004-2024
A3: Golden Valley Local Sales Tax (0.5%)
A4: Month | B4: 2004 | C4: 2005 | D4: 2006 | E4: 2007 | F4: 2008 | G4: 2009 | H4: 2010 | I4: 2011 | J4: 2012 | K4: 2013 | L4: 2014 | M4: 2015 | N4: 2016 | O4: 2017 | P4: 2018 | Q4: 2019 | R4: 2020 | S4: 2021 | T4: 2022 | U4: 2023 | V4: 2024
A5: January | B5: - | C5: - | D5: - | E5: - | F5: - | G5: - | H5: - | I5: - | J5: - | K5: - | L5: - | M5: - | N5: - | O5: - | P5: - | Q5: - | R5: - | S5: - | T5: - | U5: - | V5: -
A6: February | B6: - | C6: - | D6: - | E6: - | F6: - | G6: - | H6: - | I6: - | J6: - | K6: - | L6: - | M6: - | N6: - | O6: - | P6: - | Q6: - | R6: - | S6: - | T6: - | U6: - | V6: -
A7: March | B7: - | C7: - | D7: - | E7: - | F7: - | G7: - | H7: - | I7: - | J7: - | K7: - | L7: - | M7: - | N7: - | O7: - | P7: - | Q7: - | R7: - | S7: - | T7: - | U7: - | V7: -
A8: April | B8: - | C8: - | D8: - | E8: - | F8: - | G8: - | H8: - | I8: - | J8: - | K8: - | L8: - | M8: - | N8: - | O8: - | P8: - | Q8: - | R8: - | S8: - | T8: - | U8: - | V8: -
A9: May | B9: - | C9: - | D9: - | E9: - | F9: - | G9: - | H9: - | I9: - | J9: - | K9: - | L9: - | M9: - | N9: - | O9: - | P9: - | Q9: - | R9: - | S9: - | T9: - | U9: - | V9: 801202
A10: June | B10: - | C10: - | D10: - | E10: - | F10: - | G10: - | H10: - | I10: - | J10: - | K10: - | L10: - | M10: - | N10: - | O10: - | P10: - | Q10: - | R10: - | S10: - | T10: - | U10: - | V10: 979909
A11: July | B11: - | C11: - | D11: - | E11: - | F11: - | G11: - | H11: - | I11: - | J11: - | K11: - | L11: - | M11: - | N11: - | O11: - | P11: - | Q11: - | R11: - | S11: - | T11: - | U11: - | V11: 849557
A12: August | B12: - | C12: - | D12: - | E12: - | F12: - | G12: - | H12: - | I12: - | J12: - | K12: - | L12: - | M12: - | N12: - | O12: - | P12: - | Q12: - | R12: - | S12: - | T12: - | U12: - | V12: 855005
A13: September | B13: - | C13: - | D13: - | E13: - | F13: - | G13: - | H13: - | I13: - | J13: - | K13: - | L13: - | M13: - | N13: - | O13: - | P13: - | Q13: - | R13: - | S13: - | T13: - | U13: - | V13: 794673
A14: October | B14: - | C14: - | D14: - | E14: - | F14: - | G14: - | H14: - | I14: - | J14: - | K14: - | L14: - | M14: - | N14: - | O14: - | P14: - | Q14: - | R14: - | S14: - | T14: - | U14: - | V14: 844922
A15: November | B15: - | C15: - | D15: - | E15: - | F15: - | G15: - | H15: - | I15: - | J15: - | K15: - | L15: - | M15: - | N15: - | O15: - | P15: - | Q15: - | R15: - | S15: - | T15: - | U15: - | V15: 884289
A16: December | B16: - | C16: - | D16: - | E16: - | F16: - | G16: - | H16: - | I16: - | J16: - | K16: - | L16: - | M16: - | N16: - | O16: - | P16: - | Q16: - | R16: - | S16: - | T16: - | U16: - | V16: 833089
A17: Total | B17: - | C17: - | D17: =SUM(D5:D16) -> 0 | E17: 0 | F17: 0 | G17: 0 | H17: 0 | I17: 0 | J17: 0 | K17: 0 | L17: 0 | M17: 0 | N17: 0 | O17: 0 | P17: 0 | Q17: 0 | R17: 0 | S17: 0 | T17: 0 | U17: 0 | V17: 6842646
A18: Golden Valley Local Use Tax (0.5%)
A19: Month | B19: 2004 | C19: 2005 | D19: 2006 | E19: 2007 | F19: 2008 | G19: 2009 | H19: 2010 | I19: 2011 | J19: 2012 | K19: 2013 | L19: 2014 | M19: 2015 | N19: 2016 | O19: 2017 | P19: 2018 | Q19: 2019 | R19: 2020 | S19: 2021 | T19: 2022 | U19: 2023 | V19: 2024
A20: January | B20: - | C20: - | D20: - | E20: - | F20: - | G20: - | H20: - | I20: - | J20: - | K20: - | L20: - | M20: - | N20: - | O20: - | P20: - | Q20: - | R20: - | S20: - | T20: - | U20: - | V20: -
A21: February | B21: - | C21: - | D21: - | E21: - | F21: - | G21: - | H21: - | I21: - | J21: - | K21: - | L21: - | M21: - | N21: - | O21: - | P21: - | Q21: - | R21: - | S21: - | T21: - | U21: - | V21: -
A22: March | B22: - | C22: - | D22: - | E22: - | F22: - | G22: - | H22: - | I22: - | J22: - | K22: - | L22: - | M22: - | N22: - | O22: - | P22: - | Q22: - | R22: - | S22: - | T22: - | U22: - | V22: -
A23: April | B23: - | C23: - | D23: - | E23: - | F23: - | G23: - | H23: - | I23: - | J23: - | K23: - | L23: - | M23: - | N23: - | O23: - | P23: - | Q23: - | R23: - | S23: - | T23: - | U23: - | V23: 3
A24: May | B24: - | C24: - | D24: - | E24: - | F24: - | G24: - | H24: - | I24: - | J24: - | K24: - | L24: - | M24: - | N24: - | O24: - | P24: - | Q24: - | R24: - | S24: - | T24: - | U24: - | V24: 44281
A25: June | B25: - | C25: - | D25: - | E25: - | F25: - | G25: - | H25: - | I25: - | J25: - | K25: - | L25: - | M25: - | N25: - | O25: - | P25: - | Q25: - | R25: - | S25: - | T25: - | U25: - | V25: 133099
A26: July | B26: - | C26: - | D26: - | E26: - | F26: - | G26: - | H26: - | I26: - | J26: - | K26: - | L26: - | M26: - | N26: - | O26: - | P26: - | Q26: - | R26: - | S26: - | T26: - | U26: - | V26: 92717
A27: August | B27: - | C27: - | D27: - | E27: - | F27: - | G27: - | H27: - | I27: - | J27: - | K27: - | L27: - | M27: - | N27: - | O27: - | P27: - | Q27: - | R27: - | S27: - | T27: - | U27: - | V27: 40459
A28: September | B28: - | C28: - | D28: - | E28: - | F28: - | G28: - | H28: - | I28: - | J28: - | K28: - | L28: - | M28: - | N28: - | O28: - | P28: - | Q28: - | R28: - | S28: - | T28: - | U28: - | V28: 57337
A29: October | B29: - | C29: - | D29: - | E29: - | F29: - | G29: - | H29: - | I29: - | J29: - | K29: - | L29: - | M29: - | N29: - | O29: - | P29: - | Q29: - | R29: - | S29: - | T29: - | U29: - | V29: 78070
A30: November | B30: - | C30: - | D30: - | E30: - | F30: - | G30: - | H30: - | I30: - | J30: - | K30: - | L30: - | M30: - | N30: - | O30: - | P30: - | Q30: - | R30: - | S30: - | T30: - | U30: - | V30: 53048
A31: December | B31: - | C31: - | D31: - | E31: - | F31: - | G31: - | H31: - | I31: - | J31: - | K31: - | L31: - | M31: - | N31: - | O31: - | P31: - | Q31: - | R31: - | S31: - | T31: - | U31: - | V31: 79942
A32: Total | B32: - | C32: - | D32: =SUM(D20:D31) -> 0 | E32: 0 | F32: 0 | G32: 0 | H32: 0 | I32: 0 | J32: 0 | K32: 0 | L32: 0 | M32: 0 | N32: 0 | O32: 0 | P32: 0 | Q32: 0 | R32: 0 | S32: 0 | T32: 0 | U32: 0 | V32: 578956
A33: Golden Valley Refunds
A34: Month | B34: 2004 | C34: 2005 | D34: 2006 | E34: 2007 | F34: 2008 | G34: 2009 | H34: 2010 | I34: 2011 | J34: 2012 | K34: 2013 | L34: 2014 | M34: 2015 | N34: 2016 | O34: 2017 | P34: 2018 | Q34: 2019 | R34: 2020 | S34: 2021 | T34: 2022 | U34: 2023 | V34: 2024
A35: January | B35: - | C35: - | D35: - | E35: - | F35: - | G35: - | H35: - | I35: - | J35: - | K35: - | L35: - | M35: - | N35: - | O35: - | P35: - | Q35: - | R35: - | S35: - | T35: - | U35: - | V35: -
A36: February | B36: - | C36: - | D36: - | E36: - | F36: - | G36: - | H36: - | I36: - | J36: - | K36: - | L36: - | M36: - | N36: - | O36: - | P36: - | Q36: - | R36: - | S36: - | T36: - | U36: - | V36: -
A37: March | B37: - | C37: - | D37: - | E37: - | F37: - | G37: - | H37: - | I37: - | J37: - | K37: - | L37: - | M37: - | N37: - | O37: - | P37: - | Q37: - | R37: - | S37: - | T37: - | U37: - | V37: -
A38: April | B38: - | C38: - | D38: - | E38: - | F38: - | G38: - | H38: - | I38: - | J38: - | K38: - | L38: - | M38: - | N38: - | O38: - | P38: - | Q38: - | R38: - | S38: - | T38: - | U38: - | V38: -
A39: May | B39: - | C39: - | D39: - | E39: - | F39: - | G39: - | H39: - | I39: - | J39: - | K39: - | L39: - | M39: - | N39: - | O39: - | P39: - | Q39: - | R39: - | S39: - | T39: - | U39: - | V39: -
A40: June | B40: - | C40: - | D40: - | E40: - | F40: - | G40: - | H40: - | I40: - | J40: - | K40: - | L40: - | M40: - | N40: - | O40: - | P40: - | Q40: - | R40: - | S40: - | T40: - | U40: - | V40: -
A41: July | B41: - | C41: - | D41: - | E41: - | F41: - | G41: - | H41: - | I41: - | J41: - | K41: - | L41: - | M41: - | N41: - | O41: - | P41: - | Q41: - | R41: - | S41: - | T41: - | U41: - | V41: -188
A42: August | B42: - | C42: - | D42: - | E42: - | F42: - | G42: - | H42: - | I42: - | J42: - | K42: - | L42: - | M42: - | N42: - | O42: - | P42: - | Q42: - | R42: - | S42: - | T42: - | U42: - | V42: -
A43: September | B43: - | C43: - | D43: - | E43: - | F43: - | G43: - | H43: - | I43: - | J43: - | K43: - | L43: - | M43: - | N43: - | O43: - | P43: - | Q43: - | R43: - | S43: - | T43: - | U43: - | V43: -
A44: October | B44: - | C44: - | D44: - | E44: - | F44: - | G44: - | H44: - | I44: - | J44: - | K44: - | L44: - | M44: - | N44: - | O44: - | P44: - | Q44: - | R44: - | S44: - | T44: - | U44: - | V44: -1
A45: November | B45: - | C45: - | D45: - | E45: - | F45: - | G45: - | H45: - | I45: - | J45: - | K45: - | L45: - | M45: - | N45: - | O45: - | P45: - | Q45: - | R45: - | S45: - | T45: - | U45: - | V45: -
A46: December | B46: - | C46: - | D46: - | E46: - | F46: - | G46: - | H46: - | I46: - | J46: - | K46: - | L46: - | M46: - | N46: - | O46: - | P46: - | Q46: - | R46: - | S46: - | T46: - | U46: - | V46: -
A47: Total | B47: - | C47: - | D47: - | E47: - | F47: - | G47: =SUM(G35:G46) -> 0 | H47: 0 | I47: 0 | J47: 0 | K47: 0 | L47: 0 | M47: 0 | N47: 0 | O47: 0 | P47: 0 | Q47: 0 | R47: 0 | S47: 0 | T47: 0 | U47: 0 | V47: -189
A48: Hidden columns B-L do not contain any data for CY 2004-2015
A49: *Collections for November 2008 are included in December totals due to a new processing system.
A50: ='Local SUT'!A71 -> Source: Minnesota Department of Revenue, Tax Research Division, November 2025
A51: end of worksheet

Sheet Bloomington (hidden)
A1: Bloomington Monthly Detail for Minnesota Local Sales & Use Tax
A2: ='Local SUT'!A2 -> CY 2004-2024
A3: Bloomington Local Sales Tax (0.5%)
A4: Month | B4: 2004 | C4: 2005 | D4: 2006 | E4: 2007 | F4: 2008 | G4: 2009 | H4: 2010 | I4: 2011 | J4: 2012 | K4: 2013 | L4: 2014 | M4: 2015 | N4: 2016 | O4: 2017 | P4: 2018 | Q4: 2019 | R4: 2020 | S4: 2021 | T4: 2022 | U4: 2023 | V4: 2024
A5: January | B5: - | C5: - | D5: - | E5: - | F5: - | G5: - | H5: - | I5: - | J5: - | K5: - | L5: - | M5: - | N5: - | O5: - | P5: - | Q5: - | R5: - | S5: - | T5: - | U5: - | V5: -
A6: February | B6: - | C6: - | D6: - | E6: - | F6: - | G6: - | H6: - | I6: - | J6: - | K6: - | L6: - | M6: - | N6: - | O6: - | P6: - | Q6: - | R6: - | S6: - | T6: - | U6: - | V6: -
A7: March | B7: - | C7: - | D7: - | E7: - | F7: - | G7: - | H7: - | I7: - | J7: - | K7: - | L7: - | M7: - | N7: - | O7: - | P7: - | Q7: - | R7: - | S7: - | T7: - | U7: - | V7: -
A8: April | B8: - | C8: - | D8: - | E8: - | F8: - | G8: - | H8: - | I8: - | J8: - | K8: - | L8: - | M8: - | N8: - | O8: - | P8: - | Q8: - | R8: - | S8: - | T8: - | U8: - | V8: 1956
A9: May | B9: - | C9: - | D9: - | E9: - | F9: - | G9: - | H9: - | I9: - | J9: - | K9: - | L9: - | M9: - | N9: - | O9: - | P9: - | Q9: - | R9: - | S9: - | T9: - | U9: - | V9: 1008220
A10: June | B10: - | C10: - | D10: - | E10: - | F10: - | G10: - | H10: - | I10: - | J10: - | K10: - | L10: - | M10: - | N10: - | O10: - | P10: - | Q10: - | R10: - | S10: - | T10: - | U10: - | V10: 1105285
A11: July | B11: - | C11: - | D11: - | E11: - | F11: - | G11: - | H11: - | I11: - | J11: - | K11: - | L11: - | M11: - | N11: - | O11: - | P11: - | Q11: - | R11: - | S11: - | T11: - | U11: - | V11: 1250089
A12: August | B12: - | C12: - | D12: - | E12: - | F12: - | G12: - | H12: - | I12: - | J12: - | K12: - | L12: - | M12: - | N12: - | O12: - | P12: - | Q12: - | R12: - | S12: - | T12: - | U12: - | V12: 1362629
A13: September | B13: - | C13: - | D13: - | E13: - | F13: - | G13: - | H13: - | I13: - | J13: - | K13: - | L13: - | M13: - | N13: - | O13: - | P13: - | Q13: - | R13: - | S13: - | T13: - | U13: - | V13: 1314856
A14: October | B14: - | C14: - | D14: - | E14: - | F14: - | G14: - | H14: - | I14: - | J14: - | K14: - | L14: - | M14: - | N14: - | O14: - | P14: - | Q14: - | R14: - | S14: - | T14: - | U14: - | V14: 1159175
A15: November | B15: - | C15: - | D15: - | E15: - | F15: - | G15: - | H15: - | I15: - | J15: - | K15: - | L15: - | M15: - | N15: - | O15: - | P15: - | Q15: - | R15: - | S15: - | T15: - | U15: - | V15: 1187046
A16: December | B16: - | C16: - | D16: - | E16: - | F16: - | G16: - | H16: - | I16: - | J16: - | K16: - | L16: - | M16: - | N16: - | O16: - | P16: - | Q16: - | R16: - | S16: - | T16: - | U16: - | V16: 1142505
A17: Total | B17: - | C17: - | D17: =SUM(D5:D16) -> 0 | E17: 0 | F17: 0 | G17: 0 | H17: 0 | I17: 0 | J17: 0 | K17: 0 | L17: 0 | M17: 0 | N17: 0 | O17: 0 | P17: 0 | Q17: 0 | R17: 0 | S17: 0 | T17: 0 | U17: 0 | V17: 9531761
A18: Bloomington Local Use Tax (0.5%)
A19: Month | B19: 2004 | C19: 2005 | D19: 2006 | E19: 2007 | F19: 2008 | G19: 2009 | H19: 2010 | I19: 2011 | J19: 2012 | K19: 2013 | L19: 2014 | M19: 2015 | N19: 2016 | O19: 2017 | P19: 2018 | Q19: 2019 | R19: 2020 | S19: 2021 | T19: 2022 | U19: 2023 | V19: 2024
A20: January | B20: - | C20: - | D20: - | E20: - | F20: - | G20: - | H20: - | I20: - | J20: - | K20: - | L20: - | M20: - | N20: - | O20: - | P20: - | Q20: - | R20: - | S20: - | T20: - | U20: - | V20: -
A21: February | B21: - | C21: - | D21: - | E21: - | F21: - | G21: - | H21: - | I21: - | J21: - | K21: - | L21: - | M21: - | N21: - | O21: - | P21: - | Q21: - | R21: - | S21: - | T21: - | U21: - | V21: -
A22: March | B22: - | C22: - | D22: - | E22: - | F22: - | G22: - | H22: - | I22: - | J22: - | K22: - | L22: - | M22: - | N22: - | O22: - | P22: - | Q22: - | R22: - | S22: - | T22: - | U22: - | V22: -
A23: April | B23: - | C23: - | D23: - | E23: - | F23: - | G23: - | H23: - | I23: - | J23: - | K23: - | L23: - | M23: - | N23: - | O23: - | P23: - | Q23: - | R23: - | S23: - | T23: - | U23: - | V23: 1
A24: May | B24: - | C24: - | D24: - | E24: - | F24: - | G24: - | H24: - | I24: - | J24: - | K24: - | L24: - | M24: - | N24: - | O24: - | P24: - | Q24: - | R24: - | S24: - | T24: - | U24: - | V24: 49156
A25: June | B25: - | C25: - | D25: - | E25: - | F25: - | G25: - | H25: - | I25: - | J25: - | K25: - | L25: - | M25: - | N25: - | O25: - | P25: - | Q25: - | R25: - | S25: - | T25: - | U25: - | V25: 49967
A26: July | B26: - | C26: - | D26: - | E26: - | F26: - | G26: - | H26: - | I26: - | J26: - | K26: - | L26: - | M26: - | N26: - | O26: - | P26: - | Q26: - | R26: - | S26: - | T26: - | U26: - | V26: 60170
A27: August | B27: - | C27: - | D27: - | E27: - | F27: - | G27: - | H27: - | I27: - | J27: - | K27: - | L27: - | M27: - | N27: - | O27: - | P27: - | Q27: - | R27: - | S27: - | T27: - | U27: - | V27: 50240
A28: September | B28: - | C28: - | D28: - | E28: - | F28: - | G28: - | H28: - | I28: - | J28: - | K28: - | L28: - | M28: - | N28: - | O28: - | P28: - | Q28: - | R28: - | S28: - | T28: - | U28: - | V28: 68802
A29: October | B29: - | C29: - | D29: - | E29: - | F29: - | G29: - | H29: - | I29: - | J29: - | K29: - | L29: - | M29: - | N29: - | O29: - | P29: - | Q29: - | R29: - | S29: - | T29: - | U29: - | V29: 54520
A30: November | B30: - | C30: - | D30: - | E30: - | F30: - | G30: - | H30: - | I30: - | J30: - | K30: - | L30: - | M30: - | N30: - | O30: - | P30: - | Q30: - | R30: - | S30: - | T30: - | U30: - | V30: 96501
A31: December | B31: - | C31: - | D31: - | E31: - | F31: - | G31: - | H31: - | I31: - | J31: - | K31: - | L31: - | M31: - | N31: - | O31: - | P31: - | Q31: - | R31: - | S31: - | T31: - | U31: - | V31: 61698
A32: Total | B32: - | C32: - | D32: =SUM(D20:D31) -> 0 | E32: 0 | F32: 0 | G32: 0 | H32: 0 | I32: 0 | J32: 0 | K32: 0 | L32: 0 | M32: 0 | N32: 0 | O32: 0 | P32: 0 | Q32: 0 | R32: 0 | S32: 0 | T32: 0 | U32: 0 | V32: 491055
A33: Bloomington Refunds
A34: Month | B34: 2004 | C34: 2005 | D34: 2006 | E34: 2007 | F34: 2008 | G34: 2009 | H34: 2010 | I34: 2011 | J34: 2012 | K34: 2013 | L34: 2014 | M34: 2015 | N34: 2016 | O34: 2017 | P34: 2018 | Q34: 2019 | R34: 2020 | S34: 2021 | T34: 2022 | U34: 2023 | V34: 2024
A35: January | B35: - | C35: - | D35: - | E35: - | F35: - | G35: - | H35: - | I35: - | J35: - | K35: - | L35: - | M35: - | N35: - | O35: - | P35: - | Q35: - | R35: - | S35: - | T35: - | U35: - | V35: -
A36: February | B36: - | C36: - | D36: - | E36: - | F36: - | G36: - | H36: - | I36: - | J36: - | K36: - | L36: - | M36: - | N36: - | O36: - | P36: - | Q36: - | R36: - | S36: - | T36: - | U36: - | V36: -
A37: March | B37: - | C37: - | D37: - | E37: - | F37: - | G37: - | H37: - | I37: - | J37: - | K37: - | L37: - | M37: - | N37: - | O37: - | P37: - | Q37: - | R37: - | S37: - | T37: - | U37: - | V37: -
A38: April | B38: - | C38: - | D38: - | E38: - | F38: - | G38: - | H38: - | I38: - | J38: - | K38: - | L38: - | M38: - | N38: - | O38: - | P38: - | Q38: - | R38: - | S38: - | T38: - | U38: - | V38: 0
A39: May | B39: - | C39: - | D39: - | E39: - | F39: - | G39: - | H39: - | I39: - | J39: - | K39: - | L39: - | M39: - | N39: - | O39: - | P39: - | Q39: - | R39: - | S39: - | T39: - | U39: - | V39: 0
A40: June | B40: - | C40: - | D40: - | E40: - | F40: - | G40: - | H40: - | I40: - | J40: - | K40: - | L40: - | M40: - | N40: - | O40: - | P40: - | Q40: - | R40: - | S40: - | T40: - | U40: - | V40: 0
A41: July | B41: - | C41: - | D41: - | E41: - | F41: - | G41: - | H41: - | I41: - | J41: - | K41: - | L41: - | M41: - | N41: - | O41: - | P41: - | Q41: - | R41: - | S41: - | T41: - | U41: - | V41: 0
A42: August | B42: - | C42: - | D42: - | E42: - | F42: - | G42: - | H42: - | I42: - | J42: - | K42: - | L42: - | M42: - | N42: - | O42: - | P42: - | Q42: - | R42: - | S42: - | T42: - | U42: - | V42: -19
A43: September | B43: - | C43: - | D43: - | E43: - | F43: - | G43: - | H43: - | I43: - | J43: - | K43: - | L43: - | M43: - | N43: - | O43: - | P43: - | Q43: - | R43: - | S43: - | T43: - | U43: - | V43: 0
A44: October | B44: - | C44: - | D44: - | E44: - | F44: - | G44: - | H44: - | I44: - | J44: - | K44: - | L44: - | M44: - | N44: - | O44: - | P44: - | Q44: - | R44: - | S44: - | T44: - | U44: - | V44: -9
A45: November | B45: - | C45: - | D45: - | E45: - | F45: - | G45: - | H45: - | I45: - | J45: - | K45: - | L45: - | M45: - | N45: - | O45: - | P45: - | Q45: - | R45: - | S45: - | T45: - | U45: - | V45: 0
A46: December | B46: - | C46: - | D46: - | E46: - | F46: - | G46: - | H46: - | I46: - | J46: - | K46: - | L46: - | M46: - | N46: - | O46: - | P46: - | Q46: - | R46: - | S46: - | T46: - | U46: - | V46: 0
A47: Total | B47: - | C47: - | D47: - | E47: - | F47: - | G47: =SUM(G35:G46) -> 0 | H47: 0 | I47: 0 | J47: 0 | K47: 0 | L47: 0 | M47: 0 | N47: 0 | O47: 0 | P47: 0 | Q47: 0 | R47: 0 | S47: 0 | T47: 0 | U47: 0 | V47: -28
A48: Hidden columns B-L do not contain any data for CY 2004-2015
A49: *Collections for November 2008 are included in December totals due to a new processing system.
A50: ='Local SUT'!A71 -> Source: Minnesota Department of Revenue, Tax Research Division, November 2025
A51: end of worksheet

Sheet Warren (hidden)
A1: Warren Monthly Detail for Minnesota Local Sales & Use Tax
A2: ='Local SUT'!A2 -> CY 2004-2024
A3: Warren Local Sales Tax (0.5%)
A4: Month | B4: 2004 | C4: 2005 | D4: 2006 | E4: 2007 | F4: 2008 | G4: 2009 | H4: 2010 | I4: 2011 | J4: 2012 | K4: 2013 | L4: 2014 | M4: 2015 | N4: 2016 | O4: 2017 | P4: 2018 | Q4: 2019 | R4: 2020 | S4: 2021 | T4: 2022 | U4: 2023 | V4: 2024
A5: January | B5: - | C5: - | D5: - | E5: - | F5: - | G5: - | H5: - | I5: - | J5: - | K5: - | L5: - | M5: - | N5: - | O5: - | P5: - | Q5: - | R5: - | S5: - | T5: - | U5: - | V5: 7731
A6: February | B6: - | C6: - | D6: - | E6: - | F6: - | G6: - | H6: - | I6: - | J6: - | K6: - | L6: - | M6: - | N6: - | O6: - | P6: - | Q6: - | R6: - | S6: - | T6: - | U6: - | V6: 8787
A7: March | B7: - | C7: - | D7: - | E7: - | F7: - | G7: - | H7: - | I7: - | J7: - | K7: - | L7: - | M7: - | N7: - | O7: - | P7: - | Q7: - | R7: - | S7: - | T7: - | U7: - | V7: 7148
A8: April | B8: - | C8: - | D8: - | E8: - | F8: - | G8: - | H8: - | I8: - | J8: - | K8: - | L8: - | M8: - | N8: - | O8: - | P8: - | Q8: - | R8: - | S8: - | T8: - | U8: - | V8: 9281
A9: May | B9: - | C9: - | D9: - | E9: - | F9: - | G9: - | H9: - | I9: - | J9: - | K9: - | L9: - | M9: - | N9: - | O9: - | P9: - | Q9: - | R9: - | S9: - | T9: - | U9: 7811 | V9: 9152
A10: June | B10: - | C10: - | D10: - | E10: - | F10: - | G10: - | H10: - | I10: - | J10: - | K10: - | L10: - | M10: - | N10: - | O10: - | P10: - | Q10: - | R10: - | S10: - | T10: - | U10: 7791 | V10: 9929
A11: July | B11: - | C11: - | D11: - | E11: - | F11: - | G11: - | H11: - | I11: - | J11: - | K11: - | L11: - | M11: - | N11: - | O11: - | P11: - | Q11: - | R11: - | S11: - | T11: - | U11: 10140 | V11: 9758
A12: August | B12: - | C12: - | D12: - | E12: - | F12: - | G12: - | H12: - | I12: - | J12: - | K12: - | L12: - | M12: - | N12: - | O12: - | P12: - | Q12: - | R12: - | S12: - | T12: - | U12: 8595 | V12: 10302.77
A13: September | B13: - | C13: - | D13: - | E13: - | F13: - | G13: - | H13: - | I13: - | J13: - | K13: - | L13: - | M13: - | N13: - | O13: - | P13: - | Q13: - | R13: - | S13: - | T13: - | U13: 8936 | V13: 9162.2
A14: October | B14: - | C14: - | D14: - | E14: - | F14: - | G14: - | H14: - | I14: - | J14: - | K14: - | L14: - | M14: - | N14: - | O14: - | P14: - | Q14: - | R14: - | S14: - | T14: - | U14: 9439 | V14: 12011.76
A15: November | B15: - | C15: - | D15: - | E15: - | F15: - | G15: - | H15: - | I15: - | J15: - | K15: - | L15: - | M15: - | N15: - | O15: - | P15: - | Q15: - | R15: - | S15: - | T15: - | U15: 7548 | V15: 11474.46
A16: December | B16: - | C16: - | D16: - | E16: - | F16: - | G16: - | H16: - | I16: - | J16: - | K16: - | L16: - | M16: - | N16: - | O16: - | P16: - | Q16: - | R16: - | S16: - | T16: - | U16: 8215 | V16: 7104.9
A17: Total | B17: - | C17: - | D17: =SUM(D5:D16) -> 0 | E17: 0 | F17: 0 | G17: 0 | H17: 0 | I17: 0 | J17: 0 | K17: =SUM(K5:K16) -> 0 | L17: 0 | M17: 0 | N17: 0 | O17: 0 | P17: 0 | Q17: 0 | R17: 0 | S17: 0 | T17: 0 | U17: 68475 | V17: 111842.09
A18: Warren Local Use Tax (0.5%)
A19: Month | B19: 2004 | C19: 2005 | D19: 2006 | E19: 2007 | F19: 2008 | G19: 2009 | H19: 2010 | I19: 2011 | J19: 2012 | K19: 2013 | L19: 2014 | M19: 2015 | N19: 2016 | O19: 2017 | P19: 2018 | Q19: 2019 | R19: 2020 | S19: 2021 | T19: 2022 | U19: 2023 | V19: 2024
A20: January | B20: - | C20: - | D20: - | E20: - | F20: - | G20: - | H20: - | I20: - | J20: - | K20: - | L20: - | M20: - | N20: - | O20: - | P20: - | Q20: - | R20: - | S20: - | T20: - | U20: - | V20: 977
A21: February | B21: - | C21: - | D21: - | E21: - | F21: - | G21: - | H21: - | I21: - | J21: - | K21: - | L21: - | M21: - | N21: - | O21: - | P21: - | Q21: - | R21: - | S21: - | T21: - | U21: - | V21: 246
A22: March | B22: - | C22: - | D22: - | E22: - | F22: - | G22: - | H22: - | I22: - | J22: - | K22: - | L22: - | M22: - | N22: - | O22: - | P22: - | Q22: - | R22: - | S22: - | T22: - | U22: - | V22: 46
A23: April | B23: - | C23: - | D23: - | E23: - | F23: - | G23: - | H23: - | I23: - | J23: - | K23: - | L23: - | M23: - | N23: - | O23: - | P23: - | Q23: - | R23: - | S23: - | T23: - | U23: - | V23: 552
A24: May | B24: - | C24: - | D24: - | E24: - | F24: - | G24: - | H24: - | I24: - | J24: - | K24: - | L24: - | M24: - | N24: - | O24: - | P24: - | Q24: - | R24: - | S24: - | T24: - | U24: 62 | V24: 62
A25: June | B25: - | C25: - | D25: - | E25: - | F25: - | G25: - | H25: - | I25: - | J25: - | K25: - | L25: - | M25: - | N25: - | O25: - | P25: - | Q25: - | R25: - | S25: - | T25: - | U25: 42 | V25: 622
A26: July | B26: - | C26: - | D26: - | E26: - | F26: - | G26: - | H26: - | I26: - | J26: - | K26: - | L26: - | M26: - | N26: - | O26: - | P26: - | Q26: - | R26: - | S26: - | T26: - | U26: 112 | V26: 200
A27: August | B27: - | C27: - | D27: - | E27: - | F27: - | G27: - | H27: - | I27: - | J27: - | K27: - | L27: - | M27: - | N27: - | O27: - | P27: - | Q27: - | R27: - | S27: - | T27: - | U27: 76 | V27: 190
A28: September | B28: - | C28: - | D28: - | E28: - | F28: - | G28: - | H28: - | I28: - | J28: - | K28: - | L28: - | M28: - | N28: - | O28: - | P28: - | Q28: - | R28: - | S28: - | T28: - | U28: 165 | V28: 143
A29: October | B29: - | C29: - | D29: - | E29: - | F29: - | G29: - | H29: - | I29: - | J29: - | K29: - | L29: - | M29: - | N29: - | O29: - | P29: - | Q29: - | R29: - | S29: - | T29: - | U29: 69 | V29: 399
A30: November | B30: - | C30: - | D30: - | E30: - | F30: - | G30: - | H30: - | I30: - | J30: - | K30: - | L30: - | M30: - | N30: - | O30: - | P30: - | Q30: - | R30: - | S30: - | T30: - | U30: 851 | V30: 341.06
A31: December | B31: - | C31: - | D31: - | E31: - | F31: - | G31: - | H31: - | I31: - | J31: - | K31: - | L31: - | M31: - | N31: - | O31: - | P31: - | Q31: - | R31: - | S31: - | T31: - | U31: 70 | V31: 85
A32: Total | B32: - | C32: - | D32: =SUM(D20:D31) -> 0 | E32: 0 | F32: 0 | G32: 0 | H32: 0 | I32: 0 | J32: 0 | K32: =SUM(K20:K31) -> 0 | L32: 0 | M32: 0 | N32: 0 | O32: 0 | P32: 0 | Q32: 0 | R32: 0 | S32: 0 | T32: 0 | U32: 1447 | V32: 3863.06
A33: Warren Refunds
A34: Month | B34: 2004 | C34: 2005 | D34: 2006 | E34: 2007 | F34: 2008 | G34: 2009 | H34: 2010 | I34: 2011 | J34: 2012 | K34: 2013 | L34: 2014 | M34: 2015 | N34: 2016 | O34: 2017 | P34: 2018 | Q34: 2019 | R34: 2020 | S34: 2021 | T34: 2022 | U34: 2023 | V34: 2024
A35: January | B35: - | C35: - | D35: - | E35: - | F35: - | G35: - | H35: - | I35: - | J35: - | K35: - | L35: - | M35: - | N35: - | O35: - | P35: - | Q35: - | R35: - | S35: - | T35: - | U35: - | V35: -
A36: February | B36: - | C36: - | D36: - | E36: - | F36: - | G36: - | H36: - | I36: - | J36: - | K36: - | L36: - | M36: - | N36: - | O36: - | P36: - | Q36: - | R36: - | S36: - | T36: - | U36: - | V36: -
A37: March | B37: - | C37: - | D37: - | E37: - | F37: - | G37: - | H37: - | I37: - | J37: - | K37: - | L37: - | M37: - | N37: - | O37: - | P37: - | Q37: - | R37: - | S37: - | T37: - | U37: - | V37: -
A38: April | B38: - | C38: - | D38: - | E38: - | F38: - | G38: - | H38: - | I38: - | J38: - | K38: - | L38: - | M38: - | N38: - | O38: - | P38: - | Q38: - | R38: - | S38: - | T38: - | U38: - | V38: -
A39: May | B39: - | C39: - | D39: - | E39: - | F39: - | G39: - | H39: - | I39: - | J39: - | K39: - | L39: - | M39: - | N39: - | O39: - | P39: - | Q39: - | R39: - | S39: - | T39: - | U39: - | V39: -
A40: June | B40: - | C40: - | D40: - | E40: - | F40: - | G40: - | H40: - | I40: - | J40: - | K40: - | L40: - | M40: - | N40: - | O40: - | P40: - | Q40: - | R40: - | S40: - | T40: - | U40: - | V40: -
A41: July | B41: - | C41: - | D41: - | E41: - | F41: - | G41: - | H41: - | I41: - | J41: - | K41: - | L41: - | M41: - | N41: - | O41: - | P41: - | Q41: - | R41: - | S41: - | T41: - | U41: - | V41: -
A42: August | B42: - | C42: - | D42: - | E42: - | F42: - | G42: - | H42: - | I42: - | J42: - | K42: - | L42: - | M42: - | N42: - | O42: - | P42: - | Q42: - | R42: - | S42: - | T42: - | U42: - | V42: -
A43: September | B43: - | C43: - | D43: - | E43: - | F43: - | G43: - | H43: - | I43: - | J43: - | K43: - | L43: - | M43: - | N43: - | O43: - | P43: - | Q43: - | R43: - | S43: - | T43: - | U43: - | V43: -
A44: October | B44: - | C44: - | D44: - | E44: - | F44: - | G44: - | H44: - | I44: - | J44: - | K44: - | L44: - | M44: - | N44: - | O44: - | P44: - | Q44: - | R44: - | S44: - | T44: - | U44: - | V44: -
A45: November | B45: - | C45: - | D45: - | E45: - | F45: - | G45: - | H45: - | I45: - | J45: - | K45: - | L45: - | M45: - | N45: - | O45: - | P45: - | Q45: - | R45: - | S45: - | T45: - | U45: - | V45: -
A46: December | B46: - | C46: - | D46: - | E46: - | F46: - | G46: - | H46: - | I46: - | J46: - | K46: - | L46: - | M46: - | N46: - | O46: - | P46: - | Q46: - | R46: - | S46: - | T46: - | U46: - | V46: -6.29
A47: Total | B47: - | C47: - | D47: - | E47: - | F47: - | G47: =SUM(G35:G46) -> 0 | H47: 0 | I47: 0 | J47: 0 | K47: 0 | L47: 0 | M47: 0 | N47: 0 | O47: 0 | P47: 0 | Q47: 0 | R47: 0 | S47: 0 | T47: 0 | U47: 0 | V47: -6.29
A48: Hidden columns B-L do not contain any data for CY 2004-2015
A49: *Collections for November 2008 are included in December totals due to a new processing system.
A50: ='Local SUT'!A71 -> Source: Minnesota Department of Revenue, Tax Research Division, November 2025
A51: end of worksheet

Sheet Waite Park (hidden)
A1: Waite Park Monthly Detail for Minnesota Local Sales & Use Tax
A2: ='Local SUT'!A2 -> CY 2004-2024
A3: Waite Park Local Sales Tax (0.5%)
A4: Month | B4: 2004 | C4: 2005 | D4: 2006 | E4: 2007 | F4: 2008 | G4: 2009 | H4: 2010 | I4: 2011 | J4: 2012 | K4: 2013 | L4: 2014 | M4: 2015 | N4: 2016 | O4: 2017 | P4: 2018 | Q4: 2019 | R4: 2020 | S4: 2021 | T4: 2022 | U4: 2023 | V4: 2024
A5: January | B5: - | C5: - | D5: - | E5: - | F5: - | G5: - | H5: - | I5: - | J5: - | K5: - | L5: - | M5: - | N5: - | O5: - | P5: - | Q5: - | R5: - | S5: - | T5: - | U5: - | V5: 220011
A6: February | B6: - | C6: - | D6: - | E6: - | F6: - | G6: - | H6: - | I6: - | J6: - | K6: - | L6: - | M6: - | N6: - | O6: - | P6: - | Q6: - | R6: - | S6: - | T6: - | U6: - | V6: 169783
A7: March | B7: - | C7: - | D7: - | E7: - | F7: - | G7: - | H7: - | I7: - | J7: - | K7: - | L7: - | M7: - | N7: - | O7: - | P7: - | Q7: - | R7: - | S7: - | T7: - | U7: - | V7: 167487
A8: April | B8: - | C8: - | D8: - | E8: - | F8: - | G8: - | H8: - | I8: - | J8: - | K8: - | L8: - | M8: - | N8: - | O8: - | P8: - | Q8: - | R8: - | S8: - | T8: - | U8: 750 | V8: 194891
A9: May | B9: - | C9: - | D9: - | E9: - | F9: - | G9: - | H9: - | I9: - | J9: - | K9: - | L9: - | M9: - | N9: - | O9: - | P9: - | Q9: - | R9: - | S9: - | T9: - | U9: 167078 | V9: 225417
A10: June | B10: - | C10: - | D10: - | E10: - | F10: - | G10: - | H10: - | I10: - | J10: - | K10: - | L10: - | M10: - | N10: - | O10: - | P10: - | Q10: - | R10: - | S10: - | T10: - | U10: 230354 | V10: 252992
A11: July | B11: - | C11: - | D11: - | E11: - | F11: - | G11: - | H11: - | I11: - | J11: - | K11: - | L11: - | M11: - | N11: - | O11: - | P11: - | Q11: - | R11: - | S11: - | T11: - | U11: 223558 | V11: 233797
A12: August | B12: - | C12: - | D12: - | E12: - | F12: - | G12: - | H12: - | I12: - | J12: - | K12: - | L12: - | M12: - | N12: - | O12: - | P12: - | Q12: - | R12: - | S12: - | T12: - | U12: 220596 | V12: 232831.87
A13: September | B13: - | C13: - | D13: - | E13: - | F13: - | G13: - | H13: - | I13: - | J13: - | K13: - | L13: - | M13: - | N13: - | O13: - | P13: - | Q13: - | R13: - | S13: - | T13: - | U13: 222359 | V13: 213517.7
A14: October | B14: - | C14: - | D14: - | E14: - | F14: - | G14: - | H14: - | I14: - | J14: - | K14: - | L14: - | M14: - | N14: - | O14: - | P14: - | Q14: - | R14: - | S14: - | T14: - | U14: 212610 | V14: 212974.66
A15: November | B15: - | C15: - | D15: - | E15: - | F15: - | G15: - | H15: - | I15: - | J15: - | K15: - | L15: - | M15: - | N15: - | O15: - | P15: - | Q15: - | R15: - | S15: - | T15: - | U15: 223903 | V15: 224862.5
A16: December | B16: - | C16: - | D16: - | E16: - | F16: - | G16: - | H16: - | I16: - | J16: - | K16: - | L16: - | M16: - | N16: - | O16: - | P16: - | Q16: - | R16: - | S16: - | T16: - | U16: 214162 | V16: 215105.44
A17: Total | B17: - | C17: - | D17: =SUM(D5:D16) -> 0 | E17: 0 | F17: 0 | G17: 0 | H17: 0 | I17: 0 | J17: 0 | K17: =SUM(K5:K16) -> 0 | L17: 0 | M17: 0 | N17: 0 | O17: 0 | P17: 0 | Q17: 0 | R17: 0 | S17: 0 | T17: 0 | U17: 1715370 | V17: 2563670.17
A18: Waite Park Local Use Tax (0.5%)
A19: Month | B19: 2004 | C19: 2005 | D19: 2006 | E19: 2007 | F19: 2008 | G19: 2009 | H19: 2010 | I19: 2011 | J19: 2012 | K19: 2013 | L19: 2014 | M19: 2015 | N19: 2016 | O19: 2017 | P19: 2018 | Q19: 2019 | R19: 2020 | S19: 2021 | T19: 2022 | U19: 2023 | V19: 2024
A20: January | B20: - | C20: - | D20: - | E20: - | F20: - | G20: - | H20: - | I20: - | J20: - | K20: - | L20: - | M20: - | N20: - | O20: - | P20: - | Q20: - | R20: - | S20: - | T20: - | U20: - | V20: 16929
A21: February | B21: - | C21: - | D21: - | E21: - | F21: - | G21: - | H21: - | I21: - | J21: - | K21: - | L21: - | M21: - | N21: - | O21: - | P21: - | Q21: - | R21: - | S21: - | T21: - | U21: - | V21: 6498
A22: March | B22: - | C22: - | D22: - | E22: - | F22: - | G22: - | H22: - | I22: - | J22: - | K22: - | L22: - | M22: - | N22: - | O22: - | P22: - | Q22: - | R22: - | S22: - | T22: - | U22: - | V22: 5202
A23: April | B23: - | C23: - | D23: - | E23: - | F23: - | G23: - | H23: - | I23: - | J23: - | K23: - | L23: - | M23: - | N23: - | O23: - | P23: - | Q23: - | R23: - | S23: - | T23: - | U23: 286 | V23: 6322
A24: May | B24: - | C24: - | D24: - | E24: - | F24: - | G24: - | H24: - | I24: - | J24: - | K24: - | L24: - | M24: - | N24: - | O24: - | P24: - | Q24: - | R24: - | S24: - | T24: - | U24: 5784 | V24: 6201
A25: June | B25: - | C25: - | D25: - | E25: - | F25: - | G25: - | H25: - | I25: - | J25: - | K25: - | L25: - | M25: - | N25: - | O25: - | P25: - | Q25: - | R25: - | S25: - | T25: - | U25: 10485 | V25: 8873
A26: July | B26: - | C26: - | D26: - | E26: - | F26: - | G26: - | H26: - | I26: - | J26: - | K26: - | L26: - | M26: - | N26: - | O26: - | P26: - | Q26: - | R26: - | S26: - | T26: - | U26: 14370 | V26: 11988
A27: August | B27: - | C27: - | D27: - | E27: - | F27: - | G27: - | H27: - | I27: - | J27: - | K27: - | L27: - | M27: - | N27: - | O27: - | P27: - | Q27: - | R27: - | S27: - | T27: - | U27: 13707 | V27: 11854.07
A28: September | B28: - | C28: - | D28: - | E28: - | F28: - | G28: - | H28: - | I28: - | J28: - | K28: - | L28: - | M28: - | N28: - | O28: - | P28: - | Q28: - | R28: - | S28: - | T28: - | U28: 11784 | V28: 9265.31
A29: October | B29: - | C29: - | D29: - | E29: - | F29: - | G29: - | H29: - | I29: - | J29: - | K29: - | L29: - | M29: - | N29: - | O29: - | P29: - | Q29: - | R29: - | S29: - | T29: - | U29: 11451 | V29: 13723.74
A30: November | B30: - | C30: - | D30: - | E30: - | F30: - | G30: - | H30: - | I30: - | J30: - | K30: - | L30: - | M30: - | N30: - | O30: - | P30: - | Q30: - | R30: - | S30: - | T30: - | U30: 12934 | V30: 11252.81
A31: December | B31: - | C31: - | D31: - | E31: - | F31: - | G31: - | H31: - | I31: - | J31: - | K31: - | L31: - | M31: - | N31: - | O31: - | P31: - | Q31: - | R31: - | S31: - | T31: - | U31: 7801 | V31: 6819.44
A32: Total | B32: - | C32: - | D32: =SUM(D20:D31) -> 0 | E32: 0 | F32: 0 | G32: 0 | H32: 0 | I32: 0 | J32: 0 | K32: =SUM(K20:K31) -> 0 | L32: 0 | M32: 0 | N32: 0 | O32: 0 | P32: 0 | Q32: 0 | R32: 0 | S32: 0 | T32: 0 | U32: 88602 | V32: 114928.37
A33: Waite Park Refunds
A34: Month | B34: 2004 | C34: 2005 | D34: 2006 | E34: 2007 | F34: 2008 | G34: 2009 | H34: 2010 | I34: 2011 | J34: 2012 | K34: 2013 | L34: 2014 | M34: 2015 | N34: 2016 | O34: 2017 | P34: 2018 | Q34: 2019 | R34: 2020 | S34: 2021 | T34: 2022 | U34: 2023 | V34: 2024
A35: January | B35: - | C35: - | D35: - | E35: - | F35: - | G35: - | H35: - | I35: - | J35: - | K35: - | L35: - | M35: - | N35: - | O35: - | P35: - | Q35: - | R35: - | S35: - | T35: - | U35: - | V35: -
A36: February | B36: - | C36: - | D36: - | E36: - | F36: - | G36: - | H36: - | I36: - | J36: - | K36: - | L36: - | M36: - | N36: - | O36: - | P36: - | Q36: - | R36: - | S36: - | T36: - | U36: - | V36: -4
A37: March | B37: - | C37: - | D37: - | E37: - | F37: - | G37: - | H37: - | I37: - | J37: - | K37: - | L37: - | M37: - | N37: - | O37: - | P37: - | Q37: - | R37: - | S37: - | T37: - | U37: - | V37: -4
A38: April | B38: - | C38: - | D38: - | E38: - | F38: - | G38: - | H38: - | I38: - | J38: - | K38: - | L38: - | M38: - | N38: - | O38: - | P38: - | Q38: - | R38: - | S38: - | T38: - | U38: - | V38: -116
A39: May | B39: - | C39: - | D39: - | E39: - | F39: - | G39: - | H39: - | I39: - | J39: - | K39: - | L39: - | M39: - | N39: - | O39: - | P39: - | Q39: - | R39: - | S39: - | T39: - | U39: - | V39: -2
A40: June | B40: - | C40: - | D40: - | E40: - | F40: - | G40: - | H40: - | I40: - | J40: - | K40: - | L40: - | M40: - | N40: - | O40: - | P40: - | Q40: - | R40: - | S40: - | T40: - | U40: - | V40: -4
A41: July | B41: - | C41: - | D41: - | E41: - | F41: - | G41: - | H41: - | I41: - | J41: - | K41: - | L41: - | M41: - | N41: - | O41: - | P41: - | Q41: - | R41: - | S41: - | T41: - | U41: - | V41: -105
A42: August | B42: - | C42: - | D42: - | E42: - | F42: - | G42: - | H42: - | I42: - | J42: - | K42: - | L42: - | M42: - | N42: - | O42: - | P42: - | Q42: - | R42: - | S42: - | T42: - | U42: -34 | V42: -205.04
A43: September | B43: - | C43: - | D43: - | E43: - | F43: - | G43: - | H43: - | I43: - | J43: - | K43: - | L43: - | M43: - | N43: - | O43: - | P43: - | Q43: - | R43: - | S43: - | T43: - | U43: - | V43: -
A44: October | B44: - | C44: - | D44: - | E44: - | F44: - | G44: - | H44: - | I44: - | J44: - | K44: - | L44: - | M44: - | N44: - | O44: - | P44: - | Q44: - | R44: - | S44: - | T44: - | U44: - | V44: -9.68
A45: November | B45: - | C45: - | D45: - | E45: - | F45: - | G45: - | H45: - | I45: - | J45: - | K45: - | L45: - | M45: - | N45: - | O45: - | P45: - | Q45: - | R45: - | S45: - | T45: - | U45: - | V45: -33.22
A46: December | B46: - | C46: - | D46: - | E46: - | F46: - | G46: - | H46: - | I46: - | J46: - | K46: - | L46: - | M46: - | N46: - | O46: - | P46: - | Q46: - | R46: - | S46: - | T46: - | U46: - | V46: -803.85
A47: Total | B47: - | C47: - | D47: - | E47: - | F47: - | G47: =SUM(G35:G46) -> 0 | H47: 0 | I47: 0 | J47: 0 | K47: 0 | L47: 0 | M47: 0 | N47: 0 | O47: 0 | P47: 0 | Q47: 0 | R47: 0 | S47: 0 | T47: 0 | U47: -34 | V47: -1286.79
A48: Hidden columns B-L do not contain any data for CY 2004-2015
A49: *Collections for November 2008 are included in December totals due to a new processing system.
A50: ='Local SUT'!A71 -> Source: Minnesota Department of Revenue, Tax Research Division, November 2025
A51: end of worksheet

Sheet Staples (hidden)
A1: Staples Monthly Detail for Minnesota Local Sales & Use Tax
A2: ='Local SUT'!A2 -> CY 2004-2024
A3: Staples Local Sales Tax (0.5%)
A4: Month | B4: 2004 | C4: 2005 | D4: 2006 | E4: 2007 | F4: 2008 | G4: 2009 | H4: 2010 | I4: 2011 | J4: 2012 | K4: 2013 | L4: 2014 | M4: 2015 | N4: 2016 | O4: 2017 | P4: 2018 | Q4: 2019 | R4: 2020 | S4: 2021 | T4: 2022 | U4: 2023 | V4: 2024
A5: January | B5: - | C5: - | D5: - | E5: - | F5: - | G5: - | H5: - | I5: - | J5: - | K5: - | L5: - | M5: - | N5: - | O5: - | P5: - | Q5: - | R5: - | S5: - | T5: - | U5: - | V5: 17576
A6: February | B6: - | C6: - | D6: - | E6: - | F6: - | G6: - | H6: - | I6: - | J6: - | K6: - | L6: - | M6: - | N6: - | O6: - | P6: - | Q6: - | R6: - | S6: - | T6: - | U6: - | V6: 17012
A7: March | B7: - | C7: - | D7: - | E7: - | F7: - | G7: - | H7: - | I7: - | J7: - | K7: - | L7: - | M7: - | N7: - | O7: - | P7: - | Q7: - | R7: - | S7: - | T7: - | U7: - | V7: 15554
A8: April | B8: - | C8: - | D8: - | E8: - | F8: - | G8: - | H8: - | I8: - | J8: - | K8: - | L8: - | M8: - | N8: - | O8: - | P8: - | Q8: - | R8: - | S8: - | T8: - | U8: - | V8: 17497
A9: May | B9: - | C9: - | D9: - | E9: - | F9: - | G9: - | H9: - | I9: - | J9: - | K9: - | L9: - | M9: - | N9: - | O9: - | P9: - | Q9: - | R9: - | S9: - | T9: - | U9: 13332 | V9: 20166
A10: June | B10: - | C10: - | D10: - | E10: - | F10: - | G10: - | H10: - | I10: - | J10: - | K10: - | L10: - | M10: - | N10: - | O10: - | P10: - | Q10: - | R10: - | S10: - | T10: - | U10: 17624 | V10: 20059
A11: July | B11: - | C11: - | D11: - | E11: - | F11: - | G11: - | H11: - | I11: - | J11: - | K11: - | L11: - | M11: - | N11: - | O11: - | P11: - | Q11: - | R11: - | S11: - | T11: - | U11: 23168 | V11: 20631
A12: August | B12: - | C12: - | D12: - | E12: - | F12: - | G12: - | H12: - | I12: - | J12: - | K12: - | L12: - | M12: - | N12: - | O12: - | P12: - | Q12: - | R12: - | S12: - | T12: - | U12: 17557 | V12: 20393.86
A13: September | B13: - | C13: - | D13: - | E13: - | F13: - | G13: - | H13: - | I13: - | J13: - | K13: - | L13: - | M13: - | N13: - | O13: - | P13: - | Q13: - | R13: - | S13: - | T13: - | U13: 19930 | V13: 20335.74
A14: October | B14: - | C14: - | D14: - | E14: - | F14: - | G14: - | H14: - | I14: - | J14: - | K14: - | L14: - | M14: - | N14: - | O14: - | P14: - | Q14: - | R14: - | S14: - | T14: - | U14: 20386 | V14: 18077.93
A15: November | B15: - | C15: - | D15: - | E15: - | F15: - | G15: - | H15: - | I15: - | J15: - | K15: - | L15: - | M15: - | N15: - | O15: - | P15: - | Q15: - | R15: - | S15: - | T15: - | U15: 16900 | V15: 18081.31
A16: December | B16: - | C16: - | D16: - | E16: - | F16: - | G16: - | H16: - | I16: - | J16: - | K16: - | L16: - | M16: - | N16: - | O16: - | P16: - | Q16: - | R16: - | S16: - | T16: - | U16: 15963 | V16: 15730.93
A17: Total | B17: - | C17: - | D17: =SUM(D5:D16) -> 0 | E17: 0 | F17: 0 | G17: 0 | H17: 0 | I17: 0 | J17: 0 | K17: =SUM(K5:K16) -> 0 | L17: 0 | M17: 0 | N17: 0 | O17: 0 | P17: 0 | Q17: 0 | R17: 0 | S17: 0 | T17: 0 | U17: 144860 | V17: 221114.77
A18: Staples Local Use Tax (0.5%)
A19: Month | B19: 2004 | C19: 2005 | D19: 2006 | E19: 2007 | F19: 2008 | G19: 2009 | H19: 2010 | I19: 2011 | J19: 2012 | K19: 2013 | L19: 2014 | M19: 2015 | N19: 2016 | O19: 2017 | P19: 2018 | Q19: 2019 | R19: 2020 | S19: 2021 | T19: 2022 | U19: 2023 | V19: 2024
A20: January | B20: - | C20: - | D20: - | E20: - | F20: - | G20: - | H20: - | I20: - | J20: - | K20: - | L20: - | M20: - | N20: - | O20: - | P20: - | Q20: - | R20: - | S20: - | T20: - | V20: 850
A21: February | B21: - | C21: - | D21: - | E21: - | F21: - | G21: - | H21: - | I21: - | J21: - | K21: - | L21: - | M21: - | N21: - | O21: - | P21: - | Q21: - | R21: - | S21: - | T21: - | V21: 1817
A22: March | B22: - | C22: - | D22: - | E22: - | F22: - | G22: - | H22: - | I22: - | J22: - | K22: - | L22: - | M22: - | N22: - | O22: - | P22: - | Q22: - | R22: - | S22: - | T22: - | V22: 2000
A23: April | B23: - | C23: - | D23: - | E23: - | F23: - | G23: - | H23: - | I23: - | J23: - | K23: - | L23: - | M23: - | N23: - | O23: - | P23: - | Q23: - | R23: - | S23: - | T23: - | U23: 0 | V23: 1896
A24: May | B24: - | C24: - | D24: - | E24: - | F24: - | G24: - | H24: - | I24: - | J24: - | K24: - | L24: - | M24: - | N24: - | O24: - | P24: - | Q24: - | R24: - | S24: - | T24: - | U24: 1073 | V24: 1177
A25: June | B25: - | C25: - | D25: - | E25: - | F25: - | G25: - | H25: - | I25: - | J25: - | K25: - | L25: - | M25: - | N25: - | O25: - | P25: - | Q25: - | R25: - | S25: - | T25: - | U25: 1007 | V25: 830
A26: July | B26: - | C26: - | D26: - | E26: - | F26: - | G26: - | H26: - | I26: - | J26: - | K26: - | L26: - | M26: - | N26: - | O26: - | P26: - | Q26: - | R26: - | S26: - | T26: - | U26: 3023 | V26: 1722
A27: August | B27: - | C27: - | D27: - | E27: - | F27: - | G27: - | H27: - | I27: - | J27: - | K27: - | L27: - | M27: - | N27: - | O27: - | P27: - | Q27: - | R27: - | S27: - | T27: - | U27: 1571 | V27: 1617
A28: September | B28: - | C28: - | D28: - | E28: - | F28: - | G28: - | H28: - | I28: - | J28: - | K28: - | L28: - | M28: - | N28: - | O28: - | P28: - | Q28: - | R28: - | S28: - | T28: - | U28: 1278 | V28: 853
A29: October | B29: - | C29: - | D29: - | E29: - | F29: - | G29: - | H29: - | I29: - | J29: - | K29: - | L29: - | M29: - | N29: - | O29: - | P29: - | Q29: - | R29: - | S29: - | T29: - | U29: 1019 | V29: 823
A30: November | B30: - | C30: - | D30: - | E30: - | F30: - | G30: - | H30: - | I30: - | J30: - | K30: - | L30: - | M30: - | N30: - | O30: - | P30: - | Q30: - | R30: - | S30: - | T30: - | U30: 524 | V30: 560
A31: December | B31: - | C31: - | D31: - | E31: - | F31: - | G31: - | H31: - | I31: - | J31: - | K31: - | L31: - | M31: - | N31: - | O31: - | P31: - | Q31: - | R31: - | S31: - | T31: - | U31: 708 | V31: 790
A32: Total | B32: - | C32: - | D32: =SUM(D20:D31) -> 0 | E32: 0 | F32: 0 | G32: 0 | H32: 0 | I32: 0 | J32: 0 | K32: =SUM(K20:K31) -> 0 | L32: 0 | M32: 0 | N32: 0 | O32: 0 | P32: 0 | Q32: 0 | R32: 0 | S32: 0 | T32: 0 | U32: 10203 | V32: 14935
A33: Staples Refunds
A34: Month | B34: 2004 | C34: 2005 | D34: 2006 | E34: 2007 | F34: 2008 | G34: 2009 | H34: 2010 | I34: 2011 | J34: 2012 | K34: 2013 | L34: 2014 | M34: 2015 | N34: 2016 | O34: 2017 | P34: 2018 | Q34: 2019 | R34: 2020 | S34: 2021 | T34: 2022 | U34: 2023 | V34: 2024
A35: January | B35: - | C35: - | D35: - | E35: - | F35: - | G35: - | H35: - | I35: - | J35: - | K35: - | L35: - | M35: - | N35: - | O35: - | P35: - | Q35: - | R35: - | S35: - | T35: - | U35: - | V35: -
A36: February | B36: - | C36: - | D36: - | E36: - | F36: - | G36: - | H36: - | I36: - | J36: - | K36: - | L36: - | M36: - | N36: - | O36: - | P36: - | Q36: - | R36: - | S36: - | T36: - | U36: - | V36: -
A37: March | B37: - | C37: - | D37: - | E37: - | F37: - | G37: - | H37: - | I37: - | J37: - | K37: - | L37: - | M37: - | N37: - | O37: - | P37: - | Q37: - | R37: - | S37: - | T37: - | U37: - | V37: -
A38: April | B38: - | C38: - | D38: - | E38: - | F38: - | G38: - | H38: - | I38: - | J38: - | K38: - | L38: - | M38: - | N38: - | O38: - | P38: - | Q38: - | R38: - | S38: - | T38: - | U38: - | V38: -143
A39: May | B39: - | C39: - | D39: - | E39: - | F39: - | G39: - | H39: - | I39: - | J39: - | K39: - | L39: - | M39: - | N39: - | O39: - | P39: - | Q39: - | R39: - | S39: - | T39: - | U39: - | V39: -
A40: June | B40: - | C40: - | D40: - | E40: - | F40: - | G40: - | H40: - | I40: - | J40: - | K40: - | L40: - | M40: - | N40: - | O40: - | P40: - | Q40: - | R40: - | S40: - | T40: - | U40: - | V40: -
A41: July | B41: - | C41: - | D41: - | E41: - | F41: - | G41: - | H41: - | I41: - | J41: - | K41: - | L41: - | M41: - | N41: - | O41: - | P41: - | Q41: - | R41: - | S41: - | T41: - | U41: - | V41: -
A42: August | B42: - | C42: - | D42: - | E42: - | F42: - | G42: - | H42: - | I42: - | J42: - | K42: - | L42: - | M42: - | N42: - | O42: - | P42: - | Q42: - | R42: - | S42: - | T42: - | U42: - | V42: -
A43: September | B43: - | C43: - | D43: - | E43: - | F43: - | G43: - | H43: - | I43: - | J43: - | K43: - | L43: - | M43: - | N43: - | O43: - | P43: - | Q43: - | R43: - | S43: - | T43: - | U43: - | V43: -
A44: October | B44: - | C44: - | D44: - | E44: - | F44: - | G44: - | H44: - | I44: - | J44: - | K44: - | L44: - | M44: - | N44: - | O44: - | P44: - | Q44: - | R44: - | S44: - | T44: - | U44: - | V44: -13.69
A45: November | B45: - | C45: - | D45: - | E45: - | F45: - | G45: - | H45: - | I45: - | J45: - | K45: - | L45: - | M45: - | N45: - | O45: - | P45: - | Q45: - | R45: - | S45: - | T45: - | U45: - | V45: -19
A46: December | B46: - | C46: - | D46: - | E46: - | F46: - | G46: - | H46: - | I46: - | J46: - | K46: - | L46: - | M46: - | N46: - | O46: - | P46: - | Q46: - | R46: - | S46: - | T46: - | U46: - | V46: -8439.39
A47: Total | B47: - | C47: - | D47: - | E47: - | F47: - | G47: =SUM(G35:G46) -> 0 | H47: 0 | I47: 0 | J47: 0 | K47: 0 | L47: 0 | M47: 0 | N47: 0 | O47: 0 | P47: 0 | Q47: 0 | R47: 0 | S47: 0 | T47: 0 | U47: 0 | V47: -8615.08
A48: Hidden columns B-L do not contain any data for CY 2004-2015
A49: *Collections for November 2008 are included in December totals due to a new processing system.
A50: ='Local SUT'!A71 -> Source: Minnesota Department of Revenue, Tax Research Division, November 2025
A51: end of worksheet

Sheet Oakdale (hidden)
A1: Oakdale Monthly Detail for Minnesota Local Sales & Use Tax
A2: ='Local SUT'!A2 -> CY 2004-2024
A3: Oakdale Local Sales Tax (0.5%)
A4: Month | B4: 2004 | C4: 2005 | D4: 2006 | E4: 2007 | F4: 2008 | G4: 2009 | H4: 2010 | I4: 2011 | J4: 2012 | K4: 2013 | L4: 2014 | M4: 2015 | N4: 2016 | O4: 2017 | P4: 2018 | Q4: 2019 | R4: 2020 | S4: 2021 | T4: 2022 | U4: 2023 | V4: 2024
A5: January | B5: - | C5: - | D5: - | E5: - | F5: - | G5: - | H5: - | I5: - | J5: - | K5: - | L5: - | M5: - | N5: - | O5: - | P5: - | Q5: - | R5: - | S5: - | T5: - | U5: - | V5: 242973
A6: February | B6: - | C6: - | D6: - | E6: - | F6: - | G6: - | H6: - | I6: - | J6: - | K6: - | L6: - | M6: - | N6: - | O6: - | P6: - | Q6: - | R6: - | S6: - | T6: - | U6: - | V6: 208475
A7: March | B7: - | C7: - | D7: - | E7: - | F7: - | G7: - | H7: - | I7: - | J7: - | K7: - | L7: - | M7: - | N7: - | O7: - | P7: - | Q7: - | R7: - | S7: - | T7: - | U7: - | V7: 187933
A8: April | B8: - | C8: - | D8: - | E8: - | F8: - | G8: - | H8: - | I8: - | J8: - | K8: - | L8: - | M8: - | N8: - | O8: - | P8: - | Q8: - | R8: - | S8: - | T8: - | U8: - | V8: 225751
A9: May | B9: - | C9: - | D9: - | E9: - | F9: - | G9: - | H9: - | I9: - | J9: - | K9: - | L9: - | M9: - | N9: - | O9: - | P9: - | Q9: - | R9: - | S9: - | T9: - | U9: 184657 | V9: 217704
A10: June | B10: - | C10: - | D10: - | E10: - | F10: - | G10: - | H10: - | I10: - | J10: - | K10: - | L10: - | M10: - | N10: - | O10: - | P10: - | Q10: - | R10: - | S10: - | T10: - | U10: 213418 | V10: 234946
A11: July | B11: - | C11: - | D11: - | E11: - | F11: - | G11: - | H11: - | I11: - | J11: - | K11: - | L11: - | M11: - | N11: - | O11: - | P11: - | Q11: - | R11: - | S11: - | T11: - | U11: 230833 | V11: 238775
A12: August | B12: - | C12: - | D12: - | E12: - | F12: - | G12: - | H12: - | I12: - | J12: - | K12: - | L12: - | M12: - | N12: - | O12: - | P12: - | Q12: - | R12: - | S12: - | T12: - | U12: 214900 | V12: 232876.89
A13: September | B13: - | C13: - | D13: - | E13: - | F13: - | G13: - | H13: - | I13: - | J13: - | K13: - | L13: - | M13: - | N13: - | O13: - | P13: - | Q13: - | R13: - | S13: - | T13: - | U13: 213473 | V13: 223414.76
A14: October | B14: - | C14: - | D14: - | E14: - | F14: - | G14: - | H14: - | I14: - | J14: - | K14: - | L14: - | M14: - | N14: - | O14: - | P14: - | Q14: - | R14: - | S14: - | T14: - | U14: 208842 | V14: 225924.61
A15: November | B15: - | C15: - | D15: - | E15: - | F15: - | G15: - | H15: - | I15: - | J15: - | K15: - | L15: - | M15: - | N15: - | O15: - | P15: - | Q15: - | R15: - | S15: - | T15: - | U15: 223294 | V15: 223397.41
A16: December | B16: - | C16: - | D16: - | E16: - | F16: - | G16: - | H16: - | I16: - | J16: - | K16: - | L16: - | M16: - | N16: - | O16: - | P16: - | Q16: - | R16: - | S16: - | T16: - | U16: 227160 | V16: 220210.53
A17: Total | B17: - | C17: - | D17: =SUM(D5:D16) -> 0 | E17: 0 | F17: 0 | G17: 0 | H17: 0 | I17: 0 | J17: 0 | K17: =SUM(K5:K16) -> 0 | L17: 0 | M17: 0 | N17: 0 | O17: 0 | P17: 0 | Q17: 0 | R17: 0 | S17: 0 | T17: 0 | U17: 1716577 | V17: 2682381.2
A18: Oakdale Local Use Tax (0.5%)
A19: Month | B19: 2004 | C19: 2005 | D19: 2006 | E19: 2007 | F19: 2008 | G19: 2009 | H19: 2010 | I19: 2011 | J19: 2012 | K19: 2013 | L19: 2014 | M19: 2015 | N19: 2016 | O19: 2017 | P19: 2018 | Q19: 2019 | R19: 2020 | S19: 2021 | T19: 2022 | U19: 2023 | V19: 2024
A20: January | B20: - | C20: - | D20: - | E20: - | F20: - | G20: - | H20: - | I20: - | J20: - | K20: - | L20: - | M20: - | N20: - | O20: - | P20: - | Q20: - | R20: - | S20: - | T20: - | U20: - | V20: 8052
A21: February | B21: - | C21: - | D21: - | E21: - | F21: - | G21: - | H21: - | I21: - | J21: - | K21: - | L21: - | M21: - | N21: - | O21: - | P21: - | Q21: - | R21: - | S21: - | T21: - | U21: - | V21: 8107
A22: March | B22: - | C22: - | D22: - | E22: - | F22: - | G22: - | H22: - | I22: - | J22: - | K22: - | L22: - | M22: - | N22: - | O22: - | P22: - | Q22: - | R22: - | S22: - | T22: - | U22: - | V22: 6828
A23: April | B23: - | C23: - | D23: - | E23: - | F23: - | G23: - | H23: - | I23: - | J23: - | K23: - | L23: - | M23: - | N23: - | O23: - | P23: - | Q23: - | R23: - | S23: - | T23: - | U23: - | V23: 9491
A24: May | B24: - | C24: - | D24: - | E24: - | F24: - | G24: - | H24: - | I24: - | J24: - | K24: - | L24: - | M24: - | N24: - | O24: - | P24: - | Q24: - | R24: - | S24: - | T24: - | U24: 9135 | V24: 10945
A25: June | B25: - | C25: - | D25: - | E25: - | F25: - | G25: - | H25: - | I25: - | J25: - | K25: - | L25: - | M25: - | N25: - | O25: - | P25: - | Q25: - | R25: - | S25: - | T25: - | U25: 8758 | V25: 20198
A26: July | B26: - | C26: - | D26: - | E26: - | F26: - | G26: - | H26: - | I26: - | J26: - | K26: - | L26: - | M26: - | N26: - | O26: - | P26: - | Q26: - | R26: - | S26: - | T26: - | U26: 18944 | V26: 13400
A27: August | B27: - | C27: - | D27: - | E27: - | F27: - | G27: - | H27: - | I27: - | J27: - | K27: - | L27: - | M27: - | N27: - | O27: - | P27: - | Q27: - | R27: - | S27: - | T27: - | U27: 7902 | V27: 10856.34
A28: September | B28: - | C28: - | D28: - | E28: - | F28: - | G28: - | H28: - | I28: - | J28: - | K28: - | L28: - | M28: - | N28: - | O28: - | P28: - | Q28: - | R28: - | S28: - | T28: - | U28: 12611 | V28: 14852.48
A29: October | B29: - | C29: - | D29: - | E29: - | F29: - | G29: - | H29: - | I29: - | J29: - | K29: - | L29: - | M29: - | N29: - | O29: - | P29: - | Q29: - | R29: - | S29: - | T29: - | U29: 15090 | V29: 9132.65
A30: November | B30: - | C30: - | D30: - | E30: - | F30: - | G30: - | H30: - | I30: - | J30: - | K30: - | L30: - | M30: - | N30: - | O30: - | P30: - | Q30: - | R30: - | S30: - | T30: - | U30: 9914 | V30: 10130.06
A31: December | B31: - | C31: - | D31: - | E31: - | F31: - | G31: - | H31: - | I31: - | J31: - | K31: - | L31: - | M31: - | N31: - | O31: - | P31: - | Q31: - | R31: - | S31: - | T31: - | U31: 7077 | V31: 6506.42
A32: Total | B32: - | C32: - | D32: =SUM(D20:D31) -> 0 | E32: 0 | F32: 0 | G32: 0 | H32: 0 | I32: 0 | J32: 0 | K32: =SUM(K20:K31) -> 0 | L32: 0 | M32: 0 | N32: 0 | O32: 0 | P32: 0 | Q32: 0 | R32: 0 | S32: 0 | T32: 0 | U32: 89431 | V32: 128498.95
A33: Oakdale Refunds
A34: Month | B34: 2004 | C34: 2005 | D34: 2006 | E34: 2007 | F34: 2008 | G34: 2009 | H34: 2010 | I34: 2011 | J34: 2012 | K34: 2013 | L34: 2014 | M34: 2015 | N34: 2016 | O34: 2017 | P34: 2018 | Q34: 2019 | R34: 2020 | S34: 2021 | T34: 2022 | U34: 2023 | V34: 2024
A35: January | B35: - | C35: - | D35: - | E35: - | F35: - | G35: - | H35: - | I35: - | J35: - | K35: - | L35: - | M35: - | N35: - | O35: - | P35: - | Q35: - | R35: - | S35: - | T35: - | U35: - | V35: -958
A36: February | B36: - | C36: - | D36: - | E36: - | F36: - | G36: - | H36: - | I36: - | J36: - | K36: - | L36: - | M36: - | N36: - | O36: - | P36: - | Q36: - | R36: - | S36: - | T36: - | U36: - | V36: -
A37: March | B37: - | C37: - | D37: - | E37: - | F37: - | G37: - | H37: - | I37: - | J37: - | K37: - | L37: - | M37: - | N37: - | O37: - | P37: - | Q37: - | R37: - | S37: - | T37: - | U37: - | V37: -
A38: April | B38: - | C38: - | D38: - | E38: - | F38: - | G38: - | H38: - | I38: - | J38: - | K38: - | L38: - | M38: - | N38: - | O38: - | P38: - | Q38: - | R38: - | S38: - | T38: - | U38: - | V38: -
A39: May | B39: - | C39: - | D39: - | E39: - | F39: - | G39: - | H39: - | I39: - | J39: - | K39: - | L39: - | M39: - | N39: - | O39: - | P39: - | Q39: - | R39: - | S39: - | T39: - | U39: - | V39: -
A40: June | B40: - | C40: - | D40: - | E40: - | F40: - | G40: - | H40: - | I40: - | J40: - | K40: - | L40: - | M40: - | N40: - | O40: - | P40: - | Q40: - | R40: - | S40: - | T40: - | U40: - | V40: -
A41: July | B41: - | C41: - | D41: - | E41: - | F41: - | G41: - | H41: - | I41: - | J41: - | K41: - | L41: - | M41: - | N41: - | O41: - | P41: - | Q41: - | R41: - | S41: - | T41: - | U41: - | V41: -
A42: August | B42: - | C42: - | D42: - | E42: - | F42: - | G42: - | H42: - | I42: - | J42: - | K42: - | L42: - | M42: - | N42: - | O42: - | P42: - | Q42: - | R42: - | S42: - | T42: - | U42: - | V42: -
A43: September | B43: - | C43: - | D43: - | E43: - | F43: - | G43: - | H43: - | I43: - | J43: - | K43: - | L43: - | M43: - | N43: - | O43: - | P43: - | Q43: - | R43: - | S43: - | T43: - | U43: - | V43: -
A44: October | B44: - | C44: - | D44: - | E44: - | F44: - | G44: - | H44: - | I44: - | J44: - | K44: - | L44: - | M44: - | N44: - | O44: - | P44: - | Q44: - | R44: - | S44: - | T44: - | U44: - | V44: -
A45: November | B45: - | C45: - | D45: - | E45: - | F45: - | G45: - | H45: - | I45: - | J45: - | K45: - | L45: - | M45: - | N45: - | O45: - | P45: - | Q45: - | R45: - | S45: - | T45: - | U45: - | V45: -
A46: December | B46: - | C46: - | D46: - | E46: - | F46: - | G46: - | H46: - | I46: - | J46: - | K46: - | L46: - | M46: - | N46: - | O46: - | P46: - | Q46: - | R46: - | S46: - | T46: - | U46: - | V46: -
A47: Total | B47: - | C47: - | D47: - | E47: - | F47: - | G47: =SUM(G35:G46) -> 0 | H47: 0 | I47: 0 | J47: 0 | K47: 0 | L47: 0 | M47: 0 | N47: 0 | O47: 0 | P47: 0 | Q47: 0 | R47: 0 | S47: 0 | T47: 0 | U47: 0 | V47: -958
A48: Hidden columns B-L do not contain any data for CY 2004-2015
A49: *Collections for November 2008 are included in December totals due to a new processing system.
A50: ='Local SUT'!A71 -> Source: Minnesota Department of Revenue, Tax Research Division, November 2025
A51: end of worksheet

Sheet Moorhead (hidden)
A1: Moorhead Monthly Detail for Minnesota Local Sales & Use Tax
A2: ='Local SUT'!A2 -> CY 2004-2024
A3: Moorhead Local Sales Tax (0.5%)
A4: Month | B4: 2004 | C4: 2005 | D4: 2006 | E4: 2007 | F4: 2008 | G4: 2009 | H4: 2010 | I4: 2011 | J4: 2012 | K4: 2013 | L4: 2014 | M4: 2015 | N4: 2016 | O4: 2017 | P4: 2018 | Q4: 2019 | R4: 2020 | S4: 2021 | T4: 2022 | U4: 2023 | V4: 2024
A5: January | B5: - | C5: - | D5: - | E5: - | F5: - | G5: - | H5: - | I5: - | J5: - | K5: - | L5: - | M5: - | N5: - | O5: - | P5: - | Q5: - | R5: - | S5: - | T5: - | V5: 233098
A6: February | B6: - | C6: - | D6: - | E6: - | F6: - | G6: - | H6: - | I6: - | J6: - | K6: - | L6: - | M6: - | N6: - | O6: - | P6: - | Q6: - | R6: - | S6: - | T6: - | V6: 196503
A7: March | B7: - | C7: - | D7: - | E7: - | F7: - | G7: - | H7: - | I7: - | J7: - | K7: - | L7: - | M7: - | N7: - | O7: - | P7: - | Q7: - | R7: - | S7: - | T7: - | V7: 187707
A8: April | B8: - | C8: - | D8: - | E8: - | F8: - | G8: - | H8: - | I8: - | J8: - | K8: - | L8: - | M8: - | N8: - | O8: - | P8: - | Q8: - | R8: - | S8: - | T8: - | U8: 274 | V8: 220328
A9: May | B9: - | C9: - | D9: - | E9: - | F9: - | G9: - | H9: - | I9: - | J9: - | K9: - | L9: - | M9: - | N9: - | O9: - | P9: - | Q9: - | R9: - | S9: - | T9: - | U9: 189077 | V9: 227298
A10: June | B10: - | C10: - | D10: - | E10: - | F10: - | G10: - | H10: - | I10: - | J10: - | K10: - | L10: - | M10: - | N10: - | O10: - | P10: - | Q10: - | R10: - | S10: - | T10: - | U10: 231556 | V10: 251738
A11: July | B11: - | C11: - | D11: - | E11: - | F11: - | G11: - | H11: - | I11: - | J11: - | K11: - | L11: - | M11: - | N11: - | O11: - | P11: - | Q11: - | R11: - | S11: - | T11: - | U11: 243479 | V11: 246553
A12: August | B12: - | C12: - | D12: - | E12: - | F12: - | G12: - | H12: - | I12: - | J12: - | K12: - | L12: - | M12: - | N12: - | O12: - | P12: - | Q12: - | R12: - | S12: - | T12: - | U12: 212969 | V12: 249739.59
A13: September | B13: - | C13: - | D13: - | E13: - | F13: - | G13: - | H13: - | I13: - | J13: - | K13: - | L13: - | M13: - | N13: - | O13: - | P13: - | Q13: - | R13: - | S13: - | T13: - | U13: 235650 | V13: 238398.79
A14: October | B14: - | C14: - | D14: - | E14: - | F14: - | G14: - | H14: - | I14: - | J14: - | K14: - | L14: - | M14: - | N14: - | O14: - | P14: - | Q14: - | R14: - | S14: - | T14: - | U14: 246729 | V14: 249277.64
A15: November | B15: - | C15: - | D15: - | E15: - | F15: - | G15: - | H15: - | I15: - | J15: - | K15: - | L15: - | M15: - | N15: - | O15: - | P15: - | Q15: - | R15: - | S15: - | T15: - | U15: 229423 | V15: 247224.61
A16: December | B16: - | C16: - | D16: - | E16: - | F16: - | G16: - | H16: - | I16: - | J16: - | K16: - | L16: - | M16: - | N16: - | O16: - | P16: - | Q16: - | R16: - | S16: - | T16: - | U16: 223697 | V16: 229855.18
A17: Total | B17: - | C17: - | D17: =SUM(D5:D16) -> 0 | E17: 0 | F17: 0 | G17: 0 | H17: 0 | I17: 0 | J17: 0 | K17: =SUM(K5:K16) -> 0 | L17: 0 | M17: 0 | N17: 0 | O17: 0 | P17: 0 | Q17: 0 | R17: 0 | S17: 0 | T17: 0 | U17: 1812854 | V17: 2777720.81
A18: Moorhead Local Use Tax (0.5%)
A19: Month | B19: 2004 | C19: 2005 | D19: 2006 | E19: 2007 | F19: 2008 | G19: 2009 | H19: 2010 | I19: 2011 | J19: 2012 | K19: 2013 | L19: 2014 | M19: 2015 | N19: 2016 | O19: 2017 | P19: 2018 | Q19: 2019 | R19: 2020 | S19: 2021 | T19: 2022 | U19: 2023 | V19: 2024
A20: January | B20: - | C20: - | D20: - | E20: - | F20: - | G20: - | H20: - | I20: - | J20: - | K20: - | L20: - | M20: - | N20: - | O20: - | P20: - | Q20: - | R20: - | S20: - | T20: - | V20: 11846
A21: February | B21: - | C21: - | D21: - | E21: - | F21: - | G21: - | H21: - | I21: - | J21: - | K21: - | L21: - | M21: - | N21: - | O21: - | P21: - | Q21: - | R21: - | S21: - | T21: - | V21: 6081
A22: March | B22: - | C22: - | D22: - | E22: - | F22: - | G22: - | H22: - | I22: - | J22: - | K22: - | L22: - | M22: - | N22: - | O22: - | P22: - | Q22: - | R22: - | S22: - | T22: - | V22: 5927
A23: April | B23: - | C23: - | D23: - | E23: - | F23: - | G23: - | H23: - | I23: - | J23: - | K23: - | L23: - | M23: - | N23: - | O23: - | P23: - | Q23: - | R23: - | S23: - | T23: - | U23: 0 | V23: 8349
A24: May | B24: - | C24: - | D24: - | E24: - | F24: - | G24: - | H24: - | I24: - | J24: - | K24: - | L24: - | M24: - | N24: - | O24: - | P24: - | Q24: - | R24: - | S24: - | T24: - | U24: 3965 | V24: 8095
A25: June | B25: - | C25: - | D25: - | E25: - | F25: - | G25: - | H25: - | I25: - | J25: - | K25: - | L25: - | M25: - | N25: - | O25: - | P25: - | Q25: - | R25: - | S25: - | T25: - | U25: 4760 | V25: 9212
A26: July | B26: - | C26: - | D26: - | E26: - | F26: - | G26: - | H26: - | I26: - | J26: - | K26: - | L26: - | M26: - | N26: - | O26: - | P26: - | Q26: - | R26: - | S26: - | T26: - | U26: 12674 | V26: 10094
A27: August | B27: - | C27: - | D27: - | E27: - | F27: - | G27: - | H27: - | I27: - | J27: - | K27: - | L27: - | M27: - | N27: - | O27: - | P27: - | Q27: - | R27: - | S27: - | T27: - | U27: 10342 | V27: 9159
A28: September | B28: - | C28: - | D28: - | E28: - | F28: - | G28: - | H28: - | I28: - | J28: - | K28: - | L28: - | M28: - | N28: - | O28: - | P28: - | Q28: - | R28: - | S28: - | T28: - | U28: 10867 | V28: 8672.02
A29: October | B29: - | C29: - | D29: - | E29: - | F29: - | G29: - | H29: - | I29: - | J29: - | K29: - | L29: - | M29: - | N29: - | O29: - | P29: - | Q29: - | R29: - | S29: - | T29: - | U29: 10223 | V29: 6713.03
A30: November | B30: - | C30: - | D30: - | E30: - | F30: - | G30: - | H30: - | I30: - | J30: - | K30: - | L30: - | M30: - | N30: - | O30: - | P30: - | Q30: - | R30: - | S30: - | T30: - | U30: 8919 | V30: 6908.24
A31: December | B31: - | C31: - | D31: - | E31: - | F31: - | G31: - | H31: - | I31: - | J31: - | K31: - | L31: - | M31: - | N31: - | O31: - | P31: - | Q31: - | R31: - | S31: - | T31: - | U31: 8881 | V31: 5174.78
A32: Total | B32: - | C32: - | D32: =SUM(D20:D31) -> 0 | E32: 0 | F32: 0 | G32: 0 | H32: 0 | I32: 0 | J32: 0 | K32: =SUM(K20:K31) -> 0 | L32: 0 | M32: 0 | N32: 0 | O32: 0 | P32: 0 | Q32: 0 | R32: 0 | S32: 0 | T32: 0 | U32: 70631 | V32: 96231.07
A33: Moorhead Refunds
A34: Month | B34: 2004 | C34: 2005 | D34: 2006 | E34: 2007 | F34: 2008 | G34: 2009 | H34: 2010 | I34: 2011 | J34: 2012 | K34: 2013 | L34: 2014 | M34: 2015 | N34: 2016 | O34: 2017 | P34: 2018 | Q34: 2019 | R34: 2020 | S34: 2021 | T34: 2022 | U34: 2023 | V34: 2024
A35: January | B35: - | C35: - | D35: - | E35: - | F35: - | G35: - | H35: - | I35: - | J35: - | K35: - | L35: - | M35: - | N35: - | O35: - | P35: - | Q35: - | R35: - | S35: - | T35: - | U35: - | V35: -
A36: February | B36: - | C36: - | D36: - | E36: - | F36: - | G36: - | H36: - | I36: - | J36: - | K36: - | L36: - | M36: - | N36: - | O36: - | P36: - | Q36: - | R36: - | S36: - | T36: - | U36: - | V36: -
A37: March | B37: - | C37: - | D37: - | E37: - | F37: - | G37: - | H37: - | I37: - | J37: - | K37: - | L37: - | M37: - | N37: - | O37: - | P37: - | Q37: - | R37: - | S37: - | T37: - | U37: - | V37: -
A38: April | B38: - | C38: - | D38: - | E38: - | F38: - | G38: - | H38: - | I38: - | J38: - | K38: - | L38: - | M38: - | N38: - | O38: - | P38: - | Q38: - | R38: - | S38: - | T38: - | U38: - | V38: -
A39: May | B39: - | C39: - | D39: - | E39: - | F39: - | G39: - | H39: - | I39: - | J39: - | K39: - | L39: - | M39: - | N39: - | O39: - | P39: - | Q39: - | R39: - | S39: - | T39: - | U39: - | V39: -
A40: June | B40: - | C40: - | D40: - | E40: - | F40: - | G40: - | H40: - | I40: - | J40: - | K40: - | L40: - | M40: - | N40: - | O40: - | P40: - | Q40: - | R40: - | S40: - | T40: - | U40: - | V40: -
A41: July | B41: - | C41: - | D41: - | E41: - | F41: - | G41: - | H41: - | I41: - | J41: - | K41: - | L41: - | M41: - | N41: - | O41: - | P41: - | Q41: - | R41: - | S41: - | T41: - | U41: - | V41: -
A42: August | B42: - | C42: - | D42: - | E42: - | F42: - | G42: - | H42: - | I42: - | J42: - | K42: - | L42: - | M42: - | N42: - | O42: - | P42: - | Q42: - | R42: - | S42: - | T42: - | U42: - | V42: -
A43: September | B43: - | C43: - | D43: - | E43: - | F43: - | G43: - | H43: - | I43: - | J43: - | K43: - | L43: - | M43: - | N43: - | O43: - | P43: - | Q43: - | R43: - | S43: - | T43: - | U43: - | V43: -
A44: October | B44: - | C44: - | D44: - | E44: - | F44: - | G44: - | H44: - | I44: - | J44: - | K44: - | L44: - | M44: - | N44: - | O44: - | P44: - | Q44: - | R44: - | S44: - | T44: - | U44: - | V44: -302.61
A45: November | B45: - | C45: - | D45: - | E45: - | F45: - | G45: - | H45: - | I45: - | J45: - | K45: - | L45: - | M45: - | N45: - | O45: - | P45: - | Q45: - | R45: - | S45: - | T45: - | U45: - | V45: -
A46: December | B46: - | C46: - | D46: - | E46: - | F46: - | G46: - | H46: - | I46: - | J46: - | K46: - | L46: - | M46: - | N46: - | O46: - | P46: - | Q46: - | R46: - | S46: - | T46: - | U46: -1252 | V46: -
A47: Total | B47: - | C47: - | D47: - | E47: - | F47: - | G47: =SUM(G35:G46) -> 0 | H47: 0 | I47: 0 | J47: 0 | K47: 0 | L47: 0 | M47: 0 | N47: 0 | O47: 0 | P47: 0 | Q47: 0 | R47: 0 | S47: 0 | T47: 0 | U47: -1252 | V47: -302.61
A48: Hidden columns B-L do not contain any data for CY 2004-2015
A49: *Collections for November 2008 are included in December totals due to a new processing system.
A50: ='Local SUT'!A71 -> Source: Minnesota Department of Revenue, Tax Research Division, November 2025
A51: end of worksheet

Sheet Maple Grove (hidden)
A1: Maple Grove Monthly Detail for Minnesota Local Sales & Use Tax
A2: ='Local SUT'!A2 -> CY 2004-2024
A3: Maple Grove Local Sales Tax (0.5%)
A4: Month | B4: 2004 | C4: 2005 | D4: 2006 | E4: 2007 | F4: 2008 | G4: 2009 | H4: 2010 | I4: 2011 | J4: 2012 | K4: 2013 | L4: 2014 | M4: 2015 | N4: 2016 | O4: 2017 | P4: 2018 | Q4: 2019 | R4: 2020 | S4: 2021 | T4: 2022 | U4: 2023 | V4: 2024
A5: January | B5: - | C5: - | D5: - | E5: - | F5: - | G5: - | H5: - | I5: - | J5: - | K5: - | L5: - | M5: - | N5: - | O5: - | P5: - | Q5: - | R5: - | S5: - | T5: - | U5: - | V5: 825886
A6: February | B6: - | C6: - | D6: - | E6: - | F6: - | G6: - | H6: - | I6: - | J6: - | K6: - | L6: - | M6: - | N6: - | O6: - | P6: - | Q6: - | R6: - | S6: - | T6: - | U6: - | V6: 611489
A7: March | B7: - | C7: - | D7: - | E7: - | F7: - | G7: - | H7: - | I7: - | J7: - | K7: - | L7: - | M7: - | N7: - | O7: - | P7: - | Q7: - | R7: - | S7: - | T7: - | U7: - | V7: 585567
A8: April | B8: - | C8: - | D8: - | E8: - | F8: - | G8: - | H8: - | I8: - | J8: - | K8: - | L8: - | M8: - | N8: - | O8: - | P8: - | Q8: - | R8: - | S8: - | T8: - | U8: 104 | V8: 693430
A9: May | B9: - | C9: - | D9: - | E9: - | F9: - | G9: - | H9: - | I9: - | J9: - | K9: - | L9: - | M9: - | N9: - | O9: - | P9: - | Q9: - | R9: - | S9: - | T9: - | U9: 611447 | V9: 701583
A10: June | B10: - | C10: - | D10: - | E10: - | F10: - | G10: - | H10: - | I10: - | J10: - | K10: - | L10: - | M10: - | N10: - | O10: - | P10: - | Q10: - | R10: - | S10: - | T10: - | U10: 719080 | V10: 775971
A11: July | B11: - | C11: - | D11: - | E11: - | F11: - | G11: - | H11: - | I11: - | J11: - | K11: - | L11: - | M11: - | N11: - | O11: - | P11: - | Q11: - | R11: - | S11: - | T11: - | U11: 794645 | V11: 802747
A12: August | B12: - | C12: - | D12: - | E12: - | F12: - | G12: - | H12: - | I12: - | J12: - | K12: - | L12: - | M12: - | N12: - | O12: - | P12: - | Q12: - | R12: - | S12: - | T12: - | U12: 752007 | V12: 953226.1
A13: September | B13: - | C13: - | D13: - | E13: - | F13: - | G13: - | H13: - | I13: - | J13: - | K13: - | L13: - | M13: - | N13: - | O13: - | P13: - | Q13: - | R13: - | S13: - | T13: - | U13: 814528 | V13: 824295.47
A14: October | B14: - | C14: - | D14: - | E14: - | F14: - | G14: - | H14: - | I14: - | J14: - | K14: - | L14: - | M14: - | N14: - | O14: - | P14: - | Q14: - | R14: - | S14: - | T14: - | U14: 735325 | V14: 800156.08
A15: November | B15: - | C15: - | D15: - | E15: - | F15: - | G15: - | H15: - | I15: - | J15: - | K15: - | L15: - | M15: - | N15: - | O15: - | P15: - | Q15: - | R15: - | S15: - | T15: - | U15: 755170 | V15: 818267.25
A16: December | B16: - | C16: - | D16: - | E16: - | F16: - | G16: - | H16: - | I16: - | J16: - | K16: - | L16: - | M16: - | N16: - | O16: - | P16: - | Q16: - | R16: - | S16: - | T16: - | U16: 734916 | V16: 781314.87
A17: Total | B17: - | C17: - | D17: =SUM(D5:D16) -> 0 | E17: 0 | F17: 0 | G17: 0 | H17: 0 | I17: 0 | J17: 0 | K17: =SUM(K5:K16) -> 0 | L17: 0 | M17: 0 | N17: 0 | O17: 0 | P17: 0 | Q17: 0 | R17: 0 | S17: 0 | T17: 0 | U17: 5917222 | V17: 9173932.77
A18: Maple Grove Local Use Tax (0.5%)
A19: Month | B19: 2004 | C19: 2005 | D19: 2006 | E19: 2007 | F19: 2008 | G19: 2009 | H19: 2010 | I19: 2011 | J19: 2012 | K19: 2013 | L19: 2014 | M19: 2015 | N19: 2016 | O19: 2017 | P19: 2018 | Q19: 2019 | R19: 2020 | S19: 2021 | T19: 2022 | U19: 2023 | V19: 2024
A20: January | B20: - | C20: - | D20: - | E20: - | F20: - | G20: - | H20: - | I20: - | J20: - | K20: - | L20: - | M20: - | N20: - | O20: - | P20: - | Q20: - | R20: - | S20: - | T20: - | U20: - | V20: 77472
A21: February | B21: - | C21: - | D21: - | E21: - | F21: - | G21: - | H21: - | I21: - | J21: - | K21: - | L21: - | M21: - | N21: - | O21: - | P21: - | Q21: - | R21: - | S21: - | T21: - | U21: - | V21: 42389
A22: March | B22: - | C22: - | D22: - | E22: - | F22: - | G22: - | H22: - | I22: - | J22: - | K22: - | L22: - | M22: - | N22: - | O22: - | P22: - | Q22: - | R22: - | S22: - | T22: - | U22: - | V22: 14971
A23: April | B23: - | C23: - | D23: - | E23: - | F23: - | G23: - | H23: - | I23: - | J23: - | K23: - | L23: - | M23: - | N23: - | O23: - | P23: - | Q23: - | R23: - | S23: - | T23: - | U23: 82 | V23: 30990
A24: May | B24: - | C24: - | D24: - | E24: - | F24: - | G24: - | H24: - | I24: - | J24: - | K24: - | L24: - | M24: - | N24: - | O24: - | P24: - | Q24: - | R24: - | S24: - | T24: - | U24: 24137 | V24: 31138
A25: June | B25: - | C25: - | D25: - | E25: - | F25: - | G25: - | H25: - | I25: - | J25: - | K25: - | L25: - | M25: - | N25: - | O25: - | P25: - | Q25: - | R25: - | S25: - | T25: - | U25: 50718 | V25: 44436
A26: July | B26: - | C26: - | D26: - | E26: - | F26: - | G26: - | H26: - | I26: - | J26: - | K26: - | L26: - | M26: - | N26: - | O26: - | P26: - | Q26: - | R26: - | S26: - | T26: - | U26: 69194 | V26: 42230
A27: August | B27: - | C27: - | D27: - | E27: - | F27: - | G27: - | H27: - | I27: - | J27: - | K27: - | L27: - | M27: - | N27: - | O27: - | P27: - | Q27: - | R27: - | S27: - | T27: - | U27: 44513 | V27: 48886.2
A28: September | B28: - | C28: - | D28: - | E28: - | F28: - | G28: - | H28: - | I28: - | J28: - | K28: - | L28: - | M28: - | N28: - | O28: - | P28: - | Q28: - | R28: - | S28: - | T28: - | U28: 40952 | V28: 42751.99
A29: October | B29: - | C29: - | D29: - | E29: - | F29: - | G29: - | H29: - | I29: - | J29: - | K29: - | L29: - | M29: - | N29: - | O29: - | P29: - | Q29: - | R29: - | S29: - | T29: - | U29: 50408 | V29: 38569.74
A30: November | B30: - | C30: - | D30: - | E30: - | F30: - | G30: - | H30: - | I30: - | J30: - | K30: - | L30: - | M30: - | N30: - | O30: - | P30: - | Q30: - | R30: - | S30: - | T30: - | U30: 35146 | V30: 47641
A31: December | B31: - | C31: - | D31: - | E31: - | F31: - | G31: - | H31: - | I31: - | J31: - | K31: - | L31: - | M31: - | N31: - | O31: - | P31: - | Q31: - | R31: - | S31: - | T31: - | U31: 41503 | V31: 47958.96
A32: Total | B32: - | C32: - | D32: =SUM(D20:D31) -> 0 | E32: 0 | F32: 0 | G32: 0 | H32: 0 | I32: 0 | J32: 0 | K32: =SUM(K20:K31) -> 0 | L32: 0 | M32: 0 | N32: 0 | O32: 0 | P32: 0 | Q32: 0 | R32: 0 | S32: 0 | T32: 0 | U32: 356653 | V32: 509433.89
A33: Maple Grove Refunds
A34: Month | B34: 2004 | C34: 2005 | D34: 2006 | E34: 2007 | F34: 2008 | G34: 2009 | H34: 2010 | I34: 2011 | J34: 2012 | K34: 2013 | L34: 2014 | M34: 2015 | N34: 2016 | O34: 2017 | P34: 2018 | Q34: 2019 | R34: 2020 | S34: 2021 | T34: 2022 | U34: 2023 | V34: 2024
A35: January | B35: - | C35: - | D35: - | E35: - | F35: - | G35: - | H35: - | I35: - | J35: - | K35: - | L35: - | M35: - | N35: - | O35: - | P35: - | Q35: - | R35: - | S35: - | T35: - | U35: - | V35: -89
A36: February | B36: - | C36: - | D36: - | E36: - | F36: - | G36: - | H36: - | I36: - | J36: - | K36: - | L36: - | M36: - | N36: - | O36: - | P36: - | Q36: - | R36: - | S36: - | T36: - | U36: - | V36: -
A37: March | B37: - | C37: - | D37: - | E37: - | F37: - | G37: - | H37: - | I37: - | J37: - | K37: - | L37: - | M37: - | N37: - | O37: - | P37: - | Q37: - | R37: - | S37: - | T37: - | U37: - | V37: -1
A38: April | B38: - | C38: - | D38: - | E38: - | F38: - | G38: - | H38: - | I38: - | J38: - | K38: - | L38: - | M38: - | N38: - | O38: - | P38: - | Q38: - | R38: - | S38: - | T38: - | U38: - | V38: -287
A39: May | B39: - | C39: - | D39: - | E39: - | F39: - | G39: - | H39: - | I39: - | J39: - | K39: - | L39: - | M39: - | N39: - | O39: - | P39: - | Q39: - | R39: - | S39: - | T39: - | U39: - | V39: -
A40: June | B40: - | C40: - | D40: - | E40: - | F40: - | G40: - | H40: - | I40: - | J40: - | K40: - | L40: - | M40: - | N40: - | O40: - | P40: - | Q40: - | R40: - | S40: - | T40: - | U40: - | V40: -44
A41: July | B41: - | C41: - | D41: - | E41: - | F41: - | G41: - | H41: - | I41: - | J41: - | K41: - | L41: - | M41: - | N41: - | O41: - | P41: - | Q41: - | R41: - | S41: - | T41: - | U41: - | V41: -3025
A42: August | B42: - | C42: - | D42: - | E42: - | F42: - | G42: - | H42: - | I42: - | J42: - | K42: - | L42: - | M42: - | N42: - | O42: - | P42: - | Q42: - | R42: - | S42: - | T42: - | U42: - | V42: -3.08
A43: September | B43: - | C43: - | D43: - | E43: - | F43: - | G43: - | H43: - | I43: - | J43: - | K43: - | L43: - | M43: - | N43: - | O43: - | P43: - | Q43: - | R43: - | S43: - | T43: - | U43: - | V43: -570.31
A44: October | B44: - | C44: - | D44: - | E44: - | F44: - | G44: - | H44: - | I44: - | J44: - | K44: - | L44: - | M44: - | N44: - | O44: - | P44: - | Q44: - | R44: - | S44: - | T44: - | U44: - | V44: -18.48
A45: November | B45: - | C45: - | D45: - | E45: - | F45: - | G45: - | H45: - | I45: - | J45: - | K45: - | L45: - | M45: - | N45: - | O45: - | P45: - | Q45: - | R45: - | S45: - | T45: - | U45: - | V45: -143.46
A46: December | B46: - | C46: - | D46: - | E46: - | F46: - | G46: - | H46: - | I46: - | J46: - | K46: - | L46: - | M46: - | N46: - | O46: - | P46: - | Q46: - | R46: - | S46: - | T46: - | U46: - | V46: -
A47: Total | B47: - | C47: - | D47: - | E47: - | F47: - | G47: =SUM(G35:G46) -> 0 | H47: 0 | I47: 0 | J47: 0 | K47: 0 | L47: 0 | M47: 0 | N47: 0 | O47: 0 | P47: 0 | Q47: 0 | R47: 0 | S47: 0 | T47: 0 | U47: 0 | V47: -4181.33
A48: Hidden columns B-L do not contain any data for CY 2004-2015
A49: *Collections for November 2008 are included in December totals due to a new processing system.
A50: ='Local SUT'!A71 -> Source: Minnesota Department of Revenue, Tax Research Division, November 2025
A51: end of worksheet

Sheet Litchfield (hidden)
A1: Litchfield Monthly Detail for Minnesota Local Sales & Use Tax
A2: ='Local SUT'!A2 -> CY 2004-2024
A3: Litchfield Local Sales Tax (0.5%)
A4: Month | B4: 2004 | C4: 2005 | D4: 2006 | E4: 2007 | F4: 2008 | G4: 2009 | H4: 2010 | I4: 2011 | J4: 2012 | K4: 2013 | L4: 2014 | M4: 2015 | N4: 2016 | O4: 2017 | P4: 2018 | Q4: 2019 | R4: 2020 | S4: 2021 | T4: 2022 | U4: 2023 | V4: 2024
A5: January | B5: - | C5: - | D5: - | E5: - | F5: - | G5: - | H5: - | I5: - | J5: - | K5: - | L5: - | M5: - | N5: - | O5: - | P5: - | Q5: - | R5: - | S5: - | T5: - | U5: - | V5: 57201
A6: February | B6: - | C6: - | D6: - | E6: - | F6: - | G6: - | H6: - | I6: - | J6: - | K6: - | L6: - | M6: - | N6: - | O6: - | P6: - | Q6: - | R6: - | S6: - | T6: - | U6: - | V6: 47409
A7: March | B7: - | C7: - | D7: - | E7: - | F7: - | G7: - | H7: - | I7: - | J7: - | K7: - | L7: - | M7: - | N7: - | O7: - | P7: - | Q7: - | R7: - | S7: - | T7: - | U7: - | V7: 44899
A8: April | B8: - | C8: - | D8: - | E8: - | F8: - | G8: - | H8: - | I8: - | J8: - | K8: - | L8: - | M8: - | N8: - | O8: - | P8: - | Q8: - | R8: - | S8: - | T8: - | U8: - | V8: 49140
A9: May | B9: - | C9: - | D9: - | E9: - | F9: - | G9: - | H9: - | I9: - | J9: - | K9: - | L9: - | M9: - | N9: - | O9: - | P9: - | Q9: - | R9: - | S9: - | T9: - | U9: - | V9: 51065
A10: June | B10: - | C10: - | D10: - | E10: - | F10: - | G10: - | H10: - | I10: - | J10: - | K10: - | L10: - | M10: - | N10: - | O10: - | P10: - | Q10: - | R10: - | S10: - | T10: - | U10: - | V10: 60788
A11: July | B11: - | C11: - | D11: - | E11: - | F11: - | G11: - | H11: - | I11: - | J11: - | K11: - | L11: - | M11: - | N11: - | O11: - | P11: - | Q11: - | R11: - | S11: - | T11: - | U11: 0 | V11: 65986
A12: August | B12: - | C12: - | D12: - | E12: - | F12: - | G12: - | H12: - | I12: - | J12: - | K12: - | L12: - | M12: - | N12: - | O12: - | P12: - | Q12: - | R12: - | S12: - | T12: - | U12: 47616 | V12: 58598.44
A13: September | B13: - | C13: - | D13: - | E13: - | F13: - | G13: - | H13: - | I13: - | J13: - | K13: - | L13: - | M13: - | N13: - | O13: - | P13: - | Q13: - | R13: - | S13: - | T13: - | U13: 52038 | V13: 55539.64
A14: October | B14: - | C14: - | D14: - | E14: - | F14: - | G14: - | H14: - | I14: - | J14: - | K14: - | L14: - | M14: - | N14: - | O14: - | P14: - | Q14: - | R14: - | S14: - | T14: - | U14: 52019 | V14: 55335.12
A15: November | B15: - | C15: - | D15: - | E15: - | F15: - | G15: - | H15: - | I15: - | J15: - | K15: - | L15: - | M15: - | N15: - | O15: - | P15: - | Q15: - | R15: - | S15: - | T15: - | U15: 49858 | V15: 55727.83
A16: December | B16: - | C16: - | D16: - | E16: - | F16: - | G16: - | H16: - | I16: - | J16: - | K16: - | L16: - | M16: - | N16: - | O16: - | P16: - | Q16: - | R16: - | S16: - | T16: - | U16: 51961 | V16: 58351.25
A17: Total | B17: - | C17: - | D17: =SUM(D5:D16) -> 0 | E17: 0 | F17: 0 | G17: 0 | H17: 0 | I17: 0 | J17: 0 | K17: =SUM(K5:K16) -> 0 | L17: 0 | M17: 0 | N17: 0 | O17: 0 | P17: 0 | Q17: 0 | R17: 0 | S17: 0 | T17: 0 | U17: 253492 | V17: 660040.28
A18: Litchfield Local Use Tax (0.5%)
A19: Month | B19: 2004 | C19: 2005 | D19: 2006 | E19: 2007 | F19: 2008 | G19: 2009 | H19: 2010 | I19: 2011 | J19: 2012 | K19: 2013 | L19: 2014 | M19: 2015 | N19: 2016 | O19: 2017 | P19: 2018 | Q19: 2019 | R19: 2020 | S19: 2021 | T19: 2022 | U19: 2023 | V19: 2024
A20: January | B20: - | C20: - | D20: - | E20: - | F20: - | G20: - | H20: - | I20: - | J20: - | K20: - | L20: - | M20: - | N20: - | O20: - | P20: - | Q20: - | R20: - | S20: - | T20: - | U20: - | V20: 2756
A21: February | B21: - | C21: - | D21: - | E21: - | F21: - | G21: - | H21: - | I21: - | J21: - | K21: - | L21: - | M21: - | N21: - | O21: - | P21: - | Q21: - | R21: - | S21: - | T21: - | U21: - | V21: 1450
A22: March | B22: - | C22: - | D22: - | E22: - | F22: - | G22: - | H22: - | I22: - | J22: - | K22: - | L22: - | M22: - | N22: - | O22: - | P22: - | Q22: - | R22: - | S22: - | T22: - | U22: - | V22: 1856
A23: April | B23: - | C23: - | D23: - | E23: - | F23: - | G23: - | H23: - | I23: - | J23: - | K23: - | L23: - | M23: - | N23: - | O23: - | P23: - | Q23: - | R23: - | S23: - | T23: - | U23: - | V23: 1619
A24: May | B24: - | C24: - | D24: - | E24: - | F24: - | G24: - | H24: - | I24: - | J24: - | K24: - | L24: - | M24: - | N24: - | O24: - | P24: - | Q24: - | R24: - | S24: - | T24: - | U24: - | V24: 1191
A25: June | B25: - | C25: - | D25: - | E25: - | F25: - | G25: - | H25: - | I25: - | J25: - | K25: - | L25: - | M25: - | N25: - | O25: - | P25: - | Q25: - | R25: - | S25: - | T25: - | U25: - | V25: 3186
A26: July | B26: - | C26: - | D26: - | E26: - | F26: - | G26: - | H26: - | I26: - | J26: - | K26: - | L26: - | M26: - | N26: - | O26: - | P26: - | Q26: - | R26: - | S26: - | T26: - | U26: 0 | V26: 2465
A27: August | B27: - | C27: - | D27: - | E27: - | F27: - | G27: - | H27: - | I27: - | J27: - | K27: - | L27: - | M27: - | N27: - | O27: - | P27: - | Q27: - | R27: - | S27: - | T27: - | U27: 1306 | V27: 1383
A28: September | B28: - | C28: - | D28: - | E28: - | F28: - | G28: - | H28: - | I28: - | J28: - | K28: - | L28: - | M28: - | N28: - | O28: - | P28: - | Q28: - | R28: - | S28: - | T28: - | U28: 1880 | V28: 1910
A29: October | B29: - | C29: - | D29: - | E29: - | F29: - | G29: - | H29: - | I29: - | J29: - | K29: - | L29: - | M29: - | N29: - | O29: - | P29: - | Q29: - | R29: - | S29: - | T29: - | U29: 1686 | V29: 4215
A30: November | B30: - | C30: - | D30: - | E30: - | F30: - | G30: - | H30: - | I30: - | J30: - | K30: - | L30: - | M30: - | N30: - | O30: - | P30: - | Q30: - | R30: - | S30: - | T30: - | U30: 2319 | V30: 2232.03
A31: December | B31: - | C31: - | D31: - | E31: - | F31: - | G31: - | H31: - | I31: - | J31: - | K31: - | L31: - | M31: - | N31: - | O31: - | P31: - | Q31: - | R31: - | S31: - | T31: - | U31: 2352 | V31: 1965.72
A32: Total | B32: - | C32: - | D32: =SUM(D20:D31) -> 0 | E32: 0 | F32: 0 | G32: 0 | H32: 0 | I32: 0 | J32: 0 | K32: =SUM(K20:K31) -> 0 | L32: 0 | M32: 0 | N32: 0 | O32: 0 | P32: 0 | Q32: 0 | R32: 0 | S32: 0 | T32: 0 | U32: 9543 | V32: 26228.75
A33: Litchfield Refunds
A34: Month | B34: 2004 | C34: 2005 | D34: 2006 | E34: 2007 | F34: 2008 | G34: 2009 | H34: 2010 | I34: 2011 | J34: 2012 | K34: 2013 | L34: 2014 | M34: 2015 | N34: 2016 | O34: 2017 | P34: 2018 | Q34: 2019 | R34: 2020 | S34: 2021 | T34: 2022 | U34: 2023 | V34: 2024
A35: January | B35: - | C35: - | D35: - | E35: - | F35: - | G35: - | H35: - | I35: - | J35: - | K35: - | L35: - | M35: - | N35: - | O35: - | P35: - | Q35: - | R35: - | S35: - | T35: - | U35: - | V35: -
A36: February | B36: - | C36: - | D36: - | E36: - | F36: - | G36: - | H36: - | I36: - | J36: - | K36: - | L36: - | M36: - | N36: - | O36: - | P36: - | Q36: - | R36: - | S36: - | T36: - | U36: - | V36: -
A37: March | B37: - | C37: - | D37: - | E37: - | F37: - | G37: - | H37: - | I37: - | J37: - | K37: - | L37: - | M37: - | N37: - | O37: - | P37: - | Q37: - | R37: - | S37: - | T37: - | U37: - | V37: -
A38: April | B38: - | C38: - | D38: - | E38: - | F38: - | G38: - | H38: - | I38: - | J38: - | K38: - | L38: - | M38: - | N38: - | O38: - | P38: - | Q38: - | R38: - | S38: - | T38: - | U38: - | V38: -
A39: May | B39: - | C39: - | D39: - | E39: - | F39: - | G39: - | H39: - | I39: - | J39: - | K39: - | L39: - | M39: - | N39: - | O39: - | P39: - | Q39: - | R39: - | S39: - | T39: - | U39: - | V39: -
A40: June | B40: - | C40: - | D40: - | E40: - | F40: - | G40: - | H40: - | I40: - | J40: - | K40: - | L40: - | M40: - | N40: - | O40: - | P40: - | Q40: - | R40: - | S40: - | T40: - | U40: - | V40: -
A41: July | B41: - | C41: - | D41: - | E41: - | F41: - | G41: - | H41: - | I41: - | J41: - | K41: - | L41: - | M41: - | N41: - | O41: - | P41: - | Q41: - | R41: - | S41: - | T41: - | U41: - | V41: -
A42: August | B42: - | C42: - | D42: - | E42: - | F42: - | G42: - | H42: - | I42: - | J42: - | K42: - | L42: - | M42: - | N42: - | O42: - | P42: - | Q42: - | R42: - | S42: - | T42: - | U42: - | V42: -
A43: September | B43: - | C43: - | D43: - | E43: - | F43: - | G43: - | H43: - | I43: - | J43: - | K43: - | L43: - | M43: - | N43: - | O43: - | P43: - | Q43: - | R43: - | S43: - | T43: - | U43: - | V43: -
A44: October | B44: - | C44: - | D44: - | E44: - | F44: - | G44: - | H44: - | I44: - | J44: - | K44: - | L44: - | M44: - | N44: - | O44: - | P44: - | Q44: - | R44: - | S44: - | T44: - | U44: - | V44: -
A45: November | B45: - | C45: - | D45: - | E45: - | F45: - | G45: - | H45: - | I45: - | J45: - | K45: - | L45: - | M45: - | N45: - | O45: - | P45: - | Q45: - | R45: - | S45: - | T45: - | U45: - | V45: -
A46: December | B46: - | C46: - | D46: - | E46: - | F46: - | G46: - | H46: - | I46: - | J46: - | K46: - | L46: - | M46: - | N46: - | O46: - | P46: - | Q46: - | R46: - | S46: - | T46: - | U46: - | V46: -
A47: Total | B47: - | C47: - | D47: - | E47: - | F47: - | G47: =SUM(G35:G46) -> 0 | H47: 0 | I47: 0 | J47: 0 | K47: 0 | L47: 0 | M47: 0 | N47: 0 | O47: 0 | P47: 0 | Q47: 0 | R47: 0 | S47: 0 | T47: 0 | U47: 0 | V47: 0
A48: Hidden columns B-L do not contain any data for CY 2004-2015
A49: *Collections for November 2008 are included in December totals due to a new processing system.
A50: ='Local SUT'!A71 -> Source: Minnesota Department of Revenue, Tax Research Division, November 2025
A51: end of worksheet

Sheet Grand Rapids (hidden)
A1: Grand Rapids Monthly Detail for Minnesota Local Sales & Use Tax
A2: ='Local SUT'!A2 -> CY 2004-2024
A3: Grand Rapids Local Sales Tax (0.5%)
A4: Month | B4: 2004 | C4: 2005 | D4: 2006 | E4: 2007 | F4: 2008 | G4: 2009 | H4: 2010 | I4: 2011 | J4: 2012 | K4: 2013 | L4: 2014 | M4: 2015 | N4: 2016 | O4: 2017 | P4: 2018 | Q4: 2019 | R4: 2020 | S4: 2021 | T4: 2022 | U4: 2023 | V4: 2024
A5: January | B5: - | C5: - | D5: - | E5: - | F5: - | G5: - | H5: - | I5: - | J5: - | K5: - | L5: - | M5: - | N5: - | O5: - | P5: - | Q5: - | R5: - | S5: - | T5: - | V5: 172728
A6: February | B6: - | C6: - | D6: - | E6: - | F6: - | G6: - | H6: - | I6: - | J6: - | K6: - | L6: - | M6: - | N6: - | O6: - | P6: - | Q6: - | R6: - | S6: - | T6: - | V6: 136662
A7: March | B7: - | C7: - | D7: - | E7: - | F7: - | G7: - | H7: - | I7: - | J7: - | K7: - | L7: - | M7: - | N7: - | O7: - | P7: - | Q7: - | R7: - | S7: - | T7: - | V7: 128071
A8: April | B8: - | C8: - | D8: - | E8: - | F8: - | G8: - | H8: - | I8: - | J8: - | K8: - | L8: - | M8: - | N8: - | O8: - | P8: - | Q8: - | R8: - | S8: - | T8: - | U8: 11 | V8: 149523
A9: May | B9: - | C9: - | D9: - | E9: - | F9: - | G9: - | H9: - | I9: - | J9: - | K9: - | L9: - | M9: - | N9: - | O9: - | P9: - | Q9: - | R9: - | S9: - | T9: - | U9: 131207 | V9: 162967
A10: June | B10: - | C10: - | D10: - | E10: - | F10: - | G10: - | H10: - | I10: - | J10: - | K10: - | L10: - | M10: - | N10: - | O10: - | P10: - | Q10: - | R10: - | S10: - | T10: - | U10: 183472 | V10: 201754
A11: July | B11: - | C11: - | D11: - | E11: - | F11: - | G11: - | H11: - | I11: - | J11: - | K11: - | L11: - | M11: - | N11: - | O11: - | P11: - | Q11: - | R11: - | S11: - | T11: - | U11: 193683 | V11: 192897
A12: August | B12: - | C12: - | D12: - | E12: - | F12: - | G12: - | H12: - | I12: - | J12: - | K12: - | L12: - | M12: - | N12: - | O12: - | P12: - | Q12: - | R12: - | S12: - | T12: - | U12: 185208 | V12: 203983.81
A13: September | B13: - | C13: - | D13: - | E13: - | F13: - | G13: - | H13: - | I13: - | J13: - | K13: - | L13: - | M13: - | N13: - | O13: - | P13: - | Q13: - | R13: - | S13: - | T13: - | U13: 176101 | V13: 195757.19
A14: October | B14: - | C14: - | D14: - | E14: - | F14: - | G14: - | H14: - | I14: - | J14: - | K14: - | L14: - | M14: - | N14: - | O14: - | P14: - | Q14: - | R14: - | S14: - | T14: - | U14: 173576 | V14: 186187.11
A15: November | B15: - | C15: - | D15: - | E15: - | F15: - | G15: - | H15: - | I15: - | J15: - | K15: - | L15: - | M15: - | N15: - | O15: - | P15: - | Q15: - | R15: - | S15: - | T15: - | U15: 168123 | V15: 177571.59
A16: December | B16: - | C16: - | D16: - | E16: - | F16: - | G16: - | H16: - | I16: - | J16: - | K16: - | L16: - | M16: - | N16: - | O16: - | P16: - | Q16: - | R16: - | S16: - | T16: - | U16: 155024 | V16: 155173.38
A17: Total | B17: - | C17: - | D17: =SUM(D5:D16) -> 0 | E17: 0 | F17: 0 | G17: 0 | H17: 0 | I17: 0 | J17: 0 | K17: =SUM(K5:K16) -> 0 | L17: 0 | M17: 0 | N17: 0 | O17: 0 | P17: 0 | Q17: 0 | R17: 0 | S17: 0 | T17: 0 | U17: 1366405 | V17: 2063275.08
A18: Grand Rapids Local Use Tax (0.5%)
A19: Month | B19: 2004 | C19: 2005 | D19: 2006 | E19: 2007 | F19: 2008 | G19: 2009 | H19: 2010 | I19: 2011 | J19: 2012 | K19: 2013 | L19: 2014 | M19: 2015 | N19: 2016 | O19: 2017 | P19: 2018 | Q19: 2019 | R19: 2020 | S19: 2021 | T19: 2022 | U19: 2023 | V19: 2024
A20: January | B20: - | C20: - | D20: - | E20: - | F20: - | G20: - | H20: - | I20: - | J20: - | K20: - | L20: - | M20: - | N20: - | O20: - | P20: - | Q20: - | R20: - | S20: - | T20: - | V20: 6655
A21: February | B21: - | C21: - | D21: - | E21: - | F21: - | G21: - | H21: - | I21: - | J21: - | K21: - | L21: - | M21: - | N21: - | O21: - | P21: - | Q21: - | R21: - | S21: - | T21: - | V21: 6647
A22: March | B22: - | C22: - | D22: - | E22: - | F22: - | G22: - | H22: - | I22: - | J22: - | K22: - | L22: - | M22: - | N22: - | O22: - | P22: - | Q22: - | R22: - | S22: - | T22: - | V22: 7190
A23: April | B23: - | C23: - | D23: - | E23: - | F23: - | G23: - | H23: - | I23: - | J23: - | K23: - | L23: - | M23: - | N23: - | O23: - | P23: - | Q23: - | R23: - | S23: - | T23: - | U23: 0 | V23: 5927
A24: May | B24: - | C24: - | D24: - | E24: - | F24: - | G24: - | H24: - | I24: - | J24: - | K24: - | L24: - | M24: - | N24: - | O24: - | P24: - | Q24: - | R24: - | S24: - | T24: - | U24: 2887 | V24: 3398
A25: June | B25: - | C25: - | D25: - | E25: - | F25: - | G25: - | H25: - | I25: - | J25: - | K25: - | L25: - | M25: - | N25: - | O25: - | P25: - | Q25: - | R25: - | S25: - | T25: - | U25: 7234 | V25: 14142
A26: July | B26: - | C26: - | D26: - | E26: - | F26: - | G26: - | H26: - | I26: - | J26: - | K26: - | L26: - | M26: - | N26: - | O26: - | P26: - | Q26: - | R26: - | S26: - | T26: - | U26: 7734 | V26: 6796
A27: August | B27: - | C27: - | D27: - | E27: - | F27: - | G27: - | H27: - | I27: - | J27: - | K27: - | L27: - | M27: - | N27: - | O27: - | P27: - | Q27: - | R27: - | S27: - | T27: - | U27: 6237 | V27: 6789.12
A28: September | B28: - | C28: - | D28: - | E28: - | F28: - | G28: - | H28: - | I28: - | J28: - | K28: - | L28: - | M28: - | N28: - | O28: - | P28: - | Q28: - | R28: - | S28: - | T28: - | U28: 8523 | V28: 6747.36
A29: October | B29: - | C29: - | D29: - | E29: - | F29: - | G29: - | H29: - | I29: - | J29: - | K29: - | L29: - | M29: - | N29: - | O29: - | P29: - | Q29: - | R29: - | S29: - | T29: - | U29: 4314 | V29: 6716
A30: November | B30: - | C30: - | D30: - | E30: - | F30: - | G30: - | H30: - | I30: - | J30: - | K30: - | L30: - | M30: - | N30: - | O30: - | P30: - | Q30: - | R30: - | S30: - | T30: - | U30: 7709 | V30: 8779
A31: December | B31: - | C31: - | D31: - | E31: - | F31: - | G31: - | H31: - | I31: - | J31: - | K31: - | L31: - | M31: - | N31: - | O31: - | P31: - | Q31: - | R31: - | S31: - | T31: - | U31: 5268 | V31: 7331.14
A32: Total | B32: - | C32: - | D32: =SUM(D20:D31) -> 0 | E32: 0 | F32: 0 | G32: 0 | H32: 0 | I32: 0 | J32: 0 | K32: =SUM(K20:K31) -> 0 | L32: 0 | M32: 0 | N32: 0 | O32: 0 | P32: 0 | Q32: 0 | R32: 0 | S32: 0 | T32: 0 | U32: 49906 | V32: 87117.62
A33: Grand Rapids Refunds
A34: Month | B34: 2004 | C34: 2005 | D34: 2006 | E34: 2007 | F34: 2008 | G34: 2009 | H34: 2010 | I34: 2011 | J34: 2012 | K34: 2013 | L34: 2014 | M34: 2015 | N34: 2016 | O34: 2017 | P34: 2018 | Q34: 2019 | R34: 2020 | S34: 2021 | T34: 2022 | U34: 2023 | V34: 2024
A35: January | B35: - | C35: - | D35: - | E35: - | F35: - | G35: - | H35: - | I35: - | J35: - | K35: - | L35: - | M35: - | N35: - | O35: - | P35: - | Q35: - | R35: - | S35: - | T35: - | U35: - | V35: -28
A36: February | B36: - | C36: - | D36: - | E36: - | F36: - | G36: - | H36: - | I36: - | J36: - | K36: - | L36: - | M36: - | N36: - | O36: - | P36: - | Q36: - | R36: - | S36: - | T36: - | U36: - | V36: -30
A37: March | B37: - | C37: - | D37: - | E37: - | F37: - | G37: - | H37: - | I37: - | J37: - | K37: - | L37: - | M37: - | N37: - | O37: - | P37: - | Q37: - | R37: - | S37: - | T37: - | U37: - | V37: -
A38: April | B38: - | C38: - | D38: - | E38: - | F38: - | G38: - | H38: - | I38: - | J38: - | K38: - | L38: - | M38: - | N38: - | O38: - | P38: - | Q38: - | R38: - | S38: - | T38: - | U38: - | V38: -28
A39: May | B39: - | C39: - | D39: - | E39: - | F39: - | G39: - | H39: - | I39: - | J39: - | K39: - | L39: - | M39: - | N39: - | O39: - | P39: - | Q39: - | R39: - | S39: - | T39: - | U39: - | V39: -
A40: June | B40: - | C40: - | D40: - | E40: - | F40: - | G40: - | H40: - | I40: - | J40: - | K40: - | L40: - | M40: - | N40: - | O40: - | P40: - | Q40: - | R40: - | S40: - | T40: - | U40: - | V40: -
A41: July | B41: - | C41: - | D41: - | E41: - | F41: - | G41: - | H41: - | I41: - | J41: - | K41: - | L41: - | M41: - | N41: - | O41: - | P41: - | Q41: - | R41: - | S41: - | T41: - | U41: - | V41: -
A42: August | B42: - | C42: - | D42: - | E42: - | F42: - | G42: - | H42: - | I42: - | J42: - | K42: - | L42: - | M42: - | N42: - | O42: - | P42: - | Q42: - | R42: - | S42: - | T42: - | U42: - | V42: -
A43: September | B43: - | C43: - | D43: - | E43: - | F43: - | G43: - | H43: - | I43: - | J43: - | K43: - | L43: - | M43: - | N43: - | O43: - | P43: - | Q43: - | R43: - | S43: - | T43: - | U43: - | V43: -4.85
A44: October | B44: - | C44: - | D44: - | E44: - | F44: - | G44: - | H44: - | I44: - | J44: - | K44: - | L44: - | M44: - | N44: - | O44: - | P44: - | Q44: - | R44: - | S44: - | T44: - | U44: - | V44: -79.78
A45: November | B45: - | C45: - | D45: - | E45: - | F45: - | G45: - | H45: - | I45: - | J45: - | K45: - | L45: - | M45: - | N45: - | O45: - | P45: - | Q45: - | R45: - | S45: - | T45: - | U45: - | V45: -
A46: December | B46: - | C46: - | D46: - | E46: - | F46: - | G46: - | H46: - | I46: - | J46: - | K46: - | L46: - | M46: - | N46: - | O46: - | P46: - | Q46: - | R46: - | S46: - | T46: - | U46: -81 | V46: -
A47: Total | B47: - | C47: - | D47: - | E47: - | F47: - | G47: =SUM(G35:G46) -> 0 | H47: 0 | I47: 0 | J47: 0 | K47: 0 | L47: 0 | M47: 0 | N47: 0 | O47: 0 | P47: 0 | Q47: 0 | R47: 0 | S47: 0 | T47: 0 | U47: -81 | V47: -170.63
A48: Hidden columns B-L do not contain any data for CY 2004-2015
A49: *Collections for November 2008 are included in December totals due to a new processing system.
A50: ='Local SUT'!A71 -> Source: Minnesota Department of Revenue, Tax Research Division, November 2025
A51: end of worksheet

Sheet Albert Lea (hidden)
A1: Albert Lea Monthly Detail for Minnesota Local Sales & Use Tax
A2: ='Local SUT'!A2 -> CY 2004-2024
A3: Albert Lea Local Sales Tax (0.5%)
A4: Month | B4: 2004 | C4: 2005 | D4: 2006 | E4: 2007 | F4: 2008 | G4: 2009 | H4: 2010 | I4: 2011 | J4: 2012 | K4: 2013 | L4: 2014 | M4: 2015 | N4: 2016 | O4: 2017 | P4: 2018 | Q4: 2019 | R4: 2020 | S4: 2021 | T4: 2022 | U4: 2023 | V4: 2024
A5: January | B5: - | C5: - | D5: - | E5: =109211+83 -> 109294 | F5: 122464.81 | G5: 116687 | H5: 111436 | I5: 119333 | J5: 119752 | K5: 123958 | L5: 119374 | M5: 124069 | N5: 129085 | O5: 129546 | P5: 134557 | Q5: 137541 | R5: 128737 | S5: 140234 | T5: 162373 | U5: 167911 | V5: 163181
A6: February | B6: - | C6: - | D6: - | E6: 82364.11 | F6: 84692.19 | G6: 94176 | H6: 85199 | I6: 90391 | J6: 97970 | K6: 89684 | L6: 100708 | M6: 105133 | N6: 102189 | O6: 104153 | P6: 107084 | Q6: 105974 | R6: 107556 | S6: 120829 | T6: 137954 | U6: 144609 | V6: 136895
A7: March | B7: - | C7: - | D7: - | E7: 75678.84 | F7: =80835.41+53 -> 80888.41 | G7: 87233 | H7: 87419 | I7: 88695 | J7: 95332 | K7: 90587 | L7: 88841 | M7: 105689 | N7: 98100 | O7: 95994 | P7: 93914 | Q7: 98441 | R7: 111239 | S7: 107515 | T7: 134169 | U7: 138751 | V7: 137124
A8: April | B8: - | C8: - | D8: 35 | E8: 95239.33 | F8: 93499.59 | G8: 93490 | H8: 102574 | I8: 103632 | J8: 104735 | K8: 100498 | L8: 107344 | M8: 121554 | N8: 113981 | O8: 115655 | P8: 114790 | Q8: 122702 | R8: 116778 | S8: 142660 | T8: 163653 | U8: 159918 | V8: 164628
A9: May | B9: - | C9: - | D9: 62302 | E9: 87272.05 | F9: 93516.71 | G9: 94775 | H9: 95213 | I9: 103968 | J9: 97401 | K9: 107455 | L9: 104672 | M9: 113592 | N9: 111660 | O9: 112928 | P9: 105897 | Q9: 125534 | R9: 118583 | S9: 148133 | T9: 146786 | U9: 158452 | V9: 158878
A10: June | B10: - | C10: - | D10: 70776 | E10: 99889.52 | F10: 108420.2 | G10: 106400 | H10: 116349 | I10: 115476 | J10: 109792 | K10: 116295 | L10: 118807 | M10: 130615 | N10: 125175 | O10: 125382 | P10: 129633 | Q10: 142041 | R10: 142330 | S10: 151098 | T10: 176336 | U10: 176030 | V10: 180048
A11: July | B11: - | C11: - | D11: 73257 | E11: =94695.65-83 -> 94612.65 | F11: 102785.95 | G11: 101111 | H11: 118739 | I11: 110545 | J11: 107744 | K11: 117208 | L11: 116530 | M11: 119946 | N11: 119645 | O11: 119499 | P11: 120403 | Q11: 132645 | R11: 137875 | S11: 161107 | T11: 169382 | U11: 177472 | V11: 177285
A12: August | B12: - | C12: - | D12: 89590 | E12: 105786.65 | F12: 113287.37 | G12: 122518 | H12: 145809 | I12: 123318 | J12: 122704 | K12: 127558 | L12: 130113 | M12: 137809 | N12: 132996 | O12: 131831 | P12: 137453 | Q12: 148180 | R12: 147802 | S12: 156966 | T12: 168519 | U12: 171920 | V12: 184539.85
A13: September | B13: - | C13: - | D13: =82714+4896 -> 87610 | E13: 99001.39 | F13: =102355.85+24573 -> 126928.85 | G13: 98858 | H13: 114997 | I13: 121799 | J13: 110687 | K13: 111068 | L13: 116463 | M13: 120810 | N13: 123484 | O13: 123526 | P13: 130409 | Q13: 140018 | R13: 135375 | S13: 141851 | T13: 183995 | U13: 177511 | V13: 170350.43
A14: October | B14: - | C14: - | D14: 93752 | E14: 96225.9 | F14: =105012.87+292.36 -> 105305.23 | G14: 104010 | H14: 127556 | I14: 117503 | J14: 110105 | K14: 106244 | L14: 112884 | M14: 146849 | N14: 121775 | O14: 121878 | P14: 130046 | Q14: 129571 | R14: 138395 | S14: 147553 | T14: 170365 | U14: 171542 | V14: 160877.35
A15: November | B15: - | C15: - | D15: 86704.09 | E15: 92197.81 | F15: * | G15: 94945 | H15: 106127 | I15: 104475 | J15: 102624 | K15: 102450 | L15: 117998 | M15: 111761 | N15: 114939 | O15: 117642 | P15: 129224 | Q15: 132817 | R15: 135216 | S15: 147738 | T15: 160402 | U15: 159944 | V15: 171217.16
A16: December | B16: - | C16: - | D16: 83456.92 | E16: 93176.94 | F16: 192197 | G16: 88714 | H16: 103684 | I16: 115629 | J16: 97600 | K16: 104542 | L16: 123729 | M16: 89502 | N16: 112217 | O16: 106914 | P16: 124087 | Q16: 128617 | R16: 128931 | S16: 152803 | T16: 174602 | U16: 160646 | V16: 172355.4
A17: Total | B17: - | C17: - | D17: =SUM(D5:D16) -> 647483.01 | E17: 1130739.19 | F17: 1223986.31 | G17: 1202917 | H17: 1315102 | I17: 1314764 | J17: 1276446 | K17: =SUM(K5:K16) -> 1297547 | L17: 1357463 | M17: 1427329 | N17: 1405246 | O17: 1404948 | P17: 1457497 | Q17: =SUM(Q5:Q16) -> 1544081 | R17: =SUM(R5:R16) -> 1548817 | S17: 1718487 | T17: 1948536 | U17: =SUM(U5:U16) -> 1964706 | V17: 1977379.19
A18: Albert Lea Local Use Tax (0.5%)
A19: Month | B19: 2004 | C19: 2005 | D19: 2006 | E19: 2007 | F19: 2008 | G19: 2009 | H19: 2010 | I19: 2011 | J19: 2012 | K19: 2013 | L19: 2014 | M19: 2015 | N19: 2016 | O19: 2017 | P19: 2018 | Q19: 2019 | R19: 2020 | S19: 2021 | T19: 2022 | U19: 2023 | V19: 2024
A20: January | B20: - | C20: - | D20: - | E20: 7853 | F20: 12337 | G20: 7871 | H20: 19231 | I20: 3966 | J20: 8702 | K20: 10377 | L20: 9544 | M20: 7569 | N20: 7073 | O20: 9801 | P20: 8230 | Q20: 5743 | R20: 5172 | S20: 6343 | T20: 5573 | U20: 9610 | V20: 4887
A21: February | B21: - | C21: - | D21: - | E21: 11398.12 | F21: 3221 | G21: 9576 | H21: 4069 | I21: 5760 | J21: 3908 | K21: 4357 | L21: 7528 | M21: 8160 | N21: 3162 | O21: 3876 | P21: 8334 | Q21: 4172 | R21: 5485 | S21: 4616 | T21: 6413 | U21: 7858 | V21: 4876
A22: March | B22: - | C22: - | D22: - | E22: 1744 | F22: 3307.21 | G22: 1084 | H22: 2913 | I22: 6636 | J22: 17827 | K22: 3948 | L22: 4163 | M22: 5029 | N22: 1224 | O22: 3033 | P22: 6555 | Q22: 3101 | R22: 3808 | S22: 3667 | T22: 7418 | U22: 4837 | V22: 5761
A23: April | B23: - | C23: - | D23: 0 | E23: 3236 | F23: 11517.27 | G23: 16751 | H23: 10312 | I23: 7106 | J23: 5581 | K23: 4244 | L23: 7238 | M23: 9384 | N23: 6191 | O23: 5901 | P23: 5010 | Q23: 4852 | R23: 5434 | S23: 7519 | T23: 5770 | U23: 6300 | V23: 16730
A24: May | B24: - | C24: - | D24: 1422 | E24: 2012 | F24: 4300.84 | G24: 4786 | H24: 4708 | I24: 5397 | J24: 2680 | K24: 2750 | L24: 6411 | M24: 6151 | N24: 4465 | O24: 5812 | P24: 3301 | Q24: 6794 | R24: 5850 | S24: 6446 | T24: 7546 | U24: 5373 | V24: 6072
A25: June | B25: - | C25: - | D25: 2046 | E25: 3898.27 | F25: 5339.16 | G25: 13410 | H25: 3717 | I25: 17113 | J25: 4277 | K25: 4238 | L25: 4937 | M25: 8742 | N25: 7082 | O25: 4209 | P25: 3572 | Q25: 5861 | R25: 4284 | S25: 3515 | T25: 6165 | U25: 6989 | V25: 6357
A26: July | B26: - | C26: - | D26: 5057 | E26: 5200 | F26: 6744.99 | G26: 16503 | H26: 36458 | I26: 7055 | J26: 17059 | K26: 7558 | L26: 7946 | M26: 7157 | N26: 7614 | O26: 4429 | P26: 4598 | Q26: 5786 | R26: 5089 | S26: 7003 | T26: 7573 | U26: 9700 | V26: 5625
A27: August | B27: - | C27: - | D27: 2444 | E27: 3116.5 | F27: 2367.91 | G27: 5605 | H27: 3594 | I27: -9823 | J27: 5010 | K27: 3645 | L27: 5446 | M27: 5222 | N27: 6126 | O27: 4760 | P27: 7451 | Q27: 6580 | R27: 5807 | S27: 5482 | T27: 6065 | U27: 6987 | V27: 6672
A28: September | B28: - | C28: - | D28: 2817 | E28: 5297.79 | F28: 2973.27 | G28: 4483 | H28: 5256 | I28: 5200 | J28: 4640 | K28: 4198 | L28: 4961 | M28: 5000 | N28: 5443 | O28: 5308 | P28: 4061 | Q28: 4531 | R28: 4253 | S28: 7059 | T28: 7759 | U28: 4653 | V28: 4416.28
A29: October | B29: - | C29: - | D29: 4917 | E29: 10435.68 | F29: =11767.59+120.9 -> 11888.49 | G29: 11778 | H29: 5227 | I29: 4171 | J29: 5253 | K29: 8150 | L29: 6989 | M29: 5437 | N29: 7540 | O29: 8053 | P29: 4100 | Q29: 4997 | R29: 4444 | S29: 5585 | T29: 7692 | U29: 5858 | V29: 8513
A30: November | B30: - | C30: - | D30: 2399.19 | E30: 2934.39 | F30: * | G30: 5062 | H30: 3240 | I30: 3896 | J30: 6684 | K30: 6195 | L30: 7914 | M30: 5901 | N30: 5607 | O30: 4232 | P30: 8550 | Q30: 4354 | R30: 4757 | S30: 4726 | T30: 6671 | U30: 6463 | V30: 6225.96
A31: December | B31: - | C31: - | D31: 3929.07 | E31: 5777.59 | F31: 7304 | G31: 2571 | H31: 4054 | I31: 13944 | J31: 3889 | K31: 14520 | L31: 5268 | M31: 4740 | N31: 4285 | O31: 1632 | P31: 5198 | Q31: 4295 | R31: 3985 | S31: 5718 | T31: 5943 | U31: 5469 | V31: 4605.86
A32: Total | B32: - | C32: - | D32: =SUM(D20:D31) -> 25031.26 | E32: 62903.34 | F32: 71301.14 | G32: 99480 | H32: 102779 | I32: 70421 | J32: 85510 | K32: =SUM(K20:K31) -> 74180 | L32: 78345 | M32: 78492 | N32: 65812 | O32: 61046 | P32: 68960 | Q32: =SUM(Q20:Q31) -> 61066 | R32: =SUM(R20:R31) -> 58368 | S32: 67679 | T32: 80588 | U32: =SUM(U20:U31) -> 80097 | V32: 80741.1
A33: Albert Lea Refunds
A34: Month | B34: 2004 | C34: 2005 | D34: 2006 | E34: 2007 | F34: 2008 | G34: 2009 | H34: 2010 | I34: 2011 | J34: 2012 | K34: 2013 | L34: 2014 | M34: 2015 | N34: 2016 | O34: 2017 | P34: 2018 | Q34: 2019 | R34: 2020 | S34: 2021 | T34: 2022 | U34: 2023 | V34: 2024
A35: January | B35: - | C35: - | D35: - | E35: - | F35: - | G35: -368 | H35: 0 | I35: 0 | J35: -12639 | K35: -327 | L35: -10440 | M35: -7912 | N35: -3282 | O35: -3793 | P35: -304 | Q35: -877 | R35: -16 | S35: 0 | T35: -421 | U35: 0 | V35: -284
A36: February | B36: - | C36: - | D36: - | E36: - | F36: - | G36: -619 | H36: -1399 | I36: -94777 | J36: -28 | K36: -16419 | L36: -11415 | M36: -3122 | N36: 0 | O36: -1984 | P36: -1543 | Q36: 0 | R36: -1868 | S36: 0 | T36: 0 | U36: -137 | V36: 0
A37: March | B37: - | C37: - | D37: - | E37: - | F37: - | G37: -15858 | H37: -6709 | I37: -435 | J37: -15684 | K37: -2160 | L37: -2762 | M37: -7349 | N37: -34801 | O37: 0 | P37: -4833 | Q37: 0 | R37: -986 | S37: -8 | T37: 0 | U37: -506 | V37: 0
A38: April | B38: - | C38: - | D38: - | E38: - | F38: - | G38: -13465 | H38: -10718 | I38: -4454 | J38: -4508 | K38: 0 | L38: -1495 | M38: -1026 | N38: -1500 | O38: -319 | P38: -21437 | Q38: -1 | R38: 0 | S38: 0 | T38: -332 | U38: -320 | V38: 0
A39: May | B39: - | C39: - | D39: - | E39: - | F39: - | G39: -62 | H39: -23833 | I39: -1348 | J39: -22511 | K39: -316 | L39: -452 | M39: -36 | N39: -8881 | O39: 0 | P39: 0 | Q39: -2898 | R39: -41 | S39: 0 | T39: 0 | U39: -9 | V39: 0
A40: June | B40: - | C40: - | D40: - | E40: - | F40: - | G40: 0 | H40: 0 | I40: -770 | J40: 0 | K40: -18624 | L40: -17751 | M40: -36048 | N40: 6 | O40: -73 | P40: 0 | Q40: 0 | R40: -1448 | S40: 0 | T40: 0 | U40: -32 | V40: -720
A41: July | B41: - | C41: - | D41: - | E41: - | F41: - | G41: -1671 | H41: 0 | I41: -663 | J41: -1335 | K41: -1450 | L41: -67 | M41: -6 | N41: -211 | O41: 0 | P41: 0 | Q41: -921 | R41: 0 | S41: 0 | T41: -672 | U41: -6 | V41: -40
A42: August | B42: - | C42: - | D42: - | E42: - | F42: - | G42: -2846 | H42: 0 | I42: -1942 | J42: -3404 | K42: -4366 | L42: -20149 | M42: -548 | N42: -2952 | O42: -47 | P42: 0 | Q42: 0 | R42: -4551 | S42: 0 | T42: 0 | U42: -14 | V42: 0
A43: September | B43: - | C43: - | D43: - | E43: - | F43: - | G43: -1039 | H43: -256 | I43: -161 | J43: -4436 | K43: -3020 | L43: -127 | M43: -963 | N43: 0 | O43: -3367 | P43: -172 | Q43: -1620 | R43: -390 | S43: 0 | T43: -1 | U43: 0 | V43: -504.33
A44: October | B44: - | C44: - | D44: - | E44: - | F44: - | G44: -77 | H44: -2683 | I44: -4813 | J44: -399 | K44: -285 | L44: -691 | M44: -2182 | N44: -160 | O44: -62 | P44: -89 | Q44: -15 | R44: -75 | S44: 0 | T44: -641 | U44: 0 | V44: 0
A45: November | B45: - | C45: - | D45: - | E45: - | F45: - | G45: -3308 | H45: -22195 | I45: 0 | J45: -4636 | K45: -1 | L45: -510 | M45: -536 | N45: -3342 | O45: -45 | P45: -473 | Q45: -1853 | R45: 0 | S45: 0 | T45: 0 | U45: -6663 | V45: 0
A46: December | B46: - | C46: - | D46: - | E46: - | F46: - | G46: 0 | H46: -172 | I46: -2725 | J46: -12 | K46: -10914 | L46: -665 | M46: -509 | N46: 0 | O46: -1570 | P46: 0 | Q46: -986 | R46: -1305 | S46: -5 | T46: -62 | U46: 0 | V46: -31.28
A47: Total | B47: - | C47: - | D47: - | E47: - | F47: - | G47: =SUM(G35:G46) -> -39313 | H47: -67965 | I47: -112088 | J47: -69592 | K47: -57882 | L47: -66524 | M47: -60237 | N47: -55123 | O47: -11260 | P47: -28851 | Q47: =SUM(Q35:Q46) -> -9171 | R47: =SUM(R35:R46) -> -10680 | S47: -13 | T47: -2129 | U47: =SUM(U35:U46) -> -7687 | V47: -1579.61
A48: Hidden columns B-C do not contain any data for CY 2004-2005
A49: *Collections for November 2008 are included in December totals due to a new processing system.
A50: ='Local SUT'!A71 -> Source: Minnesota Department of Revenue, Tax Research Division, November 2025
A51: end of worksheet

Sheet Austin (hidden)
A1: Austin Monthly Detail for Minnesota Local Sales & Use Tax
A2: ='Local SUT'!A2 -> CY 2004-2024
A3: Austin Local Sales Tax (0.5%)
A4: Month | B4: 2004 | C4: 2005 | D4: 2006 | E4: 2007 | F4: 2008 | G4: 2009 | H4: 2010 | I4: 2011 | J4: 2012 | K4: 2013 | L4: 2014 | M4: 2015 | N4: 2016 | O4: 2017 | P4: 2018 | Q4: 2019 | R4: 2020 | S4: 2021 | T4: 2022 | U4: 2023 | V4: 2024
A5: January | B5: - | C5: - | D5: - | E5: - | F5: 117148 | G5: 121911 | H5: 138725 | I5: 139051 | J5: 148602 | K5: 145941 | L5: 154653 | M5: 156723 | N5: 149774 | O5: 143344 | P5: 129705 | Q5: 144602 | R5: 153574 | S5: 153227 | T5: 155804 | U5: 161527 | V5: 189085
A6: February | B6: - | C6: - | D6: - | E6: - | F6: 83053.2 | G6: 98273 | H6: 106946 | I6: 107843 | J6: 114331 | K6: 120125 | L6: 130131 | M6: 117091 | N6: 104026 | O6: 112024 | P6: 103946 | Q6: 108837 | R6: 114104 | S6: 124514 | T6: 136928 | U6: 141867 | V6: 152166
A7: March | B7: - | C7: - | D7: - | E7: - | F7: 82544.47 | G7: 84573 | H7: 104909 | I7: 115290 | J7: 106109 | K7: 114271 | L7: 120653 | M7: 115207 | N7: 106391 | O7: 104896 | P7: 99075 | Q7: 107489 | R7: 106357 | S7: 106667 | T7: 121574 | U7: 136396 | V7: 140440
A8: April | B8: - | C8: - | D8: - | E8: 0 | F8: 91146.43 | G8: 93916 | H8: 123003 | I8: 123552 | J8: 120869 | K8: 130266 | L8: 130164 | M8: 127055 | N8: 125230 | O8: 120114 | P8: 117834 | Q8: 126219 | R8: 120591 | S8: 139931 | T8: 144440 | U8: 158429 | V8: 155990
A9: May | B9: - | C9: - | D9: - | E9: 62677 | F9: 82803.91 | G9: 102243 | H9: 116762 | I9: 118560 | J9: 115648 | K9: 116117 | L9: 130934 | M9: 121675 | N9: 111461 | O9: 113592 | P9: 109776 | Q9: 135708 | R9: 113172 | S9: 141618 | T9: 145407 | U9: 163822 | V9: 151308
A10: June | B10: - | C10: - | D10: - | E10: 80268 | F10: 97177.64 | G10: 109831 | H10: 116362 | I10: 122316 | J10: 122156 | K10: 123442 | L10: 145275 | M10: 134607 | N10: 132202 | O10: 123072 | P10: 125049 | Q10: 135869 | R10: 133741 | S10: 135806 | T10: 146094 | U10: 162990 | V10: 169030
A11: July | B11: - | C11: - | D11: - | E11: 123009 | F11: 95673.53 | G11: 102973 | H11: 104763 | I11: 116365 | J11: 116467 | K11: 117674 | L11: 124262 | M11: 115016 | N11: 118327 | O11: -2993 | P11: 109875 | Q11: 120906 | R11: 112908 | S11: 143993 | T11: 154994 | U11: 170016 | V11: 167595
A12: August | B12: - | C12: - | D12: - | E12: 100332 | F12: 115409.36 | G12: 133874 | H12: 138827 | I12: 141502 | J12: 137340 | K12: 137804 | L12: 149919 | M12: 173394 | N12: 142060 | O12: -288829 | P12: 145196 | Q12: 153320 | R12: 152500 | S12: 166897 | T12: 155356 | U12: 165522 | V12: 171911.57
A13: September | B13: - | C13: - | D13: - | E13: 87300 | F13: 97246.31 | G13: 109637 | H13: 116421 | I13: 130122 | J13: 119907 | K13: 127355 | L13: 134266 | M13: 130131 | N13: 128178 | O13: 124749 | P13: 145956 | Q13: 134130 | R13: 120523 | S13: 145858 | T13: 154262 | U13: 164724 | V13: 162883.65
A14: October | B14: - | C14: - | D14: - | E14: 99586 | F14: 104669.13 | G14: 123714 | H14: 119361 | I14: 129536 | J14: 128079 | K14: 123850 | L14: 142994 | M14: 137355 | N14: 129659 | O14: 130160 | P14: 124296 | Q14: 135712 | R14: 126491 | S14: 148385 | T14: 158635 | U14: 190718 | V14: 161346.85
A15: November | B15: - | C15: - | D15: - | E15: 87498.49 | F15: * | G15: 109685 | H15: 109489 | I15: 124164 | J15: 118747 | K15: 128852 | L15: 168502 | M15: 129828 | N15: 125356 | O15: 113051 | P15: 122340 | Q15: 135657 | R15: 135098 | S15: 146011 | T15: 157211 | U15: 170446 | V15: 167894.6
A16: December | B16: - | C16: - | D16: - | E16: 85267.22 | F16: 191595 | G16: 112461 | H16: 115787 | I16: 133862 | J16: 126380 | K16: 133506 | L16: 234876 | M16: 125745 | N16: 122290 | O16: 107213 | P16: 120781 | Q16: 128417 | R16: 131366 | S16: 147266 | T16: 153684 | U16: 168929 | V16: 169613.57
A17: Total | B17: - | C17: - | D17: - | E17: =SUM(E5:E16) -> 725937.71 | F17: 1158466.98 | G17: 1303091 | H17: 1411355 | I17: 1502163 | J17: 1474635 | K17: 1519203 | L17: =SUM(L5:L16) -> 1766629 | M17: 1583827 | N17: 1494954 | O17: 900393 | P17: 1453829 | Q17: 1566866 | R17: =SUM(R5:R16) -> 1520425 | S17: 1700173 | T17: 1784389 | U17: =SUM(U5:U16) -> 1955386 | V17: 1959264.24
A18: Austin Local Use Tax (0.5%)
A19: Month | B19: 2004 | C19: 2005 | D19: 2006 | E19: 2007 | F19: 2008 | G19: 2009 | H19: 2010 | I19: 2011 | J19: 2012 | K19: 2013 | L19: 2014 | M19: 2015 | N19: 2016 | O19: 2017 | P19: 2018 | Q19: 2019 | R19: 2020 | S19: 2021 | T19: 2022 | U19: 2023 | V19: 2024
A20: January | B20: - | C20: - | D20: - | E20: - | F20: 10452.4 | G20: 7606 | H20: 11030 | I20: 26798 | J20: 14802 | K20: 10212 | L20: 7566 | M20: 7537 | N20: 4410 | O20: 5461 | P20: 4385 | Q20: 4013 | R20: 3966 | S20: 5287 | T20: 4360 | U20: 6259 | V20: 6692
A21: February | B21: - | C21: - | D21: - | E21: - | F21: 7589.4 | G21: 7376 | H21: 2895 | I21: 4632 | J21: 7199 | K21: 6613 | L21: 9396 | M21: 8513 | N21: 6784 | O21: 4987 | P21: 4034 | Q21: 3928 | R21: 3449 | S21: 4106 | T21: 4109 | U21: 4130 | V21: 3940
A22: March | B22: - | C22: - | D22: - | E22: - | F22: 15323.48 | G22: 10161 | H22: 10032 | I22: 6626 | J22: 6920 | K22: 5671 | L22: 7454 | M22: 11553 | N22: 4374 | O22: 4086 | P22: 3361 | Q22: 3345 | R22: 5369 | S22: 4614 | T22: 3842 | U22: 4029 | V22: 5297
A23: April | B23: - | C23: - | D23: - | E23: 0 | F23: 12388 | G23: 10043 | H23: 9660 | I23: 8201 | J23: 6249 | K23: 7146 | L23: 9706 | M23: 7165 | N23: 5279 | O23: 7676 | P23: -1648 | Q23: 6973 | R23: 3444 | S23: 5786 | T23: -60482 | U23: 4370 | V23: 4676
A24: May | B24: - | C24: - | D24: - | E24: 2147 | F24: 14793.35 | G24: 8737 | H24: 9896 | I24: 10640 | J24: 5443 | K24: 12262 | L24: 8098 | M24: -2952 | N24: 3921 | O24: 4540 | P24: 2706 | Q24: 8206 | R24: 3899 | S24: 4919 | T24: 5496 | U24: 3926 | V24: 4828
A25: June | B25: - | C25: - | D25: - | E25: 8368 | F25: 16638.16 | G25: 10419 | H25: 11372 | I25: 4993 | J25: 7481 | K25: 7046 | L25: 9384 | M25: 16957 | N25: 7560 | O25: 1253 | P25: 4867 | Q25: 3500 | R25: 6520 | S25: -12345 | T25: 6539 | U25: 3396 | V25: 6339
A26: July | B26: - | C26: - | D26: - | E26: 5787 | F26: 3446 | G26: 4065 | H26: 2459 | I26: 2485 | J26: 4739 | K26: 4049 | L26: 6426 | M26: 4926 | N26: 4219 | O26: 2147 | P26: 5338 | Q26: 5483 | R26: 4049 | S26: 4978 | T26: 7582 | U26: 4944 | V26: 4928
A27: August | B27: - | C27: - | D27: - | E27: 27799.95 | F27: 20786.82 | G27: 13744 | H27: 14968 | I27: 8740 | J27: 18728 | K27: 8842 | L27: 12413 | M27: 15538 | N27: 7735 | O27: -367 | P27: 3794 | Q27: 4094 | R27: 3726 | S27: 3506 | T27: -13167 | U27: 3096 | V27: 8015
A28: September | B28: - | C28: - | D28: - | E28: 18159 | F28: 18690 | G28: 8015 | H28: 8521 | I28: 6449 | J28: 79373 | K28: 6927 | L28: 9909 | M28: 5910 | N28: 8025 | O28: 2448 | P28: 3263 | Q28: 1004 | R28: 5998 | S28: 2648 | T28: 4070 | U28: 4457 | V28: 8167.03
A29: October | B29: - | C29: - | D29: - | E29: 13936 | F29: 7377.58 | G29: 10823 | H29: 9312 | I29: 7400 | J29: 10226 | K29: 8885 | L29: 8361 | M29: 7437 | N29: 6792 | O29: 3165 | P29: 3950 | Q29: 5076 | R29: 138870 | S29: 3668 | T29: 5493 | U29: 4821 | V29: 5567.63
A30: November | B30: - | C30: - | D30: - | E30: 8868.78 | F30: * | G30: 12866 | H30: 9020 | I30: 8947 | J30: 9921 | K30: 8981 | L30: 7549 | M30: 4977 | N30: 4640 | O30: 6942 | P30: 4759 | Q30: 4512 | R30: 4246 | S30: 4434 | T30: 5141 | U30: 4831 | V30: 5540.12
A31: December | B31: - | C31: - | D31: - | E31: 13836 | F31: 20292 | G31: 8719 | H31: 10973 | I31: 4816 | J31: 9271 | K31: 20288 | L31: 7763 | M31: 5308 | N31: 3031 | O31: 1677 | P31: 2153 | Q31: 3306 | R31: 2485 | S31: 12654 | T31: 4925 | U31: 3472 | V31: 5054.76
A32: Total | B32: - | C32: - | D32: - | E32: =SUM(E20:E31) -> 98901.73 | F32: 147777.19 | G32: 112574 | H32: 110138 | I32: 100727 | J32: 180352 | K32: 106922 | L32: =SUM(L20:L31) -> 104025 | M32: 92869 | N32: 66770 | O32: 44015 | P32: 40962 | Q32: 53440 | R32: =SUM(R20:R31) -> 186021 | S32: 44255 | T32: -22092 | U32: 51731 | V32: 69044.54
A33: Austin Refunds
A34: Month | B34: 2004 | C34: 2005 | D34: 2006 | E34: 2007 | F34: 2008 | G34: 2009 | H34: 2010 | I34: 2011 | J34: 2012 | K34: 2013 | L34: 2014 | M34: 2015 | N34: 2016 | O34: 2017 | P34: 2018 | Q34: 2019 | R34: 2020 | S34: 2021 | T34: 2022 | U34: 2023 | V34: 2024
A35: January | B35: - | C35: - | D35: - | E35: - | F35: - | G35: 0 | H35: 0 | I35: 0 | J35: -2503 | K35: 0 | L35: -869 | M35: -125795 | N35: -2725 | O35: -11847 | P35: -1939 | Q35: -2204 | R35: 0 | S35: -1 | T35: -10 | U35: -769 | V35: -2
A36: February | B36: - | C36: - | D36: - | E36: - | F36: - | G36: -8397 | H36: -14431 | I36: -47064 | J36: -3149 | K36: 0 | L36: 0 | M36: -43050 | N36: -55 | O36: -65 | P36: 0 | Q36: -134 | R36: -13530 | S36: 0 | T36: 0 | U36: -1 | V36: 0
A37: March | B37: - | C37: - | D37: - | E37: - | F37: - | G37: 0 | H37: -8782 | I37: -12861 | J37: 0 | K37: 0 | L37: -52 | M37: -525 | N37: -39656 | O37: 0 | P37: -505 | Q37: -466 | R37: 0 | S37: -44825 | T37: 0 | U37: 0 | V37: 0
A38: April | B38: - | C38: - | D38: - | E38: - | F38: - | G38: 0 | H38: -3052 | I38: -90 | J38: 0 | K38: 0 | L38: -42043 | M38: -5 | N38: -9 | O38: 0 | P38: 0 | Q38: -48 | R38: 0 | S38: 0 | T38: 0 | U38: 0 | V38: 0
A39: May | B39: - | C39: - | D39: - | E39: - | F39: - | G39: -200 | H39: 0 | I39: 0 | J39: -54 | K39: -6250 | L39: -5 | M39: -25078 | N39: 0 | O39: -6749 | P39: -877 | Q39: 0 | R39: 0 | S39: 0 | T39: 0 | U39: -28 | V39: 0
A40: June | B40: - | C40: - | D40: - | E40: - | F40: - | G40: -54 | H40: 0 | I40: 0 | J40: 0 | K40: -7 | L40: 0 | M40: 0 | N40: 0 | O40: -258 | P40: 0 | Q40: -180 | R40: -1391 | S40: 0 | T40: 0 | U40: -2884 | V40: -25069
A41: July | B41: - | C41: - | D41: - | E41: - | F41: - | G41: -2740 | H41: 0 | I41: -6 | J41: 0 | K41: 0 | L41: 0 | M41: 0 | N41: 0 | O41: 0 | P41: 0 | Q41: -1 | R41: -1 | S41: 0 | T41: -837 | U41: 0 | V41: -2210
A42: August | B42: - | C42: - | D42: - | E42: - | F42: - | G42: 0 | H42: -6 | I42: -235 | J42: -96 | K42: -17174 | L42: -80204 | M42: -254 | N42: 0 | O42: 0 | P42: 0 | Q42: -1875 | R42: -47 | S42: -1403 | T42: -224 | U42: -2 | V42: -0.66
A43: September | B43: - | C43: - | D43: - | E43: - | F43: - | G43: -103 | H43: 0 | I43: -24 | J43: -319463 | K43: 0 | L43: 0 | M43: -170 | N43: 0 | O43: -330 | P43: 0 | Q43: -3121 | R43: 0 | S43: -403 | T43: 0 | U43: 0 | V43: -5657.64
A44: October | B44: - | C44: - | D44: - | E44: - | F44: - | G44: 0 | H44: 0 | I44: -93184 | J44: 0 | K44: -20008 | L44: 0 | M44: 0 | N44: 0 | O44: 0 | P44: 0 | Q44: 0 | R44: 0 | S44: 0 | T44: 0 | U44: 0 | V44: 0
A45: November | B45: - | C45: - | D45: - | E45: - | F45: - | G45: 0 | H45: -418 | I45: -16730 | J45: -5608 | K45: -1111 | L45: -133442 | M45: -1 | N45: -1 | O45: -1 | P45: -70575 | Q45: -13530 | R45: -79661 | S45: 0 | T45: 0 | U45: 0 | V45: -973.24
A46: December | B46: - | C46: - | D46: - | E46: - | F46: -58 | G46: 0 | H46: -27 | I46: -92 | J46: -7939 | K46: -239622 | L46: -1000 | M46: -612 | N46: 0 | O46: -1 | P46: -2 | Q46: 0 | R46: -20499 | S46: 0 | T46: -2 | U46: -875 | V46: -18367.92
A47: Total | B47: - | C47: - | D47: - | E47: - | F47: =SUM(F35:F46) -> -58 | G47: -11494 | H47: -26716 | I47: -170286 | J47: -338812 | K47: -284172 | L47: =SUM(L35:L46) -> -257615 | M47: -195490 | N47: -42446 | O47: -19251 | P47: -73898 | Q47: -21559 | R47: =SUM(R35:R46) -> -115129 | S47: -46632 | T47: -1073 | U47: -4559 | V47: -52280.46
A48: Hidden columns B-D do not contain any data for CY 2004-2006
A49: *Collections for November 2008 are included in December totals due to a new processing system.
A50: ='Local SUT'!A71 -> Source: Minnesota Department of Revenue, Tax Research Division, November 2025
A51: end of worksheet

Sheet Baxter (hidden)
A1: Baxter Monthly Detail for Minnesota Local Sales & Use Tax
A2: ='Local SUT'!A2 -> CY 2004-2024
A3: Baxter Local Sales Tax (0.5%)
A4: Month | B4: 2004 | C4: 2005 | D4: 2006 | E4: 2007 | F4: 2008 | G4: 2009 | H4: 2010 | I4: 2011 | J4: 2012 | K4: 2013 | L4: 2014 | M4: 2015 | N4: 2016 | O4: 2017 | P4: 2018 | Q4: 2019 | R4: 2020 | S4: 2021 | T4: 2022 | U4: 2023 | V4: 2024
A5: January | B5: - | C5: - | D5: - | E5: 189369 | F5: 190538.72 | G5: 198960 | H5: 172530 | I5: 175392 | J5: 176015 | K5: 195222 | L5: 188309 | M5: 190550 | N5: 220400 | O5: 226165 | P5: 223385 | Q5: 228646 | R5: 238166 | S5: 258201 | T5: 235525 | U5: 288863 | V5: 308171
A6: February | B6: - | C6: - | D6: - | E6: 126088 | F6: 124512.13 | G6: 148316 | H6: 112476 | I6: 115794 | J6: 115318 | K6: 138738 | L6: 161615 | M6: 149226 | N6: 151939 | O6: 156107 | P6: 160445 | Q6: 168183 | R6: 174860 | S6: 206137 | T6: 222404 | U6: 227995 | V6: 221259
A7: March | B7: - | C7: - | D7: - | E7: 114890 | F7: 118447.9 | G7: 118550 | H7: 113494 | I7: 117017 | J7: 119654 | K7: 133235 | L7: 135450 | M7: 155279 | N7: 149563 | O7: 146627 | P7: 151291 | Q7: 153131 | R7: 170807 | S7: 202090 | T7: 195192 | U7: 219085 | V7: 223980
A8: April | B8: - | C8: - | D8: - | E8: 134914.67 | F8: 134520.48 | G8: 121687 | H8: 137512 | I8: 121631 | J8: 138232 | K8: 144573 | L8: 153172 | M8: 166156 | N8: 180426 | O8: 179548 | P8: 180680 | Q8: 187897 | R8: 193434 | S8: 249281 | T8: 353471 | U8: 260948 | V8: 261741
A9: May | B9: - | C9: - | D9: - | E9: 146982 | F9: 133766.41 | G9: 136945 | H9: 140994 | I9: 154678 | J9: 145277 | K9: 149357 | L9: 162214 | M9: 179237 | N9: 185560 | O9: 195856 | P9: 187899 | Q9: 201406 | R9: 216166 | S9: 259676 | T9: 251929 | U9: 262930 | V9: 271476
A10: June | B10: - | C10: - | D10: - | E10: 160560.25 | F10: 169469.76 | G10: 157615 | H10: 154921 | I10: 160613 | J10: 143526 | K10: 187608 | L10: 186394 | M10: 207677 | N10: 208915 | O10: 225246 | P10: 233309 | Q10: 244064 | R10: 266499 | S10: 284088 | T10: 381624 | U10: 318667 | V10: 323704
A11: July | B11: - | C11: - | D11: - | E11: 152712.51 | F11: 147540.36 | G11: 121253 | H11: 155739 | I11: 158134 | J11: 176621 | K11: 157367 | L11: 193279 | M11: 180278 | N11: 187233 | O11: 199751 | P11: 193829 | Q11: 244725 | R11: 206308 | S11: 258730 | T11: 279677 | U11: 360986 | V11: 328407
A12: August | B12: - | C12: - | D12: - | E12: 202760.23 | F12: 203770.08 | G12: 206907 | H12: 178734 | I12: 172788 | J12: 220436 | K12: 244520 | L12: 220195 | M12: 261002 | N12: 269123 | O12: 284360 | P12: 297175 | Q12: 273595 | R12: 355290 | S12: 360586 | T12: 312505 | U12: 332100 | V12: 328433.45
A13: September | B13: - | C13: - | D13: - | E13: 165010.33 | F13: 167602.64 | G13: 135495 | H13: 158172 | I13: 165669 | J13: 208300 | K13: 201560 | L13: 209886 | M13: 200513 | N13: 226526 | O13: 249529 | P13: 249053 | Q13: 260306 | R13: 273348 | S13: 280670 | T13: 340874 | U13: 354555 | V13: 329327.13
A14: October | B14: - | C14: - | D14: 0 | E14: 155503.75 | F14: 149064.25 | G14: 162572 | H14: 149614 | I14: 152652 | J14: 164972 | K14: 174795 | L14: 178588 | M14: 195741 | N14: 203396 | O14: 205704 | P14: 205675 | Q14: 225224 | R14: 251710 | S14: 252132 | T14: 280028 | U14: 298883 | V14: 288191.16
A15: November | B15: - | C15: - | D15: 118211 | E15: 152821 | F15: * | G15: 137227 | H15: 144700 | I15: 156074 | J15: 157381 | K15: 165933 | L15: 179917 | M15: 198299 | N15: 195308 | O15: 198352 | P15: 209134 | Q15: 217809 | R15: 217901 | S15: 231506 | T15: 279316 | U15: 299884 | V15: 291763.05
A16: December | B16: - | C16: - | D16: 147162 | E16: 145197.2 | F16: 229640 | G16: 136084 | H16: 146816 | I16: 145878 | J16: 162903 | K16: 164166 | L16: 179357 | M16: 186924 | N16: 189081 | O16: 200195 | P16: 212090 | Q16: 214639 | R16: 240956 | S16: 201148 | T16: 344582 | U16: 287493 | V16: 282093.26
A17: Total | B17: - | C17: - | D17: =SUM(D5:D16) -> 265373 | E17: 1846808.94 | F17: 1768872.73 | G17: 1781611 | H17: 1765702 | I17: 1796320 | J17: =SUM(J5:J16) -> 1928635 | K17: 2057074 | L17: 2148376 | M17: 2270882 | N17: 2367470 | O17: 2467440 | P17: 2503965 | Q17: =SUM(Q5:Q16) -> 2619625 | R17: =SUM(R5:R16) -> 2805445 | S17: 3044245 | T17: 3477127 | U17: =SUM(U5:U16) -> 3512389 | V17: 3458546.05
A18: Baxter Local Use Tax (0.5%)
A19: Month | B19: 2004 | C19: 2005 | D19: 2006 | E19: 2007 | F19: 2008 | G19: 2009 | H19: 2010 | I19: 2011 | J19: 2012 | K19: 2013 | L19: 2014 | M19: 2015 | N19: 2016 | O19: 2017 | P19: 2018 | Q19: 2019 | R19: 2020 | S19: 2021 | T19: 2022 | U19: 2023 | V19: 2024
A20: January | B20: - | C20: - | D20: - | E20: 3329 | F20: 2402.38 | G20: 3722 | H20: 3027 | I20: 4582 | J20: 4532 | K20: 7528 | L20: 6646 | M20: 6627 | N20: 5222 | O20: 4368 | P20: 5731 | Q20: 5534 | R20: 5425 | S20: 5231 | T20: 4464 | U20: 5000 | V20: 6072
A21: February | B21: - | C21: - | D21: - | E21: 3604 | F21: 2507.77 | G21: 5874 | H21: 3357 | I21: 3386 | J21: 2820 | K21: 4044 | L21: 3594 | M21: 7732 | N21: 4125 | O21: 3243 | P21: 4519 | Q21: 7058 | R21: 5795 | S21: 3140 | T21: 6208 | U21: 3985 | V21: 6653
A22: March | B22: - | C22: - | D22: - | E22: 1519.25 | F22: 2662 | G22: -9623 | H22: 3211 | I22: 3379 | J22: 3221 | K22: 3917 | L22: 4476 | M22: -1130 | N22: 3057 | O22: 3229 | P22: 3050 | Q22: 3105 | R22: 2411 | S22: 3443 | T22: 2898 | U22: 5396 | V22: 5672
A23: April | B23: - | C23: - | D23: - | E23: 4420 | F23: 3360 | G23: 3833 | H23: 4178 | I23: 3967 | J23: 4004 | K23: 7120 | L23: 3882 | M23: 5813 | N23: 3874 | O23: 4450 | P23: 4162 | Q23: 5343 | R23: 3233 | S23: 3822 | T23: 6074 | U23: 3362 | V23: 3564
A24: May | B24: - | C24: - | D24: - | E24: 5963 | F24: 8910.01 | G24: 4629 | H24: 5215 | I24: 3721 | J24: 2858 | K24: 3430 | L24: 2903 | M24: 5352 | N24: 6956 | O24: 6368 | P24: 5318 | Q24: 5351 | R24: 8614 | S24: 8540 | T24: 4958 | U24: 3886 | V24: 2186
A25: June | B25: - | C25: - | D25: - | E25: 11862 | F25: 3061 | G25: 2304 | H25: 2846 | I25: 3342 | J25: 5002 | K25: 5194 | L25: 5910 | M25: 5441 | N25: 3779 | O25: 5242 | P25: 4775 | Q25: 6679 | R25: 3839 | S25: 5242 | T25: 5970 | U25: 5391 | V25: 4246
A26: July | B26: - | C26: - | D26: - | E26: 4289 | F26: 4269.29 | G26: 4024 | H26: 5950 | I26: 3968 | J26: 6302 | K26: 4301 | L26: 6009 | M26: 7523 | N26: 5751 | O26: 5668 | P26: 7097 | Q26: 4588 | R26: 4361 | S26: 7761 | T26: 5999 | U26: 20696 | V26: 4793
A27: August | B27: - | C27: - | D27: - | E27: 5990 | F27: 7616.14 | G27: 3480 | H27: 3944 | I27: 2988 | J27: 8490 | K27: 5092 | L27: 4027 | M27: 6345 | N27: 4507 | O27: 8030 | P27: 6506 | Q27: 6077 | R27: 8712 | S27: 3042 | T27: 3909 | U27: 6631 | V27: 4457
A28: September | B28: - | C28: - | D28: - | E28: 6874 | F28: 4815.1 | G28: 3062 | H28: 5658 | I28: 3816 | J28: 3841 | K28: 5991 | L28: 7820 | M28: 5767 | N28: 4367 | O28: 4882 | P28: 7819 | Q28: 5996 | R28: 4809 | S28: 3769 | T28: 4157 | U28: 4301 | V28: 4973.92
A29: October | B29: - | C29: - | D29: 1 | E29: 5398 | F29: 3194.78 | G29: 3830 | H29: 3000 | I29: 4384 | J29: 9521 | K29: 4297 | L29: 6639 | M29: 4017 | N29: 3730 | O29: 5334 | P29: 5819 | Q29: 5563 | R29: 4762 | S29: 6177 | T29: 4988 | U29: 5589 | V29: 7449
A30: November | B30: - | C30: - | D30: 1851 | E30: 4360 | F30: * | G30: 5306 | H30: 2858 | I30: 5106 | J30: 17338 | K30: 3582 | L30: 4027 | M30: 5264 | N30: 4667 | O30: 7920 | P30: 6914 | Q30: 4739 | R30: 5338 | S30: 3750 | T30: 4414 | U30: 7165 | V30: 4545.48
A31: December | B31: - | C31: - | D31: 2235 | E31: 3062.78 | F31: 5724 | G31: 2373 | H31: 3249 | I31: 3229 | J31: 6648 | K31: 8841 | L31: 4462 | M31: 3134 | N31: 4112 | O31: 7500 | P31: 6794 | Q31: 5357 | R31: 4493 | S31: 3465 | T31: 5572 | U31: 5640 | V31: 5782.26
A32: Total | B32: - | C32: - | D32: =SUM(D20:D31) -> 4087 | E32: 60671.03 | F32: 48522.47 | G32: 32814 | H32: 46493 | I32: 45868 | J32: 74577 | K32: 63337 | L32: =SUM(L20:L31) -> 60395 | M32: 61885 | N32: 54147 | O32: 66234 | P32: 68504 | Q32: 65390 | R32: =SUM(R20:R31) -> 61792 | S32: 57382 | T32: 59611 | U32: 77042 | V32: 60393.66
A33: Baxter Refunds
A34: Month | B34: 2004 | C34: 2005 | D34: 2006 | E34: 2007 | F34: 2008 | G34: 2009 | H34: 2010 | I34: 2011 | J34: 2012 | K34: 2013 | L34: 2014 | M34: 2015 | N34: 2016 | O34: 2017 | P34: 2018 | Q34: 2019 | R34: 2020 | S34: 2021 | T34: 2022 | U34: 2023 | V34: 2024
A35: January | B35: - | C35: - | D35: - | E35: - | F35: - | G35: 0 | H35: 0 | I35: 0 | J35: -37 | K35: -461 | L35: -18 | M35: -1 | N35: -1885 | O35: 0 | P35: -140 | Q35: -586 | R35: 0 | S35: -24 | T35: -43 | U35: 0 | V35: -12
A36: February | B36: - | C36: - | D36: - | E36: - | F36: - | G36: -1 | H36: -1 | I36: -1342 | J36: -130 | K36: -199 | L36: -1254 | M36: 0 | N36: -20 | O36: -16 | P36: -91 | Q36: 0 | R36: -25 | S36: -42 | T36: -141 | U36: -89 | V36: -55
A37: March | B37: - | C37: - | D37: - | E37: - | F37: - | G37: 0 | H37: -69 | I37: 0 | J37: 0 | K37: -4 | L37: -2 | M37: -9 | N37: -349 | O37: -1 | P37: 0 | Q37: -1 | R37: -89 | S37: -68 | T37: 0 | U37: -65 | V37: -298
A38: April | B38: - | C38: - | D38: - | E38: - | F38: - | G38: -1089 | H38: -195 | I38: -305 | J38: 0 | K38: -6 | L38: 0 | M38: -2279 | N38: -170 | O38: -15 | P38: -176 | Q38: -108 | R38: -10 | S38: -9192 | T38: -40 | U38: 0 | V38: -30
A39: May | B39: - | C39: - | D39: - | E39: - | F39: - | G39: -107 | H39: 0 | I39: -1 | J39: -41 | K39: -5 | L39: -17 | M39: -260 | N39: -11 | O39: -4 | P39: -451 | Q39: -7 | R39: -138 | S39: -1 | T39: -36 | U39: -64 | V39: -190
A40: June | B40: - | C40: - | D40: - | E40: - | F40: - | G40: 0 | H40: -29 | I40: -11 | J40: 0 | K40: -3839 | L40: 0 | M40: -30743 | N40: -731 | O40: 0 | P40: -48 | Q40: -14 | R40: -261 | S40: 0 | T40: -906 | U40: -13 | V40: 0
A41: July | B41: - | C41: - | D41: - | E41: - | F41: - | G41: 0 | H41: 0 | I41: -318 | J41: -37 | K41: 0 | L41: -14 | M41: -54 | N41: -48 | O41: 0 | P41: 0 | Q41: -28 | R41: -422 | S41: 0 | T41: 0 | U41: 0 | V41: -11
A42: August | B42: - | C42: - | D42: - | E42: - | F42: - | G42: 0 | H42: 0 | I42: 0 | J42: -365 | K42: -1852 | L42: -51 | M42: -517 | N42: -3 | O42: 0 | P42: -48 | Q42: -23 | R42: -251 | S42: 0 | T42: -4 | U42: -17 | V42: -6.05
A43: September | B43: - | C43: - | D43: - | E43: - | F43: - | G43: 0 | H43: 0 | I43: -2 | J43: -7 | K43: 0 | L43: -4 | M43: -2 | N43: 0 | O43: -121 | P43: -8 | Q43: -2 | R43: -189 | S43: 0 | T43: 0 | U43: -2 | V43: 0
A44: October | B44: - | C44: - | D44: - | E44: - | F44: - | G44: 0 | H44: 0 | I44: -175 | J44: -5 | K44: -31 | L44: -1207 | M44: -7 | N44: 0 | O44: 0 | P44: -134 | Q44: 0 | R44: -34 | S44: -1 | T44: 0 | U44: 0 | V44: -1439.99
A45: November | B45: - | C45: - | D45: - | E45: - | F45: - | G45: -1338 | H45: -414 | I45: -1 | J45: -1 | K45: -1 | L45: -116 | M45: 0 | N45: -1 | O45: 0 | P45: -2 | Q45: 0 | R45: 0 | S45: 0 | T45: -239 | U45: 0 | V45: 0
A46: December | B46: - | C46: - | D46: - | E46: - | F46: -2594 | G46: -19 | H46: 0 | I46: -76 | J46: 0 | K46: -87 | L46: 0 | M46: -29 | N46: 0 | O46: -101 | P46: -412 | Q46: 0 | R46: -256 | S46: 0 | T46: -35 | U46: 0 | V46: -716.66
A47: Total | B47: - | C47: - | D47: - | E47: - | F47: =SUM(F35:F46) -> -2594 | G47: -2554 | H47: -708 | I47: -2231 | J47: -623 | K47: -6485 | L47: =SUM(L35:L46) -> -2683 | M47: -33901 | N47: -3218 | O47: -258 | P47: -1510 | Q47: -769 | R47: =SUM(R35:R46) -> -1675 | S47: -9328 | T47: -1444 | U47: -250 | V47: -2758.7
A48: Hidden columns B-C do not contain any data for CY 2004-2005
A49: *Collections for November 2008 are included in December totals due to a new processing system.
A50: ='Local SUT'!A71 -> Source: Minnesota Department of Revenue, Tax Research Division, November 2025
A51: end of worksheet

Sheet Bemidji (hidden)
A1: Bemidji Monthly Detail for Minnesota Local Sales & Use Tax
A2: ='Local SUT'!A2 -> CY 2004-2024
A3: Bemidji Local Sales Tax (0.5%)
A4: Month | B4: 2004 | C4: 2005 | D4: 2006 | E4: 2007 | F4: 2008 | G4: 2009 | H4: 2010 | I4: 2011 | J4: 2012 | K4: 2013 | L4: 2014 | M4: 2015 | N4: 2016 | O4: 2017 | P4: 2018 | Q4: 2019 | R4: 2020 | S4: 2021 | T4: 2022 | U4: 2023 | V4: 2024
A5: January | B5: - | C5: - | D5: 0 | E5: 163950 | F5: 170116.91 | G5: 166783 | H5: 188510 | I5: 188533 | J5: 187431 | K5: 189675 | L5: 193460 | M5: 187350 | N5: 206600 | O5: 213904 | P5: 202538 | Q5: 222373 | R5: 227137 | S5: 245496 | T5: 238219 | U5: 282540 | V5: 290053
A6: February | B6: - | C6: - | D6: 106415 | E6: 118529 | F6: 121811.65 | G6: 123233 | H6: 120534 | I6: 122616 | J6: 127167 | K6: 143402 | L6: 147692 | M6: 146786 | N6: 155069 | O6: 150465 | P6: 155950 | Q6: 171067 | R6: 168514 | S6: 202905 | T6: 208086 | U6: 221738 | V6: 215518
A7: March | B7: - | C7: - | D7: 100468 | E7: 113309.83 | F7: 120422.76 | G7: 123378 | H7: 120976 | I7: 126904 | J7: 135183 | K7: 139740 | L7: 143008 | M7: 150954 | N7: 152468 | O7: 152235 | P7: 151136 | Q7: 157274 | R7: 171748 | S7: 194527 | T7: 207050 | U7: 205910 | V7: 218082
A8: April | B8: - | C8: - | D8: 113870 | E8: 120487.6 | F8: 126124.82 | G8: 116781 | H8: 138064 | I8: 140158 | J8: 147967 | K8: 149410 | L8: 171203 | M8: 164893 | N8: 179336 | O8: 176008 | P8: 203415 | Q8: 188790 | R8: 175419 | S8: 259101 | T8: 248288 | U8: 243857 | V8: 240740
A9: May | B9: - | C9: - | D9: 120773.59 | E9: 123805.57 | F9: 118062.75 | G9: 121892 | H9: 133872 | I9: 153353 | J9: 149375 | K9: 143569 | L9: 163326 | M9: 166707 | N9: 172269 | O9: 180015 | P9: 182500 | Q9: 191255 | R9: 189250 | S9: 234817 | T9: 237852 | U9: 237847 | V9: 249379
A10: June | B10: - | C10: - | D10: 133486 | E10: 137188.78 | F10: 147740.24 | G10: 131728 | H10: 147161 | I10: 152375 | J10: 149102 | K10: 182605 | L10: 185155 | M10: 189745 | N10: 191983 | O10: 201877 | P10: 217229 | Q10: 221882 | R10: 243588 | S10: 264944 | T10: 343776 | U10: 294561 | V10: 292504
A11: July | B11: - | C11: - | D11: 119707.17 | E11: 127903 | F11: 129767.65 | G11: 125571 | H11: 151141 | I11: 141230 | J11: 158738 | K11: 146145 | L11: 172532 | M11: 165822 | N11: 182902 | O11: 184800 | P11: 190866 | Q11: 218532 | R11: 217368 | S11: 272119 | T11: 294348 | U11: 319095 | V11: 289168
A12: August | B12: - | C12: - | D12: 166740 | E12: 166123.1 | F12: 164939.63 | G12: 161967 | H12: 173801 | I12: 177916 | J12: 197312 | K12: 215644 | L12: 192592 | M12: 233603 | N12: 224391 | O12: 231842 | P12: 254298 | Q12: 231462 | R12: 287028 | S12: 290733 | T12: 299470 | U12: 301729 | V12: 281126.81
A13: September | B13: - | C13: - | D13: 133831.36 | E13: 147652.89 | F13: 139889.37 | G13: 149587 | H13: 153409 | I13: 156264 | J13: 170074 | K13: 179646 | L13: 180085 | M13: 197564 | N13: 197104 | O13: 201379 | P13: 214777 | Q13: 228559 | R13: 229989 | S13: 255429 | T13: 276683 | U13: 289864 | V13: 285706.29
A14: October | B14: - | C14: - | D14: 133737 | E14: 142547.51 | F14: 139118.99 | G14: 168136 | H14: 157138 | I14: 164496 | J14: 165557 | K14: 179478 | L14: 187154 | M14: 191709 | N14: 195149 | O14: 196749 | P14: 203451 | Q14: 216451 | R14: 236347 | S14: 278438 | T14: 265386 | U14: 281413 | V14: 260288.35
A15: November | B15: - | C15: - | D15: 122495 | E15: 130426.38 | F15: * | G15: 149038 | H15: 141670 | I15: 158185 | J15: 155010 | K15: 165509 | L15: 174565 | M15: 185129 | N15: 189426 | O15: 184927 | P15: 204807 | Q15: 205181 | R15: 220757 | S15: 247721 | T15: 274649 | U15: 270364 | V15: 257903.14
A16: December | B16: - | C16: - | D16: 124550 | E16: 128634.33 | F16: 242702 | G16: 135542 | H16: 158254 | I16: 149296 | J16: 147406 | K16: 206122 | L16: 165376 | M16: 166961 | N16: 180178 | O16: 187689 | P16: 192745 | Q16: 187264 | R16: 213372 | S16: 228932 | T16: 308664 | U16: 249685 | V16: 255302.53
A17: Total | B17: - | C17: - | D17: =SUM(D5:D16) -> 1376073.12 | E17: 1620557.99 | F17: 1620696.77 | G17: 1673636 | H17: 1784530 | I17: 1831326 | J17: =SUM(J5:J16) -> 1890322 | K17: 2040945 | L17: 2076148 | M17: 2147223 | N17: 2226875 | O17: 2261890 | P17: 2373712 | Q17: =SUM(Q5:Q16) -> 2440090 | R17: =SUM(R5:R16) -> 2580517 | S17: 2975162 | T17: 3202471 | U17: =SUM(U5:U16) -> 3198603 | V17: 3135771.12
A18: Bemidji Local Use Tax (0.5%)
A19: Month | B19: 2004 | C19: 2005 | D19: 2006 | E19: 2007 | F19: 2008 | G19: 2009 | H19: 2010 | I19: 2011 | J19: 2012 | K19: 2013 | L19: 2014 | M19: 2015 | N19: 2016 | O19: 2017 | P19: 2018 | Q19: 2019 | R19: 2020 | S19: 2021 | T19: 2022 | U19: 2023 | V19: 2024
A20: January | B20: - | C20: - | D20: 0 | E20: 4903.88 | F20: 5264 | G20: 6224 | H20: 9942 | I20: 10322 | J20: 8744 | K20: 13059 | L20: 7807 | M20: 24927 | N20: 8788 | O20: 13014 | P20: 8708 | Q20: 15638 | R20: 14246 | S20: 9976 | T20: 10852 | U20: 7728 | V20: 12151
A21: February | B21: - | C21: - | D21: 4992 | E21: 3707.74 | F21: 4057.98 | G21: 5649 | H21: 3696 | I21: 4806 | J21: 5307 | K21: 5731 | L21: 4663 | M21: 11133 | N21: 7321 | O21: 9425 | P21: 5796 | Q21: 8969 | R21: 14679 | S21: 7679 | T21: 10134 | U21: 12643 | V21: 14284
A22: March | B22: - | C22: - | D22: 2895 | E22: 3121.9 | F22: 2860 | G22: 11657 | H22: 3494 | I22: 19605 | J22: 4401 | K22: 4872 | L22: 5175 | M22: 4705 | N22: 13544 | O22: 4765 | P22: 5446 | Q22: 6472 | R22: 6156 | S22: 9933 | T22: 10529 | U22: 7206 | V22: 9035
A23: April | B23: - | C23: - | D23: 3427 | E23: 6147.76 | F23: 5534.36 | G23: 3652 | H23: 5639 | I23: 6104 | J23: 6428 | K23: 5274 | L23: 11301 | M23: 6588 | N23: 18581 | O23: 8449 | P23: 6694 | Q23: 6603 | R23: 6461 | S23: 7894 | T23: 8629 | U23: 10695 | V23: 7252
A24: May | B24: - | C24: - | D24: 3038 | E24: 4518 | F24: 9172.51 | G24: 6747 | H24: 4935 | I24: 6346 | J24: 5201 | K24: 5485 | L24: 18475 | M24: 11529 | N24: 38552 | O24: 9244 | P24: 10773 | Q24: 9054 | R24: 4998 | S24: 8892 | T24: 12569 | U24: 7708 | V24: 10371
A25: June | B25: - | C25: - | D25: 5346 | E25: 5235 | F25: 5988 | G25: 6068 | H25: 4283 | I25: 22135 | J25: 6006 | K25: 65841 | L25: 13063 | M25: 10730 | N25: 9256 | O25: 10226 | P25: 7511 | Q25: 7114 | R25: 6137 | S25: 7400 | T25: 10837 | U25: 12779 | V25: 11310
A26: July | B26: - | C26: - | D26: 3614 | E26: 3982 | F26: 5196.94 | G26: 8613 | H26: 6866 | I26: 6295 | J26: 7703 | K26: 6983 | L26: 7375 | M26: 8658 | N26: 17845 | O26: 8304 | P26: 5817 | Q26: 11645 | R26: 5625 | S26: 11485 | T26: 10584 | U26: 11531 | V26: 8969
A27: August | B27: - | C27: - | D27: 5967 | E27: 6455.11 | F27: 8399.01 | G27: 6913 | H27: 4430 | I27: 3910 | J27: 5815 | K27: 7541 | L27: 6589 | M27: 11970 | N27: 10390 | O27: 10418 | P27: 7594 | Q27: 11154 | R27: 8759 | S27: 9127 | T27: 10280 | U27: 10385 | V27: 18878.02
A28: September | B28: - | C28: - | D28: 4948 | E28: 9556.56 | F28: 6176 | G28: 5703 | H28: 4401 | I28: 6054 | J28: 6050 | K28: 9213 | L28: 16090 | M28: 7127 | N28: 9832 | O28: 53193 | P28: 8193 | Q28: 9258 | R28: 5834 | S28: 9717 | T28: 8932 | U28: 15257 | V28: 9114.18
A29: October | B29: - | C29: - | D29: 4187 | E29: 7661.29 | F29: 5433 | G29: 4892 | H29: 4919 | I29: 4770 | J29: 5269 | K29: 6092 | L29: 15848 | M29: 11531 | N29: 8293 | O29: 10258 | P29: 13872 | Q29: 21552 | R29: 11349 | S29: 14042 | T29: 9286 | U29: 15438 | V29: 14326.88
A30: November | B30: - | C30: - | D30: 4201 | E30: 9969.34 | F30: * | G30: 4587 | H30: 4825 | I30: 35304 | J30: 5814 | K30: 7167 | L30: 13488 | M30: 33071 | N30: 8195 | O30: 10123 | P30: 12212 | Q30: 25068 | R30: 6400 | S30: 6837 | T30: 21375 | U30: 13459 | V30: 10688.84
A31: December | B31: - | C31: - | D31: 4872.37 | E31: 5159.59 | F31: 9441 | G31: 5346 | H31: 4929 | I31: 5108 | J31: 5240 | K31: 11377 | L31: 11494 | M31: 21543 | N31: 7665 | O31: 9134 | P31: 7575 | Q31: 15091 | R31: 7098 | S31: 9081 | T31: 9870 | U31: 12385 | V31: 6033.86
A32: Total | B32: - | C32: - | D32: =SUM(D20:D31) -> 47487.37 | E32: 70418.17 | F32: 67522.8 | G32: 76051 | H32: 62359 | I32: 130759 | J32: =SUM(J20:J31) -> 71978 | K32: 148635 | L32: 131368 | M32: 163512 | N32: 158262 | O32: 156553 | P32: 100191 | Q32: =SUM(Q20:Q31) -> 147618 | R32: =SUM(R20:R31) -> 97742 | S32: 112063 | T32: 133877 | U32: 137214 | V32: 132413.78
A33: Bemidji Refunds
A34: Month | B34: 2004 | C34: 2005 | D34: 2006 | E34: 2007 | F34: 2008 | G34: 2009 | H34: 2010 | I34: 2011 | J34: 2012 | K34: 2013 | L34: 2014 | M34: 2015 | N34: 2016 | O34: 2017 | P34: 2018 | Q34: 2019 | R34: 2020 | S34: 2021 | T34: 2022 | U34: 2023 | V34: 2024
A35: January | B35: - | C35: - | D35: - | E35: - | F35: - | G35: 0 | H35: 0 | I35: 0 | J35: 0 | K35: -4893 | L35: -4340 | M35: 0 | N35: -53 | O35: 0 | P35: -94 | Q35: -6 | R35: -15 | S35: 0 | T35: 0 | U35: 0 | V35: -105
A36: February | B36: - | C36: - | D36: - | E36: - | F36: - | G36: -305 | H36: -3773 | I36: -16348 | J36: -17 | K36: -501 | L36: -23 | M36: 0 | N36: -573 | O36: -9 | P36: 0 | Q36: -258 | R36: -1 | S36: 0 | T36: 0 | U36: -4 | V36: 0
A37: March | B37: - | C37: - | D37: - | E37: - | F37: - | G37: -5076 | H37: -97 | I37: -12223 | J37: -449 | K37: 0 | L37: -13 | M37: -370 | N37: -107 | O37: -2415 | P37: -9448 | Q37: 0 | R37: -77 | S37: -10 | T37: -1333 | U37: 0 | V37: -51
A38: April | B38: - | C38: - | D38: - | E38: - | F38: - | G38: 0 | H38: -201 | I38: -1418 | J38: -343 | K38: -1448 | L38: -1 | M38: -1056 | N38: -212 | O38: -165 | P38: -37 | Q38: -62 | R38: -79 | S38: 0 | T38: 0 | U38: 0 | V38: -387
A39: May | B39: - | C39: - | D39: - | E39: - | F39: - | G39: -1229 | H39: -135 | I39: 0 | J39: -1206 | K39: 0 | L39: 0 | M39: -15 | N39: 0 | O39: -247 | P39: -76 | Q39: 0 | R39: -1 | S39: 0 | T39: -1042 | U39: 0 | V39: 0
A40: June | B40: - | C40: - | D40: - | E40: - | F40: - | G40: 0 | H40: -160 | I40: -8 | J40: 0 | K40: -202 | L40: 0 | M40: -337 | N40: -2852 | O40: -4932 | P40: -88 | Q40: -1 | R40: -81 | S40: -373 | T40: -8888 | U40: -66 | V40: 0
A41: July | B41: - | C41: - | D41: - | E41: - | F41: - | G41: -3086 | H41: 0 | I41: -39 | J41: -128 | K41: 0 | L41: -9 | M41: -1483 | N41: 0 | O41: -217 | P41: 0 | Q41: -5 | R41: -2 | S41: 0 | T41: -9 | U41: -431 | V41: -609
A42: August | B42: - | C42: - | D42: - | E42: - | F42: - | G42: -1846 | H42: -668 | I42: -66 | J42: -43 | K42: -193 | L42: -319 | M42: -3014 | N42: -558 | O42: -70 | P42: 0 | Q42: -133 | R42: -272 | S42: 0 | T42: 0 | U42: -313 | V42: -0.02
A43: September | B43: - | C43: - | D43: - | E43: - | F43: - | G43: -52 | H43: -153 | I43: -274 | J43: -6422 | K43: -4677 | L43: -1845 | M43: -53 | N43: -1597 | O43: -16 | P43: 0 | Q43: -1 | R43: 0 | S43: 0 | T43: 0 | U43: 0 | V43: -3.09
A44: October | B44: - | C44: - | D44: - | E44: - | F44: - | G44: -24 | H44: -32 | I44: -18 | J44: -3 | K44: -27 | L44: -2855 | M44: -2483 | N44: -217 | O44: -8 | P44: -90 | Q44: 0 | R44: 0 | S44: -54 | T44: 0 | U44: 0 | V44: -4.53
A45: November | B45: - | C45: - | D45: - | E45: - | F45: - | G45: -121 | H45: -154 | I45: -6258 | J45: 0 | K45: 0 | L45: -438 | M45: 0 | N45: 0 | O45: 0 | P45: 0 | Q45: 0 | R45: -291 | S45: 0 | T45: 0 | U45: -9930 | V45: 0
A46: December | B46: - | C46: - | D46: - | E46: - | F46: -1 | G46: -5 | H46: 0 | I46: -6508 | J46: -818 | K46: -518 | L46: -12379 | M46: -5635 | N46: 0 | O46: -1071 | P46: -9 | Q46: 0 | R46: 0 | S46: 0 | T46: -14 | U46: 0 | V46: -3293.99
A47: Total | B47: - | C47: - | D47: - | E47: - | F47: =SUM(F35:F46) -> -1 | G47: -11744 | H47: -5373 | I47: -43160 | J47: -9429 | K47: -12459 | L47: -22222 | M47: -14446 | N47: -6169 | O47: -9150 | P47: -9842 | Q47: =SUM(Q35:Q46) -> -466 | R47: =SUM(R35:R46) -> -819 | S47: -437 | T47: -11286 | U47: -10744 | V47: -4453.63
A48: Hidden columns B-C do not contain any data for CY 2004-2005
A49: *Collections for November 2008 are included in December totals due to a new processing system.
A50: ='Local SUT'!A71 -> Source: Minnesota Department of Revenue, Tax Research Division, November 2025
A51: end of worksheet

Sheet Brainerd (hidden)
A1: Brainerd Monthly Detail for Minnesota Local Sales & Use Tax
A2: ='Local SUT'!A2 -> CY 2004-2024
A3: Brainerd Local Sales Tax (0.5%)
A4: Month | B4: 2004 | C4: 2005 | D4: 2006 | E4: 2007 | F4: 2008 | G4: 2009 | H4: 2010 | I4: 2011 | J4: 2012 | K4: 2013 | L4: 2014 | M4: 2015 | N4: 2016 | O4: 2017 | P4: 2018 | Q4: 2019 | R4: 2020 | S4: 2021 | T4: 2022 | U4: 2023 | V4: 2024
A5: January | B5: - | C5: - | D5: - | E5: - | F5: 74422 | G5: 71078 | H5: 73056 | I5: 81930 | J5: 75293 | K5: 74129 | L5: 75634 | M5: 75769 | N5: 76320 | O5: 87206 | P5: 80241 | Q5: 85224 | R5: 92543 | S5: 108919 | T5: 111315 | U5: 120180 | V5: 122272
A6: February | B6: - | C6: - | D6: - | E6: - | F6: 59929.6 | G6: 63107 | H6: 57260 | I6: 54614 | J6: 58651 | K6: 62041 | L6: 45888 | M6: 59486 | N6: 240076 | O6: 62765 | P6: 60993 | Q6: 70377 | R6: 79091 | S6: 88882 | T6: 89639 | U6: 93349 | V6: 96743
A7: March | B7: - | C7: - | D7: - | E7: - | F7: 53004 | G7: 62825 | H7: 57115 | I7: 59978 | J7: 56953 | K7: 56246 | L7: 53431 | M7: 59419 | N7: -113177 | O7: 62265 | P7: 57535 | Q7: 61468 | R7: 76506 | S7: 79523 | T7: 92396 | U7: 89026 | V7: 102943
A8: April | B8: - | C8: - | D8: - | E8: 87 | F8: 62324.06 | G8: 58061 | H8: 60572 | I8: 65092 | J8: 76806 | K8: 65572 | L8: 64640 | M8: 65577 | N8: 74311 | O8: 72531 | P8: 69889 | Q8: 71399 | R8: 75790 | S8: 101506 | T8: 109613 | U8: 107642 | V8: 106198
A9: May | B9: - | C9: - | D9: - | E9: 46525 | F9: 60474.76 | G9: 57782 | H9: 61991 | I9: 73818 | J9: 65875 | K9: 60323 | L9: 61373 | M9: 66104 | N9: 81042 | O9: 69165 | P9: 71075 | Q9: 64123 | R9: 78525 | S9: 104244 | T9: 103712 | U9: 100662 | V9: 115573
A10: June | B10: - | C10: - | D10: - | E10: 63371 | F10: 65986.34 | G10: 66381 | H10: 61523 | I10: 66207 | J10: 72425 | K10: 73394 | L10: 77631 | M10: 73771 | N10: 80242 | O10: 77161 | P10: 97964 | Q10: 93134 | R10: 103700 | S10: 106072 | T10: 117431 | U10: 128508 | V10: 128334
A11: July | B11: - | C11: - | D11: - | E11: 63270 | F11: 67547.42 | G11: 64663 | H11: 67750 | I11: 68333 | J11: 72022 | K11: 68080 | L11: 72949 | M11: 71766 | N11: 78222 | O11: 80274 | P11: 88427 | Q11: 90970 | R11: 126504 | S11: 125820 | T11: 137358 | U11: 145196 | V11: 130051
A12: August | B12: - | C12: - | D12: - | E12: 75658 | F12: 80723.89 | G12: 76521 | H12: 77288 | I12: 73184 | J12: 79053 | K12: 86201 | L12: 77451 | M12: 85200 | N12: 86978 | O12: 83655 | P12: 87505 | Q12: 95914 | R12: 115405 | S12: 122843 | T12: 128464 | U12: 121866 | V12: 123945.37
A13: September | B13: - | C13: - | D13: - | E13: 67948.39 | F13: 73986.81 | G13: 67058 | H13: 72056 | I13: 74059 | J13: 71738 | K13: 74107 | L13: 74678 | M13: 78209 | N13: 82214 | O13: 79605 | P13: 82700 | Q13: 99674 | R13: 112425 | S13: 109287 | T13: 120491 | U13: 125861 | V13: 124532.35
A14: October | B14: - | C14: - | D14: - | E14: 69441 | F14: 67580.4 | G14: 75619 | H14: 68370 | I14: 75758 | J14: 76549 | K14: 74194 | L14: 72163 | M14: 76700 | N14: 84535 | O14: 80657 | P14: 78897 | Q14: 86694 | R14: 114392 | S14: 118819 | T14: 122732 | U14: 121844 | V14: 117849.25
A15: November | B15: - | C15: - | E15: 65630.21 | F15: * | G15: 68077 | H15: 63148 | I15: 64032 | J15: 67651 | K15: 67740 | L15: 70072 | M15: 72060 | N15: 77658 | O15: 72303 | P15: 79018 | Q15: 86957 | R15: 92611 | S15: 96976 | T15: 112354 | U15: 113873 | V15: 115743.66
A16: December | B16: - | C16: - | E16: 63750.01 | F16: 112604 | G16: 61037 | H16: 58668 | I16: 61659 | J16: 64020 | K16: 67284 | L16: 73872 | M16: 74884 | N16: 69130 | O16: 64241 | P16: 78301 | Q16: 79002 | R16: 84070 | S16: 100124 | T16: 105331 | U16: 105963 | V16: 103767.14
A17: Total | B17: - | C17: - | D17: - | E17: =SUM(E5:E16) -> 515680.61 | F17: 778583.28 | G17: 792209 | H17: 778797 | I17: 818664 | J17: 837036 | K17: 829311 | L17: =SUM(L5:L16) -> 819782 | M17: 858945 | N17: 917551 | O17: 891828 | P17: 932545 | Q17: 984936 | R17: =SUM(R5:R16) -> 1151562 | S17: =SUM(S5:S16) -> 1263015 | T17: 1350836 | U17: 1373970 | V17: 1387951.77
A18: Brainerd Local Use Tax (0.5%)
A19: Month | B19: 2004 | C19: 2005 | D19: 2006 | E19: 2007 | F19: 2008 | G19: 2009 | H19: 2010 | I19: 2011 | J19: 2012 | K19: 2013 | L19: 2014 | M19: 2015 | N19: 2016 | O19: 2017 | P19: 2018 | Q19: 2019 | R19: 2020 | S19: 2021 | T19: 2022 | U19: 2023 | V19: 2024
A20: January | B20: - | C20: - | D20: - | E20: - | F20: 5562 | G20: 10675 | H20: 5097 | I20: -21097 | J20: 8838 | K20: 4623 | L20: 4843 | M20: 5867 | N20: 4609 | O20: 7487 | P20: 7319 | Q20: 6943 | R20: 5373 | S20: 6498 | T20: 6100 | U20: 3407 | V20: 3932
A21: February | B21: - | C21: - | D21: - | E21: - | F21: 3960 | G21: 4129 | H21: 3734 | I21: 5588 | J21: 4389 | K21: 3955 | L21: 2909 | M21: 1757 | N21: 3633 | O21: 4446 | P21: 4842 | Q21: 3256 | R21: 2815 | S21: 3422 | T21: 5551 | U21: 4013 | V21: 3193
A22: March | B22: - | C22: - | D22: - | E22: - | F22: 5410 | G22: 4672 | H22: 4235 | I22: 3421 | J22: 1685 | K22: 1799 | L22: 16375 | M22: 2824 | N22: 4020 | O22: 7591 | P22: 3532 | Q22: 2106 | R22: 5756 | S22: 3461 | T22: 5493 | U22: 1885 | V22: 3137
A23: April | B23: - | C23: - | D23: - | E23: 0 | F23: 2883.41 | G23: 4166 | H23: 3587 | I23: 3603 | J23: 2309 | K23: 5027 | L23: 2741 | M23: 3764 | N23: 4503 | O23: 10761 | P23: 5148 | Q23: 3548 | R23: 3866 | S23: 2826 | T23: 5198 | U23: 11572 | V23: 3285
A24: May | B24: - | C24: - | D24: - | E24: 1030 | F24: 7128.28 | G24: 3916 | H24: 3884 | I24: 6210 | J24: 2163 | K24: 2168 | L24: 3552 | M24: 3412 | N24: 4455 | O24: 8560 | P24: 4908 | Q24: 3127 | R24: 4865 | S24: 3997 | T24: 4107 | U24: 3308 | V24: 3966
A25: June | B25: - | C25: - | D25: - | E25: 2135 | F25: 4823.48 | G25: 3728 | H25: 3766 | I25: 3213 | J25: 3015 | K25: 4792 | L25: 2982 | M25: 2049 | N25: 4598 | O25: 5145 | P25: 5241 | Q25: 30659 | R25: 3178 | S25: 5476 | T25: 2760 | U25: 4477 | V25: 9640
A26: July | B26: - | C26: - | D26: - | E26: 3047 | F26: 3898 | G26: 2963 | H26: 4022 | I26: 2314 | J26: 3765 | K26: 3489 | L26: 3994 | M26: 3537 | N26: 5360 | O26: 7388 | P26: 6010 | Q26: 3949 | R26: 5444 | S26: 5760 | T26: 6356 | U26: 7479 | V26: 4884
A27: August | B27: - | C27: - | D27: - | E27: 3368 | F27: 4440.98 | G27: 6905 | H27: 6351 | I27: 2097 | J27: 2285 | K27: 5521 | L27: 4816 | M27: 3869 | N27: 4778 | O27: 6638 | P27: 2896 | Q27: 4159 | R27: 3480 | S27: 5060 | T27: 3640 | U27: 7016 | V27: 4639.86
A28: September | B28: - | C28: - | D28: - | E28: 5254.26 | F28: 3565.8 | G28: 3645 | H28: 4099 | I28: 3747 | J28: 2662 | K28: 5729 | L28: 1982 | M28: 6374 | N28: 5803 | O28: 5593 | P28: 4007 | Q28: 3248 | R28: -13215 | S28: 7744 | T28: 6399 | U28: 4371 | V28: 4399.14
A29: October | B29: - | C29: - | D29: - | E29: 3995 | F29: 4758.58 | G29: 7678 | H29: 3603 | I29: 2810 | J29: 8559 | K29: 4966 | L29: 3497 | M29: 3403 | N29: 7089 | O29: 4994 | P29: 4015 | Q29: 4205 | R29: 4658 | S29: 8737 | T29: 5181 | U29: 4201 | V29: 4094
A30: November | B30: - | C30: - | D30: - | E30: 7840 | F30: * | G30: 3002 | H30: 5348 | I30: 4272 | J30: 3169 | K30: 6209 | L30: 4889 | M30: 3547 | N30: 6135 | O30: 5040 | P30: 4811 | Q30: 3640 | R30: 3283 | S30: 13449 | T30: 3737 | U30: 8273 | V30: 5477.45
A31: December | B31: - | C31: - | D31: - | E31: 14390 | F31: 5826 | G31: 2926 | H31: 3457 | I31: 4311 | J31: 3249 | K31: 3655 | L31: 3837 | M31: 2757 | N31: 4729 | O31: 18371 | P31: 2676 | Q31: 3472 | R31: 3460 | S31: 7382 | T31: 2452 | U31: 3925 | V31: 27116.24
A32: Total | B32: - | C32: - | D32: - | E32: =SUM(E20:E31) -> 41059.26 | F32: 52256.53 | G32: 58405 | H32: 51183 | I32: 20489 | J32: 46088 | K32: 51933 | L32: =SUM(L20:L31) -> 56417 | M32: 43160 | N32: 59712 | O32: 92014 | P32: 55405 | Q32: 72312 | R32: =SUM(R20:R31) -> 32963 | S32: =SUM(S20:S31) -> 73812 | T32: 56974 | U32: 63927 | V32: 77763.69
A33: Brainerd Refunds
A34: Month | B34: 2004 | C34: 2005 | D34: 2006 | E34: 2007 | F34: 2008 | G34: 2009 | H34: 2010 | I34: 2011 | J34: 2012 | K34: 2013 | L34: 2014 | M34: 2015 | N34: 2016 | O34: 2017 | P34: 2018 | Q34: 2019 | R34: 2020 | S34: 2021 | T34: 2022 | U34: 2023 | V34: 2024
A35: January | B35: - | C35: - | D35: - | E35: - | F35: - | G35: 0 | H35: 0 | I35: -105 | J35: -543 | K35: -5 | L35: -1204 | M35: -131 | N35: -791 | O35: -7 | P35: -655 | Q35: -50 | R35: -21 | S35: -4 | T35: -6 | U35: -5 | V35: -341
A36: February | B36: - | C36: - | D36: - | E36: - | F36: - | G36: 0 | H36: -837 | I36: -1593 | J36: -3754 | K36: 0 | L36: -1073 | M36: -113 | N36: -359 | O36: 0 | P36: -118 | Q36: -1 | R36: -2491 | S36: -62 | T36: -15 | U36: -291 | V36: -62
A37: March | B37: - | C37: - | D37: - | E37: - | F37: - | G37: -1955 | H37: -253 | I37: -86 | J37: -1426 | K37: -46 | L37: -1 | M37: -91 | N37: 40 | O37: -58 | P37: -1 | Q37: 0 | R37: -3 | S37: -16 | T37: -40 | U37: -105 | V37: -1378
A38: April | B38: - | C38: - | D38: - | E38: - | F38: - | G38: -1365 | H38: -3 | I38: -1 | J38: -77 | K38: -178 | L38: -52 | M38: -30 | N38: -117 | O38: -879 | P38: -8 | Q38: -40 | R38: 0 | S38: -24 | T38: 0 | U38: 0 | V38: -46
A39: May | B39: - | C39: - | D39: - | E39: - | F39: - | G39: 0 | H39: -11 | I39: 0 | J39: -312 | K39: 0 | L39: -11 | M39: -33 | N39: 0 | O39: -2308 | P39: -588 | Q39: 0 | R39: -2566 | S39: 0 | T39: -1185 | U39: -143 | V39: 0
A40: June | B40: - | C40: - | D40: - | E40: - | F40: - | G40: -1 | H40: -588 | I40: -3807 | J40: -1 | K40: 0 | L40: 0 | M40: -823 | N40: -1562 | O40: -813 | P40: -58 | Q40: -1 | R40: 0 | S40: 0 | T40: -29 | U40: 0 | V40: 0
A41: July | B41: - | C41: - | D41: - | E41: - | F41: - | G41: -116 | H41: 0 | I41: -668 | J41: -3393 | K41: 0 | L41: -78 | M41: -2452 | N41: -9130 | O41: 0 | P41: 0 | Q41: -32 | R41: 0 | S41: -776 | T41: -85 | U41: 0 | V41: -17
A42: August | B42: - | C42: - | D42: - | E42: - | F42: - | G42: -8 | H42: -14 | I42: -3 | J42: -413 | K42: -5537 | L42: -1374 | M42: -104 | N42: -132 | O42: 0 | P42: 0 | Q42: 0 | R42: 0 | S42: -7 | T42: -13 | U42: -1298 | V42: 0
A43: September | B43: - | C43: - | D43: - | E43: - | F43: - | G43: -530 | H43: -40 | I43: -258 | J43: 0 | K43: -343 | L43: 0 | M43: -1212 | N43: 0 | O43: 0 | P43: -29 | Q43: 0 | R43: -98 | S43: 0 | T43: 0 | U43: 0 | V43: 0
A44: October | B44: - | C44: - | D44: - | E44: - | F44: - | G44: -6 | H44: 0 | I44: -39 | J44: -32 | K44: -9584 | L44: -4 | M44: -1 | N44: -700 | O44: -12 | P44: -80 | Q44: 0 | R44: -24 | S44: -4 | T44: 0 | U44: 0 | V44: -67.63
A45: November | B45: - | C45: - | D45: - | E45: - | F45: - | G45: -1264 | H45: -20196 | I45: -43 | J45: 0 | K45: 0 | L45: -5207 | M45: -441 | N45: 0 | O45: 0 | P45: -134 | Q45: -3 | R45: 0 | S45: -722 | T45: -430 | U45: 0 | V45: -5.67
A46: December | B46: - | C46: - | D46: - | E46: - | F46: -5 | G46: -14 | H46: -163 | I46: -859 | J46: -109 | K46: -441 | L46: -1495 | M46: -423 | N46: -1933 | O46: -17 | P46: -165 | Q46: 0 | R46: -521 | S46: 0 | T46: -414 | U46: 0 | V46: -21.45
A47: Total | B47: - | C47: - | D47: - | E47: - | F47: =SUM(F35:F46) -> -5 | G47: -5259 | H47: -22105 | I47: -7462 | J47: -10060 | K47: -16134 | L47: =SUM(L35:L46) -> -10499 | M47: -5854 | N47: -14684 | O47: -4094 | P47: -1836 | Q47: -127 | R47: =SUM(R35:R46) -> -5724 | S47: =SUM(S35:S46) -> -1615 | T47: -2217 | U47: -1842 | V47: -1938.75
A48: Hidden columns B-D do not contain any data for CY 2004-2006
A49: *Collections for November 2008 are included in December totals due to a new processing system.
A50: ='Local SUT'!A71 -> Source: Minnesota Department of Revenue, Tax Research Division, November 2025
A51: end of worksheet

Sheet Clearwater (hidden)
A1: Clearwater Monthly Detail for Minnesota Local Sales & Use Tax
A2: ='Local SUT'!A2 -> CY 2004-2024
A3: Clearwater Local Sales Tax (0.5%)
A4: Month | B4: 2004 | C4: 2005 | D4: 2006 | E4: 2007 | F4: 2008 | G4: 2009 | H4: 2010 | I4: 2011 | J4: 2012 | K4: 2013 | L4: 2014 | M4: 2015 | N4: 2016 | O4: 2017 | P4: 2018 | Q4: 2019 | R4: 2020 | S4: 2021 | T4: 2022 | U4: 2023 | V4: 2024
A5: January | B5: - | C5: - | D5: - | E5: - | F5: - | G5: 9666 | H5: 11553 | I5: 12374 | J5: 15459 | K5: 13943 | L5: 16042 | M5: 15952 | N5: 18623 | O5: 19999 | P5: 19206 | Q5: 19866 | R5: 22222 | S5: 25492 | T5: 27865 | U5: 28952 | V5: 28011
A6: February | B6: - | C6: - | D6: - | E6: - | F6: - | G6: 8292 | H6: 11008 | I6: 12673 | J6: 11953 | K6: 12963 | L6: 13014 | M6: 14506 | N6: 15376 | O6: 15349 | P6: 14690 | Q6: 17616 | R6: 18527 | S6: 19379 | T6: 19028 | U6: 23009 | V6: 27232
A7: March | B7: - | C7: - | D7: - | E7: - | F7: - | G7: 8625 | H7: 9913 | I7: 13950 | J7: 12464 | K7: 12379 | L7: 13065 | M7: 15212 | N7: 15888 | O7: 16280 | P7: 14091 | Q7: 16669 | R7: 19178 | S7: 20632 | T7: 24169 | U7: 25632 | V7: 25743
A8: April | B8: - | C8: - | D8: - | E8: - | F8: - | G8: 8741 | H8: 11133 | I8: 14076 | J8: 13610 | K8: 13107 | L8: 14018 | M8: 16617 | N8: 18210 | O8: 17795 | P8: 16368 | Q8: 18413 | R8: 17362 | S8: 26855 | T8: 26467 | U8: 24779 | V8: 28178
A9: May | B9: - | C9: - | D9: - | E9: - | F9: - | G9: 9348 | H9: 11636 | I9: 14414 | J9: 13790 | K9: 12860 | L9: 14426 | M9: 19035 | N9: 16432 | O9: 20154 | P9: 16214 | Q9: 34030 | R9: 17726 | S9: 19446 | T9: 26371 | U9: 23852 | V9: 28794
A10: June | B10: - | C10: - | D10: - | E10: - | F10: - | G10: 11158 | H10: 14401 | I10: 25375 | J10: 15800 | K10: 16264 | L10: 18486 | M10: 18849 | N10: 20898 | O10: 22506 | P10: 20973 | Q10: 21085 | R10: 22591 | S10: 25746 | T10: 29573 | U10: 35931 | V10: 31482
A11: July | B11: - | C11: - | D11: - | E11: - | F11: - | G11: 11479 | H11: 13108 | I11: 13570 | J11: 13375 | K11: 8758 | L11: 15312 | M11: 13733 | N11: 15491 | O11: 19116 | P11: 15989 | Q11: 14528 | R11: 22724 | S11: 32384 | T11: 35231 | U11: 35221 | V11: 34295
A12: August | B12: - | C12: - | D12: - | E12: - | F12: - | G12: 18003 | H12: 20567 | I12: 20877 | J12: 19953 | K12: 25424 | L12: 23320 | M12: 27895 | N12: 29907 | O12: 22505 | P12: 25956 | Q12: 33307 | R12: 27853 | S12: 27814 | T12: 29571 | U12: 30510 | V12: 32941.59
A13: September | B13: - | C13: - | D13: - | E13: - | F13: - | G13: 14624 | H13: 15244 | I13: 21973 | J13: 18556 | K13: 18002 | L13: 19599 | M13: 19365 | N13: 20376 | O13: 19944 | P13: 22251 | Q13: 25448 | R13: 23475 | S13: 26748 | T13: 31624 | U13: 35731 | V13: 42384.71
A14: October | B14: - | C14: - | D14: - | E14: - | F14: - | G14: 12871 | H14: 13745 | I14: 16235 | J14: 14700 | K14: 15303 | L14: 17021 | M14: 19465 | N14: 19729 | O14: 22082 | P14: 16851 | Q14: 22401 | R14: 23745 | S14: 27442 | T14: 26524 | U14: 34609 | V14: 30832.46
A15: November | B15: - | C15: - | D15: - | E15: - | F15: - | G15: 11170 | H15: 17540 | I15: 14177 | J15: 13832 | K15: 14865 | L15: 16284 | M15: 16709 | N15: 16884 | O15: 18254 | P15: 19794 | Q15: 22316 | R15: 22067 | S15: 23683 | T15: 26497 | U15: 34010 | V15: 28655.01
A16: December | B16: - | C16: - | D16: - | E16: - | F16: 15274 | G16: 11101 | H16: 13117 | I16: 13485 | J16: 13454 | K16: 15764 | L16: 18358 | M16: 17119 | N16: 17976 | O16: 17500 | P16: 20842 | Q16: 19371 | R16: 21147 | S16: 23294 | T16: 26901 | U16: 30702 | V16: 25688.85
A17: Total | B17: - | C17: - | D17: - | E17: - | F17: =SUM(F5:F16) -> 15274 | G17: 135078 | H17: 162965 | I17: 193179 | J17: 176946 | K17: 179632 | L17: =SUM(L5:L16) -> 198945 | M17: 214457 | N17: 225790 | O17: 231484 | P17: 223225 | Q17: 265050 | R17: =SUM(R5:R16) -> 258617 | S17: 298915 | T17: 329821 | U17: 362938 | V17: 364237.62
A18: Clearwater Local Use Tax (0.5%)
A19: Month | B19: 2004 | C19: 2005 | D19: 2006 | E19: 2007 | F19: 2008 | G19: 2009 | H19: 2010 | I19: 2011 | J19: 2012 | K19: 2013 | L19: 2014 | M19: 2015 | N19: 2016 | O19: 2017 | P19: 2018 | Q19: 2019 | R19: 2020 | S19: 2021 | T19: 2022 | U19: 2023 | V19: 2024
A20: January | B20: - | C20: - | D20: - | E20: - | F20: - | G20: 600 | H20: 1922 | I20: 17600 | J20: 1285 | K20: 359 | L20: 417 | M20: 389 | N20: 275 | O20: 337 | P20: 2410 | Q20: 1090 | R20: 852 | S20: 655 | T20: 771 | U20: 13738 | V20: 554
A21: February | B21: - | C21: - | D21: - | E21: - | F21: - | G21: 156 | H21: 724 | I21: 5894 | J21: 496 | K21: 2660 | L21: 297 | M21: 229 | N21: 173 | O21: 216 | P21: 662 | Q21: 897 | R21: 2246 | S21: 408 | T21: 707 | U21: 515 | V21: 637
A22: March | B22: - | C22: - | D22: - | E22: - | F22: - | G22: 777 | H22: 817 | I22: 29357 | J22: -357 | K22: 1353 | L22: 222 | M22: 345 | N22: 205 | O22: 91 | P22: 234 | Q22: 859 | R22: 1628 | S22: 838 | T22: 325 | U22: 721 | V22: 509
A23: April | B23: - | C23: - | D23: - | E23: - | F23: - | G23: 285 | H23: 810 | I23: 33899 | J23: -126 | K23: 219 | L23: 244 | M23: 2231 | N23: 151 | O23: 100 | P23: 289 | Q23: 222 | R23: 411 | S23: 937 | T23: 678 | U23: 263 | V23: 5720
A24: May | B24: - | C24: - | D24: - | E24: - | F24: - | G24: 346 | H24: -171 | I24: 5881 | J24: 359 | K24: 326 | L24: 566 | M24: 630 | N24: 203 | O24: 419 | P24: 750 | Q24: 504 | R24: 1796 | S24: 525 | T24: 1573 | U24: 202 | V24: 6493
A25: June | B25: - | C25: - | D25: - | E25: - | F25: - | G25: 170 | H25: 210 | I25: 6003 | J25: 1104 | K25: -162 | L25: 627 | M25: 868 | N25: 380 | O25: -413 | P25: 1700 | Q25: 226 | R25: 475 | S25: 1319 | T25: 348 | U25: 2329 | V25: 4300
A26: July | B26: - | C26: - | D26: - | E26: - | F26: - | G26: 359 | H26: 285 | I26: 285 | J26: 360 | K26: 403 | L26: 778 | M26: 439 | N26: 112 | O26: 2634 | P26: 872 | Q26: 511 | R26: 555 | S26: 1221 | T26: -1643 | U26: 387 | V26: 628
A27: August | B27: - | C27: - | D27: - | E27: - | F27: - | G27: 149 | H27: 191 | I27: 585 | J27: 563 | K27: 226 | L27: 363 | M27: 322 | N27: 126 | O27: 300 | P27: 459 | Q27: 650 | R27: 928 | S27: 528 | T27: 1323 | U27: 275 | V27: 1763.87
A28: September | B28: - | C28: - | D28: - | E28: - | F28: - | G28: 132 | H28: 715 | I28: 5573 | J28: 260 | K28: 436 | L28: 357 | M28: 783 | N28: 123 | O28: 204 | P28: 351 | Q28: 461 | R28: 492 | S28: 2480 | T28: 1581 | U28: 738 | V28: 418.77
A29: October | B29: - | C29: - | D29: - | E29: - | F29: - | G29: 1883 | H29: 211 | I29: 1113 | J29: 242 | K29: 1910 | L29: -12 | M29: 490 | N29: 200 | O29: 325 | P29: 92 | Q29: 1016 | R29: 543 | S29: 2349 | T29: 548 | U29: 1193 | V29: 1429
A30: November | B30: - | C30: - | D30: - | E30: - | F30: - | G30: 1117 | H30: 267 | I30: 1592 | J30: 211 | K30: 612 | L30: 281 | M30: 1082 | N30: 444 | O30: 929 | P30: 262 | Q30: 2228 | R30: 10659 | S30: 844 | T30: 1092 | U30: 1117 | V30: 947.97
A31: December | B31: - | C31: - | D31: - | E31: - | F31: 868 | G31: 1998 | H31: 1431 | I31: 1038 | J31: 667 | K31: 465 | L31: 663 | M31: 448 | N31: 1134 | O31: 297 | P31: 299 | Q31: 577 | R31: 347 | S31: 958 | T31: 656 | U31: 548 | V31: 727
A32: Total | B32: - | C32: - | D32: - | E32: - | F32: =SUM(F20:F31) -> 868 | G32: 7972 | H32: 7412 | I32: 108820 | J32: 5064 | K32: 8807 | L32: =SUM(L20:L31) -> 4803 | M32: 8256 | N32: 3526 | O32: 5439 | P32: 8380 | Q32: 9241 | R32: =SUM(R20:R31) -> 20932 | S32: 13062 | T32: 7959 | U32: 22026 | V32: 24127.61
A33: Clearwater Refunds
A34: Month | B34: 2004 | C34: 2005 | D34: 2006 | E34: 2007 | F34: 2008 | G34: 2009 | H34: 2010 | I34: 2011 | J34: 2012 | K34: 2013 | L34: 2014 | M34: 2015 | N34: 2016 | O34: 2017 | P34: 2018 | Q34: 2019 | R34: 2020 | S34: 2021 | T34: 2022 | U34: 2023 | V34: 2024
A35: January | B35: - | C35: - | D35: - | E35: - | F35: - | G35: 0 | H35: 0 | I35: 0 | J35: 0 | K35: 0 | L35: 0 | M35: 0 | N35: 0 | O35: 0 | P35: 0 | Q35: 0 | R35: 0 | S35: 0 | T35: -2901 | U35: -8 | V35: 0
A36: February | B36: - | C36: - | D36: - | E36: - | F36: - | G36: 0 | H36: -2569 | I36: 0 | J36: 0 | K36: -991 | L36: -97 | M36: 0 | N36: -442 | O36: 0 | P36: 0 | Q36: 0 | R36: 0 | S36: 0 | T36: 0 | U36: -1 | V36: 0
A37: March | B37: - | C37: - | D37: - | E37: - | F37: - | G37: 0 | H37: 0 | I37: 0 | J37: -32657 | K37: 0 | L37: 0 | M37: 0 | N37: 0 | O37: 0 | P37: 0 | Q37: 0 | R37: 0 | S37: 0 | T37: 0 | U37: 0 | V37: 0
A38: April | B38: - | C38: - | D38: - | E38: - | F38: - | G38: 0 | H38: 0 | I38: 0 | J38: 0 | K38: 0 | L38: 0 | M38: 0 | N38: 0 | O38: 0 | P38: 0 | Q38: -582 | R38: 0 | S38: 0 | T38: 0 | U38: 0 | V38: 0
A39: May | B39: - | C39: - | D39: - | E39: - | F39: - | G39: 0 | H39: 0 | I39: 0 | J39: -1 | K39: 0 | L39: 0 | M39: 0 | N39: 0 | O39: 0 | P39: 0 | Q39: 0 | R39: 0 | S39: 0 | T39: 0 | U39: 0 | V39: 0
A40: June | B40: - | C40: - | D40: - | E40: - | F40: - | G40: 0 | H40: 0 | I40: 0 | J40: 0 | K40: 0 | L40: 0 | M40: 0 | N40: 0 | O40: 0 | P40: 0 | Q40: 0 | R40: 0 | S40: 0 | T40: 0 | U40: 0 | V40: -1
A41: July | B41: - | C41: - | D41: - | E41: - | F41: - | G41: 0 | H41: 0 | I41: 0 | J41: -22094 | K41: -310 | L41: 0 | M41: 0 | N41: 0 | O41: 0 | P41: 0 | Q41: 0 | R41: 0 | S41: -3 | T41: 0 | U41: -3939 | V41: -19
A42: August | B42: - | C42: - | D42: - | E42: - | F42: - | G42: 0 | H42: 0 | I42: 0 | J42: 0 | K42: -1 | L42: 0 | M42: -49 | N42: 0 | O42: 0 | P42: 0 | Q42: 0 | R42: 0 | S42: 0 | T42: 0 | U42: -20 | V42: 0
A43: September | B43: - | C43: - | D43: - | E43: - | F43: - | G43: 0 | H43: 0 | I43: -368 | J43: -2064 | K43: 0 | L43: 0 | M43: 0 | N43: 0 | O43: -5778 | P43: 0 | Q43: 0 | R43: 0 | S43: 0 | T43: -71 | U43: 0 | V43: 0
A44: October | B44: - | C44: - | D44: - | E44: - | F44: - | G44: 0 | H44: 0 | I44: -80143 | J44: 0 | K44: -41 | L44: -11256 | M44: 0 | N44: 0 | O44: 0 | P44: 0 | Q44: 0 | R44: -2 | S44: 0 | T44: 0 | U44: 0 | V44: 0
A45: November | B45: - | C45: - | D45: - | E45: - | F45: - | G45: 0 | H45: 0 | I45: 0 | J45: 0 | K45: 0 | L45: 0 | M45: 0 | N45: 0 | O45: 0 | P45: 0 | Q45: 0 | R45: 0 | S45: 0 | T45: 0 | U45: 0 | V45: 0
A46: December | B46: - | C46: - | D46: - | E46: - | F46: - | G46: 0 | H46: 0 | I46: 0 | J46: 0 | K46: 0 | L46: 0 | M46: 0 | N46: 0 | O46: 0 | P46: 0 | Q46: 0 | R46: 0 | S46: 0 | T46: 0 | U46: 0 | V46: 0
A47: Total | B47: - | C47: - | D47: - | E47: - | F47: - | G47: =SUM(G35:G46) -> 0 | H47: -2569 | I47: -80511 | J47: -56816 | K47: -1343 | L47: -11353 | M47: -49 | N47: -442 | O47: -5778 | P47: 0 | Q47: =SUM(Q35:Q46) -> -582 | R47: =SUM(R35:R46) -> -2 | S47: -3 | T47: -2972 | U47: -3968 | V47: -20
A48: Hidden columns B-E do not contain any data for CY 2004-2007
A49: ='Local SUT'!A71 -> Source: Minnesota Department of Revenue, Tax Research Division, November 2025
A50: end of worksheet

Sheet Cloquet (hidden)
A1: Cloquet Monthly Detail for Minnesota Local Sales & Use Tax
A2: ='Local SUT'!A2 -> CY 2004-2024
A3: Cloquet Local Sales Tax (0.5%)
A4: Month | B4: 2004 | C4: 2005 | D4: 2006 | E4: 2007 | F4: 2008 | G4: 2009 | H4: 2010 | I4: 2011 | J4: 2012 | K4: 2013 | L4: 2014 | M4: 2015 | N4: 2016 | O4: 2017 | P4: 2018 | Q4: 2019 | R4: 2020 | S4: 2021 | T4: 2022 | U4: 2023 | V4: 2024
A5: January | B5: - | C5: - | D5: - | E5: - | F5: - | G5: - | H5: - | I5: - | J5: - | K5: - | L5: 81318 | M5: 79573 | N5: 81133 | O5: 91267 | P5: 81208 | Q5: 81108 | R5: 88292 | S5: 100017 | T5: 103012 | U5: 111648 | V5: 220038
A6: February | B6: - | C6: - | D6: - | E6: - | F6: - | G6: - | H6: - | I6: - | J6: - | K6: - | L6: 66735 | M6: 61559 | N6: 65074 | O6: 65085 | P6: 59334 | Q6: 69129 | R6: 71657 | S6: 85364 | T6: 80079 | U6: 83175 | V6: 163983
A7: March | B7: - | C7: - | D7: - | E7: - | F7: - | G7: - | H7: - | I7: - | J7: - | K7: - | L7: 65172 | M7: 56448 | N7: 63811 | O7: 58178 | P7: 56429 | Q7: 64308 | R7: 63060 | S7: 76177 | T7: 77647 | U7: 78687 | V7: 162597
A8: April | B8: - | C8: - | D8: - | E8: - | F8: - | G8: - | H8: - | I8: - | J8: - | K8: - | L8: 65483 | M8: 67771 | N8: 67809 | O8: 70770 | P8: 69046 | Q8: 71960 | R8: 72015 | S8: 98582 | T8: 89366 | U8: 91835 | V8: 194970
A9: May | B9: - | C9: - | D9: - | E9: - | F9: - | G9: - | H9: - | I9: - | J9: - | K9: 53608 | L9: 61518 | M9: 66465 | N9: 69996 | O9: 70092 | P9: 60940 | Q9: 71986 | R9: 77164 | S9: 97455 | T9: 87507 | U9: 166572 | V9: 187236
A10: June | B10: - | C10: - | D10: - | E10: - | F10: - | G10: - | H10: - | I10: - | J10: - | K10: 71819 | L10: 75982 | M10: 78272 | N10: 79695 | O10: 80034 | P10: 78968 | Q10: 87336 | R10: 99761 | S10: 104899 | T10: 110719 | U10: 225040 | V10: 228700
A11: July | B11: - | C11: - | D11: - | E11: - | F11: - | G11: - | H11: - | I11: - | J11: - | K11: 65427 | L11: 76874 | M11: 78447 | N11: 80044 | O11: 83139 | P11: 76218 | Q11: 85219 | R11: 90163 | S11: 105373 | T11: 110811 | U11: 228694 | V11: 232254
A12: August | B12: - | C12: - | D12: - | E12: - | F12: - | G12: - | H12: - | I12: - | J12: - | K12: 87489 | L12: 78795 | M12: 82176 | N12: 84753 | O12: 82484 | P12: 82492 | Q12: 85977 | R12: 97775 | S12: 104011 | T12: 107887 | U12: 215707 | V12: 220591.35
A13: September | B13: - | C13: - | D13: - | E13: - | F13: - | G13: - | H13: - | I13: - | J13: - | K13: 77174 | L13: 76478 | M13: 73640 | N13: 78161 | O13: 78379 | P13: 76898 | Q13: 85321 | R13: 87701 | S13: 96586 | T13: 110201 | U13: 208285 | V13: 212673.84
A14: October | B14: - | C14: - | D14: - | E14: - | F14: - | G14: - | H14: - | I14: - | J14: - | K14: 73159 | L14: 71689 | M14: 70050 | N14: 77722 | O14: 75187 | P14: 76304 | Q14: 77532 | R14: 90385 | S14: 100705 | T14: 100329 | U14: 206236 | V14: 194777.99
A15: November | B15: - | C15: - | D15: - | E15: - | F15: - | G15: - | H15: - | I15: - | J15: - | K15: 71611 | L15: 72305 | M15: 73053 | N15: 72716 | O15: 70160 | P15: 78284 | Q15: 77937 | R15: 85795 | S15: 95472 | T15: 98039 | U15: 192422 | V15: 201010.39
A16: December | B16: - | C16: - | D16: - | E16: - | F16: - | G16: - | H16: - | I16: - | J16: - | K16: 68928 | L16: 69429 | M16: 67628 | N16: 74592 | O16: 69039 | P16: 74205 | Q16: 75842 | R16: 87561 | S16: 92358 | T16: 93607 | U16: 196709 | V16: 184373.34
A17: Total | B17: - | C17: - | D17: - | E17: - | F17: - | G17: - | H17: - | I17: - | J17: - | K17: =SUM(K5:K16) -> 569215 | L17: 861778 | M17: 855082 | N17: 895506 | O17: 893814 | P17: 870326 | Q17: =SUM(Q5:Q16) -> 933655 | R17: =SUM(R5:R16) -> 1011329 | S17: 1156999 | T17: 1169204 | U17: 2005010 | V17: 2403204.91
A18: Cloquet Local Use Tax (0.5%)
A19: Month | B19: 2004 | C19: 2005 | D19: 2006 | E19: 2007 | F19: 2008 | G19: 2009 | H19: 2010 | I19: 2011 | J19: 2012 | K19: 2013 | L19: 2014 | M19: 2015 | N19: 2016 | O19: 2017 | P19: 2018 | Q19: 2019 | R19: 2020 | S19: 2021 | T19: 2022 | U19: 2023 | V19: 2024
A20: January | B20: - | C20: - | D20: - | E20: - | F20: - | G20: - | H20: - | I20: - | J20: - | K20: - | L20: 13111 | M20: 45241 | N20: 6191 | O20: 9917 | P20: 8122 | Q20: 8057 | R20: 7252 | S20: 8320 | T20: 8118 | U20: 7054 | V20: 24937
A21: February | B21: - | C21: - | D21: - | E21: - | F21: - | G21: - | H21: - | I21: - | J21: - | K21: - | L21: 17953 | M21: 15191 | N21: 8513 | O21: 8541 | P21: 6395 | Q21: 10113 | R21: 4735 | S21: 5036 | T21: 8798 | U21: 9978 | V21: 18151
A22: March | B22: - | C22: - | D22: - | E22: - | F22: - | G22: - | H22: - | I22: - | J22: - | K22: - | L22: 10560 | M22: 17407 | N22: 6178 | O22: 5448 | P22: 5958 | Q22: 13311 | R22: 6698 | S22: 6327 | T22: 9315 | U22: 10391 | V22: 18794
A23: April | B23: - | C23: - | D23: - | E23: - | F23: - | G23: - | H23: - | I23: - | J23: - | K23: - | L23: 14176 | M23: 21837 | N23: 1712 | O23: 6911 | P23: 6276 | Q23: 8883 | R23: 6894 | S23: 7630 | T23: 9507 | U23: 11551 | V23: 15467
A24: May | B24: - | C24: - | D24: - | E24: - | F24: - | G24: - | H24: - | I24: - | J24: - | K24: 16292 | L24: 20155 | M24: 17034 | N24: 5264 | O24: 6719 | P24: 7127 | Q24: 7299 | R24: 6315 | S24: 8135 | T24: 11800 | U24: 18023 | V24: 13034
A25: June | B25: - | C25: - | D25: - | E25: - | F25: - | G25: - | H25: - | I25: - | J25: - | K25: 13965 | L25: 22237 | M25: 13301 | N25: 2210 | O25: 9004 | P25: 4824 | Q25: 7750 | R25: 8702 | S25: 11081 | T25: 7798 | U25: 18107 | V25: 13748
A26: July | B26: - | C26: - | D26: - | E26: - | F26: - | G26: - | H26: - | I26: - | J26: - | K26: 7031 | L26: 6273 | M26: 3148 | N26: 3434 | O26: 4999 | P26: 4016 | Q26: 5129 | R26: 8494 | S26: 10786 | T26: 11812 | U26: -19636 | V26: 23275
A27: August | B27: - | C27: - | D27: - | E27: - | F27: - | G27: - | H27: - | I27: - | J27: - | K27: 25192 | L27: 25128 | M27: 15660 | N27: 11391 | O27: 11554 | P27: 7932 | Q27: 10989 | R27: 6270 | S27: 12823 | T27: 13009 | U27: 12879 | V27: 25381.91
A28: September | B28: - | C28: - | D28: - | E28: - | F28: - | G28: - | H28: - | I28: - | J28: - | K28: 16268 | L28: 13757 | M28: 5129 | N28: 6795 | O28: 6672 | P28: 5427 | Q28: 5873 | R28: 11648 | S28: 13241 | T28: 11599 | U28: 17746 | V28: 32163.52
A29: October | B29: - | C29: - | D29: - | E29: - | F29: - | G29: - | H29: - | I29: - | J29: - | K29: 18251 | L29: 23794 | M29: 6079 | N29: 9292 | O29: 11995 | P29: 5728 | Q29: 15948 | R29: 10767 | S29: 10249 | T29: 11315 | U29: 29578 | V29: 20665
A30: November | B30: - | C30: - | D30: - | E30: - | F30: - | G30: - | H30: - | I30: - | J30: - | K30: 12716 | L30: 20307 | M30: 5247 | N30: 9211 | O30: 11638 | P30: 7396 | Q30: 5955 | R30: 6357 | S30: 9363 | T30: 10279 | U30: 18577 | V30: 27712.2
A31: December | B31: - | C31: - | D31: - | E31: - | F31: - | G31: - | H31: - | I31: - | J31: - | K31: 16832 | L31: 13677 | M31: 4958 | N31: 7247 | O31: 5143 | P31: 6805 | Q31: 6304 | R31: 5372 | S31: 7823 | T31: 11112 | U31: 16909 | V31: 19931.41
A32: Total | B32: - | C32: - | D32: - | E32: - | F32: - | G32: - | H32: - | I32: - | J32: - | K32: =SUM(K20:K31) -> 126547 | L32: 201128 | M32: 170232 | N32: 77438 | O32: 98541 | P32: 76006 | Q32: =SUM(Q20:Q31) -> 105611 | R32: =SUM(R20:R31) -> 89504 | S32: 110814 | T32: 124462 | U32: 151157 | V32: 253260.04
A33: Cloquet Refunds
A34: Month | B34: 2004 | C34: 2005 | D34: 2006 | E34: 2007 | F34: 2008 | G34: 2009 | H34: 2010 | I34: 2011 | J34: 2012 | K34: 2013 | L34: 2014 | M34: 2015 | N34: 2016 | O34: 2017 | P34: 2018 | Q34: 2019 | R34: 2020 | S34: 2021 | T34: 2022 | U34: 2023 | V34: 2024
A35: January | B35: - | C35: - | D35: - | E35: - | F35: - | G35: - | H35: - | I35: - | J35: - | K35: - | L35: 0 | M35: 0 | N35: -80916 | O35: 0 | P35: -14 | Q35: 0 | R35: -5520 | S35: 0 | T35: 0 | U35: 0 | V35: 0
A36: February | B36: - | C36: - | D36: - | E36: - | F36: - | G36: - | H36: - | I36: - | J36: - | K36: - | L36: -11 | M36: -132 | N36: -43663 | O36: 0 | P36: 0 | Q36: -35 | R36: 0 | S36: 0 | T36: 0 | U36: 0 | V36: 0
A37: March | B37: - | C37: - | D37: - | E37: - | F37: - | G37: - | H37: - | I37: - | J37: - | K37: - | L37: -181 | M37: -3596 | N37: -241 | O37: 0 | P37: 0 | Q37: -28 | R37: 0 | S37: -2 | T37: -8 | U37: 0 | V37: 0
A38: April | B38: - | C38: - | D38: - | E38: - | F38: - | G38: - | H38: - | I38: - | J38: - | K38: - | L38: -41868 | M38: -73 | N38: -509 | O38: -11 | P38: -1784 | Q38: -230 | R38: -628 | S38: 0 | T38: 0 | U38: 0 | V38: 0
A39: May | B39: - | C39: - | D39: - | E39: - | F39: - | G39: - | H39: - | I39: - | J39: - | K39: 0 | L39: -205 | M39: -50745 | N39: 0 | O39: 10 | P39: 0 | Q39: 0 | R39: -11511 | S39: 0 | T39: -6 | U39: 0 | V39: 0
A40: June | B40: - | C40: - | D40: - | E40: - | F40: - | G40: - | H40: - | I40: - | J40: - | K40: 0 | L40: 0 | M40: -44 | N40: -15607 | O40: 0 | P40: -38 | Q40: 0 | R40: 0 | S40: -2 | T40: 0 | U40: 0 | V40: 0
A41: July | B41: - | C41: - | D41: - | E41: - | F41: - | G41: - | H41: - | I41: - | J41: - | K41: 0 | L41: -466 | M41: -38382 | N41: -886 | O41: -47 | P41: 0 | Q41: 0 | R41: -611 | S41: -20 | T41: -4 | U41: -11 | V41: -2409
A42: August | B42: - | C42: - | D42: - | E42: - | F42: - | G42: - | H42: - | I42: - | J42: - | K42: 0 | L42: -26684 | M42: -92 | N42: 0 | O42: -31 | P42: 0 | Q42: 0 | R42: -17 | S42: -30 | T42: 0 | U42: 0 | V42: -17.75
A43: September | B43: - | C43: - | D43: - | E43: - | F43: - | G43: - | H43: - | I43: - | J43: - | K43: 0 | L43: 0 | M43: 0 | N43: 0 | O43: 0 | P43: 0 | Q43: -549 | R43: 0 | S43: 0 | T43: 0 | U43: 0 | V43: 0
A44: October | B44: - | C44: - | D44: - | E44: - | F44: - | G44: - | H44: - | I44: - | J44: - | K44: 0 | L44: 0 | M44: -21120 | N44: 0 | O44: -1974 | P44: 0 | Q44: 0 | R44: 0 | S44: -42 | T44: 0 | U44: 0 | V44: 0
A45: November | B45: - | C45: - | D45: - | E45: - | F45: - | G45: - | H45: - | I45: - | J45: - | K45: 0 | L45: 0 | M45: -33 | N45: 0 | O45: 0 | P45: 0 | Q45: 0 | R45: 0 | S45: 0 | T45: 0 | U45: 0 | V45: 0
A46: December | B46: - | C46: - | D46: - | E46: - | F46: - | G46: - | H46: - | I46: - | J46: - | K46: 0 | L46: 0 | M46: 0 | N46: 0 | O46: 0 | P46: 0 | Q46: 0 | R46: -4 | S46: 0 | T46: 0 | U46: 0
A47: Total | B47: - | C47: - | D47: - | E47: - | F47: - | G47: - | H47: - | I47: - | J47: - | K47: =SUM(K35:K46) -> 0 | L47: -69415 | M47: -114217 | N47: -141822 | O47: -2053 | P47: -1836 | Q47: =SUM(Q35:Q46) -> -842 | R47: =SUM(R35:R46) -> -18291 | S47: -96 | T47: -18 | U47: -11 | V47: -2426.75
A48: Hidden columns B-J do not contain any data for CY 2004-2012
A49: ='Local SUT'!A71 -> Source: Minnesota Department of Revenue, Tax Research Division, November 2025
A50: end of worksheet

Sheet Detroit Lakes (hidden)
A1: Detroit Lakes Monthly Detail for Minnesota Local Sales & Use Tax
A2: ='Local SUT'!A2 -> CY 2004-2024
A3: Detroit Lakes Local Sales Tax (0.5%)
A4: Month | B4: 2004 | C4: 2005 | D4: 2006 | E4: 2007 | F4: 2008 | G4: 2009 | H4: 2010 | I4: 2011 | J4: 2012 | K4: 2013 | L4: 2014 | M4: 2015 | N4: 2016 | O4: 2017 | P4: 2018 | Q4: 2019 | R4: 2020 | S4: 2021 | T4: 2022 | U4: 2023 | V4: 2024
A5: January | B5: - | C5: - | D5: - | E5: - | F5: - | G5: - | H5: - | I5: - | J5: - | K5: - | L5: - | M5: - | N5: - | O5: - | P5: - | Q5: - | R5: 124016 | S5: 136533 | T5: 147692 | U5: 150371 | V5: 1782
A6: February | B6: - | C6: - | D6: - | E6: - | F6: - | G6: - | H6: - | I6: - | J6: - | K6: - | L6: - | M6: - | N6: - | O6: - | P6: - | Q6: - | R6: 99010 | S6: 113725 | T6: 120169 | U6: 134316 | V6: 2265
A7: March | B7: - | C7: - | D7: - | E7: - | F7: - | G7: - | H7: - | I7: - | J7: - | K7: - | L7: - | M7: - | N7: - | O7: - | P7: - | Q7: - | R7: 101093 | S7: 108285 | T7: 115231 | U7: 120753 | V7: 5663
A8: April | B8: - | C8: - | D8: - | E8: - | F8: - | G8: - | H8: - | I8: - | J8: - | K8: - | L8: - | M8: - | N8: - | O8: - | P8: - | Q8: - | R8: 105762 | S8: 148898 | T8: 149611 | U8: 143027 | V8: 640
A9: May | B9: - | C9: - | D9: - | E9: - | F9: - | G9: - | H9: - | I9: - | J9: - | K9: - | L9: - | M9: - | N9: - | O9: - | P9: - | Q9: - | R9: 116827 | S9: 164403 | T9: 142594 | U9: 142771 | V9: 46
A10: June | B10: - | C10: - | D10: - | E10: - | F10: - | G10: - | H10: - | I10: - | J10: - | K10: - | L10: - | M10: - | N10: - | O10: - | P10: - | Q10: - | R10: 161488 | S10: 186875 | T10: 221053 | U10: 204085 | V10: 1602
A11: July | B11: - | C11: - | D11: - | E11: - | F11: - | G11: - | H11: - | I11: - | J11: - | K11: - | L11: - | M11: - | N11: - | O11: - | P11: - | Q11: - | R11: 135489 | S11: 178413 | T11: 210472 | U11: 217828 | V11: -125 | W11: Tax Ended 6/30/2023
A12: August | B12: - | C12: - | D12: - | E12: - | F12: - | G12: - | H12: - | I12: - | J12: - | K12: - | L12: - | M12: - | N12: - | O12: - | P12: - | Q12: - | R12: 206077 | S12: 198709 | T12: 207464 | U12: 941 | V12: 2946.46
A13: September | B13: - | C13: - | D13: - | E13: - | F13: - | G13: - | H13: - | I13: - | J13: - | K13: - | L13: - | M13: - | N13: - | O13: - | P13: - | Q13: - | R13: 152731 | S13: 168506 | T13: 184497 | U13: 370 | V13: 276.74
A14: October | B14: - | C14: - | D14: - | E14: - | F14: - | G14: - | H14: - | I14: - | J14: - | K14: - | L14: - | M14: - | N14: - | O14: - | P14: - | Q14: 25 | R14: 140587 | S14: 158145 | T14: 178733 | U14: 273 | V14: -151.11
A15: November | B15: - | C15: - | D15: - | E15: - | F15: - | G15: - | H15: - | I15: - | J15: - | K15: - | L15: - | M15: - | N15: - | O15: - | P15: - | Q15: 120536 | R15: 129890 | S15: 148927 | T15: 155115 | U15: 113 | V15: -157.76
A16: December | B16: - | C16: - | D16: - | E16: - | F16: - | G16: - | H16: - | I16: - | J16: - | K16: - | L16: - | M16: - | N16: - | O16: - | P16: - | Q16: 114741 | R16: 118501 | S16: 118278 | T16: 147815 | U16: 1516 | V16: -2238.4
A17: Total | B17: - | C17: - | D17: - | E17: - | F17: - | G17: - | H17: - | I17: - | J17: - | K17: =SUM(K5:K16) -> 0 | L17: 0 | M17: 0 | N17: 0 | O17: 0 | P17: 0 | Q17: 235302 | R17: =SUM(R5:R16) -> 1591471 | S17: 1829697 | T17: 1980446 | U17: 1116364 | V17: 12548.93
A18: Detroit Lakes Local Use Tax (0.5%)
A19: Month | B19: 2004 | C19: 2005 | D19: 2006 | E19: 2007 | F19: 2008 | G19: 2009 | H19: 2010 | I19: 2011 | J19: 2012 | K19: 2013 | L19: 2014 | M19: 2015 | N19: 2016 | O19: 2017 | P19: 2018 | Q19: 2019 | R19: 2020 | S19: 2021 | T19: 2022 | U19: 2023 | V19: 2024
A20: January | B20: - | C20: - | D20: - | E20: - | F20: - | G20: - | H20: - | I20: - | J20: - | K20: - | L20: - | M20: - | N20: - | O20: - | P20: - | Q20: - | R20: 3219 | S20: 10680 | T20: 7759 | U20: 8544 | V20: 161
A21: February | B21: - | C21: - | D21: - | E21: - | F21: - | G21: - | H21: - | I21: - | J21: - | K21: - | L21: - | M21: - | N21: - | O21: - | P21: - | Q21: - | R21: 2882 | S21: 3051 | T21: 6104 | U21: 6411 | V21: 462
A22: March | B22: - | C22: - | D22: - | E22: - | F22: - | G22: - | H22: - | I22: - | J22: - | K22: - | L22: - | M22: - | N22: - | O22: - | P22: - | Q22: - | R22: 4158 | S22: 5209 | T22: 5215 | U22: 3693 | V22: 500
A23: April | B23: - | C23: - | D23: - | E23: - | F23: - | G23: - | H23: - | I23: - | J23: - | K23: - | L23: - | M23: - | N23: - | O23: - | P23: - | Q23: - | R23: 4192 | S23: 6154 | T23: 6355 | U23: 13209 | V23: 0
A24: May | B24: - | C24: - | D24: - | E24: - | F24: - | G24: - | H24: - | I24: - | J24: - | K24: - | L24: - | M24: - | N24: - | O24: - | P24: - | Q24: - | R24: 3861 | S24: 6357 | T24: 4917 | U24: 5750 | V24: 0
A25: June | B25: - | C25: - | D25: - | E25: - | F25: - | G25: - | H25: - | I25: - | J25: - | K25: - | L25: - | M25: - | N25: - | O25: - | P25: - | Q25: - | R25: 5380 | S25: 5991 | T25: 4082 | U25: 7753 | V25: 17
A26: July | B26: - | C26: - | D26: - | E26: - | F26: - | G26: - | H26: - | I26: - | J26: - | K26: - | L26: - | M26: - | N26: - | O26: - | P26: - | Q26: - | R26: 8556 | S26: 7603 | T26: 10816 | U26: 7840 | V26: 0
A27: August | B27: - | C27: - | D27: - | E27: - | F27: - | G27: - | H27: - | I27: - | J27: - | K27: - | L27: - | M27: - | N27: - | O27: - | P27: - | Q27: - | R27: 5810 | S27: 11271 | T27: 7065 | U27: 412 | V27: 0
A28: September | B28: - | C28: - | D28: - | E28: - | F28: - | G28: - | H28: - | I28: - | J28: - | K28: - | L28: - | M28: - | N28: - | O28: - | P28: - | Q28: - | R28: 4547 | S28: 5244 | T28: 8032 | U28: 79 | V28: 0
A29: October | B29: - | C29: - | D29: - | E29: - | F29: - | G29: - | H29: - | I29: - | J29: - | K29: - | L29: - | M29: - | N29: - | O29: - | P29: - | Q29: 0 | R29: 5059 | S29: 5463 | T29: 8219 | U29: 3 | V29: 243.52
A30: November | B30: - | C30: - | D30: - | E30: - | F30: - | G30: - | H30: - | I30: - | J30: - | K30: - | L30: - | M30: - | N30: - | O30: - | P30: - | Q30: 2651 | R30: 5792 | S30: 8245 | T30: 7226 | U30: 10 | V30: 0
A31: December | B31: - | C31: - | D31: - | E31: - | F31: - | G31: - | H31: - | I31: - | J31: - | K31: - | L31: - | M31: - | N31: - | O31: - | P31: - | Q31: 2502 | R31: 5405 | S31: 6930 | T31: 6844 | U31: 261 | V31: 0
A32: Total | B32: - | C32: - | D32: - | E32: - | F32: - | G32: - | H32: - | I32: - | J32: - | K32: =SUM(K20:K31) -> 0 | L32: 0 | M32: 0 | N32: 0 | O32: 0 | P32: 0 | Q32: 5153 | R32: =SUM(R20:R31) -> 58861 | S32: 82198 | T32: 82634 | U32: 53965 | V32: 1383.52
A33: Detroit Lakes Refunds
A34: Month | B34: 2004 | C34: 2005 | D34: 2006 | E34: 2007 | F34: 2008 | G34: 2009 | H34: 2010 | I34: 2011 | J34: 2012 | K34: 2013 | L34: 2014 | M34: 2015 | N34: 2016 | O34: 2017 | P34: 2018 | Q34: 2019 | R34: 2020 | S34: 2021 | T34: 2022 | U34: 2023 | V34: 2024
A35: January | B35: - | C35: - | D35: - | E35: - | F35: - | G35: - | H35: - | I35: - | J35: - | K35: - | L35: - | M35: - | N35: - | O35: - | P35: - | Q35: - | R35: 0 | S35: 0 | T35: 0 | U35: 0 | V35: -487
A36: February | B36: - | C36: - | D36: - | E36: - | F36: - | G36: - | H36: - | I36: - | J36: - | K36: - | L36: - | M36: - | N36: - | O36: - | P36: - | Q36: - | R36: 0 | S36: 0 | T36: 0 | U36: 0 | V36: -9
A37: March | B37: - | C37: - | D37: - | E37: - | F37: - | G37: - | H37: - | I37: - | J37: - | K37: - | L37: - | M37: - | N37: - | O37: - | P37: - | Q37: - | R37: 0 | S37: 0 | T37: 0 | U37: 0 | V37: 0
A38: April | B38: - | C38: - | D38: - | E38: - | F38: - | G38: - | H38: - | I38: - | J38: - | K38: - | L38: - | M38: - | N38: - | O38: - | P38: - | Q38: - | R38: 0 | S38: 0 | T38: 0 | U38: 0 | V38: -32
A39: May | B39: - | C39: - | D39: - | E39: - | F39: - | G39: - | H39: - | I39: - | J39: - | K39: - | L39: - | M39: - | N39: - | O39: - | P39: - | Q39: - | R39: 0 | S39: 0 | T39: 0 | U39: 0 | V39: 0
A40: June | B40: - | C40: - | D40: - | E40: - | F40: - | G40: - | H40: - | I40: - | J40: - | K40: - | L40: - | M40: - | N40: - | O40: - | P40: - | Q40: - | R40: 0 | S40: 0 | T40: 0 | U40: 0 | V40: -1097
A41: July | B41: - | C41: - | D41: - | E41: - | F41: - | G41: - | H41: - | I41: - | J41: - | K41: - | L41: - | M41: - | N41: - | O41: - | P41: - | Q41: - | R41: 0 | S41: 0 | T41: -2 | U41: -45 | V41: 0
A42: August | B42: - | C42: - | D42: - | E42: - | F42: - | G42: - | H42: - | I42: - | J42: - | K42: - | L42: - | M42: - | N42: - | O42: - | P42: - | Q42: - | R42: 0 | S42: -2597 | T42: 0 | U42: 0 | V42: 0
A43: September | B43: - | C43: - | D43: - | E43: - | F43: - | G43: - | H43: - | I43: - | J43: - | K43: - | L43: - | M43: - | N43: - | O43: - | P43: - | Q43: - | R43: 0 | S43: 0 | T43: 0 | U43: -8 | V43: -3170.82
A44: October | B44: - | C44: - | D44: - | E44: - | F44: - | G44: - | H44: - | I44: - | J44: - | K44: - | L44: - | M44: - | N44: - | O44: - | P44: - | Q44: 0 | R44: -505 | S44: 0 | T44: 0 | U44: -1032 | V44: -87.54
A45: November | B45: - | C45: - | D45: - | E45: - | F45: - | G45: - | H45: - | I45: - | J45: - | K45: - | L45: - | M45: - | N45: - | O45: - | P45: - | Q45: 0 | R45: 0 | S45: 0 | T45: -2004 | U45: 0 | V45: 0
A46: December | B46: - | C46: - | D46: - | E46: - | F46: - | G46: - | H46: - | I46: - | J46: - | K46: - | L46: - | M46: - | N46: - | O46: - | P46: - | Q46: 0 | R46: 0 | S46: -732 | T46: 0 | U46: -96 | V46: 0
A47: Total | B47: - | C47: - | D47: - | E47: - | F47: - | G47: - | H47: - | I47: - | J47: - | K47: =SUM(K35:K46) -> 0 | L47: 0 | M47: 0 | N47: 0 | O47: 0 | P47: 0 | Q47: 0 | R47: =SUM(R35:R46) -> -505 | S47: -3329 | T47: -2006 | U47: -1181 | V47: -4883.36
A48: Hidden columns B-P do not contain any data for CY 2004-2018
A49: ='Local SUT'!A71 -> Source: Minnesota Department of Revenue, Tax Research Division, November 2025
A50: end of worksheet

Sheet Duluth (hidden)
A1: Duluth Monthly Detail for Minnesota Local Sales & Use Tax
A2: ='Local SUT'!A2 -> CY 2004-2024
A3: Duluth Local Sales Tax (1.0%)
A4: Month | B4: 2004 | C4: 2005 | D4: 2006 | E4: 2007 | F4: 2008 | G4: 2009 | H4: 2010 | I4: 2011 | J4: 2012 | K4: 2013 | L4: 2014 | M4: 2015 | N4: 2016 | O4: 2017 | P4: 2018 | Q4: 2019 | R4: 2020 | S4: 2021 | T4: 2022 | U4: 2023 | V4: 2024
A5: January | B5: - | C5: - | D5: 1100000 | E5: 1149700.81 | F5: 1150477.43 | G5: 1202596 | H5: 1080470 | I5: 1293108 | J5: 1216559 | K5: 1244904 | L5: 1204872 | M5: 1248226 | N5: 1377822 | O5: 1368880 | P5: 1342642 | Q5: 1430798 | R5: 2180025 | S5: 2065588 | T5: 2319004 | U5: 2651363 | V5: 2717559
A6: February | B6: - | C6: - | D6: 636784 | E6: 803335.18 | F6: 811649.93 | G6: 916337 | H6: 758611 | I6: 828005 | J6: 847692 | K6: 890505 | L6: 917223 | M6: 980647 | N6: 943946 | O6: 938801 | P6: 991726 | Q6: 1016440 | R6: 1564709 | S6: 1585307 | T6: 1786268 | U6: 2023633 | V6: 2106834
A7: March | B7: - | C7: - | D7: 714252 | E7: 762679.07 | F7: 813192.23 | G7: 840876 | H7: 783762 | I7: 824165 | J7: 850853 | K7: 878447 | L7: 882235 | M7: 958111 | N7: 984618 | O7: 886866 | P7: 906465 | Q7: 965453 | R7: 1526023 | S7: 1608473 | T7: 1783066 | U7: 1958302 | V7: 1993544
A8: April | B8: - | C8: - | D8: 850040.92 | E8: 907497.1 | F8: 895118.82 | G8: 823453 | H8: 918438 | I8: 917031 | J8: 970290 | K8: 973274 | L8: 1014022 | M8: 1079057 | N8: 1109290 | O8: 1066144 | P8: 1103695 | Q8: 1155148 | R8: 1543213 | S8: 2157028 | T8: 2308919 | U8: 2289822 | V8: 2298628
A9: May | B9: - | C9: - | D9: 768187.6 | E9: 814622.74 | F9: 827826.89 | G9: 791359 | H9: 824062 | I9: 914077 | J9: 884184 | K9: 897161 | L9: 964869 | M9: 1013959 | N9: 1059982 | O9: 1028633 | P9: 1023261 | Q9: 1148645 | R9: 1230669 | S9: 1879028 | T9: 1993723 | U9: 2134625 | V9: 2192282
A10: June | B10: - | C10: - | D10: 851783.55 | E10: 909642.13 | F10: 951780.76 | G10: 820463 | H10: 887143 | I10: 926239 | J10: 913584 | K10: 1035556 | L10: 1040996 | M10: 1099861 | N10: 1122756 | O10: 1086942 | P10: 1160116 | Q10: 1191641 | R10: 1505662 | S10: 1980684 | T10: 2597716 | U10: 2392235 | V10: 2356018
A11: July | B11: - | C11: - | D11: 752721.99 | E11: 867505.14 | F11: 878346.3 | G11: 726617 | H11: 853723 | I11: 946892 | J11: 946288 | K11: 933866 | L11: 1034958 | M11: 1048169 | N11: 1085855 | O11: 1138691 | P11: 1125659 | Q11: 1196854 | R11: 1697589 | S11: 2220432 | T11: 2490688 | U11: 2773536 | V11: 2623018
A12: August | B12: - | C12: - | D12: 1102024.68 | E12: 1146373.18 | F12: 1177959.93 | G12: 1145246 | H12: 1151985 | I12: 1157538 | J12: 1189067 | K12: 1307589 | L12: 1379029 | M12: 1430738 | N12: 1384637 | O12: 1329476 | P12: 1451033 | Q12: 1505644 | R12: 2116659 | S12: 2507230 | T12: 2457895 | U12: 2669053 | V12: 2645870.81
A13: September | B13: - | C13: - | D13: 958702.59 | E13: 1010893.21 | F13: 1014974.82 | G13: 913064 | H13: 1042962 | I13: 1070810 | J13: 1142752 | K13: 1144006 | L13: 1209391 | M13: 1227345 | N13: 1263076 | O13: 1292274 | P13: 1320131 | Q13: 1388607 | R13: 1975566 | S13: 2300921 | T13: 2628382 | U13: 2727009 | V13: 2749782.37
A14: October | B14: - | C14: - | D14: 971138.17 | E14: 1012141.04 | F14: 1061739.79 | G14: 1006823 | H14: 1078319 | I14: 1100150 | J14: 1108974 | K14: 1148424 | L14: 1208922 | M14: 1253834 | N14: 1249606 | O14: 1262801 | P14: 1267794 | Q14: 1351088 | R14: 2018896 | S14: 2443761 | T14: 2601085 | U14: 2651005 | V14: 2581302.58
A15: November | B15: - | C15: - | D15: 872638.32 | E15: 931766.98 | F15: * | G15: 876361 | H15: 977353 | I15: 997636 | J15: 1038935 | K15: 1083089 | L15: 1202724 | M15: 1203905 | N15: 1168396 | O15: 1163128 | P15: 1256779 | Q15: 1878761 | R15: 1846266 | S15: 2125529 | T15: 2403009 | U15: 2497829 | V15: 2573743.99
A16: December | B16: - | C16: - | D16: 925267.16 | E16: 916494.18 | F16: 1573405 | G16: 842382 | H16: 934411 | I16: 926885 | J16: 986061 | K16: 1019220 | L16: 1150050 | M16: 1155927 | N16: 1106518 | O16: 1117621 | P16: 1199884 | Q16: 1684209 | R16: 1704728 | S16: 2045675 | T16: 2561862 | U16: 2237458 | V16: 2287450.74
A17: Total | B17: - | C17: - | D17: =SUM(D5:D16) -> 10503540.98 | E17: 11232650.76 | F17: 11156471.9 | G17: 10905577 | H17: 11291239 | I17: 11902536 | J17: =SUM(J5:J16) -> 12095239 | K17: 12556041 | L17: 13209291 | M17: 13699779 | N17: 13856502 | O17: 13680257 | P17: 14149185 | Q17: =SUM(Q5:Q16) -> 15913288 | R17: =SUM(R5:R16) -> 20910005 | S17: 24919656 | T17: 27931617 | U17: 29005870 | V17: 29126033.49
A18: Duluth Local Use Tax (1.0%)
A19: Month | B19: 2004 | C19: 2005 | D19: 2006 | E19: 2007 | F19: 2008 | G19: 2009 | H19: 2010 | I19: 2011 | J19: 2012 | K19: 2013 | L19: 2014 | M19: 2015 | N19: 2016 | O19: 2017 | P19: 2018 | Q19: 2019 | R19: 2020 | S19: 2021 | T19: 2022 | U19: 2023 | V19: 2024
A20: January | B20: - | C20: - | D20: 1665 | E20: 109404.8 | F20: 82581.78 | G20: 87968 | H20: 158813 | I20: 96146 | J20: 79746 | K20: 146565 | L20: 130087 | M20: 108857 | N20: 73897 | O20: 73015 | P20: 84679 | Q20: 94634 | R20: 121735 | S20: 108772 | T20: 35537 | U20: 128631 | V20: 145952
A21: February | B21: - | C21: - | D21: 49278 | E21: 78716.04 | F21: 87756.64 | G21: 62737 | H21: -34941 | I21: 56115 | J21: 89958 | K21: 82539 | L21: 78212 | M21: 83154 | N21: 59346 | O21: 58096 | P21: 53590 | Q21: 57077 | R21: 52805 | S21: 65560 | T21: 75128 | U21: 91402 | V21: 114614
A22: March | B22: - | C22: - | D22: 67633.38 | E22: 49452.61 | F22: 67117.59 | G22: 43724 | H22: 31824 | I22: 41964 | J22: 59990 | K22: 54494 | L22: 76320 | M22: 57228 | N22: 50203 | O22: 58205 | P22: 90752 | Q22: 59422 | R22: 54065 | S22: 91763 | T22: 88196 | U22: 78129 | V22: 169627
A23: April | B23: - | C23: - | D23: 67957.68 | E23: 84562.09 | F23: 124957.51 | G23: 48273 | H23: 57626 | I23: 63982 | J23: 73339 | K23: 87769 | L23: 78851 | M23: 91532 | N23: 58858 | O23: 70468 | P23: 72059 | Q23: 59575 | R23: 92245 | S23: 89381 | T23: 96271 | U23: 124337 | V23: 119898
A24: May | B24: - | C24: - | D24: 72218.68 | E24: 59086.12 | F24: 100407.45 | G24: 58239 | H24: 64449 | I24: 60369 | J24: 73574 | K24: 66815 | L24: 84949 | M24: 76954 | N24: 59669 | O24: 50310 | P24: 73352 | Q24: 54437 | R24: 68722 | S24: 100667 | T24: 119430 | U24: 80309 | V24: 87442
A25: June | B25: - | C25: - | D25: 76318.71 | E25: 98071.05 | F25: 95157.36 | G25: 48296 | H25: 49131 | I25: 57943 | J25: 69729 | K25: 80631 | L25: 74826 | M25: 116543 | N25: 47576 | O25: 71577 | P25: 58220 | Q25: 56787 | R25: 66474 | S25: 70955 | T25: 91605 | U25: 118263 | V25: 107173
A26: July | B26: - | C26: - | D26: 61267.86 | E26: 98755.5 | F26: 111151.48 | G26: 69589 | H26: 52128 | I26: 78762 | J26: 81409 | K26: 100670 | L26: 63687 | M26: 79277 | N26: 65977 | O26: 62654 | P26: 96548 | Q26: 61723 | R26: 81727 | S26: 110760 | T26: 101892 | U26: 130906 | V26: 161651
A27: August | B27: - | C27: - | D27: 89604.01 | E27: 94631.78 | F27: 104458.02 | G27: 58987 | H27: 83941 | I27: 59133 | J27: 87225 | K27: 109450 | L27: 81231 | M27: 97700 | N27: 60247 | O27: 103590 | P27: 151266 | Q27: 76004 | R27: 185050 | S27: 95190 | T27: 96354 | U27: 129727 | V27: 98739.73
A28: September | B28: - | C28: - | D28: 84969.29 | E28: 73516.95 | F28: 62521.33 | G28: 59200 | H28: 52264 | I28: 61049 | J28: 76196 | K28: 83220 | L28: 80018 | M28: 79254 | N28: 57232 | O28: 68660 | P28: 73335 | Q28: 68455 | R28: 98896 | S28: 85534 | T28: 99218 | U28: 116063 | V28: 116748.2
A29: October | B29: - | C29: - | D29: 89916.08 | E29: 82079.17 | F29: 91135.9 | G29: 80473 | H29: 75578 | I29: 84997 | J29: 89951 | K29: 127181 | L29: 104976 | M29: 84726 | N29: 67316 | O29: 92597 | P29: 75936 | Q29: 73147 | R29: 106078 | S29: 98679 | T29: 59242 | U29: 119902 | V29: 136968.79
A30: November | B30: - | C30: - | D30: 80804.63 | E30: 86937.67 | F30: * | G30: 69997 | H30: 61384 | I30: 71792 | J30: 105354 | K30: 106642 | L30: 134328 | M30: 74765 | N30: 60548 | O30: 62502 | P30: 96699 | Q30: 95985 | R30: 82157 | S30: 106202 | T30: 108544 | U30: 161135 | V30: 187596.54
A31: December | B31: - | C31: - | D31: 152984.84 | E31: 78114.24 | F31: 111219 | G31: 48772 | H31: 141222 | I31: 73921 | J31: 86514 | K31: 83054 | L31: 78032 | M31: 63547 | N31: 65621 | O31: 54633 | P31: 64108 | Q31: 47226 | R31: 115096 | S31: 84722 | T31: 98613 | U31: 133144 | V31: 92828.97
A32: Total | B32: - | C32: - | D32: =SUM(D20:D31) -> 894618.16 | E32: 993328.02 | F32: 1038464.06 | G32: 736255 | H32: 793419 | I32: 806173 | J32: =SUM(J20:J31) -> 972985 | K32: 1129030 | L32: 1065517 | M32: 1013537 | N32: 726490 | O32: 826307 | P32: 990544 | Q32: =SUM(Q20:Q31) -> 804472 | R32: =SUM(R20:R31) -> 1125050 | S32: 1108185 | T32: 1070030 | U32: 1411948 | V32: 1539239.23
A33: Duluth Refunds
A34: Month | B34: 2004 | C34: 2005 | D34: 2006 | E34: 2007 | F34: 2008 | G34: 2009 | H34: 2010 | I34: 2011 | J34: 2012 | K34: 2013 | L34: 2014 | M34: 2015 | N34: 2016 | O34: 2017 | P34: 2018 | Q34: 2019 | R34: 2020 | S34: 2021 | T34: 2022 | U34: 2023 | V34: 2024
A35: January | B35: - | C35: - | D35: - | E35: - | F35: - | G35: -2267 | H35: -101 | I35: -201 | J35: -1286 | K35: -56385 | L35: -2584 | M35: -21228 | N35: -16346 | O35: -3922 | P35: -1037 | Q35: 0 | R35: -24914 | S35: 0 | T35: -3603 | U35: 0 | V35: -683
A36: February | B36: - | C36: - | D36: - | E36: - | F36: - | G36: -369 | H36: -75069 | I36: -77542 | J36: -22342 | K36: -5725 | L36: -75884 | M36: -55610 | N36: -322358 | O36: -1325 | P36: -9263 | Q36: -14139 | R36: -766 | S36: -1183 | T36: -3315 | U36: -1554 | V36: -289
A37: March | B37: - | C37: - | D37: - | E37: - | F37: - | G37: -105022 | H37: -9173 | I37: -42456 | J37: -25721 | K37: -230 | L37: -8806 | M37: -2578 | N37: -2366 | O37: -467 | P37: -98197 | Q37: -7064 | R37: -7796 | S37: -908 | T37: -2529 | U37: -1138 | V37: -32
A38: April | B38: - | C38: - | D38: - | E38: - | F38: - | G38: -1151 | H38: -3060 | I38: -504 | J38: -3175 | K38: -18 | L38: -46647 | M38: -41470 | N38: -5032 | O38: -255 | P38: -650 | Q38: -6275 | R38: -16212 | S38: -2934 | T38: 0 | U38: -2451 | V38: 0
A39: May | B39: - | C39: - | D39: - | E39: - | F39: - | G39: -11114 | H39: -3131 | I39: 0 | J39: -634 | K39: -7317 | L39: -4529 | M39: -378 | N39: -74607 | O39: -1116 | P39: 0 | Q39: -8770 | R39: -4636 | S39: -16159 | T39: -1167 | U39: 0 | V39: -952
A40: June | B40: - | C40: - | D40: - | E40: - | F40: - | G40: -5333 | H40: -2999 | I40: -2721 | J40: -1078 | K40: -5090 | L40: -11490 | M40: -205889 | N40: -6348 | O40: -3426 | P40: -8217 | Q40: -9076 | R40: -6735 | S40: -71 | T40: -1293 | U40: -35783 | V40: 0
A41: July | B41: - | C41: - | D41: - | E41: - | F41: - | G41: -10571 | H41: -343 | I41: -25431 | J41: -3810 | K41: -704 | L41: -1344 | M41: -916 | N41: -39308 | O41: -1423 | P41: -48998 | Q41: -7334 | R41: -20843 | S41: -193 | T41: -16285 | U41: -2186 | V41: -3904
A42: August | B42: - | C42: - | D42: - | E42: - | F42: - | G42: -16232 | H42: 0 | I42: -2919 | J42: -34731 | K42: -47200 | L42: -32303 | M42: -4798 | N42: -721 | O42: -23715 | P42: -42578 | Q42: -502 | R42: -27007 | S42: 0 | T42: -15313 | U42: 0 | V42: -62.6
A43: September | B43: - | C43: - | D43: - | E43: - | F43: - | G43: -536 | H43: 0 | I43: -1148 | J43: -1827 | K43: -123006 | L43: -73727 | M43: -599 | N43: -28 | O43: -399 | P43: -1710 | Q43: -22908 | R43: 0 | S43: 0 | T43: -7593 | U43: -531 | V43: -112.97
A44: October | B44: - | C44: - | D44: - | E44: - | F44: - | G44: -125213 | H44: 0 | I44: -332 | J44: -3761 | K44: -16637 | L44: -43562 | M44: -15 | N44: -11092 | O44: -949 | P44: -337 | Q44: -11 | R44: -1 | S44: -1040 | T44: -474 | U44: -368 | V44: -79742.8
A45: November | B45: - | C45: - | D45: - | E45: - | F45: - | G45: -19991 | H45: -126313 | I45: -55644 | J45: -71796 | K45: -2445 | L45: -2284 | M45: -35814 | N45: 0 | O45: 0 | P45: -10751 | Q45: -7 | R45: -519 | S45: -106638 | T45: -2238 | U45: -578 | V45: -835.42
A46: December | B46: - | C46: - | D46: - | E46: - | F46: -2849 | G46: -7937 | H46: -53222 | I46: -57130 | J46: -9813 | K46: -46078 | L46: -39913 | M46: -6651 | N46: -47 | O46: -392 | P46: -5 | Q46: -10248 | R46: 0 | S46: -65675 | T46: -21883 | U46: -6973 | V46: 0
A47: Total | B47: - | C47: - | D47: - | E47: - | F47: =SUM(F35:F46) -> -2849 | G47: -305736 | H47: -273411 | I47: -266028 | J47: -179974 | K47: -310835 | L47: -343073 | M47: -375946 | N47: -478253 | O47: -37389 | P47: -221743 | Q47: =SUM(Q35:Q46) -> -86334 | R47: =SUM(R35:R46) -> -109429 | S47: -194801 | T47: -75693 | U47: -51562 | V47: -86613.79
A48: Hidden columns B-C do not contain any data for CY 2004-2005
A49: *Collections for November 2008 are included in December totals due to a new processing system.
A50: Note: Totals not available prior to state administration of the tax in 2006.
A51: ='Local SUT'!A71 -> Source: Minnesota Department of Revenue, Tax Research Division, November 2025
A52: end of worksheet

Sheet Edina (hidden)
A1: Edina Monthly Detail for Minnesota Local Sales & Use Tax
A2: ='Local SUT'!A2 -> CY 2004-2024
A3: Edina Local Sales Tax (0.5%)
A4: Month | U4: 2023 | V4: 2024
A5: January | V5: 720169
A6: February | V6: 522614
A7: March | V7: 484125
A8: April | U8: 0 | V8: 574863
A9: May | U9: 506929 | V9: 556854
A10: June | U10: 558779 | V10: 572299
A11: July | U11: 655253 | V11: 659156
A12: August | U12: 555712 | V12: 573761.54
A13: September | U13: 598542 | V13: 576480.93
A14: October | U14: 611307 | V14: 578080.18
A15: November | U15: 575817 | V15: 563442.87
A16: December | U16: 605187 | V16: 580154.01
A17: Total | U17: =SUM(U5:U16) -> 4667526 | V17: 6961999.53
A18: Edina Local Use Tax (0.5%)
A19: Month | U19: 2023 | V19: 2024
A20: January | V20: 31602
A21: February | V21: 28528
A22: March | V22: 28163
A23: April | U23: 0 | V23: 26964
A24: May | U24: 13244 | V24: 14646
A25: June | U25: 16594 | V25: 20563
A26: July | U26: 27699 | V26: 24498
A27: August | U27: 19173 | V27: 27082.1
A28: September | U28: 20947 | V28: 29470.04
A29: October | U29: 22018 | V29: 26551.04
A30: November | U30: 25320 | V30: 31989.06
A31: December | U31: 30685 | V31: 21209.32
A32: Total | U32: =SUM(U20:U31) -> 175680 | V32: 311265.56
A33: Edina Refunds
A34: Month | U34: 2023 | V34: 2024
A35: January | V35: 0
A36: February | V36: 0
A37: March | V37: 0
A38: April | U38: 0 | V38: -844
A39: May | U39: 0 | V39: 0
A40: June | U40: 0 | V40: -6
A41: July | U41: 0 | V41: 0
A42: August | U42: 0 | V42: 0
A43: September | U43: 0 | V43: 0
A44: October | U44: 0 | V44: -0.8
A45: November | U45: 0 | V45: -133.02
A46: December | U46: 0 | V46: 0
A47: Total | U47: =SUM(U35:U46) -> 0 | V47: -983.82
A49: Columns B through T are empty as data before 2023 is unavailable.
A50: Note: Totals not available prior to state administration of the tax in 2023.
A51: ='Local SUT'!A71 -> Source: Minnesota Department of Revenue, Tax Research Division, November 2025
A52: end of worksheet

Sheet East Grand Forks (hidden)
A1: East Grand Forks Monthly Detail for Minnesota Local Sales & Use Tax
A2: ='Local SUT'!A2 -> CY 2004-2024
A3: East Grand Forks Local Sales Tax (1.0% ended 10/1/20)
A4: Month | B4: 2004 | C4: 2005 | D4: 2006 | E4: 2007 | F4: 2008 | G4: 2009 | H4: 2010 | I4: 2011 | J4: 2012 | K4: 2013 | L4: 2014 | M4: 2015 | N4: 2016 | O4: 2017 | P4: 2018 | Q4: 2019 | R4: 2020 | S4: 2021 | T4: 2022 | U4: 2023 | V4: 2024
A5: January | B5: - | C5: - | D5: - | E5: - | F5: - | G5: - | H5: - | I5: - | J5: - | K5: - | L5: - | M5: - | N5: - | O5: - | P5: 0 | Q5: 90463 | R5: 92830 | S5: 2676 | T5: 70 | U5: 60 | V5: 546
A6: February | B6: - | C6: - | D6: - | E6: - | F6: - | G6: - | H6: - | I6: - | J6: - | K6: - | L6: - | M6: - | N6: - | O6: - | P6: 60783 | Q6: 64854 | R6: 70911 | S6: 1466 | T6: 13 | U6: 12 | V6: -1
A7: March | B7: - | C7: - | D7: - | E7: - | F7: - | G7: - | H7: - | I7: - | J7: - | K7: - | L7: - | M7: - | N7: - | O7: - | P7: 60576 | Q7: 63527 | R7: 68901 | S7: 1289 | T7: 1940 | U7: 24 | V7: -162
A8: April | B8: - | C8: - | D8: - | E8: - | F8: - | G8: - | H8: - | I8: - | J8: - | K8: - | L8: - | M8: - | N8: - | O8: - | P8: 70090 | Q8: 78589 | R8: 83153 | S8: 1924 | T8: 249 | U8: 634 | V8: 820
A9: May | B9: - | C9: - | D9: - | E9: - | F9: - | G9: - | H9: - | I9: - | J9: - | K9: - | L9: - | M9: - | N9: - | O9: - | P9: 69411 | Q9: 70475 | R9: 62736 | S9: 454 | T9: 6 | U9: 5 | V9: 0
A10: June | B10: - | C10: - | D10: - | E10: - | F10: - | G10: - | H10: - | I10: - | J10: - | K10: - | L10: - | M10: - | N10: - | O10: - | P10: 74749 | Q10: 77978 | R10: 74124 | S10: 647 | T10: 382 | U10: 15 | V10: 0
A11: July | B11: - | C11: - | D11: - | E11: - | F11: - | G11: - | H11: - | I11: - | J11: - | K11: - | L11: - | M11: - | N11: - | O11: - | P11: 72066 | Q11: 81537 | R11: 83112 | S11: 79 | T11: 10 | U11: 426 | V11: 0
A12: August | B12: - | C12: - | D12: - | E12: - | F12: - | G12: - | H12: - | I12: - | J12: - | K12: - | L12: - | M12: - | N12: - | O12: - | P12: 84208 | Q12: 97577 | R12: 92583 | S12: 737 | T12: 151 | U12: 37 | V12: 0
A13: September | B13: - | C13: - | D13: - | E13: - | F13: - | G13: - | H13: - | I13: - | J13: - | K13: - | L13: - | M13: - | N13: - | O13: - | P13: 81142 | Q13: 76324 | R13: 85101 | S13: 292 | T13: 35 | U13: 4 | V13: 0
A14: October | B14: - | C14: - | D14: - | E14: - | F14: - | G14: - | H14: - | I14: - | J14: - | K14: - | L14: - | M14: - | N14: - | O14: - | P14: 79124 | Q14: 84868 | R14: 84782 | S14: 181 | T14: 5 | U14: -605 | V14: 1
A15: November | B15: - | C15: - | D15: - | E15: - | F15: - | G15: - | H15: - | I15: - | J15: - | K15: - | L15: - | M15: - | N15: - | O15: - | P15: 75616 | Q15: 73795 | R15: 279 | S15: 20 | T15: 48 | U15: 3 | V15: 4.16
A16: December | B16: - | C16: - | D16: - | E16: - | F16: - | G16: - | H16: - | I16: - | J16: - | K16: - | L16: - | M16: - | N16: - | O16: - | P16: 75699 | Q16: 78988 | R16: 4392 | S16: 114 | T16: 237 | U16: -140 | V16: 1500.72
A17: Total | B17: - | C17: - | D17: - | E17: - | F17: - | G17: - | H17: - | I17: - | J17: - | K17: - | L17: - | M17: - | N17: - | O17: - | P17: =SUM(P5:P16) -> 803464 | Q17: 938975 | R17: =SUM(R5:R16) -> 802904 | S17: 9879 | T17: 3146 | U17: 475 | V17: 2708.88
A18: East Grand Forks Local Use Tax (1.0%)
A19: Month | B19: 2004 | C19: 2005 | D19: 2006 | E19: 2007 | F19: 2008 | G19: 2009 | H19: 2010 | I19: 2011 | J19: 2012 | K19: 2013 | L19: 2014 | M19: 2015 | N19: 2016 | O19: 2017 | P19: 2018 | Q19: 2019 | R19: 2020 | S19: 2021 | T19: 2022 | U19: 2023 | V19: 2024
A20: January | B20: - | C20: - | D20: - | E20: - | F20: - | G20: - | H20: - | I20: - | J20: - | K20: - | L20: - | M20: - | N20: - | O20: - | P20: 0 | Q20: 2732 | R20: 7373 | S20: -14592 | T20: 28 | U20: 0 | V20: 0
A21: February | B21: - | C21: - | D21: - | E21: - | F21: - | G21: - | H21: - | I21: - | J21: - | K21: - | L21: - | M21: - | N21: - | O21: - | P21: 984 | Q21: 1818 | R21: 2616 | S21: 141 | T21: -25012 | U21: 0 | V21: -515
A22: March | B22: - | C22: - | D22: - | E22: - | F22: - | G22: - | H22: - | I22: - | J22: - | K22: - | L22: - | M22: - | N22: - | O22: - | P22: 1399 | Q22: 7758 | R22: 2753 | S22: 0 | T22: 0 | U22: 0 | V22: 0
A23: April | B23: - | C23: - | D23: - | E23: - | F23: - | G23: - | H23: - | I23: - | J23: - | K23: - | L23: - | M23: - | N23: - | O23: - | P23: 1985 | Q23: 2531 | R23: 9156 | S23: 0 | T23: 0 | U23: 0 | V23: 0
A24: May | B24: - | C24: - | D24: - | E24: - | F24: - | G24: - | H24: - | I24: - | J24: - | K24: - | L24: - | M24: - | N24: - | O24: - | P24: 3931 | Q24: 6158 | R24: -840 | S24: 0 | T24: 0 | U24: 21 | V24: 0
A25: June | B25: - | C25: - | D25: - | E25: - | F25: - | G25: - | H25: - | I25: - | J25: - | K25: - | L25: - | M25: - | N25: - | O25: - | P25: 3468 | Q25: 7707 | R25: 7573 | S25: 0 | T25: 0 | U25: 0 | V25: -131
A26: July | B26: - | C26: - | D26: - | E26: - | F26: - | G26: - | H26: - | I26: - | J26: - | K26: - | L26: - | M26: - | N26: - | O26: - | P26: 2845 | Q26: 9683 | R26: 8578 | S26: -43 | T26: 0 | U26: 0 | V26: 0
A27: August | B27: - | C27: - | D27: - | E27: - | F27: - | G27: - | H27: - | I27: - | J27: - | K27: - | L27: - | M27: - | N27: - | O27: - | P27: 4516 | Q27: 9225 | R27: -1376 | S27: -3356 | T27: -21865 | U27: 0 | V27: 0
A28: September | B28: - | C28: - | D28: - | E28: - | F28: - | G28: - | H28: - | I28: - | J28: - | K28: - | L28: - | M28: - | N28: - | O28: - | P28: 2028 | Q28: 10330 | R28: 11741 | S28: 89 | T28: 0 | U28: 0 | V28: 0
A29: October | B29: - | C29: - | D29: - | E29: - | F29: - | G29: - | H29: - | I29: - | J29: - | K29: - | L29: - | M29: - | N29: - | O29: - | P29: 2299 | Q29: 6711 | R29: 3974 | S29: 0 | T29: 0 | U29: -2897 | V29: 0
A30: November | B30: - | C30: - | D30: - | E30: - | F30: - | G30: - | H30: - | I30: - | J30: - | K30: - | L30: - | M30: - | N30: - | O30: - | P30: 1991 | Q30: 19657 | R30: 36 | S30: 0 | T30: 0 | U30: 0 | V30: 0
A31: December | B31: - | C31: - | D31: - | E31: - | F31: - | G31: - | H31: - | I31: - | J31: - | K31: - | L31: - | M31: - | N31: - | O31: - | P31: 2884 | Q31: 4525 | R31: 47 | S31: 0 | T31: 0 | U31: 0 | V31: 0
A32: Total | B32: - | C32: - | D32: - | E32: - | F32: - | G32: - | H32: - | I32: - | J32: - | K32: - | L32: - | M32: - | N32: - | O32: - | P32: =SUM(P20:P31) -> 28330 | Q32: 88835 | R32: =SUM(R20:R31) -> 51631 | S32: -17761 | T32: -46849 | U32: -2876 | V32: -646
A33: East Grand Forks Refunds
A34: Month | B34: 2004 | C34: 2005 | D34: 2006 | E34: 2007 | F34: 2008 | G34: 2009 | H34: 2010 | I34: 2011 | J34: 2012 | K34: 2013 | L34: 2014 | M34: 2015 | N34: 2016 | O34: 2017 | P34: 2018 | Q34: 2019 | R34: 2020 | S34: 2021 | T34: 2022 | U34: 2023 | V34: 2024
A35: January | B35: - | C35: - | D35: - | E35: - | F35: - | G35: - | H35: - | I35: - | J35: - | K35: - | L35: - | M35: - | N35: - | O35: - | P35: 0 | Q35: 0 | R35: 0 | S35: 0 | T35: 0 | U35: 0 | V35: 0
A36: February | B36: - | C36: - | D36: - | E36: - | F36: - | G36: - | H36: - | I36: - | J36: - | K36: - | L36: - | M36: - | N36: - | O36: - | P36: 0 | Q36: 0 | R36: 0 | S36: 0 | T36: -36627 | U36: 0 | V36: 0
A37: March | B37: - | C37: - | D37: - | E37: - | F37: - | G37: - | H37: - | I37: - | J37: - | K37: - | L37: - | M37: - | N37: - | O37: - | P37: 0 | Q37: -11097 | R37: 0 | S37: -172 | T37: 0 | U37: 0 | V37: 0
A38: April | B38: - | C38: - | D38: - | E38: - | F38: - | G38: - | H38: - | I38: - | J38: - | K38: - | L38: - | M38: - | N38: - | O38: - | P38: 0 | Q38: 0 | R38: 0 | S38: 0 | T38: 0 | U38: 0 | V38: 0
A39: May | B39: - | C39: - | D39: - | E39: - | F39: - | G39: - | H39: - | I39: - | J39: - | K39: - | L39: - | M39: - | N39: - | O39: - | P39: 0 | Q39: 0 | R39: 0 | S39: 0 | T39: 0 | U39: 0 | V39: 0
A40: June | B40: - | C40: - | D40: - | E40: - | F40: - | G40: - | H40: - | I40: - | J40: - | K40: - | L40: - | M40: - | N40: - | O40: - | P40: 0 | Q40: -3 | R40: -14042 | S40: 0 | T40: 0 | U40: 0 | V40: -1559
A41: July | B41: - | C41: - | D41: - | E41: - | F41: - | G41: - | H41: - | I41: - | J41: - | K41: - | L41: - | M41: - | N41: - | O41: - | P41: 0 | Q41: 0 | R41: 0 | S41: -14761 | T41: 0 | U41: 0 | V41: 0
A42: August | B42: - | C42: - | D42: - | E42: - | F42: - | G42: - | H42: - | I42: - | J42: - | K42: - | L42: - | M42: - | N42: - | O42: - | P42: 0 | Q42: -29 | R42: 0 | S42: 0 | T42: 0 | U42: 0 | V42: 0
A43: September | B43: - | C43: - | D43: - | E43: - | F43: - | G43: - | H43: - | I43: - | J43: - | K43: - | L43: - | M43: - | N43: - | O43: - | P43: 0 | Q43: 0 | R43: 0 | S43: 0 | T43: -44940 | U43: -8280 | V43: 0
A44: October | B44: - | C44: - | D44: - | E44: - | F44: - | G44: - | H44: - | I44: - | J44: - | K44: - | L44: - | M44: - | N44: - | O44: - | P44: -434 | Q44: 0 | R44: 0 | S44: -9 | T44: 0 | U44: 0 | V44: 0
A45: November | B45: - | C45: - | D45: - | E45: - | F45: - | G45: - | H45: - | I45: - | J45: - | K45: - | L45: - | M45: - | N45: - | O45: - | P45: 0 | Q45: 0 | R45: -22377 | S45: 0 | T45: 0 | U45: 0 | V45: 0
A46: December | B46: - | C46: - | D46: - | E46: - | F46: - | G46: - | H46: - | I46: - | J46: - | K46: - | L46: - | M46: - | N46: - | O46: - | P46: 0 | Q46: 0 | R46: 0 | S46: 0 | T46: 0 | U46: 0 | V46: 0
A47: Total | B47: - | C47: - | D47: - | E47: - | F47: - | G47: - | H47: - | I47: - | J47: - | K47: - | L47: - | M47: - | N47: - | O47: - | P47: =SUM(P35:P46) -> -434 | Q47: -11129 | R47: =SUM(R35:R46) -> -36419 | S47: -14942 | T47: -81567 | U47: -8280 | V47: -1559
A48: Hidden columns B-O do not contain any data for CY 2004-2017
A49: ='Local SUT'!A71 -> Source: Minnesota Department of Revenue, Tax Research Division, November 2025
A50: end of worksheet

Sheet Fairmont (hidden)
A1: Fairmont Monthly Detail for Minnesota Local Sales & Use Tax
A2: ='Local SUT'!A2 -> CY 2004-2024
A3: Fairmont Local Sales Tax (0.5%)
A4: Month | B4: 2004 | C4: 2005 | D4: 2006 | E4: 2007 | F4: 2008 | G4: 2009 | H4: 2010 | I4: 2011 | J4: 2012 | K4: 2013 | L4: 2014 | M4: 2015 | N4: 2016 | O4: 2017 | P4: 2018 | Q4: 2019 | R4: 2020 | S4: 2021 | T4: 2022 | U4: 2023 | V4: 2024
A5: January | B5: - | C5: - | D5: - | E5: - | F5: - | G5: - | H5: - | I5: - | J5: - | K5: - | L5: - | M5: - | N5: - | O5: - | P5: 61711 | Q5: 65978 | R5: 85068 | S5: 91397 | T5: 103925 | U5: 102917 | V5: 109254
A6: February | B6: - | C6: - | D6: - | E6: - | F6: - | G6: - | H6: - | I6: - | J6: - | K6: - | L6: - | M6: - | N6: - | O6: - | P6: 49927 | Q6: 60134 | R6: 65968 | S6: 69294 | T6: 80290 | U6: 81226 | V6: 78861
A7: March | B7: - | C7: - | D7: - | E7: - | F7: - | G7: - | H7: - | I7: - | J7: - | K7: - | L7: - | M7: - | N7: - | O7: - | P7: 42273 | Q7: 57092 | R7: 65863 | S7: 65864 | T7: 76831 | U7: 80324 | V7: 77902
A8: April | B8: - | C8: - | D8: - | E8: - | F8: - | G8: - | H8: - | I8: - | J8: - | K8: - | L8: - | M8: - | N8: - | O8: - | P8: 60479 | Q8: 68960 | R8: 67133 | S8: 95096 | T8: 84108 | U8: 96881 | V8: 94291
A9: May | B9: - | C9: - | D9: - | E9: - | F9: - | G9: - | H9: - | I9: - | J9: - | K9: - | L9: - | M9: - | N9: - | O9: - | P9: 52768 | Q9: 69937 | R9: 63477 | S9: 88960 | T9: 79483 | U9: 90540 | V9: 93523
A10: June | B10: - | C10: - | D10: - | E10: - | F10: - | G10: - | H10: - | I10: - | J10: - | K10: - | L10: - | M10: - | N10: - | O10: - | P10: 61091 | Q10: 79612 | R10: 80126 | S10: 90204 | T10: 92952 | U10: 105309 | V10: 96053
A11: July | B11: - | C11: - | D11: - | E11: - | F11: - | G11: - | H11: - | I11: - | J11: - | K11: - | L11: - | M11: - | N11: - | O11: - | P11: 54436 | Q11: 73798 | R11: 79979 | S11: 95812 | T11: 103283 | U11: 106236 | V11: 106578
A12: August | B12: - | C12: - | D12: - | E12: - | F12: - | G12: - | H12: - | I12: - | J12: - | K12: - | L12: - | M12: - | N12: - | O12: - | P12: 79215 | Q12: 91028 | R12: 94084 | S12: 101642 | T12: 100795 | U12: 97763 | V12: 96731.57
A13: September | B13: - | C13: - | D13: - | E13: - | F13: - | G13: - | H13: - | I13: - | J13: - | K13: - | L13: - | M13: - | N13: - | O13: - | P13: 67022 | Q13: 80461 | R13: 80241 | S13: 88229 | T13: 105675 | U13: 100676 | V13: 100486.56
A14: October | B14: - | C14: - | D14: - | E14: - | F14: - | G14: - | H14: - | I14: - | J14: - | K14: - | L14: - | M14: - | N14: - | O14: - | P14: 61457 | Q14: 78276 | R14: 78825 | S14: 103537 | T14: 100745 | U14: 94684 | V14: 95125.81
A15: November | B15: - | C15: - | D15: - | E15: - | F15: - | G15: - | H15: - | I15: - | J15: - | K15: - | L15: - | M15: - | N15: - | O15: 50902 | P15: 61158 | Q15: 73868 | R15: 78252 | S15: 88701 | T15: 94721 | U15: 92205 | V15: 96915.24
A16: December | B16: - | C16: - | D16: - | E16: - | F16: - | G16: - | H16: - | I16: - | J16: - | K16: - | L16: - | M16: - | N16: - | O16: 55913 | P16: 59595 | Q16: 73948 | R16: 91215 | S16: 87937 | T16: 98519 | U16: 91868 | V16: 96595.31
A17: Total | B17: - | C17: - | D17: - | E17: - | F17: - | G17: - | H17: - | I17: - | J17: - | K17: - | L17: - | M17: - | N17: - | O17: =SUM(O5:O16) -> 106815 | P17: 711132 | Q17: =SUM(Q5:Q16) -> 873092 | R17: =SUM(R5:R16) -> 930231 | S17: 1066673 | T17: 1121327 | U17: 1140629 | V17: 1142316.49
A18: Fairmont Local Use Tax (0.5%)
A19: Month | B19: 2004 | C19: 2005 | D19: 2006 | E19: 2007 | F19: 2008 | G19: 2009 | H19: 2010 | I19: 2011 | J19: 2012 | K19: 2013 | L19: 2014 | M19: 2015 | N19: 2016 | O19: 2017 | P19: 2018 | Q19: 2019 | R19: 2020 | S19: 2021 | T19: 2022 | U19: 2023 | V19: 2024
A20: January | B20: - | C20: - | D20: - | E20: - | F20: - | G20: - | H20: - | I20: - | J20: - | K20: - | L20: - | M20: - | N20: - | O20: - | P20: 2322 | Q20: 2363 | R20: 4367 | S20: 4290 | T20: 2031 | U20: 5093 | V20: 5551
A21: February | B21: - | C21: - | D21: - | E21: - | F21: - | G21: - | H21: - | I21: - | J21: - | K21: - | L21: - | M21: - | N21: - | O21: - | P21: 970 | Q21: 1988 | R21: 3221 | S21: 2903 | T21: 5254 | U21: 2578 | V21: 4246
A22: March | B22: - | C22: - | D22: - | E22: - | F22: - | G22: - | H22: - | I22: - | J22: - | K22: - | L22: - | M22: - | N22: - | O22: - | P22: 2037 | Q22: 1192 | R22: 2494 | S22: 1755 | T22: 2794 | U22: 3749 | V22: 3464
A23: April | B23: - | C23: - | D23: - | E23: - | F23: - | G23: - | H23: - | I23: - | J23: - | K23: - | L23: - | M23: - | N23: - | O23: - | P23: 2326 | Q23: 3101 | R23: 2014 | S23: 2933 | T23: 3168 | U23: 2542 | V23: 2842
A24: May | B24: - | C24: - | D24: - | E24: - | F24: - | G24: - | H24: - | I24: - | J24: - | K24: - | L24: - | M24: - | N24: - | O24: - | P24: 1607 | Q24: 2117 | R24: 2497 | S24: 2086 | T24: 2703 | U24: 2000 | V24: 2105
A25: June | B25: - | C25: - | D25: - | E25: - | F25: - | G25: - | H25: - | I25: - | J25: - | K25: - | L25: - | M25: - | N25: - | O25: - | P25: 2187 | Q25: 2804 | R25: 2812 | S25: 1549 | T25: 2387 | U25: 3190 | V25: 3287
A26: July | B26: - | C26: - | D26: - | E26: - | F26: - | G26: - | H26: - | I26: - | J26: - | K26: - | L26: - | M26: - | N26: - | O26: - | P26: 3503 | Q26: 2987 | R26: 1849 | S26: 2642 | T26: 4049 | U26: 5017 | V26: 5170
A27: August | B27: - | C27: - | D27: - | E27: - | F27: - | G27: - | H27: - | I27: - | J27: - | K27: - | L27: - | M27: - | N27: - | O27: - | P27: 1983 | Q27: 2159 | R27: 2859 | S27: 2965 | T27: 2548 | U27: 3420 | V27: 4650.14
A28: September | B28: - | C28: - | D28: - | E28: - | F28: - | G28: - | H28: - | I28: - | J28: - | K28: - | L28: - | M28: - | N28: - | O28: - | P28: 1933 | Q28: 2261 | R28: 2570 | S28: 2560 | T28: 9282 | U28: 5391 | V28: 3146.85
A29: October | B29: - | C29: - | D29: - | E29: - | F29: - | G29: - | H29: - | I29: - | J29: - | K29: - | L29: - | M29: - | N29: - | O29: - | P29: 1805 | Q29: 3205 | R29: 4117 | S29: 2807 | T29: 7444 | U29: 4970 | V29: 3301.32
A30: November | B30: - | C30: - | D30: - | E30: - | F30: - | G30: - | H30: - | I30: - | J30: - | K30: - | L30: - | M30: - | N30: - | O30: 2949 | P30: 2881 | Q30: 5533 | R30: 2583 | S30: 2354 | T30: 4958 | U30: 3593 | V30: 2175.84
A31: December | B31: - | C31: - | D31: - | E31: - | F31: - | G31: - | H31: - | I31: - | J31: - | K31: - | L31: - | M31: - | N31: - | O31: 1680 | P31: 2618 | Q31: 3191 | R31: 2209 | S31: 3575 | T31: 3078 | U31: 3475 | V31: 4310.35
A32: Total | B32: - | C32: - | D32: - | E32: - | F32: - | G32: - | H32: - | I32: - | J32: - | K32: - | L32: - | M32: - | N32: - | O32: =SUM(O20:O31) -> 4629 | P32: 26172 | Q32: =SUM(Q20:Q31) -> 32901 | R32: =SUM(R20:R31) -> 33592 | S32: 32419 | T32: 49696 | U32: 45018 | V32: 44249.5
A33: Fairmont Refunds
A34: Month | B34: 2004 | C34: 2005 | D34: 2006 | E34: 2007 | F34: 2008 | G34: 2009 | H34: 2010 | I34: 2011 | J34: 2012 | K34: 2013 | L34: 2014 | M34: 2015 | N34: 2016 | O34: 2017 | P34: 2018 | Q34: 2019 | R34: 2020 | S34: 2021 | T34: 2022 | U34: 2023 | V34: 2024
A35: January | B35: - | C35: - | D35: - | E35: - | F35: - | G35: - | H35: - | I35: - | J35: - | K35: - | L35: - | M35: - | N35: - | O35: - | P35: 0 | Q35: 0 | R35: 0 | S35: -1 | T35: -8 | U35: 0 | V35: 0
A36: February | B36: - | C36: - | D36: - | E36: - | F36: - | G36: - | H36: - | I36: - | J36: - | K36: - | L36: - | M36: - | N36: - | O36: - | P36: 0 | Q36: 0 | R36: 0 | S36: 0 | T36: 0 | U36: -2 | V36: 0
A37: March | B37: - | C37: - | D37: - | E37: - | F37: - | G37: - | H37: - | I37: - | J37: - | K37: - | L37: - | M37: - | N37: - | O37: - | P37: -72 | Q37: 0 | R37: -105 | S37: 0 | T37: 0 | U37: -423 | V37: -22
A38: April | B38: - | C38: - | D38: - | E38: - | F38: - | G38: - | H38: - | I38: - | J38: - | K38: - | L38: - | M38: - | N38: - | O38: - | P38: -3 | Q38: 0 | R38: 0 | S38: -54 | T38: 0 | U38: 0 | V38: 0
A39: May | B39: - | C39: - | D39: - | E39: - | F39: - | G39: - | H39: - | I39: - | J39: - | K39: - | L39: - | M39: - | N39: - | O39: - | P39: 0 | Q39: 0 | R39: 0 | S39: 0 | T39: 0 | U39: -41 | V39: 0
A40: June | B40: - | C40: - | D40: - | E40: - | F40: - | G40: - | H40: - | I40: - | J40: - | K40: - | L40: - | M40: - | N40: - | O40: - | P40: 0 | Q40: 0 | R40: -397 | S40: 0 | T40: 0 | U40: -571 | V40: 0
A41: July | B41: - | C41: - | D41: - | E41: - | F41: - | G41: - | H41: - | I41: - | J41: - | K41: - | L41: - | M41: - | N41: - | O41: - | P41: 0 | Q41: 0 | R41: 0 | S41: -2479 | T41: -4 | U41: -571 | V41: -1
A42: August | B42: - | C42: - | D42: - | E42: - | F42: - | G42: - | H42: - | I42: - | J42: - | K42: - | L42: - | M42: - | N42: - | O42: - | P42: 0 | Q42: 0 | R42: 0 | S42: -7309 | T42: -175 | U42: 0 | V42: 0
A43: September | B43: - | C43: - | D43: - | E43: - | F43: - | G43: - | H43: - | I43: - | J43: - | K43: - | L43: - | M43: - | N43: - | O43: - | P43: 0 | Q43: 0 | R43: 0 | S43: 0 | T43: 0 | U43: 0 | V43: 0
A44: October | B44: - | C44: - | D44: - | E44: - | F44: - | G44: - | H44: - | I44: - | J44: - | K44: - | L44: - | M44: - | N44: - | O44: - | P44: -1066 | Q44: 0 | R44: 0 | S44: -1141 | T44: -5 | U44: -289 | V44: -28.94
A45: November | B45: - | C45: - | D45: - | E45: - | F45: - | G45: - | H45: - | I45: - | J45: - | K45: - | L45: - | M45: - | N45: - | O45: 0 | P45: 0 | Q45: 0 | R45: 0 | S45: 0 | T45: -1057 | U45: 0 | V45: 0
A46: December | B46: - | C46: - | D46: - | E46: - | F46: - | G46: - | H46: - | I46: - | J46: - | K46: - | L46: - | M46: - | N46: - | O46: 0 | P46: 0 | Q46: -105 | R46: -167 | S46: 0 | T46: 0 | U46: 0 | V46: 0
A47: Total | B47: - | C47: - | D47: - | E47: - | F47: - | G47: - | H47: - | I47: - | J47: - | K47: - | L47: - | M47: - | N47: - | O47: =SUM(O35:O46) -> 0 | P47: -1141 | Q47: =SUM(Q35:Q46) -> -105 | R47: =SUM(R35:R46) -> -669 | S47: -10984 | T47: -1249 | U47: -1897 | V47: -51.94
A48: Hidden columns B-N do not contain any data for CY 2004-2016
A49: ='Local SUT'!A71 -> Source: Minnesota Department of Revenue, Tax Research Division, November 2025
A50: end of worksheet

Sheet Fergus Falls (hidden)
A1: Fergus Falls Monthly Detail for Minnesota Local Sales & Use Tax
A2: ='Local SUT'!A2 -> CY 2004-2024
A3: Fergus Falls Local Sales Tax (0.5%)
A4: Month | B4: 2004 | C4: 2005 | D4: 2006 | E4: 2007 | F4: 2008 | G4: 2009 | H4: 2010 | I4: 2011 | J4: 2012 | K4: 2013 | L4: 2014 | M4: 2015 | N4: 2016 | O4: 2017 | P4: 2018 | Q4: 2019 | R4: 2020 | S4: 2021 | T4: 2022 | U4: 2023 | V4: 2024
A5: January | B5: - | C5: - | D5: - | E5: - | F5: - | G5: - | H5: - | I5: - | J5: - | K5: 113430 | L5: 138483 | M5: 117471 | N5: 114598 | O5: 118749 | P5: -777 | Q5: 110676 | R5: 114212 | S5: 125425 | T5: 129997 | U5: 2319 | V5: 136143
A6: February | B6: - | C6: - | D6: - | E6: - | F6: - | G6: - | H6: - | I6: - | J6: 65616 | K6: 78142 | L6: 79512 | M6: 83262 | N6: 81429 | O6: 4700 | P6: 75070 | Q6: 89982 | R6: 90738 | S6: 99844 | T6: 112116 | U6: 3074 | V6: 131186
A7: March | B7: - | C7: - | D7: - | E7: - | F7: - | G7: - | H7: - | I7: - | J7: 69518 | K7: 72362 | L7: 78260 | M7: 76289 | N7: 85133 | O7: 1476 | P7: 76671 | Q7: 79180 | R7: 82058 | S7: 95904 | T7: 103330 | U7: 2392 | V7: 116311
A8: April | B8: - | C8: - | D8: - | E8: - | F8: - | G8: - | H8: - | I8: - | J8: 87297 | K8: 80850 | L8: 97617 | M8: 96376 | N8: 97774 | O8: 2095 | P8: 93045 | Q8: 98469 | R8: 95744 | S8: 128933 | T8: 125103 | U8: 3950 | V8: 125038
A9: May | B9: - | C9: - | D9: - | E9: - | F9: - | G9: - | H9: - | I9: - | J9: 90892 | K9: 87587 | L9: 103705 | M9: 106863 | N9: 105735 | O9: 6242 | P9: 103398 | Q9: 104693 | R9: 103498 | S9: 129796 | T9: 129529 | U9: 1648 | V9: 135178
A10: June | B10: - | C10: - | D10: - | E10: - | F10: - | G10: - | H10: - | I10: - | J10: 99098 | K10: 109203 | L10: 106877 | M10: 114079 | N10: 117194 | O10: 2212 | P10: 130935 | Q10: 120182 | R10: 134452 | S10: 139158 | T10: 165425 | U10: 570 | V10: 144018
A11: July | B11: - | C11: - | D11: - | E11: - | F11: - | G11: - | H11: - | I11: - | J11: 94145 | K11: 103897 | L11: 108645 | M11: 110425 | N11: 119903 | O11: 1710 | P11: 120027 | Q11: 122009 | R11: 124479 | S11: 143135 | T11: 175680 | U11: 258 | V11: 146194
A12: August | B12: - | C12: - | D12: - | E12: - | F12: - | G12: - | H12: - | I12: - | J12: 110147 | K12: 117032 | L12: 126203 | M12: 129546 | N12: 119541 | O12: 3418 | P12: 119157 | Q12: 127586 | R12: 144158 | S12: 137668 | T12: 144781 | U12: 171 | V12: 146975.52
A13: September | B13: - | C13: - | D13: - | E13: - | F13: - | G13: - | H13: - | I13: - | J13: 99534 | K13: 100386 | L13: 105193 | M13: 101548 | N13: 105058 | O13: 2141 | P13: 109285 | Q13: 114383 | R13: 121705 | S13: 126334 | T13: 131780 | U13: 87 | V13: 134367.69
A14: October | B14: - | C14: - | D14: - | E14: - | F14: - | G14: - | H14: - | I14: - | J14: 94824 | K14: 103959 | L14: 108342 | M14: 105488 | N14: 106269 | O14: 1619 | P14: 114959 | Q14: 111699 | R14: 128339 | S14: 132960 | T14: 145248 | U14: 77 | V14: 140793.58
A15: November | B15: - | C15: - | D15: - | E15: - | F15: - | G15: - | H15: - | I15: - | J15: 94183 | K15: 97633 | L15: 105709 | M15: 98642 | N15: 102589 | O15: -81 | P15: 103778 | Q15: 112851 | R15: 119424 | S15: 130871 | T15: 1320 | U15: 128691 | V15: 137097.45 | W15: Tax Restarted 10/1/2023 at 0.5%
A16: December | B16: - | C16: - | D16: - | E16: - | F16: - | G16: - | H16: - | I16: - | J16: 87040 | K16: 93862 | L16: 100241 | M16: 98298 | N16: 98800 | O16: -46 | P16: 97159 | Q16: 103384 | R16: 111917 | S16: 124068 | T16: 117 | U16: 125852 | V16: 124436.09
A17: Total | B17: - | C17: - | D17: - | E17: - | F17: - | G17: - | H17: - | I17: - | J17: =SUM(J5:J16) -> 992294 | K17: 1158343 | L17: 1258787 | M17: 1238287 | N17: 1254023 | O17: 144235 | P17: 1142707 | Q17: =SUM(Q5:Q16) -> 1295094 | R17: =SUM(R5:R16) -> 1370724 | S17: 1514096 | T17: 1364426 | U17: 269089 | V17: 1617738.33
A18: Fergus Falls Local Use Tax (0.5%)
A19: Month | B19: 2004 | C19: 2005 | D19: 2006 | E19: 2007 | F19: 2008 | G19: 2009 | H19: 2010 | I19: 2011 | J19: 2012 | K19: 2013 | L19: 2014 | M19: 2015 | N19: 2016 | O19: 2017 | P19: 2018 | Q19: 2019 | R19: 2020 | S19: 2021 | T19: 2022 | U19: 2023 | V19: 2024
A20: January | B20: - | C20: - | D20: - | E20: - | F20: - | G20: - | H20: - | I20: - | J20: - | K20: 2391 | L20: 4044 | M20: 3211 | N20: 1848 | O20: 4161 | P20: 80 | Q20: 3392 | R20: 4832 | S20: 5331 | T20: 3993 | U20: -549 | V20: 5930
A21: February | B21: - | C21: - | D21: - | E21: - | F21: - | G21: - | H21: - | I21: - | J21: 2741 | K21: 1676 | L21: 2454 | M21: 2340 | N21: 2797 | O21: -626 | P21: 2638 | Q21: 5607 | R21: 4989 | S21: 2488 | T21: 3167 | U21: 2697 | V21: 6563
A22: March | B22: - | C22: - | D22: - | E22: - | F22: - | G22: - | H22: - | I22: - | J22: 2536 | K22: 2977 | L22: 4373 | M22: 1865 | N22: 1805 | O22: -337 | P22: 3839 | Q22: 3284 | R22: 3424 | S22: 3734 | T22: 2396 | U22: 7 | V22: 3132
A23: April | B23: - | C23: - | D23: - | E23: - | F23: - | G23: - | H23: - | I23: - | J23: 2636 | K23: 2332 | L23: 3651 | M23: 2714 | N23: 3106 | O23: 97 | P23: 4588 | Q23: 3700 | R23: 10008 | S23: 4129 | T23: 3757 | U23: -73 | V23: 4053
A24: May | B24: - | C24: - | D24: - | E24: - | F24: - | G24: - | H24: - | I24: - | J24: 1305 | K24: 2605 | L24: 4180 | M24: 2159 | N24: 2338 | O24: -12 | P24: 3942 | Q24: 3574 | R24: 3529 | S24: 4242 | T24: 3631 | U24: 71 | V24: 331
A25: June | B25: - | C25: - | D25: - | E25: - | F25: - | G25: - | H25: - | I25: - | J25: 2308 | K25: 2577 | L25: 3330 | M25: 2685 | N25: 2744 | O25: 2453 | P25: 6664 | Q25: 7179 | R25: 2472 | S25: 3181 | T25: 4297 | U25: 6 | V25: 5888
A26: July | B26: - | C26: - | D26: - | E26: - | F26: - | G26: - | H26: - | I26: - | J26: 3287 | K26: 2652 | L26: 3662 | M26: 3861 | N26: 4129 | O26: 11 | P26: 7024 | Q26: 3288 | R26: 2777 | S26: 4770 | T26: 11965 | U26: 652 | V26: 4597
A27: August | B27: - | C27: - | D27: - | E27: - | F27: - | G27: - | H27: - | I27: - | J27: 1959 | K27: 3044 | L27: 3080 | M27: 3624 | N27: 3610 | O27: -664 | P27: 3492 | Q27: 6570 | R27: 7820 | S27: 3557 | T27: 5555 | U27: 171 | V27: 7877.95
A28: September | B28: - | C28: - | D28: - | E28: - | F28: - | G28: - | H28: - | I28: - | J28: 4300 | K28: 2392 | L28: 2304 | M28: 3122 | N28: 4087 | O28: 561 | P28: 3472 | Q28: 3819 | R28: 4676 | S28: 2526 | T28: 7383 | U28: 29 | V28: 7441.85
A29: October | B29: - | C29: - | D29: - | E29: - | F29: - | G29: - | H29: - | I29: - | J29: 2493 | K29: 2947 | L29: 12150 | M29: 3487 | N29: 3275 | O29: 141 | P29: 5092 | Q29: 3432 | R29: 3506 | S29: 3238 | T29: 8333 | U29: 0 | V29: 6296.32
A30: November | B30: - | C30: - | D30: - | E30: - | F30: - | G30: - | H30: - | I30: - | J30: 1590 | K30: 2301 | L30: 6812 | M30: 3049 | N30: 3293 | O30: 0 | P30: 3487 | Q30: 3307 | R30: 3155 | S30: 3646 | T30: -385 | U30: 2981 | V30: 6204.98
A31: December | B31: - | C31: - | D31: - | E31: - | F31: - | G31: - | H31: - | I31: - | J31: 1790 | K31: 3519 | L31: 3923 | M31: 1567 | N31: 3593 | O31: 92 | P31: 4219 | Q31: 3904 | R31: 2348 | S31: 3254 | T31: -127 | U31: 5377 | V31: 1355.5
A32: Total | B32: - | C32: - | D32: - | E32: - | F32: - | G32: - | H32: - | I32: - | J32: =SUM(J20:J31) -> 26945 | K32: 31413 | L32: 53963 | M32: 33684 | N32: 36625 | O32: 5877 | P32: 48537 | Q32: =SUM(Q20:Q31) -> 51056 | R32: =SUM(R20:R31) -> 53536 | S32: 44096 | T32: 53965 | U32: 11369 | V32: 59670.6
A33: Fergus Falls Refunds
A34: Month | B34: 2004 | C34: 2005 | D34: 2006 | E34: 2007 | F34: 2008 | G34: 2009 | H34: 2010 | I34: 2011 | J34: 2012 | K34: 2013 | L34: 2014 | M34: 2015 | N34: 2016 | O34: 2017 | P34: 2018 | Q34: 2019 | R34: 2020 | S34: 2021 | T34: 2022 | U34: 2023 | V34: 2024
A35: January | B35: - | C35: - | D35: - | E35: - | F35: - | G35: - | H35: - | I35: - | J35: - | K35: 0 | L35: -155 | M35: -184 | N35: -2 | O35: 0 | P35: -146 | Q35: 0 | R35: -4 | S35: 0 | T35: 0 | U35: 0 | V35: 0
A36: February | B36: - | C36: - | D36: - | E36: - | F36: - | G36: - | H36: - | I36: - | J36: - | K36: 0 | L36: 0 | M36: -13163 | N36: -4 | O36: 0 | P36: 0 | Q36: 0 | R36: -39 | S36: 0 | T36: 0 | U36: 0 | V36: -1477
A37: March | B37: - | C37: - | D37: - | E37: - | F37: - | G37: - | H37: - | I37: - | J37: - | K37: 0 | L37: -1553 | M37: -232 | N37: -59 | O37: -7501 | P37: -12 | Q37: 0 | R37: -2278 | S37: -30 | T37: 0 | U37: -21 | V37: 0
A38: April | B38: - | C38: - | D38: - | E38: - | F38: - | G38: - | H38: - | I38: - | J38: - | K38: -4768 | L38: 0 | M38: -1479 | N38: -206 | O38: -164 | P38: 0 | Q38: -20 | R38: 0 | S38: 0 | T38: -14 | U38: 0 | V38: 0
A39: May | B39: - | C39: - | D39: - | E39: - | F39: - | G39: - | H39: - | I39: - | J39: - | K39: 0 | L39: 0 | M39: -46 | N39: -4276 | O39: -1 | P39: 0 | Q39: 0 | R39: -66 | S39: 0 | T39: -28 | U39: 0 | V39: 0
A40: June | B40: - | C40: - | D40: - | E40: - | F40: - | G40: - | H40: - | I40: - | J40: - | K40: 0 | L40: 0 | M40: -4737 | N40: -22 | O40: 0 | P40: 0 | Q40: 0 | R40: -2278 | S40: 0 | T40: 0 | U40: 0 | V40: 0
A41: July | B41: - | C41: - | D41: - | E41: - | F41: - | G41: - | H41: - | I41: - | J41: - | K41: -67 | L41: -137 | M41: -10953 | N41: 0 | O41: 0 | P41: 0 | Q41: 0 | R41: -180 | S41: 0 | T41: -222 | U41: -5 | V41: 0
A42: August | B42: - | C42: - | D42: - | E42: - | F42: - | G42: - | H42: - | I42: - | J42: - | K42: -4314 | L42: -85 | M42: -162 | N42: 0 | O42: 0 | P42: 0 | Q42: 0 | R42: -17 | S42: 0 | T42: 0 | U42: -299 | V42: -497.77
A43: September | B43: - | C43: - | D43: - | E43: - | F43: - | G43: - | H43: - | I43: - | J43: - | K43: 0 | L43: 0 | M43: -305 | N43: -5496 | O43: 0 | P43: 0 | Q43: 0 | R43: -35 | S43: 0 | T43: 0 | U43: 0 | V43: 0
A44: October | B44: - | C44: - | D44: - | E44: - | F44: - | G44: - | H44: - | I44: - | J44: - | K44: -112 | L44: -41611 | M44: -3432 | N44: 0 | O44: -1364 | P44: -28 | Q44: 0 | R44: 0 | S44: 0 | T44: 0 | U44: -4 | V44: 0
A45: November | B45: - | C45: - | D45: - | E45: - | F45: - | G45: - | H45: - | I45: - | J45: - | K45: 0 | L45: 0 | M45: -201 | N45: 0 | O45: -208 | P45: 0 | Q45: -39 | R45: 0 | S45: 0 | T45: 0 | U45: 0 | V45: 0
A46: December | B46: - | C46: - | D46: - | E46: - | F46: - | G46: - | H46: - | I46: - | J46: -1 | K46: -1732 | L46: -136 | M46: 0 | N46: 0 | O46: 0 | P46: 0 | Q46: 0 | R46: 0 | S46: 0 | T46: 0 | U46: 0 | V46: -28286.83
A47: Total | B47: - | C47: - | D47: - | E47: - | F47: - | G47: - | H47: - | I47: - | J47: =SUM(J35:J46) -> -1 | K47: -10993 | L47: -43677 | M47: -34894 | N47: -10065 | O47: -9238 | P47: -186 | Q47: =SUM(Q35:Q46) -> -59 | R47: =SUM(R35:R46) -> -4897 | S47: -30 | T47: -264 | U47: -329 | V47: -30261.6
A48: Hidden columns B-I do not contain any data for CY 2004-2011
A49: Note: Local Sales & Use Tax ended December 2016. Collections in later months are late tax payments or refunds.
A50: ='Local SUT'!A71 -> Source: Minnesota Department of Revenue, Tax Research Division, November 2025
A51: end of worksheet

Sheet GKWMLL Sanitary (hidden)
A1: GKWMLL Sanitary Monthly Detail for Minnesota Local Sales & Use Tax
A2: ='Local SUT'!A2 -> CY 2004-2024
A3: Garrison, Kathio, West Mille Lacs Sanitary District Local Sales Tax (1.0%)
A4: Month | B4: 2004 | C4: 2005 | D4: 2006 | E4: 2007 | F4: 2008 | G4: 2009 | H4: 2010 | I4: 2011 | J4: 2012 | K4: 2013 | L4: 2014 | M4: 2015 | N4: 2016 | O4: 2017 | P4: 2018 | Q4: 2019 | R4: 2020 | S4: 2021 | T4: 2022 | U4: 2023 | V4: 2024
A5: January | B5: - | C5: - | D5: - | E5: - | F5: - | G5: - | H5: - | I5: - | J5: - | K5: - | L5: - | M5: - | N5: - | O5: - | P5: 0 | Q5: 14423 | R5: 14170 | S5: 18636 | T5: 21123 | U5: 20488 | V5: 40021
A6: February | B6: - | C6: - | D6: - | E6: - | F6: - | G6: - | H6: - | I6: - | J6: - | K6: - | L6: - | M6: - | N6: - | O6: - | P6: 22041 | Q6: 11701 | R6: 13623 | S6: 18660 | T6: 18455 | U6: 21741 | V6: 42048
A7: March | B7: - | C7: - | D7: - | E7: - | F7: - | G7: - | H7: - | I7: - | J7: - | K7: - | L7: - | M7: - | N7: - | O7: - | P7: 11320 | Q7: 12739 | R7: 12756 | S7: 21371 | T7: 18592 | U7: 22999 | V7: 27624
A8: April | B8: - | C8: - | D8: - | E8: - | F8: - | G8: - | H8: - | I8: - | J8: - | K8: - | L8: - | M8: - | N8: - | O8: - | P8: 13429 | Q8: 11193 | R8: 13013 | S8: 19575 | T8: 19742 | U8: 19700 | V8: 31212
A9: May | B9: - | C9: - | D9: - | E9: - | F9: - | G9: - | H9: - | I9: - | J9: - | K9: - | L9: - | M9: - | N9: - | O9: - | P9: 9313 | Q9: 10546 | R9: 12789 | S9: 15470 | T9: 15250 | U9: 18167 | V9: 29678
A10: June | B10: - | C10: - | D10: - | E10: - | F10: - | G10: - | H10: - | I10: - | J10: - | K10: - | L10: - | M10: - | N10: - | O10: - | P10: 13150 | Q10: 15332 | R10: 19221 | S10: 23219 | T10: 23897 | U10: 24929 | V10: 36259
A11: July | B11: - | C11: - | D11: - | E11: - | F11: - | G11: - | H11: - | I11: - | J11: - | K11: - | L11: - | M11: - | N11: - | O11: - | P11: 23451 | Q11: 18291 | R11: 21806 | S11: 24247 | T11: 28860 | U11: 28740 | V11: 38146
A12: August | B12: - | C12: - | D12: - | E12: - | F12: - | G12: - | H12: - | I12: - | J12: - | K12: - | L12: - | M12: - | N12: - | O12: - | P12: 18663 | Q12: 23842 | R12: 26186 | S12: 27513 | T12: 26752 | U12: 30385 | V12: 39993.68
A13: September | B13: - | C13: - | D13: - | E13: - | F13: - | G13: - | H13: - | I13: - | J13: - | K13: - | L13: - | M13: - | N13: - | O13: - | P13: 14841 | Q13: 20309 | R13: 24022 | S13: 24090 | T13: 19618 | U13: 26184 | V13: 36447.55
A14: October | B14: - | C14: - | D14: - | E14: - | F14: - | G14: - | H14: - | I14: - | J14: - | K14: - | L14: - | M14: - | N14: - | O14: - | P14: 16067 | Q14: 17941 | R14: 22362 | S14: 22158 | T14: 25047 | U14: 29481 | V14: 36204.37
A15: November | B15: - | C15: - | D15: - | E15: - | F15: - | G15: - | H15: - | I15: - | J15: - | K15: - | L15: - | M15: - | N15: - | O15: - | P15: 11365 | Q15: 13807 | R15: 19753 | S15: 17914 | T15: 20193 | U15: 47246 | V15: 30694.82
A16: December | B16: - | C16: - | D16: - | E16: - | F16: - | G16: - | H16: - | I16: - | J16: - | K16: - | L16: - | M16: - | N16: - | O16: - | P16: 10355 | Q16: 11982 | R16: 20937 | S16: 17855 | T16: 19516 | U16: 26594 | V16: 23393.97
A17: Total | B17: - | C17: - | D17: - | E17: - | F17: - | G17: - | H17: - | I17: - | J17: - | K17: - | L17: - | M17: - | N17: - | O17: - | P17: =SUM(P5:P16) -> 163995 | Q17: 182106 | R17: =SUM(R5:R16) -> 220638 | S17: 250708 | T17: 257045 | U17: 316654 | V17: 411722.39
A18: Garrison, Kathio, West Mille Lacs Sanitary District Local Use Tax (1.0%)
A19: Month | B19: 2004 | C19: 2005 | D19: 2006 | E19: 2007 | F19: 2008 | G19: 2009 | H19: 2010 | I19: 2011 | J19: 2012 | K19: 2013 | L19: 2014 | M19: 2015 | N19: 2016 | O19: 2017 | P19: 2018 | Q19: 2019 | R19: 2020 | S19: 2021 | T19: 2022 | U19: 2023 | V19: 2024
A20: January | B20: - | C20: - | D20: - | E20: - | F20: - | G20: - | H20: - | I20: - | J20: - | K20: - | L20: - | M20: - | N20: - | O20: - | P20: 0 | Q20: 483 | R20: 335 | S20: 1342 | T20: 206 | U20: 281 | V20: 1104
A21: February | B21: - | C21: - | D21: - | E21: - | F21: - | G21: - | H21: - | I21: - | J21: - | K21: - | L21: - | M21: - | N21: - | O21: - | P21: 88 | Q21: 341 | R21: 98 | S21: 76 | T21: 148 | U21: 299 | V21: 301
A22: March | B22: - | C22: - | D22: - | E22: - | F22: - | G22: - | H22: - | I22: - | J22: - | K22: - | L22: - | M22: - | N22: - | O22: - | P22: 129 | Q22: 136 | R22: 122 | S22: 19575 | T22: 218 | U22: 114 | V22: 295
A23: April | B23: - | C23: - | D23: - | E23: - | F23: - | G23: - | H23: - | I23: - | J23: - | K23: - | L23: - | M23: - | N23: - | O23: - | P23: 288 | Q23: 142 | R23: 154 | S23: 842 | T23: 383 | U23: 697 | V23: 362
A24: May | B24: - | C24: - | D24: - | E24: - | F24: - | G24: - | H24: - | I24: - | J24: - | K24: - | L24: - | M24: - | N24: - | O24: - | P24: 507 | Q24: 355 | R24: 496 | S24: 273 | T24: 134 | U24: 333 | V24: 401
A25: June | B25: - | C25: - | D25: - | E25: - | F25: - | G25: - | H25: - | I25: - | J25: - | K25: - | L25: - | M25: - | N25: - | O25: - | P25: 1037 | Q25: 657 | R25: 353 | S25: 136 | T25: 512 | U25: 393 | V25: 495
A26: July | B26: - | C26: - | D26: - | E26: - | F26: - | G26: - | H26: - | I26: - | J26: - | K26: - | L26: - | M26: - | N26: - | O26: - | P26: 1077 | Q26: 370 | R26: 211 | S26: 165 | T26: 637 | U26: 1112 | V26: 977
A27: August | B27: - | C27: - | D27: - | E27: - | F27: - | G27: - | H27: - | I27: - | J27: - | K27: - | L27: - | M27: - | N27: - | O27: - | P27: 1471 | Q27: 356 | R27: 314 | S27: 427 | T27: 2120 | U27: 642 | V27: 565
A28: September | B28: - | C28: - | D28: - | E28: - | F28: - | G28: - | H28: - | I28: - | J28: - | K28: - | L28: - | M28: - | N28: - | O28: - | P28: 956 | Q28: 202 | R28: 275 | S28: 203 | T28: 385 | U28: 424 | V28: 634
A29: October | B29: - | C29: - | D29: - | E29: - | F29: - | G29: - | H29: - | I29: - | J29: - | K29: - | L29: - | M29: - | N29: - | O29: - | P29: 389 | Q29: 598 | R29: 275 | S29: 558 | T29: 712 | U29: 470 | V29: 600
A30: November | B30: - | C30: - | D30: - | E30: - | F30: - | G30: - | H30: - | I30: - | J30: - | K30: - | L30: - | M30: - | N30: - | O30: - | P30: 492 | Q30: 263 | R30: 198 | S30: 1429 | T30: 351 | U30: 518 | V30: 450
A31: December | B31: - | C31: - | D31: - | E31: - | F31: - | G31: - | H31: - | I31: - | J31: - | K31: - | L31: - | M31: - | N31: - | O31: - | P31: 62 | Q31: 93 | R31: 176 | S31: 188 | T31: 378 | U31: 1450 | V31: 439
A32: Total | B32: - | C32: - | D32: - | E32: - | F32: - | G32: - | H32: - | I32: - | J32: - | K32: - | L32: - | M32: - | N32: - | O32: - | P32: =SUM(P20:P31) -> 6496 | Q32: 3996 | R32: =SUM(R20:R31) -> 3007 | S32: 25214 | T32: 6184 | U32: 6733 | V32: 6623
A33: Garrison, Kathio, West Mille Lacs Sanitary District Refunds
A34: Month | B34: 2004 | C34: 2005 | D34: 2006 | E34: 2007 | F34: 2008 | G34: 2009 | H34: 2010 | I34: 2011 | J34: 2012 | K34: 2013 | L34: 2014 | M34: 2015 | N34: 2016 | O34: 2017 | P34: 2018 | Q34: 2019 | R34: 2020 | S34: 2021 | T34: 2022 | U34: 2023 | V34: 2024
A35: January | B35: - | C35: - | D35: - | E35: - | F35: - | G35: - | H35: - | I35: - | J35: - | K35: - | L35: - | M35: - | N35: - | O35: - | P35: 0 | Q35: 0 | R35: 0 | S35: 0 | T35: 0 | U35: 0 | V35: 0
A36: February | B36: - | C36: - | D36: - | E36: - | F36: - | G36: - | H36: - | I36: - | J36: - | K36: - | L36: - | M36: - | N36: - | O36: - | P36: 0 | Q36: 0 | R36: 0 | S36: 0 | T36: 0 | U36: 0 | V36: 0
A37: March | B37: - | C37: - | D37: - | E37: - | F37: - | G37: - | H37: - | I37: - | J37: - | K37: - | L37: - | M37: - | N37: - | O37: - | P37: 0 | Q37: 0 | R37: 0 | S37: 0 | T37: 0 | U37: 0 | V37: 0
A38: April | B38: - | C38: - | D38: - | E38: - | F38: - | G38: - | H38: - | I38: - | J38: - | K38: - | L38: - | M38: - | N38: - | O38: - | P38: 0 | Q38: 0 | R38: 0 | S38: 0 | T38: 0 | U38: 0 | V38: 0
A39: May | B39: - | C39: - | D39: - | E39: - | F39: - | G39: - | H39: - | I39: - | J39: - | K39: - | L39: - | M39: - | N39: - | O39: - | P39: 0 | Q39: 0 | R39: 0 | S39: 0 | T39: 0 | U39: 0 | V39: 0
A40: June | B40: - | C40: - | D40: - | E40: - | F40: - | G40: - | H40: - | I40: - | J40: - | K40: - | L40: - | M40: - | N40: - | O40: - | P40: 0 | Q40: 0 | R40: 0 | S40: 0 | T40: 0 | U40: -214 | V40: 0
A41: July | B41: - | C41: - | D41: - | E41: - | F41: - | G41: - | H41: - | I41: - | J41: - | K41: - | L41: - | M41: - | N41: - | O41: - | P41: 0 | Q41: 0 | R41: 0 | S41: 0 | T41: 0 | U41: 0 | V41: 0
A42: August | B42: - | C42: - | D42: - | E42: - | F42: - | G42: - | H42: - | I42: - | J42: - | K42: - | L42: - | M42: - | N42: - | O42: - | P42: 0 | Q42: 0 | R42: 0 | S42: 0 | T42: 0 | U42: 0 | V42: 0
A43: September | B43: - | C43: - | D43: - | E43: - | F43: - | G43: - | H43: - | I43: - | J43: - | K43: - | L43: - | M43: - | N43: - | O43: - | P43: 0 | Q43: 0 | R43: 0 | S43: 0 | T43: 0 | U43: 0 | V43: 0
A44: October | B44: - | C44: - | D44: - | E44: - | F44: - | G44: - | H44: - | I44: - | J44: - | K44: - | L44: - | M44: - | N44: - | O44: - | P44: 0 | Q44: 0 | R44: 0 | S44: 0 | T44: 0 | U44: 0 | V44: 0
A45: November | B45: - | C45: - | D45: - | E45: - | F45: - | G45: - | H45: - | I45: - | J45: - | K45: - | L45: - | M45: - | N45: - | O45: - | P45: 0 | Q45: 0 | R45: 0 | S45: 0 | T45: 0 | U45: 0 | V45: 0
A46: December | B46: - | C46: - | D46: - | E46: - | F46: - | G46: - | H46: - | I46: - | J46: - | K46: - | L46: - | M46: - | N46: - | O46: - | P46: 0 | Q46: 0 | R46: 0 | S46: 0 | T46: 0 | U46: 0 | V46: 0
A47: Total | B47: - | C47: - | D47: - | E47: - | F47: - | G47: - | H47: - | I47: - | J47: - | K47: - | L47: - | M47: - | N47: - | O47: - | P47: =SUM(P35:P46) -> 0 | Q47: 0 | R47: =SUM(R35:R46) -> 0 | S47: 0 | T47: 0 | U47: -214 | V47: 0
A48: Hidden columns B-O do not contain any data for CY 2004-2017
A49: ='Local SUT'!A71 -> Source: Minnesota Department of Revenue, Tax Research Division, November 2025
A50: end of worksheet

Sheet Hermantown (hidden)
A1: Hermantown Monthly Detail for Minnesota Local Sales & Use Tax
A2: ='Local SUT'!A2 -> CY 2004-2024
A3: Hermantown Local Sales Tax ( 0.5% enacted 2000; 1.0% since 4/1/13)
A4: Month | B4: 2004 | C4: 2005 | D4: 2006 | E4: 2007 | F4: 2008 | G4: 2009 | H4: 2010 | I4: 2011 | J4: 2012 | K4: 2013 | L4: 2014 | M4: 2015 | N4: 2016 | O4: 2017 | P4: 2018 | Q4: 2019 | R4: 2020 | S4: 2021 | T4: 2022 | U4: 2023 | V4: 2024
A5: January | B5: 89514.99 | C5: 100721 | D5: 104768 | E5: 110415.97 | F5: 102873.67 | G5: 91403 | H5: 97965 | I5: 101337 | J5: 109857 | K5: 108112 | L5: 185330 | M5: 200577 | N5: 239494 | O5: 271382 | P5: 247827 | Q5: 258279 | R5: 271499 | S5: 297574 | T5: 301795 | U5: 324580 | V5: 512525
A6: February | B6: 87277.37 | C6: 70042 | D6: 74564.08 | E6: 78772.5 | F6: 117377.28 | G6: 84313 | H6: 69694 | I6: 72373 | J6: 77413 | K6: 79958 | L6: 198653 | M6: 179173 | N6: 192010 | O6: 185799 | P6: 188665 | Q6: 202779 | R6: 212191 | S6: 252371 | T6: 243308 | U6: 262837 | V6: 391465
A7: March | B7: 67678.02 | C7: 71962.39 | D7: 65365.2 | E7: 72486 | F7: 72055.36 | G7: 64562 | H7: 69508 | I7: 72838 | J7: 77337 | K7: 76366 | L7: 146968 | M7: 195583 | N7: 180703 | O7: 174098 | P7: 172167 | Q7: 180986 | R7: 205156 | S7: 225892 | T7: 225907 | U7: 248993 | V7: 386022
A8: April | B8: 76885 | C8: 79894 | D8: 81271 | E8: 88767.93 | F8: 79293.31 | G8: 84337 | H8: 84727 | I8: 66328 | J8: 92674 | K8: 89015 | L8: 172932 | M8: 198056 | N8: 210152 | O8: 214026 | P8: 219038 | Q8: 219932 | R8: 225094 | S8: 296613 | T8: 287464 | U8: 298852 | V8: 448699
A9: May | B9: 85754.16 | C9: 89520 | D9: 86781.19 | E9: 85734 | F9: 82498.21 | G9: 84060 | H9: 87376 | I9: 99084 | J9: 92496 | K9: 163871 | L9: 181398 | M9: 197350 | N9: 208683 | O9: 230447 | P9: 215260 | Q9: 228003 | R9: 234036 | S9: 310700 | T9: 283211 | U9: 431934 | V9: 456547
A10: June | B10: 97632 | C10: 105550 | D10: 100533 | E10: 109135.31 | F10: 102267.77 | G10: 104743 | H10: 103150 | I10: 104036 | J10: 87328 | K10: 226420 | L10: 231253 | M10: 246442 | N10: 255985 | O10: 270133 | P10: 287632 | Q10: 281623 | R10: 326272 | S10: 361135 | T10: 424220 | U10: 577675 | V10: 553813
A11: July | B11: 71828.95 | C11: 65823.17 | D11: 91194 | E11: 100345 | F11: 87247.05 | G11: 77414 | H11: 99589 | I11: 104518 | J11: 119665 | K11: 180441 | L11: 236295 | M11: 195829 | N11: 201743 | O11: 228462 | P11: 227193 | Q11: 290751 | R11: 209636 | S11: 336094 | T11: 375479 | U11: 603519 | V11: 525289
A12: August | B12: 125735.92 | C12: 133257.09 | D12: 113687.82 | E12: 113566.64 | F12: 94283.23 | G12: 126971 | H12: 108812 | I12: 106241 | J12: 132140 | K12: 278465 | L12: 244451 | M12: 312843 | N12: 317466 | O12: 318587 | P12: 327823 | Q12: 291099 | R12: 425907 | S12: 340101 | T12: 341869 | U12: 539254 | V12: 527783.32
A13: September | B13: 104256 | C13: 101201.8 | D13: 105124.21 | E13: 104586.75 | F13: 79197.08 | G13: 78990 | H13: 100443 | I13: 100894 | J13: 108943 | K13: 233612 | L13: 235635 | M13: 245076 | N13: 269249 | O13: 276060 | P13: 269836 | Q13: 296522 | R13: 294080 | S13: 326121 | T13: 354738 | U13: 542513 | V13: 524318.78
A14: October | B14: 92348.5 | C14: 104085 | D14: 103622.5 | E14: 97929.22 | F14: 83221.46 | G14: 117732 | H14: 99087 | I14: 102868 | J14: 102557 | K14: 208124 | L14: 213583 | M14: 240017 | N14: 259734 | O14: 241939 | P14: 255238 | Q14: 268030 | R14: 297220 | S14: 318517 | T14: 335605 | U14: 511682 | V14: 474941.59
A15: November | B15: 93154.93 | C15: 96565 | D15: 94754 | E15: 95808.43 | F15: * | G15: 90974 | H15: 97516 | I15: 106450 | J15: 100214 | K15: 210517 | L15: 224797 | M15: 241682 | N15: 254276 | O15: 242205 | P15: 258076 | Q15: 276087 | R15: 305193 | S15: 317327 | T15: 360982 | U15: 512613 | V15: 508052.05
A16: December | B16: 86343.56 | C16: 90035 | D16: 92109 | E16: 96530 | F16: 137664 | G16: 88347 | H16: 90464 | I16: 95824 | J16: 100268 | K16: 198507 | L16: 213444 | M16: 217950 | N16: 241689 | O16: 226969 | P16: 247516 | Q16: 260975 | R16: 272761 | S16: 240676 | T16: 317242 | U16: 495879 | V16: 477695.28
A17: Total | B17: =SUM(B5:B16) -> 1078409.4 | C17: =SUM(C5:C16) -> 1108656.45 | D17: 1113774 | E17: 1154077.75 | F17: 1037978.42 | G17: 1093846 | H17: 1108331 | I17: 1132791 | J17: =SUM(J5:J16) -> 1200892 | K17: 2053408 | L17: 2484739 | M17: 2670578 | N17: 2831184 | O17: 2880107 | P17: 2916271 | Q17: =SUM(Q5:Q16) -> 3055066 | R17: =SUM(R5:R16) -> 3279045 | S17: 3623121 | T17: 3851820 | U17: 5350331 | V17: 5787151.02
A18: Hermantown Local Use Tax ( 0.5% enacted 2000; 1.0% since 4/1/13)
A19: Month | B19: 2004 | C19: 2005 | D19: 2006 | E19: 2007 | F19: 2008 | G19: 2009 | H19: 2010 | I19: 2011 | J19: 2012 | K19: 2013 | L19: 2014 | M19: 2015 | N19: 2016 | O19: 2017 | P19: 2018 | Q19: 2019 | R19: 2020 | S19: 2021 | T19: 2022 | U19: 2023 | V19: 2024
A20: January | B20: 1491.59 | C20: 2875 | D20: 2322.74 | E20: 3556.5 | F20: 3108.4 | G20: 4829 | H20: 2939 | I20: 4461 | J20: 3040 | K20: 3130 | L20: 4143 | M20: 6445 | N20: 11529 | O20: 11215 | P20: 7015 | Q20: 5660 | R20: 7147 | S20: 6683 | T20: 10327 | U20: 9260 | V20: 13101
A21: February | B21: 1027 | C21: 1204 | D21: 1894 | E21: 3420.4 | F21: 2361.12 | G21: 1946 | H21: 1853 | I21: 3306 | J21: 3146 | K21: 1476 | L21: 2628 | M21: 3412 | N21: 10383 | O21: 4628 | P21: 4678 | Q21: 4370 | R21: 5153 | S21: 7846 | T21: 5876 | U21: 6594 | V21: 9418
A22: March | B22: 2196 | C22: 3552.3 | D22: 1101 | E22: 4069.3 | F22: 25692 | G22: 1630 | H22: 1326 | I22: 2981 | J22: 933 | K22: 2058 | L22: 3207 | M22: 3098 | N22: 100070 | O22: 3812 | P22: 36248 | Q22: 5483 | R22: 8556 | S22: 3709 | T22: 5561 | U22: 7448 | V22: 11468
A23: April | B23: 2009 | C23: 1967 | D23: 2628.72 | E23: 1425 | F23: 1602.28 | G23: 6188 | H23: 497 | I23: 2482 | J23: 1633 | K23: 1207 | L23: 5578 | M23: 4955 | N23: 7184 | O23: 9458 | P23: 5371 | Q23: 8266 | R23: 7184 | S23: 4835 | T23: 16705 | U23: 8581 | V23: 11906
A24: May | B24: 1390.2 | C24: 2296 | D24: 1277.61 | E24: 1220.8 | F24: 20240 | G24: 3196 | H24: 1519 | I24: 2480 | J24: 968 | K24: 2447 | L24: 3423 | M24: 3370 | N24: 6488 | O24: 5486 | P24: 3637 | Q24: 4218 | R24: 4341 | S24: 7193 | T24: 6454 | U24: 10695 | V24: 9463
A25: June | B25: 1541.8 | C25: 3428 | D25: 1231.83 | E25: 5207.66 | F25: 1656.36 | G25: 2291 | H25: 1427 | I25: 3514 | J25: 1586 | K25: 3067 | L25: 2848 | M25: 5166 | N25: 11025 | O25: 5518 | P25: 3479 | Q25: 4332 | R25: 11040 | S25: 5052 | T25: 5750 | U25: 12618 | V25: 9487
A26: July | B26: 3053.37 | C26: 3020 | D26: 1541 | E26: 3158.92 | F26: 1758.21 | G26: 1664 | H26: 2174 | I26: 2463 | J26: 1435 | K26: 4204 | L26: 8067 | M26: 5975 | N26: 9696 | O26: 5912 | P26: 7802 | Q26: 7517 | R26: 14034 | S26: 7270 | T26: 8452 | U26: 13708 | V26: 23887
A27: August | B27: 1803 | C27: 6056 | D27: 1943.11 | E27: 4289.18 | F27: 3453.79 | G27: 2164 | H27: 2575 | I27: 1428 | J27: 1314 | K27: 3716 | L27: 2666 | M27: 6656 | N27: 7197 | O27: 6184 | P27: 5987 | Q27: 6615 | R27: 9072 | S27: 7383 | T27: 9776 | U27: 13695 | V27: 11671.87
A28: September | B28: 1573 | C28: 8942.41 | D28: 1786.09 | E28: 5047.2 | F28: 2874 | G28: 1835 | H28: 2983 | I28: 2354 | J28: 1792 | K28: 3235 | L28: 1465 | M28: 6850 | N28: 7358 | O28: 5672 | P28: 5107 | Q28: 3527 | R28: 7819 | S28: 10241 | T28: 5413 | U28: 14657 | V28: 11849.05
A29: October | B29: 2239 | C29: 2888.77 | D29: 3971 | E29: 2374 | F29: 3889.45 | G29: 3228 | H29: 3535 | I29: 2408 | J29: 1812 | K29: 4108 | L29: 6632 | M29: 11146 | N29: 5724 | O29: 13253 | P29: 13152 | Q29: 3814 | R29: 11411 | S29: 11005 | T29: 8093 | U29: 13781 | V29: 14379.84
A30: November | B30: 1902.19 | C30: 1902 | D30: 2346.83 | E30: 2722.03 | F30: * | G30: 2249 | H30: 2671 | I30: 6835 | J30: 2305 | K30: 3206 | L30: 3303 | M30: 9819 | N30: 8258 | O30: 9020 | P30: 4020 | Q30: 5749 | R30: 6453 | S30: -5768 | T30: 7529 | U30: 12183 | V30: 15839.85
A31: December | B31: 1129 | C31: 6881.02 | D31: 1860.5 | E31: 2468.37 | F31: 5091 | G31: 2157 | H31: 2286 | I31: 2429 | J31: 3578 | K31: 4296 | L31: 7682 | M31: 4803 | N31: 7101 | O31: 5019 | P31: 19974 | Q31: 2488 | R31: 4414 | S31: 20432 | T31: 7446 | U31: 9605 | V31: 10184.73
A32: Total | B32: =SUM(B20:B31) -> 21355.15 | C32: =SUM(C20:C31) -> 45012.5 | D32: 23904.43 | E32: 38959.36 | F32: 71726.61 | G32: 33377 | H32: 25785 | I32: 37141 | J32: =SUM(J20:J31) -> 23542 | K32: 36150 | L32: 51642 | M32: 71695 | N32: 192013 | O32: 85177 | P32: 116470 | Q32: =SUM(Q20:Q31) -> 62039 | R32: =SUM(R20:R31) -> 96624 | S32: 85881 | T32: 97382 | U32: 132825 | V32: 152655.34
A33: Hermantown Refunds
A34: Month | B34: 2004 | C34: 2005 | D34: 2006 | E34: 2007 | F34: 2008 | G34: 2009 | H34: 2010 | I34: 2011 | J34: 2012 | K34: 2013 | L34: 2014 | M34: 2015 | N34: 2016 | O34: 2017 | P34: 2018 | Q34: 2019 | R34: 2020 | S34: 2021 | T34: 2022 | U34: 2023 | V34: 2024
A35: January | B35: - | C35: - | D35: - | E35: - | F35: - | G35: 0 | H35: 0 | I35: 0 | J35: 0 | K35: 0 | L35: 0 | M35: 0 | N35: 0 | O35: 0 | P35: -263 | Q35: -1 | R35: 0 | S35: 0 | T35: 0 | U35: 0 | V35: -102
A36: February | B36: - | C36: - | D36: - | E36: - | F36: - | G36: 0 | H36: -83 | I36: 0 | J36: -1 | K36: 0 | L36: 0 | M36: 0 | N36: -64 | O36: 0 | P36: -25 | Q36: 0 | R36: 0 | S36: 0 | T36: -4 | U36: -47 | V36: 0
